Workbook

Sheet Dashboard
E31: =VLOOKUP(Versjonslog!D4,Versjonslog!B7:E14,2) -> 4 | G31: =VLOOKUP(Versjonslog!D4,Versjonslog!B7:E14,3) -> 2025-05-08
B32: =VLOOKUP(Versjonslog!D4,Versjonslog!B7:E14,4) -> Garantibehov beregnes

Sheet Takstutvikling
L2: Drivstoff | M2: 2015 | N2: 2020 | O2: 2025 | P2: 2030 | Q2: 2035 | R2: 2040 | S2: 2045 | T2: 2050
K3: Personbil | L3: Bensin | M3: =M36/(SUM(M$36:M$39)+SUM(M$43:M$44)) -> 0.3017531948 | N3: 0.2121692393 | O3: 0.1347670251 | P3: 0.0711390877 | Q3: 0.03005139532 | R3: 0.01036247693 | S3: 0.00417346749 | T3: 0.002495295754
L4: Diesel | M4: =(M43+M37)/(SUM(M$36:M$39)+SUM(M$43:M$44)) -> 0.6667474963 | N4: 0.6038221242 | O4: 0.4390681004 | P4: 0.2563594033 | Q4: 0.1178057172 | R4: 0.05714045981 | S4: 0.03510258053 | T4: 0.02393029534 | AE4: Bruk | AG4: TRUE | AN4: NB2021
L5: Elektrisk | M5: 0.0193748636 | N5: 0.1013184491 | O5: 0.3231182796 | P5: 0.5711822023 | Q5: 0.7756870407 | R5: 0.8821530458 | S5: 0.9194024917 | T5: 0.9326679211 | AE5: =VLOOKUP(D13,Trafikkfremskivingsdata!$U$7:$CO$29,65,0) -> 0 | BF5: Input | BG5: =Bommer!E86 -> 0 | BH5: =Bommer!E87 -> 0 | BI5: =Bommer!E88 -> 0 | BJ5: =Bommer!E89 -> 0 | BK5: =Bommer!E90 -> 0 | BL5: =Bommer!E91 -> 0 | BM5: =Bommer!E92 -> 0
L6: Hybrid | M6: =M39/(SUM(M$36:M$39)+SUM(M$43:M$44)) -> 0.01212444531 | N6: 0.08269018743 | O6: 0.103046595 | P6: 0.1013193067 | Q6: 0.07645584675 | R6: 0.05034401745 | S6: 0.0413214603 | T6: 0.04090648777 | AF6: Drivstoff | AO6: Drivstoff | AX6: Drivstoff | BG6: Drivstoff
B7: Innkrevingsstart | D7: 2023 | K7: Tunge | L7: Diesel | M7: =(M40/(SUM(M$40:M$42))) -> 1 | N7: 1 | O7: 0.9540329575 | P7: 0.8845829823 | Q7: 0.8207070707 | R7: 0.7490636704 | S7: 0.6661115737 | T7: 0.5884773663 | AF7: Personbil | AJ7: Tunge | AO7: Personbil | AS7: Tunge | AX7: Personbil | BB7: Tunge | BG7: Personbil | BK7: Tunge
B8: Takstår | D8: 2022 | L8: Elektrisk | M8: 0 | N8: 0 | O8: 0.04336513443 | P8: 0.1095197978 | Q8: 0.1611952862 | R8: 0.2259675406 | S8: 0.317235637 | T8: 0.3909465021 | AE8: År | AF8: Bensin | AG8: Diesel | AH8: Elektrisk | AI8: Hybrid | AJ8: Diesel | AK8: Elektrisk | AL8: Hydrogen | AN8: År | AO8: Bensin | AP8: Diesel | AQ8: Elektrisk | AR8: Hybrid | AS8: Diesel | AT8: Elektrisk | AU8: Hydrogen | AW8: År | AX8: Bensin | AY8: Diesel | AZ8: Elektrisk | BA8: Hybrid | BB8: Diesel | BC8: Elektrisk | BD8: Hydrogen | BF8: År | BG8: Bensin | BH8: Diesel | BI8: Elektrisk | BJ8: Hybrid | BK8: Diesel | BL8: Elektrisk | BM8: Hydrogen
B9: Gjennomsnittstakst | D9: =Miljoberegning!E37 -> 9.6 | L9: Hydrogen | M9: 0 | N9: 0 | O9: 0.002601908066 | P9: 0.005897219882 | Q9: 0.0180976431 | R9: 0.02496878901 | S9: 0.01665278934 | T9: 0.02057613169 | AE9: 2015 | AF9: =IF($AG$4=TRUE,AO9,AX9) -> 0.3017531948 | AG9: 0.6667474963 | AH9: 0.0193748636 | AI9: 0.01212444531 | AJ9: 1 | AK9: 0 | AL9: 0 | AN9: 2015 | AO9: =LOOKUP($AN9,$M$2:$T$2,$M$3:$T$3) -> 0.3017531948 | AP9: =LOOKUP($AN9,$M$2:$T$2,$M$4:$T$4) -> 0.6667474963 | AQ9: =LOOKUP($AN9,$M$2:$T$2,$M$5:$T$5) -> 0.0193748636 | AR9: =LOOKUP($AN9,$M$2:$T$2,$M$6:$T$6) -> 0.01212444531 | AS9: =LOOKUP($AN9,$M$2:$T$2,$M$7:$T$7) -> 1 | AT9: =LOOKUP($AN9,$M$2:$T$2,$M$8:$T$8) -> 0 | AU9: =LOOKUP($AN9,$M$2:$T$2,$M$9:$T$9) -> 0 | AW9: 2015 | AX9: =IF($AW9<Bommer!$E$77,0,IF($AW9=Bommer!$E$77,BG9,Takstutvikling!AX8)) -> 0 | AY9: =IF($AW9<Bommer!$E$77,0,IF($AW9=Bommer!$E$77,BH9,Takstutvikling!AY8)) -> 0 | AZ9: =IF($AW9<Bommer!$E$77,0,IF($AW9=Bommer!$E$77,BI9,Takstutvikling!AZ8)) -> 0 | BA9: =IF($AW9<Bommer!$E$77,0,IF($AW9=Bommer!$E$77,BJ9,Takstutvikling!BA8)) -> 0 | BB9: =IF($AW9<Bommer!$E$77,0,IF($AW9=Bommer!$E$77,BK9,Takstutvikling!BB8)) -> 0 | BC9: =IF($AW9<Bommer!$E$77,0,IF($AW9=Bommer!$E$77,BL9,Takstutvikling!BC8)) -> 0 | BD9: =IF($AW9<Bommer!$E$77,0,IF($AW9=Bommer!$E$77,BM9,Takstutvikling!BD8)) -> 0 | BF9: 2015 | BG9: =BG5*(SUM($BG$5:$BM$5/SUM($BG$5:$BJ$5))) ->  | BH9: =BH5*(SUM($BG$5:$BM$5/SUM($BG$5:$BJ$5))) ->  | BI9: =BI5*(SUM($BG$5:$BM$5/SUM($BG$5:$BJ$5))) ->  | BJ9: =BJ5*(SUM($BG$5:$BM$5/SUM($BG$5:$BJ$5))) ->  | BK9: =BK5*(SUM($BG$5:$BM$5/SUM($BK$5:$BM$5))) ->  | BL9: =BL5*(SUM($BG$5:$BM$5/SUM($BK$5:$BM$5))) ->  | BM9: =BM5*(SUM($BG$5:$BM$5/SUM($BK$5:$BM$5))) -> 
D10: 8.5 | AE10: 2016 | AF10: =IF($AG$4=TRUE,AO10,AX10) -> 0.2838364037 | AG10: 0.6541624219 | AH10: 0.0357635807 | AI10: 0.02623759373 | AJ10: 1 | AK10: 0 | AL10: 0 | AN10: 2016 | AO10: =AO9+(AO$14-AO$9)/5 -> 0.2838364037 | AP10: =AP9+(AP$14-AP$9)/5 -> 0.6541624219 | AQ10: 0.0357635807 | AR10: 0.02623759373 | AS10: 1 | AT10: 0 | AU10: 0 | AW10: 2016 | AX10: =IF($AW10<Bommer!$E$77,0,IF($AW10=Bommer!$E$77,BG10,Takstutvikling!AX9)) -> 0 | AY10: =IF($AW10<Bommer!$E$77,0,IF($AW10=Bommer!$E$77,BH10,Takstutvikling!AY9)) -> 0 | AZ10: =IF($AW10<Bommer!$E$77,0,IF($AW10=Bommer!$E$77,BI10,Takstutvikling!AZ9)) -> 0 | BA10: =IF($AW10<Bommer!$E$77,0,IF($AW10=Bommer!$E$77,BJ10,Takstutvikling!BA9)) -> 0 | BB10: =IF($AW10<Bommer!$E$77,0,IF($AW10=Bommer!$E$77,BK10,Takstutvikling!BB9)) -> 0 | BC10: =IF($AW10<Bommer!$E$77,0,IF($AW10=Bommer!$E$77,BL10,Takstutvikling!BC9)) -> 0 | BD10: =IF($AW10<Bommer!$E$77,0,IF($AW10=Bommer!$E$77,BM10,Takstutvikling!BD9)) -> 0 | BF10: 2016 | BG10: =BG9 -> 
B11: Trafikk | D11: =Sum_trafikk -> 0 | AE11: 2017 | AF11: =IF($AG$4=TRUE,AO11,AX11) -> 0.2659196126 | AG11: 0.6415773475 | AH11: 0.0521522978 | AI11: 0.04035074216 | AJ11: 1 | AK11: 0 | AL11: 0 | AN11: 2017 | AO11: =AO10+(AO$14-AO$9)/5 -> 0.2659196126 | AP11: 0.6415773475 | AQ11: 0.0521522978 | AR11: 0.04035074216 | AS11: 1 | AT11: 0 | AU11: 0 | AW11: 2017 | AX11: =IF($AW11<Bommer!$E$77,0,IF($AW11=Bommer!$E$77,BG11,Takstutvikling!AX10)) -> 0 | AY11: =IF($AW11<Bommer!$E$77,0,IF($AW11=Bommer!$E$77,BH11,Takstutvikling!AY10)) -> 0 | AZ11: =IF($AW11<Bommer!$E$77,0,IF($AW11=Bommer!$E$77,BI11,Takstutvikling!AZ10)) -> 0 | BA11: =IF($AW11<Bommer!$E$77,0,IF($AW11=Bommer!$E$77,BJ11,Takstutvikling!BA10)) -> 0 | BB11: =IF($AW11<Bommer!$E$77,0,IF($AW11=Bommer!$E$77,BK11,Takstutvikling!BB10)) -> 0 | BC11: =IF($AW11<Bommer!$E$77,0,IF($AW11=Bommer!$E$77,BL11,Takstutvikling!BC10)) -> 0 | BD11: =IF($AW11<Bommer!$E$77,0,IF($AW11=Bommer!$E$77,BM11,Takstutvikling!BD10)) -> 0 | BF11: 2017
B12: År for trafikk | D12: 2020 | AE12: 2018 | AF12: 0.2480028215 | AG12: 0.6289922731 | AH12: 0.0685410149 | AI12: 0.05446389058 | AJ12: 1 | AK12: 0 | AL12: 0 | AN12: 2018 | AO12: =AO11+(AO$14-AO$9)/5 -> 0.2480028215 | AP12: 0.6289922731 | AQ12: 0.0685410149 | AR12: 0.05446389058 | AS12: 1 | AT12: 0 | AU12: 0 | AW12: 2018 | AX12: =IF($AW12<Bommer!$E$77,0,IF($AW12=Bommer!$E$77,BG12,Takstutvikling!AX11)) -> 0 | AY12: =IF($AW12<Bommer!$E$77,0,IF($AW12=Bommer!$E$77,BH12,Takstutvikling!AY11)) -> 0 | AZ12: =IF($AW12<Bommer!$E$77,0,IF($AW12=Bommer!$E$77,BI12,Takstutvikling!AZ11)) -> 0 | BA12: =IF($AW12<Bommer!$E$77,0,IF($AW12=Bommer!$E$77,BJ12,Takstutvikling!BA11)) -> 0 | BB12: =IF($AW12<Bommer!$E$77,0,IF($AW12=Bommer!$E$77,BK12,Takstutvikling!BB11)) -> 0 | BC12: =IF($AW12<Bommer!$E$77,0,IF($AW12=Bommer!$E$77,BL12,Takstutvikling!BC11)) -> 0 | BD12: =IF($AW12<Bommer!$E$77,0,IF($AW12=Bommer!$E$77,BM12,Takstutvikling!BD11)) -> 0 | BF12: 2018
B13: Trafikkvekst | D13: Egen 1 | AE13: 2019 | AF13: 0.2300860304 | AG13: 0.6164071986 | AH13: 0.084929732 | AI13: 0.06857703901 | AJ13: 1 | AK13: 0 | AL13: 0 | AN13: 2019 | AO13: =AO12+(AO$14-AO$9)/5 -> 0.2300860304 | AP13: 0.6164071986 | AQ13: 0.084929732 | AR13: 0.06857703901 | AS13: 1 | AT13: 0 | AU13: 0 | AW13: 2019 | AX13: =IF($AW13<Bommer!$E$77,0,IF($AW13=Bommer!$E$77,BG13,Takstutvikling!AX12)) -> 0 | AY13: =IF($AW13<Bommer!$E$77,0,IF($AW13=Bommer!$E$77,BH13,Takstutvikling!AY12)) -> 0 | AZ13: =IF($AW13<Bommer!$E$77,0,IF($AW13=Bommer!$E$77,BI13,Takstutvikling!AZ12)) -> 0 | BA13: =IF($AW13<Bommer!$E$77,0,IF($AW13=Bommer!$E$77,BJ13,Takstutvikling!BA12)) -> 0 | BB13: =IF($AW13<Bommer!$E$77,0,IF($AW13=Bommer!$E$77,BK13,Takstutvikling!BB12)) -> 0 | BC13: =IF($AW13<Bommer!$E$77,0,IF($AW13=Bommer!$E$77,BL13,Takstutvikling!BC12)) -> 0 | BD13: =IF($AW13<Bommer!$E$77,0,IF($AW13=Bommer!$E$77,BM13,Takstutvikling!BD12)) -> 0 | BF13: 2019
AE14: 2020 | AF14: 0.2121692393 | AG14: 0.6038221242 | AH14: 0.1013184491 | AI14: 0.08269018743 | AJ14: 1 | AK14: 0 | AL14: 0 | AN14: 2020 | AO14: =LOOKUP($AN14,$M$2:$T$2,$M$3:$T$3) -> 0.2121692393 | AP14: =LOOKUP($AN14,$M$2:$T$2,$M$4:$T$4) -> 0.6038221242 | AQ14: =LOOKUP($AN14,$M$2:$T$2,$M$5:$T$5) -> 0.1013184491 | AR14: =LOOKUP($AN14,$M$2:$T$2,$M$6:$T$6) -> 0.08269018743 | AS14: =LOOKUP($AN14,$M$2:$T$2,$M$7:$T$7) -> 1 | AT14: =LOOKUP($AN14,$M$2:$T$2,$M$8:$T$8) -> 0 | AU14: =LOOKUP($AN14,$M$2:$T$2,$M$9:$T$9) -> 0 | AW14: 2020 | AX14: =IF($AW14<Bommer!$E$77,0,IF($AW14=Bommer!$E$77,BG14,Takstutvikling!AX13)) -> 0 | AY14: =IF($AW14<Bommer!$E$77,0,IF($AW14=Bommer!$E$77,BH14,Takstutvikling!AY13)) -> 0 | AZ14: =IF($AW14<Bommer!$E$77,0,IF($AW14=Bommer!$E$77,BI14,Takstutvikling!AZ13)) -> 0 | BA14: =IF($AW14<Bommer!$E$77,0,IF($AW14=Bommer!$E$77,BJ14,Takstutvikling!BA13)) -> 0 | BB14: =IF($AW14<Bommer!$E$77,0,IF($AW14=Bommer!$E$77,BK14,Takstutvikling!BB13)) -> 0 | BC14: =IF($AW14<Bommer!$E$77,0,IF($AW14=Bommer!$E$77,BL14,Takstutvikling!BC13)) -> 0 | BD14: =IF($AW14<Bommer!$E$77,0,IF($AW14=Bommer!$E$77,BM14,Takstutvikling!BD13)) -> 0 | BF14: 2020
B15: Kjøretøytype | C15: Takstforhold | D15: Andeler | E15: Brikkeandeler | F15: Svinn | G15: Timesregel | AE15: 2021 | AF15: 0.1966887964 | AG15: 0.5708713194 | AH15: 0.1456784152 | AI15: 0.08676146894 | AJ15: 0.9908065915 | AK15: 0.008673026886 | AL15: 0.0005203816132 | AN15: 2021 | AO15: =AO14+(AO$19-AO$14)/5 -> 0.1966887964 | AP15: =AP14+(AP$19-AP$14)/5 -> 0.5708713194 | AQ15: 0.1456784152 | AR15: 0.08676146894 | AS15: 0.9908065915 | AT15: 0.008673026886 | AU15: 0.0005203816132 | AW15: 2021 | AX15: =IF($AW15<Bommer!$E$77,0,IF($AW15=Bommer!$E$77,BG15,Takstutvikling!AX14)) -> 0 | AY15: =IF($AW15<Bommer!$E$77,0,IF($AW15=Bommer!$E$77,BH15,Takstutvikling!AY14)) -> 0 | AZ15: =IF($AW15<Bommer!$E$77,0,IF($AW15=Bommer!$E$77,BI15,Takstutvikling!AZ14)) -> 0 | BA15: =IF($AW15<Bommer!$E$77,0,IF($AW15=Bommer!$E$77,BJ15,Takstutvikling!BA14)) -> 0 | BB15: =IF($AW15<Bommer!$E$77,0,IF($AW15=Bommer!$E$77,BK15,Takstutvikling!BB14)) -> 0 | BC15: =IF($AW15<Bommer!$E$77,0,IF($AW15=Bommer!$E$77,BL15,Takstutvikling!BC14)) -> 0 | BD15: =IF($AW15<Bommer!$E$77,0,IF($AW15=Bommer!$E$77,BM15,Takstutvikling!BD14)) -> 0 | BF15: 2021
B16: Takstgruppe 1 - bensin | C16: 1 | D16: 0.21 | E16: 0.8 | F16: 0.04 | G16: 0.12 | AE16: 2022 | AF16: 0.1812083536 | AG16: 0.5379205147 | AH16: 0.1900383813 | AI16: 0.09083275045 | AJ16: 0.981613183 | AK16: 0.01734605377 | AL16: 0.001040763226 | AN16: 2022 | AO16: =AO15+(AO$19-AO$14)/5 -> 0.1812083536 | AP16: 0.5379205147 | AQ16: 0.1900383813 | AR16: 0.09083275045 | AS16: 0.981613183 | AT16: 0.01734605377 | AU16: 0.001040763226 | AW16: 2022 | AX16: =IF($AW16<Bommer!$E$77,0,IF($AW16=Bommer!$E$77,BG16,Takstutvikling!AX15)) -> 0 | AY16: =IF($AW16<Bommer!$E$77,0,IF($AW16=Bommer!$E$77,BH16,Takstutvikling!AY15)) -> 0 | AZ16: =IF($AW16<Bommer!$E$77,0,IF($AW16=Bommer!$E$77,BI16,Takstutvikling!AZ15)) -> 0 | BA16: =IF($AW16<Bommer!$E$77,0,IF($AW16=Bommer!$E$77,BJ16,Takstutvikling!BA15)) -> 0 | BB16: =IF($AW16<Bommer!$E$77,0,IF($AW16=Bommer!$E$77,BK16,Takstutvikling!BB15)) -> 0 | BC16: =IF($AW16<Bommer!$E$77,0,IF($AW16=Bommer!$E$77,BL16,Takstutvikling!BC15)) -> 0 | BD16: =IF($AW16<Bommer!$E$77,0,IF($AW16=Bommer!$E$77,BM16,Takstutvikling!BD15)) -> 0 | BF16: 2022
B17: Takstgruppe 1 - diesel | C17: 1 | D17: 0.6 | E17: 0.8 | F17: 0.04 | AE17: 2023 | AF17: 0.1657279108 | AG17: 0.5049697099 | AH17: 0.2343983474 | AI17: 0.09490403196 | AJ17: 0.9724197745 | AK17: 0.02601908066 | AL17: 0.00156114484 | AN17: 2023 | AO17: =AO16+(AO$19-AO$14)/5 -> 0.1657279108 | AP17: 0.5049697099 | AQ17: 0.2343983474 | AR17: 0.09490403196 | AS17: 0.9724197745 | AT17: 0.02601908066 | AU17: 0.00156114484 | AW17: 2023 | AX17: =IF($AW17<Bommer!$E$77,0,IF($AW17=Bommer!$E$77,BG17,Takstutvikling!AX16)) -> 0 | AY17: =IF($AW17<Bommer!$E$77,0,IF($AW17=Bommer!$E$77,BH17,Takstutvikling!AY16)) -> 0 | AZ17: =IF($AW17<Bommer!$E$77,0,IF($AW17=Bommer!$E$77,BI17,Takstutvikling!AZ16)) -> 0 | BA17: =IF($AW17<Bommer!$E$77,0,IF($AW17=Bommer!$E$77,BJ17,Takstutvikling!BA16)) -> 0 | BB17: =IF($AW17<Bommer!$E$77,0,IF($AW17=Bommer!$E$77,BK17,Takstutvikling!BB16)) -> 0 | BC17: =IF($AW17<Bommer!$E$77,0,IF($AW17=Bommer!$E$77,BL17,Takstutvikling!BC16)) -> 0 | BD17: =IF($AW17<Bommer!$E$77,0,IF($AW17=Bommer!$E$77,BM17,Takstutvikling!BD16)) -> 0 | BF17: 2023
B18: Takstgruppe 1 - elektrisitet | C18: 0.5 | D18: 0.1 | E18: 0.8 | F18: 0.04 | AE18: 2024 | AF18: 0.1502474679 | AG18: 0.4720189051 | AH18: 0.2787583135 | AI18: 0.09897531347 | AJ18: 0.963226366 | AK18: 0.03469210755 | AL18: 0.002081526453 | AN18: 2024 | AO18: =AO17+(AO$19-AO$14)/5 -> 0.1502474679 | AP18: 0.4720189051 | AQ18: 0.2787583135 | AR18: 0.09897531347 | AS18: 0.963226366 | AT18: 0.03469210755 | AU18: 0.002081526453 | AW18: 2024 | AX18: =IF($AW18<Bommer!$E$77,0,IF($AW18=Bommer!$E$77,BG18,Takstutvikling!AX17)) ->  | AY18: =IF($AW18<Bommer!$E$77,0,IF($AW18=Bommer!$E$77,BH18,Takstutvikling!AY17)) ->  | AZ18: =IF($AW18<Bommer!$E$77,0,IF($AW18=Bommer!$E$77,BI18,Takstutvikling!AZ17)) ->  | BA18: =IF($AW18<Bommer!$E$77,0,IF($AW18=Bommer!$E$77,BJ18,Takstutvikling!BA17)) ->  | BB18: =IF($AW18<Bommer!$E$77,0,IF($AW18=Bommer!$E$77,BK18,Takstutvikling!BB17)) ->  | BC18: =IF($AW18<Bommer!$E$77,0,IF($AW18=Bommer!$E$77,BL18,Takstutvikling!BC17)) ->  | BD18: =IF($AW18<Bommer!$E$77,0,IF($AW18=Bommer!$E$77,BM18,Takstutvikling!BD17)) ->  | BF18: 2024
B19: Takkstgruppe 1- kefir | C19: 0 | D19: 0 | E19: 0.8 | F19: 0.04 | AE19: 2025 | AF19: 0.1347670251 | AG19: 0.4390681004 | AH19: 0.3231182796 | AI19: 0.103046595 | AJ19: 0.9540329575 | AK19: 0.04336513443 | AL19: 0.002601908066 | AN19: 2025 | AO19: =LOOKUP($AN19,$M$2:$T$2,$M$3:$T$3) -> 0.1347670251 | AP19: =LOOKUP($AN19,$M$2:$T$2,$M$4:$T$4) -> 0.4390681004 | AQ19: =LOOKUP($AN19,$M$2:$T$2,$M$5:$T$5) -> 0.3231182796 | AR19: =LOOKUP($AN19,$M$2:$T$2,$M$6:$T$6) -> 0.103046595 | AS19: =LOOKUP($AN19,$M$2:$T$2,$M$7:$T$7) -> 0.9540329575 | AT19: =LOOKUP($AN19,$M$2:$T$2,$M$8:$T$8) -> 0.04336513443 | AU19: =LOOKUP($AN19,$M$2:$T$2,$M$9:$T$9) -> 0.002601908066 | AW19: 2025 | AX19: =IF($AW19<Bommer!$E$77,0,IF($AW19=Bommer!$E$77,BG19,Takstutvikling!AX18)) ->  | AY19: =IF($AW19<Bommer!$E$77,0,IF($AW19=Bommer!$E$77,BH19,Takstutvikling!AY18)) ->  | AZ19: =IF($AW19<Bommer!$E$77,0,IF($AW19=Bommer!$E$77,BI19,Takstutvikling!AZ18)) ->  | BA19: =IF($AW19<Bommer!$E$77,0,IF($AW19=Bommer!$E$77,BJ19,Takstutvikling!BA18)) ->  | BB19: =IF($AW19<Bommer!$E$77,0,IF($AW19=Bommer!$E$77,BK19,Takstutvikling!BB18)) ->  | BC19: =IF($AW19<Bommer!$E$77,0,IF($AW19=Bommer!$E$77,BL19,Takstutvikling!BC18)) ->  | BD19: =IF($AW19<Bommer!$E$77,0,IF($AW19=Bommer!$E$77,BM19,Takstutvikling!BD18)) ->  | BF19: 2025
B20: Takstgruppe 1 - hybrid | C20: 0.5 | D20: 0.08 | E20: 0.8 | F20: 0.04 | AE20: 2026 | AF20: 0.1220414376 | AG20: 0.4025263609 | AH20: 0.3727310641 | AI20: 0.1027011373 | AJ20: 0.9401429625 | AK20: 0.05659606711 | AL20: 0.003260970429 | AN20: 2026 | AO20: =AO19+(AO$24-AO$19)/5 -> 0.1220414376 | AP20: =AP19+(AP$24-AP$19)/5 -> 0.4025263609 | AQ20: 0.3727310641 | AR20: 0.1027011373 | AS20: 0.9401429625 | AT20: 0.05659606711 | AU20: 0.003260970429 | AW20: 2026 | AX20: =IF($AW20<Bommer!$E$77,0,IF($AW20=Bommer!$E$77,BG20,Takstutvikling!AX19)) ->  | AY20: =IF($AW20<Bommer!$E$77,0,IF($AW20=Bommer!$E$77,BH20,Takstutvikling!AY19)) ->  | AZ20: =IF($AW20<Bommer!$E$77,0,IF($AW20=Bommer!$E$77,BI20,Takstutvikling!AZ19)) ->  | BA20: =IF($AW20<Bommer!$E$77,0,IF($AW20=Bommer!$E$77,BJ20,Takstutvikling!BA19)) ->  | BB20: =IF($AW20<Bommer!$E$77,0,IF($AW20=Bommer!$E$77,BK20,Takstutvikling!BB19)) ->  | BC20: =IF($AW20<Bommer!$E$77,0,IF($AW20=Bommer!$E$77,BL20,Takstutvikling!BC19)) ->  | BD20: =IF($AW20<Bommer!$E$77,0,IF($AW20=Bommer!$E$77,BM20,Takstutvikling!BD19)) ->  | BF20: 2026
B21: Takstgruppe 2 - miljøkategori 1 | C21: 2 | D21: 1 | E21: 0 | F21: 0.04 | G21: 0.12 | AE21: 2027 | AF21: 0.1093158501 | AG21: 0.3659846215 | AH21: 0.4223438487 | AI21: 0.1023556797 | AJ21: 0.9262529674 | AK21: 0.06982699978 | AL21: 0.003920032792 | AN21: 2027 | AO21: =AO20+(AO$24-AO$19)/5 -> 0.1093158501 | AP21: 0.3659846215 | AQ21: 0.4223438487 | AR21: 0.1023556797 | AS21: 0.9262529674 | AT21: 0.06982699978 | AU21: 0.003920032792 | AW21: 2027 | AX21: =IF($AW21<Bommer!$E$77,0,IF($AW21=Bommer!$E$77,BG21,Takstutvikling!AX20)) ->  | AY21: =IF($AW21<Bommer!$E$77,0,IF($AW21=Bommer!$E$77,BH21,Takstutvikling!AY20)) ->  | AZ21: =IF($AW21<Bommer!$E$77,0,IF($AW21=Bommer!$E$77,BI21,Takstutvikling!AZ20)) ->  | BA21: =IF($AW21<Bommer!$E$77,0,IF($AW21=Bommer!$E$77,BJ21,Takstutvikling!BA20)) ->  | BB21: =IF($AW21<Bommer!$E$77,0,IF($AW21=Bommer!$E$77,BK21,Takstutvikling!BB20)) ->  | BC21: =IF($AW21<Bommer!$E$77,0,IF($AW21=Bommer!$E$77,BL21,Takstutvikling!BC20)) ->  | BD21: =IF($AW21<Bommer!$E$77,0,IF($AW21=Bommer!$E$77,BM21,Takstutvikling!BD20)) ->  | BF21: 2027
B22: Takstgruppe 2 - miljøkategori 2 | C22: 1 | D22: 0 | E22: 0 | F22: 0.04 | AE22: 2028 | AF22: 0.09659026265 | AG22: 0.3294428821 | AH22: 0.4719566332 | AI22: 0.102010222 | AJ22: 0.9123629724 | AK22: 0.08305793246 | AL22: 0.004579095156 | AN22: 2028 | AO22: =AO21+(AO$24-AO$19)/5 -> 0.09659026265 | AP22: 0.3294428821 | AQ22: 0.4719566332 | AR22: 0.102010222 | AS22: 0.9123629724 | AT22: 0.08305793246 | AU22: 0.004579095156 | AW22: 2028 | AX22: =IF($AW22<Bommer!$E$77,0,IF($AW22=Bommer!$E$77,BG22,Takstutvikling!AX21)) ->  | AY22: =IF($AW22<Bommer!$E$77,0,IF($AW22=Bommer!$E$77,BH22,Takstutvikling!AY21)) ->  | AZ22: =IF($AW22<Bommer!$E$77,0,IF($AW22=Bommer!$E$77,BI22,Takstutvikling!AZ21)) ->  | BA22: =IF($AW22<Bommer!$E$77,0,IF($AW22=Bommer!$E$77,BJ22,Takstutvikling!BA21)) ->  | BB22: =IF($AW22<Bommer!$E$77,0,IF($AW22=Bommer!$E$77,BK22,Takstutvikling!BB21)) ->  | BC22: =IF($AW22<Bommer!$E$77,0,IF($AW22=Bommer!$E$77,BL22,Takstutvikling!BC21)) ->  | BD22: =IF($AW22<Bommer!$E$77,0,IF($AW22=Bommer!$E$77,BM22,Takstutvikling!BD21)) ->  | BF22: 2028
B23: Takstgruppe 2 - miljøkategori 3 | C23: 1.5 | D23: 0 | E23: 0 | F23: 0.04 | AE23: 2029 | AF23: 0.08386467517 | AG23: 0.2929011427 | AH23: 0.5215694177 | AI23: 0.1016647644 | AJ23: 0.8984729773 | AK23: 0.09628886513 | AL23: 0.005238157519 | AN23: 2029 | AO23: =AO22+(AO$24-AO$19)/5 -> 0.08386467517 | AP23: 0.2929011427 | AQ23: 0.5215694177 | AR23: 0.1016647644 | AS23: 0.8984729773 | AT23: 0.09628886513 | AU23: 0.005238157519 | AW23: 2029 | AX23: =IF($AW23<Bommer!$E$77,0,IF($AW23=Bommer!$E$77,BG23,Takstutvikling!AX22)) ->  | AY23: =IF($AW23<Bommer!$E$77,0,IF($AW23=Bommer!$E$77,BH23,Takstutvikling!AY22)) ->  | AZ23: =IF($AW23<Bommer!$E$77,0,IF($AW23=Bommer!$E$77,BI23,Takstutvikling!AZ22)) ->  | BA23: =IF($AW23<Bommer!$E$77,0,IF($AW23=Bommer!$E$77,BJ23,Takstutvikling!BA22)) ->  | BB23: =IF($AW23<Bommer!$E$77,0,IF($AW23=Bommer!$E$77,BK23,Takstutvikling!BB22)) ->  | BC23: =IF($AW23<Bommer!$E$77,0,IF($AW23=Bommer!$E$77,BL23,Takstutvikling!BC22)) ->  | BD23: =IF($AW23<Bommer!$E$77,0,IF($AW23=Bommer!$E$77,BM23,Takstutvikling!BD22)) ->  | BF23: 2029
B24: Takstgruppe 2- Miljøkategori 4 | C24: 0 | D24: 0 | E24: 0 | F24: 0.04 | AE24: 2030 | AF24: 0.0711390877 | AG24: 0.2563594033 | AH24: 0.5711822023 | AI24: 0.1013193067 | AJ24: 0.8845829823 | AK24: 0.1095197978 | AL24: 0.005897219882 | AN24: 2030 | AO24: =LOOKUP($AN24,$M$2:$T$2,$M$3:$T$3) -> 0.0711390877 | AP24: =LOOKUP($AN24,$M$2:$T$2,$M$4:$T$4) -> 0.2563594033 | AQ24: =LOOKUP($AN24,$M$2:$T$2,$M$5:$T$5) -> 0.5711822023 | AR24: =LOOKUP($AN24,$M$2:$T$2,$M$6:$T$6) -> 0.1013193067 | AS24: =LOOKUP($AN24,$M$2:$T$2,$M$7:$T$7) -> 0.8845829823 | AT24: =LOOKUP($AN24,$M$2:$T$2,$M$8:$T$8) -> 0.1095197978 | AU24: =LOOKUP($AN24,$M$2:$T$2,$M$9:$T$9) -> 0.005897219882 | AW24: 2030 | AX24: =IF($AW24<Bommer!$E$77,0,IF($AW24=Bommer!$E$77,BG24,Takstutvikling!AX23)) ->  | AY24: =IF($AW24<Bommer!$E$77,0,IF($AW24=Bommer!$E$77,BH24,Takstutvikling!AY23)) ->  | AZ24: =IF($AW24<Bommer!$E$77,0,IF($AW24=Bommer!$E$77,BI24,Takstutvikling!AZ23)) ->  | BA24: =IF($AW24<Bommer!$E$77,0,IF($AW24=Bommer!$E$77,BJ24,Takstutvikling!BA23)) ->  | BB24: =IF($AW24<Bommer!$E$77,0,IF($AW24=Bommer!$E$77,BK24,Takstutvikling!BB23)) ->  | BC24: =IF($AW24<Bommer!$E$77,0,IF($AW24=Bommer!$E$77,BL24,Takstutvikling!BC23)) ->  | BD24: =IF($AW24<Bommer!$E$77,0,IF($AW24=Bommer!$E$77,BM24,Takstutvikling!BD23)) ->  | BF24: 2030
AE25: 2031 | AF25: 0.06292154922 | AG25: 0.2286486661 | AH25: 0.61208317 | AI25: 0.09634661472 | AJ25: 0.8718078 | AK25: 0.1198548955 | AL25: 0.008337304525 | AN25: 2031 | AO25: =AO24+(AO$29-AO$24)/5 -> 0.06292154922 | AP25: =AP24+(AP$29-AP$24)/5 -> 0.2286486661 | AQ25: 0.61208317 | AR25: 0.09634661472 | AS25: 0.8718078 | AT25: 0.1198548955 | AU25: 0.008337304525 | AW25: 2031 | AX25: =IF($AW25<Bommer!$E$77,0,IF($AW25=Bommer!$E$77,BG25,Takstutvikling!AX24)) ->  | AY25: =IF($AW25<Bommer!$E$77,0,IF($AW25=Bommer!$E$77,BH25,Takstutvikling!AY24)) ->  | AZ25: =IF($AW25<Bommer!$E$77,0,IF($AW25=Bommer!$E$77,BI25,Takstutvikling!AZ24)) ->  | BA25: =IF($AW25<Bommer!$E$77,0,IF($AW25=Bommer!$E$77,BJ25,Takstutvikling!BA24)) ->  | BB25: =IF($AW25<Bommer!$E$77,0,IF($AW25=Bommer!$E$77,BK25,Takstutvikling!BB24)) ->  | BC25: =IF($AW25<Bommer!$E$77,0,IF($AW25=Bommer!$E$77,BL25,Takstutvikling!BC24)) ->  | BD25: =IF($AW25<Bommer!$E$77,0,IF($AW25=Bommer!$E$77,BM25,Takstutvikling!BD24)) ->  | BF25: 2031
AE26: 2032 | AF26: 0.05470401074 | AG26: 0.2009379289 | AH26: 0.6529841377 | AI26: 0.09137392273 | AJ26: 0.8590326177 | AK26: 0.1301899932 | AL26: 0.01077738917 | AN26: 2032 | AO26: =AO25+(AO$29-AO$24)/5 -> 0.05470401074 | AP26: 0.2009379289 | AQ26: 0.6529841377 | AR26: 0.09137392273 | AS26: 0.8590326177 | AT26: 0.1301899932 | AU26: 0.01077738917 | AW26: 2032 | AX26: =IF($AW26<Bommer!$E$77,0,IF($AW26=Bommer!$E$77,BG26,Takstutvikling!AX25)) ->  | AY26: =IF($AW26<Bommer!$E$77,0,IF($AW26=Bommer!$E$77,BH26,Takstutvikling!AY25)) ->  | AZ26: =IF($AW26<Bommer!$E$77,0,IF($AW26=Bommer!$E$77,BI26,Takstutvikling!AZ25)) ->  | BA26: =IF($AW26<Bommer!$E$77,0,IF($AW26=Bommer!$E$77,BJ26,Takstutvikling!BA25)) ->  | BB26: =IF($AW26<Bommer!$E$77,0,IF($AW26=Bommer!$E$77,BK26,Takstutvikling!BB25)) ->  | BC26: =IF($AW26<Bommer!$E$77,0,IF($AW26=Bommer!$E$77,BL26,Takstutvikling!BC25)) ->  | BD26: =IF($AW26<Bommer!$E$77,0,IF($AW26=Bommer!$E$77,BM26,Takstutvikling!BD25)) ->  | BF26: 2032 | BG26: =BG25 -> 
AE27: 2033 | AF27: 0.04648647227 | AG27: 0.1732271916 | AH27: 0.6938851054 | AI27: 0.08640123074 | AJ27: 0.8462574353 | AK27: 0.1405250908 | AL27: 0.01321747381 | AN27: 2033 | AO27: =AO26+(AO$29-AO$24)/5 -> 0.04648647227 | AP27: 0.1732271916 | AQ27: 0.6938851054 | AR27: 0.08640123074 | AS27: 0.8462574353 | AT27: 0.1405250908 | AU27: 0.01321747381 | AW27: 2033 | AX27: =IF($AW27<Bommer!$E$77,0,IF($AW27=Bommer!$E$77,BG27,Takstutvikling!AX26)) ->  | AY27: =IF($AW27<Bommer!$E$77,0,IF($AW27=Bommer!$E$77,BH27,Takstutvikling!AY26)) ->  | AZ27: =IF($AW27<Bommer!$E$77,0,IF($AW27=Bommer!$E$77,BI27,Takstutvikling!AZ26)) ->  | BA27: =IF($AW27<Bommer!$E$77,0,IF($AW27=Bommer!$E$77,BJ27,Takstutvikling!BA26)) ->  | BB27: =IF($AW27<Bommer!$E$77,0,IF($AW27=Bommer!$E$77,BK27,Takstutvikling!BB26)) ->  | BC27: =IF($AW27<Bommer!$E$77,0,IF($AW27=Bommer!$E$77,BL27,Takstutvikling!BC26)) ->  | BD27: =IF($AW27<Bommer!$E$77,0,IF($AW27=Bommer!$E$77,BM27,Takstutvikling!BD26)) ->  | BF27: 2033
AE28: 2034 | AF28: 0.03826893379 | AG28: 0.1455164544 | AH28: 0.734786073 | AI28: 0.08142853874 | AJ28: 0.833482253 | AK28: 0.1508601885 | AL28: 0.01565755845 | AN28: 2034 | AO28: =AO27+(AO$29-AO$24)/5 -> 0.03826893379 | AP28: 0.1455164544 | AQ28: 0.734786073 | AR28: 0.08142853874 | AS28: 0.833482253 | AT28: 0.1508601885 | AU28: 0.01565755845 | AW28: 2034 | AX28: =IF($AW28<Bommer!$E$77,0,IF($AW28=Bommer!$E$77,BG28,Takstutvikling!AX27)) ->  | AY28: =IF($AW28<Bommer!$E$77,0,IF($AW28=Bommer!$E$77,BH28,Takstutvikling!AY27)) ->  | AZ28: =IF($AW28<Bommer!$E$77,0,IF($AW28=Bommer!$E$77,BI28,Takstutvikling!AZ27)) ->  | BA28: =IF($AW28<Bommer!$E$77,0,IF($AW28=Bommer!$E$77,BJ28,Takstutvikling!BA27)) ->  | BB28: =IF($AW28<Bommer!$E$77,0,IF($AW28=Bommer!$E$77,BK28,Takstutvikling!BB27)) ->  | BC28: =IF($AW28<Bommer!$E$77,0,IF($AW28=Bommer!$E$77,BL28,Takstutvikling!BC27)) ->  | BD28: =IF($AW28<Bommer!$E$77,0,IF($AW28=Bommer!$E$77,BM28,Takstutvikling!BD27)) ->  | BF28: 2034
AE29: 2035 | AF29: 0.03005139532 | AG29: 0.1178057172 | AH29: 0.7756870407 | AI29: 0.07645584675 | AJ29: 0.8207070707 | AK29: 0.1611952862 | AL29: 0.0180976431 | AN29: 2035 | AO29: =LOOKUP($AN29,$M$2:$T$2,$M$3:$T$3) -> 0.03005139532 | AP29: =LOOKUP($AN29,$M$2:$T$2,$M$4:$T$4) -> 0.1178057172 | AQ29: =LOOKUP($AN29,$M$2:$T$2,$M$5:$T$5) -> 0.7756870407 | AR29: =LOOKUP($AN29,$M$2:$T$2,$M$6:$T$6) -> 0.07645584675 | AS29: =LOOKUP($AN29,$M$2:$T$2,$M$7:$T$7) -> 0.8207070707 | AT29: =LOOKUP($AN29,$M$2:$T$2,$M$8:$T$8) -> 0.1611952862 | AU29: =LOOKUP($AN29,$M$2:$T$2,$M$9:$T$9) -> 0.0180976431 | AW29: 2035 | AX29: =IF($AW29<Bommer!$E$77,0,IF($AW29=Bommer!$E$77,BG29,Takstutvikling!AX28)) ->  | AY29: =IF($AW29<Bommer!$E$77,0,IF($AW29=Bommer!$E$77,BH29,Takstutvikling!AY28)) ->  | AZ29: =IF($AW29<Bommer!$E$77,0,IF($AW29=Bommer!$E$77,BI29,Takstutvikling!AZ28)) ->  | BA29: =IF($AW29<Bommer!$E$77,0,IF($AW29=Bommer!$E$77,BJ29,Takstutvikling!BA28)) ->  | BB29: =IF($AW29<Bommer!$E$77,0,IF($AW29=Bommer!$E$77,BK29,Takstutvikling!BB28)) ->  | BC29: =IF($AW29<Bommer!$E$77,0,IF($AW29=Bommer!$E$77,BL29,Takstutvikling!BC28)) ->  | BD29: =IF($AW29<Bommer!$E$77,0,IF($AW29=Bommer!$E$77,BM29,Takstutvikling!BD28)) ->  | BF29: 2035
AE30: 2036 | AF30: 0.02611361164 | AG30: 0.1056726657 | AH30: 0.7969802417 | AI30: 0.07123348089 | AJ30: 0.8063783906 | AK30: 0.1741497371 | AL30: 0.01947187228 | AN30: 2036 | AO30: =AO29+(AO$34-AO$29)/5 -> 0.02611361164 | AP30: =AP29+(AP$34-AP$29)/5 -> 0.1056726657 | AQ30: 0.7969802417 | AR30: 0.07123348089 | AS30: 0.8063783906 | AT30: 0.1741497371 | AU30: 0.01947187228 | AW30: 2036 | AX30: =IF($AW30<Bommer!$E$77,0,IF($AW30=Bommer!$E$77,BG30,Takstutvikling!AX29)) ->  | AY30: =IF($AW30<Bommer!$E$77,0,IF($AW30=Bommer!$E$77,BH30,Takstutvikling!AY29)) ->  | AZ30: =IF($AW30<Bommer!$E$77,0,IF($AW30=Bommer!$E$77,BI30,Takstutvikling!AZ29)) ->  | BA30: =IF($AW30<Bommer!$E$77,0,IF($AW30=Bommer!$E$77,BJ30,Takstutvikling!BA29)) ->  | BB30: =IF($AW30<Bommer!$E$77,0,IF($AW30=Bommer!$E$77,BK30,Takstutvikling!BB29)) ->  | BC30: =IF($AW30<Bommer!$E$77,0,IF($AW30=Bommer!$E$77,BL30,Takstutvikling!BC29)) ->  | BD30: =IF($AW30<Bommer!$E$77,0,IF($AW30=Bommer!$E$77,BM30,Takstutvikling!BD29)) ->  | BF30: 2036
AE31: 2037 | AF31: 0.02217582796 | AG31: 0.09353961424 | AH31: 0.8182734428 | AI31: 0.06601111503 | AJ31: 0.7920497106 | AK31: 0.1871041879 | AL31: 0.02084610146 | AN31: 2037 | AO31: =AO30+(AO$34-AO$29)/5 -> 0.02217582796 | AP31: 0.09353961424 | AQ31: 0.8182734428 | AR31: 0.06601111503 | AS31: 0.7920497106 | AT31: 0.1871041879 | AU31: 0.02084610146 | AW31: 2037 | AX31: =IF($AW31<Bommer!$E$77,0,IF($AW31=Bommer!$E$77,BG31,Takstutvikling!AX30)) ->  | AY31: =IF($AW31<Bommer!$E$77,0,IF($AW31=Bommer!$E$77,BH31,Takstutvikling!AY30)) ->  | AZ31: =IF($AW31<Bommer!$E$77,0,IF($AW31=Bommer!$E$77,BI31,Takstutvikling!AZ30)) ->  | BA31: =IF($AW31<Bommer!$E$77,0,IF($AW31=Bommer!$E$77,BJ31,Takstutvikling!BA30)) ->  | BB31: =IF($AW31<Bommer!$E$77,0,IF($AW31=Bommer!$E$77,BK31,Takstutvikling!BB30)) ->  | BC31: =IF($AW31<Bommer!$E$77,0,IF($AW31=Bommer!$E$77,BL31,Takstutvikling!BC30)) ->  | BD31: =IF($AW31<Bommer!$E$77,0,IF($AW31=Bommer!$E$77,BM31,Takstutvikling!BD30)) ->  | BF31: 2037
AE32: 2038 | AF32: 0.01823804428 | AG32: 0.08140656276 | AH32: 0.8395666438 | AI32: 0.06078874917 | AJ32: 0.7777210305 | AK32: 0.2000586388 | AL32: 0.02222033065 | AN32: 2038 | AO32: =AO31+(AO$34-AO$29)/5 -> 0.01823804428 | AP32: 0.08140656276 | AQ32: 0.8395666438 | AR32: 0.06078874917 | AS32: 0.7777210305 | AT32: 0.2000586388 | AU32: 0.02222033065 | AW32: 2038 | AX32: =IF($AW32<Bommer!$E$77,0,IF($AW32=Bommer!$E$77,BG32,Takstutvikling!AX31)) ->  | AY32: =IF($AW32<Bommer!$E$77,0,IF($AW32=Bommer!$E$77,BH32,Takstutvikling!AY31)) ->  | AZ32: =IF($AW32<Bommer!$E$77,0,IF($AW32=Bommer!$E$77,BI32,Takstutvikling!AZ31)) ->  | BA32: =IF($AW32<Bommer!$E$77,0,IF($AW32=Bommer!$E$77,BJ32,Takstutvikling!BA31)) ->  | BB32: =IF($AW32<Bommer!$E$77,0,IF($AW32=Bommer!$E$77,BK32,Takstutvikling!BB31)) ->  | BC32: =IF($AW32<Bommer!$E$77,0,IF($AW32=Bommer!$E$77,BL32,Takstutvikling!BC31)) ->  | BD32: =IF($AW32<Bommer!$E$77,0,IF($AW32=Bommer!$E$77,BM32,Takstutvikling!BD31)) ->  | BF32: 2038
AE33: 2039 | AF33: 0.0143002606 | AG33: 0.06927351129 | AH33: 0.8608598448 | AI33: 0.05556638331 | AJ33: 0.7633923505 | AK33: 0.2130130897 | AL33: 0.02359455983 | AN33: 2039 | AO33: =AO32+(AO$34-AO$29)/5 -> 0.0143002606 | AP33: 0.06927351129 | AQ33: 0.8608598448 | AR33: 0.05556638331 | AS33: 0.7633923505 | AT33: 0.2130130897 | AU33: 0.02359455983 | AW33: 2039 | AX33: =IF($AW33<Bommer!$E$77,0,IF($AW33=Bommer!$E$77,BG33,Takstutvikling!AX32)) ->  | AY33: =IF($AW33<Bommer!$E$77,0,IF($AW33=Bommer!$E$77,BH33,Takstutvikling!AY32)) ->  | AZ33: =IF($AW33<Bommer!$E$77,0,IF($AW33=Bommer!$E$77,BI33,Takstutvikling!AZ32)) ->  | BA33: =IF($AW33<Bommer!$E$77,0,IF($AW33=Bommer!$E$77,BJ33,Takstutvikling!BA32)) ->  | BB33: =IF($AW33<Bommer!$E$77,0,IF($AW33=Bommer!$E$77,BK33,Takstutvikling!BB32)) ->  | BC33: =IF($AW33<Bommer!$E$77,0,IF($AW33=Bommer!$E$77,BL33,Takstutvikling!BC32)) ->  | BD33: =IF($AW33<Bommer!$E$77,0,IF($AW33=Bommer!$E$77,BM33,Takstutvikling!BD32)) ->  | BF33: 2039
AE34: 2040 | AF34: 0.01036247693 | AG34: 0.05714045981 | AH34: 0.8821530458 | AI34: 0.05034401745 | AJ34: 0.7490636704 | AK34: 0.2259675406 | AL34: 0.02496878901 | AN34: 2040 | AO34: =LOOKUP($AN34,$M$2:$T$2,$M$3:$T$3) -> 0.01036247693 | AP34: =LOOKUP($AN34,$M$2:$T$2,$M$4:$T$4) -> 0.05714045981 | AQ34: =LOOKUP($AN34,$M$2:$T$2,$M$5:$T$5) -> 0.8821530458 | AR34: =LOOKUP($AN34,$M$2:$T$2,$M$6:$T$6) -> 0.05034401745 | AS34: =LOOKUP($AN34,$M$2:$T$2,$M$7:$T$7) -> 0.7490636704 | AT34: =LOOKUP($AN34,$M$2:$T$2,$M$8:$T$8) -> 0.2259675406 | AU34: =LOOKUP($AN34,$M$2:$T$2,$M$9:$T$9) -> 0.02496878901 | AW34: 2040 | AX34: =IF($AW34<Bommer!$E$77,0,IF($AW34=Bommer!$E$77,BG34,Takstutvikling!AX33)) ->  | AY34: =IF($AW34<Bommer!$E$77,0,IF($AW34=Bommer!$E$77,BH34,Takstutvikling!AY33)) ->  | AZ34: =IF($AW34<Bommer!$E$77,0,IF($AW34=Bommer!$E$77,BI34,Takstutvikling!AZ33)) ->  | BA34: =IF($AW34<Bommer!$E$77,0,IF($AW34=Bommer!$E$77,BJ34,Takstutvikling!BA33)) ->  | BB34: =IF($AW34<Bommer!$E$77,0,IF($AW34=Bommer!$E$77,BK34,Takstutvikling!BB33)) ->  | BC34: =IF($AW34<Bommer!$E$77,0,IF($AW34=Bommer!$E$77,BL34,Takstutvikling!BC33)) ->  | BD34: =IF($AW34<Bommer!$E$77,0,IF($AW34=Bommer!$E$77,BM34,Takstutvikling!BD33)) ->  | BF34: 2040
L35: Drivstoff | M35: 2015 | N35: 2020 | O35: 2025 | P35: 2030 | Q35: 2035 | R35: 2040 | S35: 2045 | T35: 2050 | AE35: 2041 | AF35: 0.009124675039 | AG35: 0.05273288395 | AH35: 0.889602935 | AI35: 0.04853950602 | AJ35: 0.7324732511 | AK35: 0.2442211599 | AL35: 0.02330558908 | AN35: 2041 | AO35: =AO34+(AO$39-AO$34)/5 -> 0.009124675039 | AP35: =AP34+(AP$39-AP$34)/5 -> 0.05273288395 | AQ35: 0.889602935 | AR35: 0.04853950602 | AS35: 0.7324732511 | AT35: 0.2442211599 | AU35: 0.02330558908 | AW35: 2041 | AX35: =IF($AW35<Bommer!$E$77,0,IF($AW35=Bommer!$E$77,BG35,Takstutvikling!AX34)) ->  | AY35: =IF($AW35<Bommer!$E$77,0,IF($AW35=Bommer!$E$77,BH35,Takstutvikling!AY34)) ->  | AZ35: =IF($AW35<Bommer!$E$77,0,IF($AW35=Bommer!$E$77,BI35,Takstutvikling!AZ34)) ->  | BA35: =IF($AW35<Bommer!$E$77,0,IF($AW35=Bommer!$E$77,BJ35,Takstutvikling!BA34)) ->  | BB35: =IF($AW35<Bommer!$E$77,0,IF($AW35=Bommer!$E$77,BK35,Takstutvikling!BB34)) ->  | BC35: =IF($AW35<Bommer!$E$77,0,IF($AW35=Bommer!$E$77,BL35,Takstutvikling!BC34)) ->  | BD35: =IF($AW35<Bommer!$E$77,0,IF($AW35=Bommer!$E$77,BM35,Takstutvikling!BD34)) ->  | BF35: 2041
K36: Personbil | L36: Bensin | M36: 12444 | N36: 9237 | O36: 6016 | P36: 3300 | Q36: 1415 | R36: 494 | S36: 202 | T36: 122 | AE36: 2042 | AF36: 0.007886873152 | AG36: 0.0483253081 | AH36: 0.8970528242 | AI36: 0.04673499459 | AJ36: 0.7158828317 | AK36: 0.2624747791 | AL36: 0.02164238915 | AN36: 2042 | AO36: =AO35+(AO$39-AO$34)/5 -> 0.007886873152 | AP36: 0.0483253081 | AQ36: 0.8970528242 | AR36: 0.04673499459 | AS36: 0.7158828317 | AT36: 0.2624747791 | AU36: 0.02164238915 | AW36: 2042 | AX36: =IF($AW36<Bommer!$E$77,0,IF($AW36=Bommer!$E$77,BG36,Takstutvikling!AX35)) ->  | AY36: =IF($AW36<Bommer!$E$77,0,IF($AW36=Bommer!$E$77,BH36,Takstutvikling!AY35)) ->  | AZ36: =IF($AW36<Bommer!$E$77,0,IF($AW36=Bommer!$E$77,BI36,Takstutvikling!AZ35)) ->  | BA36: =IF($AW36<Bommer!$E$77,0,IF($AW36=Bommer!$E$77,BJ36,Takstutvikling!BA35)) ->  | BB36: =IF($AW36<Bommer!$E$77,0,IF($AW36=Bommer!$E$77,BK36,Takstutvikling!BB35)) ->  | BC36: =IF($AW36<Bommer!$E$77,0,IF($AW36=Bommer!$E$77,BL36,Takstutvikling!BC35)) ->  | BD36: =IF($AW36<Bommer!$E$77,0,IF($AW36=Bommer!$E$77,BM36,Takstutvikling!BD35)) ->  | BF36: 2042
L37: Diesel | M37: 20496 | N37: 19088 | O37: 12700 | P37: 6192 | Q37: 2247 | R37: 724 | S37: 299 | T37: 170 | AE37: 2043 | AF37: 0.006649071264 | AG37: 0.04391773224 | AH37: 0.9045027133 | AI37: 0.04493048316 | AJ37: 0.6992924124 | AK37: 0.2807283984 | AL37: 0.01997918921 | AN37: 2043 | AO37: =AO36+(AO$39-AO$34)/5 -> 0.006649071264 | AP37: 0.04391773224 | AQ37: 0.9045027133 | AR37: 0.04493048316 | AS37: 0.6992924124 | AT37: 0.2807283984 | AU37: 0.01997918921 | AW37: 2043 | AX37: =IF($AW37<Bommer!$E$77,0,IF($AW37=Bommer!$E$77,BG37,Takstutvikling!AX36)) ->  | AY37: =IF($AW37<Bommer!$E$77,0,IF($AW37=Bommer!$E$77,BH37,Takstutvikling!AY36)) ->  | AZ37: =IF($AW37<Bommer!$E$77,0,IF($AW37=Bommer!$E$77,BI37,Takstutvikling!AZ36)) ->  | BA37: =IF($AW37<Bommer!$E$77,0,IF($AW37=Bommer!$E$77,BJ37,Takstutvikling!BA36)) ->  | BB37: =IF($AW37<Bommer!$E$77,0,IF($AW37=Bommer!$E$77,BK37,Takstutvikling!BB36)) ->  | BC37: =IF($AW37<Bommer!$E$77,0,IF($AW37=Bommer!$E$77,BL37,Takstutvikling!BC36)) ->  | BD37: =IF($AW37<Bommer!$E$77,0,IF($AW37=Bommer!$E$77,BM37,Takstutvikling!BD36)) ->  | BF37: 2043
L38: Elektrisk | M38: 789 | N38: 4311 | O38: 13624 | P38: 23896 | Q38: 31724 | R38: 35854 | S38: 37500 | T38: 38200 | AE38: 2044 | AF38: 0.005411269377 | AG38: 0.03951015638 | AH38: 0.9119526025 | AI38: 0.04312597173 | AJ38: 0.682701993 | AK38: 0.2989820177 | AL38: 0.01831598928 | AN38: 2044 | AO38: =AO37+(AO$39-AO$34)/5 -> 0.005411269377 | AP38: 0.03951015638 | AQ38: 0.9119526025 | AR38: 0.04312597173 | AS38: 0.682701993 | AT38: 0.2989820177 | AU38: 0.01831598928 | AW38: 2044 | AX38: =IF($AW38<Bommer!$E$77,0,IF($AW38=Bommer!$E$77,BG38,Takstutvikling!AX37)) ->  | AY38: =IF($AW38<Bommer!$E$77,0,IF($AW38=Bommer!$E$77,BH38,Takstutvikling!AY37)) ->  | AZ38: =IF($AW38<Bommer!$E$77,0,IF($AW38=Bommer!$E$77,BI38,Takstutvikling!AZ37)) ->  | BA38: =IF($AW38<Bommer!$E$77,0,IF($AW38=Bommer!$E$77,BJ38,Takstutvikling!BA37)) ->  | BB38: =IF($AW38<Bommer!$E$77,0,IF($AW38=Bommer!$E$77,BK38,Takstutvikling!BB37)) ->  | BC38: =IF($AW38<Bommer!$E$77,0,IF($AW38=Bommer!$E$77,BL38,Takstutvikling!BC37)) ->  | BD38: =IF($AW38<Bommer!$E$77,0,IF($AW38=Bommer!$E$77,BM38,Takstutvikling!BD37)) ->  | BF38: 2044
L39: Hybrid | M39: 500 | N39: 3600 | O39: 4600 | P39: 4700 | Q39: 3600 | R39: 2400 | S39: 2000 | T39: 2000 | AE39: 2045 | AF39: 0.00417346749 | AG39: 0.03510258053 | AH39: 0.9194024917 | AI39: 0.0413214603 | AJ39: 0.6661115737 | AK39: 0.317235637 | AL39: 0.01665278934 | AN39: 2045 | AO39: =LOOKUP($AN39,$M$2:$T$2,$M$3:$T$3) -> 0.00417346749 | AP39: =LOOKUP($AN39,$M$2:$T$2,$M$4:$T$4) -> 0.03510258053 | AQ39: =LOOKUP($AN39,$M$2:$T$2,$M$5:$T$5) -> 0.9194024917 | AR39: =LOOKUP($AN39,$M$2:$T$2,$M$6:$T$6) -> 0.0413214603 | AS39: =LOOKUP($AN39,$M$2:$T$2,$M$7:$T$7) -> 0.6661115737 | AT39: =LOOKUP($AN39,$M$2:$T$2,$M$8:$T$8) -> 0.317235637 | AU39: =LOOKUP($AN39,$M$2:$T$2,$M$9:$T$9) -> 0.01665278934 | AW39: 2045 | AX39: =IF($AW39<Bommer!$E$77,0,IF($AW39=Bommer!$E$77,BG39,Takstutvikling!AX38)) ->  | AY39: =IF($AW39<Bommer!$E$77,0,IF($AW39=Bommer!$E$77,BH39,Takstutvikling!AY38)) ->  | AZ39: =IF($AW39<Bommer!$E$77,0,IF($AW39=Bommer!$E$77,BI39,Takstutvikling!AZ38)) ->  | BA39: =IF($AW39<Bommer!$E$77,0,IF($AW39=Bommer!$E$77,BJ39,Takstutvikling!BA38)) ->  | BB39: =IF($AW39<Bommer!$E$77,0,IF($AW39=Bommer!$E$77,BK39,Takstutvikling!BB38)) ->  | BC39: =IF($AW39<Bommer!$E$77,0,IF($AW39=Bommer!$E$77,BL39,Takstutvikling!BC38)) ->  | BD39: =IF($AW39<Bommer!$E$77,0,IF($AW39=Bommer!$E$77,BM39,Takstutvikling!BD38)) ->  | BF39: 2045
K40: Tunge | L40: Diesel | M40: 2200 | N40: 2300 | O40: 2200 | P40: 2100 | Q40: 1950 | R40: 1800 | S40: 1600 | T40: 1430 | AE40: 2046 | AF40: 0.003837833143 | AG40: 0.03286812349 | AH40: 0.9220555776 | AI40: 0.04123846579 | AJ40: 0.6505847322 | AK40: 0.33197781 | AL40: 0.01743745781 | AN40: 2046 | AO40: =AO39+(AO$44-AO$39)/5 -> 0.003837833143 | AP40: =AP39+(AP$44-AP$39)/5 -> 0.03286812349 | AQ40: 0.9220555776 | AR40: 0.04123846579 | AS40: 0.6505847322 | AT40: 0.33197781 | AU40: 0.01743745781 | AW40: 2046 | AX40: =IF($AW40<Bommer!$E$77,0,IF($AW40=Bommer!$E$77,BG40,Takstutvikling!AX39)) ->  | AY40: =IF($AW40<Bommer!$E$77,0,IF($AW40=Bommer!$E$77,BH40,Takstutvikling!AY39)) ->  | AZ40: =IF($AW40<Bommer!$E$77,0,IF($AW40=Bommer!$E$77,BI40,Takstutvikling!AZ39)) ->  | BA40: =IF($AW40<Bommer!$E$77,0,IF($AW40=Bommer!$E$77,BJ40,Takstutvikling!BA39)) ->  | BB40: =IF($AW40<Bommer!$E$77,0,IF($AW40=Bommer!$E$77,BK40,Takstutvikling!BB39)) ->  | BC40: =IF($AW40<Bommer!$E$77,0,IF($AW40=Bommer!$E$77,BL40,Takstutvikling!BC39)) ->  | BD40: =IF($AW40<Bommer!$E$77,0,IF($AW40=Bommer!$E$77,BM40,Takstutvikling!BD39)) ->  | BF40: 2046
L41: Elektrisk | M41: 0 | N41: 0 | O41: 100 | P41: 260 | Q41: 383 | R41: 543 | S41: 762 | T41: 950 | AE41: 2047 | AF41: 0.003502198796 | AG41: 0.03063366645 | AH41: 0.9247086635 | AI41: 0.04115547129 | AJ41: 0.6350578907 | AK41: 0.346719983 | AL41: 0.01822212628 | AN41: 2047 | AO41: =AO40+(AO$44-AO$39)/5 -> 0.003502198796 | AP41: 0.03063366645 | AQ41: 0.9247086635 | AR41: 0.04115547129 | AS41: 0.6350578907 | AT41: 0.346719983 | AU41: 0.01822212628 | AW41: 2047 | AX41: =IF($AW41<Bommer!$E$77,0,IF($AW41=Bommer!$E$77,BG41,Takstutvikling!AX40)) ->  | AY41: =IF($AW41<Bommer!$E$77,0,IF($AW41=Bommer!$E$77,BH41,Takstutvikling!AY40)) ->  | AZ41: =IF($AW41<Bommer!$E$77,0,IF($AW41=Bommer!$E$77,BI41,Takstutvikling!AZ40)) ->  | BA41: =IF($AW41<Bommer!$E$77,0,IF($AW41=Bommer!$E$77,BJ41,Takstutvikling!BA40)) ->  | BB41: =IF($AW41<Bommer!$E$77,0,IF($AW41=Bommer!$E$77,BK41,Takstutvikling!BB40)) ->  | BC41: =IF($AW41<Bommer!$E$77,0,IF($AW41=Bommer!$E$77,BL41,Takstutvikling!BC40)) ->  | BD41: =IF($AW41<Bommer!$E$77,0,IF($AW41=Bommer!$E$77,BM41,Takstutvikling!BD40)) ->  | BF41: 2047
L42: Hydrogen | M42: 0 | N42: 0 | O42: 6 | P42: 14 | Q42: 43 | R42: 60 | S42: 40 | T42: 50 | AE42: 2048 | AF42: 0.003166564448 | AG42: 0.02839920942 | AH42: 0.9273617494 | AI42: 0.04107247678 | AJ42: 0.6195310492 | AK42: 0.361462156 | AL42: 0.01900679475 | AN42: 2048 | AO42: =AO41+(AO$44-AO$39)/5 -> 0.003166564448 | AP42: 0.02839920942 | AQ42: 0.9273617494 | AR42: 0.04107247678 | AS42: 0.6195310492 | AT42: 0.361462156 | AU42: 0.01900679475 | AW42: 2048 | AX42: =IF($AW42<Bommer!$E$77,0,IF($AW42=Bommer!$E$77,BG42,Takstutvikling!AX41)) ->  | AY42: =IF($AW42<Bommer!$E$77,0,IF($AW42=Bommer!$E$77,BH42,Takstutvikling!AY41)) ->  | AZ42: =IF($AW42<Bommer!$E$77,0,IF($AW42=Bommer!$E$77,BI42,Takstutvikling!AZ41)) ->  | BA42: =IF($AW42<Bommer!$E$77,0,IF($AW42=Bommer!$E$77,BJ42,Takstutvikling!BA41)) ->  | BB42: =IF($AW42<Bommer!$E$77,0,IF($AW42=Bommer!$E$77,BK42,Takstutvikling!BB41)) ->  | BC42: =IF($AW42<Bommer!$E$77,0,IF($AW42=Bommer!$E$77,BL42,Takstutvikling!BC41)) ->  | BD42: =IF($AW42<Bommer!$E$77,0,IF($AW42=Bommer!$E$77,BM42,Takstutvikling!BD41)) ->  | BF42: 2048 | BG42: =BG41 -> 
K43: Varebil | L43: Diesel | M43: 7000 | N43: 7200 | O43: 6900 | P43: 5700 | Q43: 3300 | R43: 2000 | S43: 1400 | T43: 1000 | AE43: 2049 | AF43: 0.002830930101 | AG43: 0.02616475238 | AH43: 0.9300148352 | AI43: 0.04098948228 | AJ43: 0.6040042077 | AK43: 0.376204329 | AL43: 0.01979146322 | AN43: 2049 | AO43: =AO42+(AO$44-AO$39)/5 -> 0.002830930101 | AP43: 0.02616475238 | AQ43: 0.9300148352 | AR43: 0.04098948228 | AS43: 0.6040042077 | AT43: 0.376204329 | AU43: 0.01979146322 | AW43: 2049 | AX43: =IF($AW43<Bommer!$E$77,0,IF($AW43=Bommer!$E$77,BG43,Takstutvikling!AX42)) ->  | AY43: =IF($AW43<Bommer!$E$77,0,IF($AW43=Bommer!$E$77,BH43,Takstutvikling!AY42)) ->  | AZ43: =IF($AW43<Bommer!$E$77,0,IF($AW43=Bommer!$E$77,BI43,Takstutvikling!AZ42)) ->  | BA43: =IF($AW43<Bommer!$E$77,0,IF($AW43=Bommer!$E$77,BJ43,Takstutvikling!BA42)) ->  | BB43: =IF($AW43<Bommer!$E$77,0,IF($AW43=Bommer!$E$77,BK43,Takstutvikling!BB42)) ->  | BC43: =IF($AW43<Bommer!$E$77,0,IF($AW43=Bommer!$E$77,BL43,Takstutvikling!BC42)) ->  | BD43: =IF($AW43<Bommer!$E$77,0,IF($AW43=Bommer!$E$77,BM43,Takstutvikling!BD42)) ->  | BF43: 2049
L44: Elektrisk | M44: 10 | N44: 100 | O44: 800 | P44: 2600 | Q44: 4800 | R44: 6200 | S44: 7000 | T44: 7400 | AE44: 2050 | AF44: 0.002495295754 | AG44: 0.02393029534 | AH44: 0.9326679211 | AI44: 0.04090648777 | AJ44: 0.5884773663 | AK44: 0.3909465021 | AL44: 0.02057613169 | AN44: 2050 | AO44: =LOOKUP($AN44,$M$2:$T$2,$M$3:$T$3) -> 0.002495295754 | AP44: =LOOKUP($AN44,$M$2:$T$2,$M$4:$T$4) -> 0.02393029534 | AQ44: =LOOKUP($AN44,$M$2:$T$2,$M$5:$T$5) -> 0.9326679211 | AR44: =LOOKUP($AN44,$M$2:$T$2,$M$6:$T$6) -> 0.04090648777 | AS44: =LOOKUP($AN44,$M$2:$T$2,$M$7:$T$7) -> 0.5884773663 | AT44: =LOOKUP($AN44,$M$2:$T$2,$M$8:$T$8) -> 0.3909465021 | AU44: =LOOKUP($AN44,$M$2:$T$2,$M$9:$T$9) -> 0.02057613169 | AW44: 2050 | AX44: =IF($AW44<Bommer!$E$77,0,IF($AW44=Bommer!$E$77,BG44,Takstutvikling!AX43)) ->  | AY44: =IF($AW44<Bommer!$E$77,0,IF($AW44=Bommer!$E$77,BH44,Takstutvikling!AY43)) ->  | AZ44: =IF($AW44<Bommer!$E$77,0,IF($AW44=Bommer!$E$77,BI44,Takstutvikling!AZ43)) ->  | BA44: =IF($AW44<Bommer!$E$77,0,IF($AW44=Bommer!$E$77,BJ44,Takstutvikling!BA43)) ->  | BB44: =IF($AW44<Bommer!$E$77,0,IF($AW44=Bommer!$E$77,BK44,Takstutvikling!BB43)) ->  | BC44: =IF($AW44<Bommer!$E$77,0,IF($AW44=Bommer!$E$77,BL44,Takstutvikling!BC43)) ->  | BD44: =IF($AW44<Bommer!$E$77,0,IF($AW44=Bommer!$E$77,BM44,Takstutvikling!BD43)) ->  | BF44: 2050
AE45: 2051 | AF45: 0.002495295754 | AG45: 0.02393029534 | AH45: 0.9326679211 | AI45: 0.04090648777 | AJ45: 0.5884773663 | AK45: 0.3909465021 | AL45: 0.02057613169 | AN45: 2051 | AO45: 0.002495295754 | AP45: 0.02393029534 | AQ45: 0.9326679211 | AR45: 0.04090648777 | AS45: 0.5884773663 | AT45: 0.3909465021 | AU45: 0.02057613169 | AW45: 2051 | AX45: =IF($AW45<Bommer!$E$77,0,IF($AW45=Bommer!$E$77,BG45,Takstutvikling!AX44)) ->  | AY45: =IF($AW45<Bommer!$E$77,0,IF($AW45=Bommer!$E$77,BH45,Takstutvikling!AY44)) ->  | AZ45: =IF($AW45<Bommer!$E$77,0,IF($AW45=Bommer!$E$77,BI45,Takstutvikling!AZ44)) ->  | BA45: =IF($AW45<Bommer!$E$77,0,IF($AW45=Bommer!$E$77,BJ45,Takstutvikling!BA44)) ->  | BB45: =IF($AW45<Bommer!$E$77,0,IF($AW45=Bommer!$E$77,BK45,Takstutvikling!BB44)) ->  | BC45: =IF($AW45<Bommer!$E$77,0,IF($AW45=Bommer!$E$77,BL45,Takstutvikling!BC44)) ->  | BD45: =IF($AW45<Bommer!$E$77,0,IF($AW45=Bommer!$E$77,BM45,Takstutvikling!BD44)) ->  | BF45: 2051
AE46: 2052 | AF46: 0.002495295754 | AG46: 0.02393029534 | AH46: 0.9326679211 | AI46: 0.04090648777 | AJ46: 0.5884773663 | AK46: 0.3909465021 | AL46: 0.02057613169 | AN46: 2052 | AO46: 0.002495295754 | AP46: 0.02393029534 | AQ46: 0.9326679211 | AR46: 0.04090648777 | AS46: 0.5884773663 | AT46: 0.3909465021 | AU46: 0.02057613169 | AW46: 2052 | AX46: =IF($AW46<Bommer!$E$77,0,IF($AW46=Bommer!$E$77,BG46,Takstutvikling!AX45)) ->  | AY46: =IF($AW46<Bommer!$E$77,0,IF($AW46=Bommer!$E$77,BH46,Takstutvikling!AY45)) ->  | AZ46: =IF($AW46<Bommer!$E$77,0,IF($AW46=Bommer!$E$77,BI46,Takstutvikling!AZ45)) ->  | BA46: =IF($AW46<Bommer!$E$77,0,IF($AW46=Bommer!$E$77,BJ46,Takstutvikling!BA45)) ->  | BB46: =IF($AW46<Bommer!$E$77,0,IF($AW46=Bommer!$E$77,BK46,Takstutvikling!BB45)) ->  | BC46: =IF($AW46<Bommer!$E$77,0,IF($AW46=Bommer!$E$77,BL46,Takstutvikling!BC45)) ->  | BD46: =IF($AW46<Bommer!$E$77,0,IF($AW46=Bommer!$E$77,BM46,Takstutvikling!BD45)) ->  | BF46: 2052
AE47: 2053 | AF47: 0.002495295754 | AG47: 0.02393029534 | AH47: 0.9326679211 | AI47: 0.04090648777 | AJ47: 0.5884773663 | AK47: 0.3909465021 | AL47: 0.02057613169 | AN47: 2053 | AO47: 0.002495295754 | AP47: 0.02393029534 | AQ47: 0.9326679211 | AR47: 0.04090648777 | AS47: 0.5884773663 | AT47: 0.3909465021 | AU47: 0.02057613169 | AW47: 2053 | AX47: =IF($AW47<Bommer!$E$77,0,IF($AW47=Bommer!$E$77,BG47,Takstutvikling!AX46)) ->  | AY47: =IF($AW47<Bommer!$E$77,0,IF($AW47=Bommer!$E$77,BH47,Takstutvikling!AY46)) ->  | AZ47: =IF($AW47<Bommer!$E$77,0,IF($AW47=Bommer!$E$77,BI47,Takstutvikling!AZ46)) ->  | BA47: =IF($AW47<Bommer!$E$77,0,IF($AW47=Bommer!$E$77,BJ47,Takstutvikling!BA46)) ->  | BB47: =IF($AW47<Bommer!$E$77,0,IF($AW47=Bommer!$E$77,BK47,Takstutvikling!BB46)) ->  | BC47: =IF($AW47<Bommer!$E$77,0,IF($AW47=Bommer!$E$77,BL47,Takstutvikling!BC46)) ->  | BD47: =IF($AW47<Bommer!$E$77,0,IF($AW47=Bommer!$E$77,BM47,Takstutvikling!BD46)) ->  | BF47: 2053
AE48: 2054 | AF48: 0.002495295754 | AG48: 0.02393029534 | AH48: 0.9326679211 | AI48: 0.04090648777 | AJ48: 0.5884773663 | AK48: 0.3909465021 | AL48: 0.02057613169 | AN48: 2054 | AO48: 0.002495295754 | AP48: 0.02393029534 | AQ48: 0.9326679211 | AR48: 0.04090648777 | AS48: 0.5884773663 | AT48: 0.3909465021 | AU48: 0.02057613169 | AW48: 2054 | AX48: =IF($AW48<Bommer!$E$77,0,IF($AW48=Bommer!$E$77,BG48,Takstutvikling!AX47)) ->  | AY48: =IF($AW48<Bommer!$E$77,0,IF($AW48=Bommer!$E$77,BH48,Takstutvikling!AY47)) ->  | AZ48: =IF($AW48<Bommer!$E$77,0,IF($AW48=Bommer!$E$77,BI48,Takstutvikling!AZ47)) ->  | BA48: =IF($AW48<Bommer!$E$77,0,IF($AW48=Bommer!$E$77,BJ48,Takstutvikling!BA47)) ->  | BB48: =IF($AW48<Bommer!$E$77,0,IF($AW48=Bommer!$E$77,BK48,Takstutvikling!BB47)) ->  | BC48: =IF($AW48<Bommer!$E$77,0,IF($AW48=Bommer!$E$77,BL48,Takstutvikling!BC47)) ->  | BD48: =IF($AW48<Bommer!$E$77,0,IF($AW48=Bommer!$E$77,BM48,Takstutvikling!BD47)) ->  | BF48: 2054
AE49: 2055 | AF49: 0.002495295754 | AG49: 0.02393029534 | AH49: 0.9326679211 | AI49: 0.04090648777 | AJ49: 0.5884773663 | AK49: 0.3909465021 | AL49: 0.02057613169 | AN49: 2055 | AO49: 0.002495295754 | AP49: 0.02393029534 | AQ49: 0.9326679211 | AR49: 0.04090648777 | AS49: 0.5884773663 | AT49: 0.3909465021 | AU49: 0.02057613169 | AW49: 2055 | AX49: =IF($AW49<Bommer!$E$77,0,IF($AW49=Bommer!$E$77,BG49,Takstutvikling!AX48)) ->  | AY49: =IF($AW49<Bommer!$E$77,0,IF($AW49=Bommer!$E$77,BH49,Takstutvikling!AY48)) ->  | AZ49: =IF($AW49<Bommer!$E$77,0,IF($AW49=Bommer!$E$77,BI49,Takstutvikling!AZ48)) ->  | BA49: =IF($AW49<Bommer!$E$77,0,IF($AW49=Bommer!$E$77,BJ49,Takstutvikling!BA48)) ->  | BB49: =IF($AW49<Bommer!$E$77,0,IF($AW49=Bommer!$E$77,BK49,Takstutvikling!BB48)) ->  | BC49: =IF($AW49<Bommer!$E$77,0,IF($AW49=Bommer!$E$77,BL49,Takstutvikling!BC48)) ->  | BD49: =IF($AW49<Bommer!$E$77,0,IF($AW49=Bommer!$E$77,BM49,Takstutvikling!BD48)) ->  | BF49: 2055
AE50: 2056 | AF50: 0.002495295754 | AG50: 0.02393029534 | AH50: 0.9326679211 | AI50: 0.04090648777 | AJ50: 0.5884773663 | AK50: 0.3909465021 | AL50: 0.02057613169 | AN50: 2056 | AO50: 0.002495295754 | AP50: 0.02393029534 | AQ50: 0.9326679211 | AR50: 0.04090648777 | AS50: 0.5884773663 | AT50: 0.3909465021 | AU50: 0.02057613169 | AW50: 2056 | AX50: =IF($AW50<Bommer!$E$77,0,IF($AW50=Bommer!$E$77,BG50,Takstutvikling!AX49)) ->  | AY50: =IF($AW50<Bommer!$E$77,0,IF($AW50=Bommer!$E$77,BH50,Takstutvikling!AY49)) ->  | AZ50: =IF($AW50<Bommer!$E$77,0,IF($AW50=Bommer!$E$77,BI50,Takstutvikling!AZ49)) ->  | BA50: =IF($AW50<Bommer!$E$77,0,IF($AW50=Bommer!$E$77,BJ50,Takstutvikling!BA49)) ->  | BB50: =IF($AW50<Bommer!$E$77,0,IF($AW50=Bommer!$E$77,BK50,Takstutvikling!BB49)) ->  | BC50: =IF($AW50<Bommer!$E$77,0,IF($AW50=Bommer!$E$77,BL50,Takstutvikling!BC49)) ->  | BD50: =IF($AW50<Bommer!$E$77,0,IF($AW50=Bommer!$E$77,BM50,Takstutvikling!BD49)) ->  | BF50: 2056
AE51: 2057 | AF51: 0.002495295754 | AG51: 0.02393029534 | AH51: 0.9326679211 | AI51: 0.04090648777 | AJ51: 0.5884773663 | AK51: 0.3909465021 | AL51: 0.02057613169 | AN51: 2057 | AO51: 0.002495295754 | AP51: 0.02393029534 | AQ51: 0.9326679211 | AR51: 0.04090648777 | AS51: 0.5884773663 | AT51: 0.3909465021 | AU51: 0.02057613169 | AW51: 2057 | AX51: =IF($AW51<Bommer!$E$77,0,IF($AW51=Bommer!$E$77,BG51,Takstutvikling!AX50)) ->  | AY51: =IF($AW51<Bommer!$E$77,0,IF($AW51=Bommer!$E$77,BH51,Takstutvikling!AY50)) ->  | AZ51: =IF($AW51<Bommer!$E$77,0,IF($AW51=Bommer!$E$77,BI51,Takstutvikling!AZ50)) ->  | BA51: =IF($AW51<Bommer!$E$77,0,IF($AW51=Bommer!$E$77,BJ51,Takstutvikling!BA50)) ->  | BB51: =IF($AW51<Bommer!$E$77,0,IF($AW51=Bommer!$E$77,BK51,Takstutvikling!BB50)) ->  | BC51: =IF($AW51<Bommer!$E$77,0,IF($AW51=Bommer!$E$77,BL51,Takstutvikling!BC50)) ->  | BD51: =IF($AW51<Bommer!$E$77,0,IF($AW51=Bommer!$E$77,BM51,Takstutvikling!BD50)) ->  | BF51: 2057
AE52: 2058 | AF52: 0.002495295754 | AG52: 0.02393029534 | AH52: 0.9326679211 | AI52: 0.04090648777 | AJ52: 0.5884773663 | AK52: 0.3909465021 | AL52: 0.02057613169 | AN52: 2058 | AO52: 0.002495295754 | AP52: 0.02393029534 | AQ52: 0.9326679211 | AR52: 0.04090648777 | AS52: 0.5884773663 | AT52: 0.3909465021 | AU52: 0.02057613169 | AW52: 2058 | AX52: =IF($AW52<Bommer!$E$77,0,IF($AW52=Bommer!$E$77,BG52,Takstutvikling!AX51)) ->  | AY52: =IF($AW52<Bommer!$E$77,0,IF($AW52=Bommer!$E$77,BH52,Takstutvikling!AY51)) ->  | AZ52: =IF($AW52<Bommer!$E$77,0,IF($AW52=Bommer!$E$77,BI52,Takstutvikling!AZ51)) ->  | BA52: =IF($AW52<Bommer!$E$77,0,IF($AW52=Bommer!$E$77,BJ52,Takstutvikling!BA51)) ->  | BB52: =IF($AW52<Bommer!$E$77,0,IF($AW52=Bommer!$E$77,BK52,Takstutvikling!BB51)) ->  | BC52: =IF($AW52<Bommer!$E$77,0,IF($AW52=Bommer!$E$77,BL52,Takstutvikling!BC51)) ->  | BD52: =IF($AW52<Bommer!$E$77,0,IF($AW52=Bommer!$E$77,BM52,Takstutvikling!BD51)) ->  | BF52: 2058
AE53: 2059 | AF53: 0.002495295754 | AG53: 0.02393029534 | AH53: 0.9326679211 | AI53: 0.04090648777 | AJ53: 0.5884773663 | AK53: 0.3909465021 | AL53: 0.02057613169 | AN53: 2059 | AO53: 0.002495295754 | AP53: 0.02393029534 | AQ53: 0.9326679211 | AR53: 0.04090648777 | AS53: 0.5884773663 | AT53: 0.3909465021 | AU53: 0.02057613169 | AW53: 2059 | AX53: =IF($AW53<Bommer!$E$77,0,IF($AW53=Bommer!$E$77,BG53,Takstutvikling!AX52)) ->  | AY53: =IF($AW53<Bommer!$E$77,0,IF($AW53=Bommer!$E$77,BH53,Takstutvikling!AY52)) ->  | AZ53: =IF($AW53<Bommer!$E$77,0,IF($AW53=Bommer!$E$77,BI53,Takstutvikling!AZ52)) ->  | BA53: =IF($AW53<Bommer!$E$77,0,IF($AW53=Bommer!$E$77,BJ53,Takstutvikling!BA52)) ->  | BB53: =IF($AW53<Bommer!$E$77,0,IF($AW53=Bommer!$E$77,BK53,Takstutvikling!BB52)) ->  | BC53: =IF($AW53<Bommer!$E$77,0,IF($AW53=Bommer!$E$77,BL53,Takstutvikling!BC52)) ->  | BD53: =IF($AW53<Bommer!$E$77,0,IF($AW53=Bommer!$E$77,BM53,Takstutvikling!BD52)) ->  | BF53: 2059
AE54: 2060 | AF54: 0.002495295754 | AG54: 0.02393029534 | AH54: 0.9326679211 | AI54: 0.04090648777 | AJ54: 0.5884773663 | AK54: 0.3909465021 | AL54: 0.02057613169 | AN54: 2060 | AO54: 0.002495295754 | AP54: 0.02393029534 | AQ54: 0.9326679211 | AR54: 0.04090648777 | AS54: 0.5884773663 | AT54: 0.3909465021 | AU54: 0.02057613169 | AW54: 2060 | AX54: =IF($AW54<Bommer!$E$77,0,IF($AW54=Bommer!$E$77,BG54,Takstutvikling!AX53)) ->  | AY54: =IF($AW54<Bommer!$E$77,0,IF($AW54=Bommer!$E$77,BH54,Takstutvikling!AY53)) ->  | AZ54: =IF($AW54<Bommer!$E$77,0,IF($AW54=Bommer!$E$77,BI54,Takstutvikling!AZ53)) ->  | BA54: =IF($AW54<Bommer!$E$77,0,IF($AW54=Bommer!$E$77,BJ54,Takstutvikling!BA53)) ->  | BB54: =IF($AW54<Bommer!$E$77,0,IF($AW54=Bommer!$E$77,BK54,Takstutvikling!BB53)) ->  | BC54: =IF($AW54<Bommer!$E$77,0,IF($AW54=Bommer!$E$77,BL54,Takstutvikling!BC53)) ->  | BD54: =IF($AW54<Bommer!$E$77,0,IF($AW54=Bommer!$E$77,BM54,Takstutvikling!BD53)) ->  | BF54: 2060
AE55: 2061 | AF55: 0.002495295754 | AG55: 0.02393029534 | AH55: 0.9326679211 | AI55: 0.04090648777 | AJ55: 0.5884773663 | AK55: 0.3909465021 | AL55: 0.02057613169 | AN55: 2061 | AO55: 0.002495295754 | AP55: 0.02393029534 | AQ55: 0.9326679211 | AR55: 0.04090648777 | AS55: 0.5884773663 | AT55: 0.3909465021 | AU55: 0.02057613169 | AW55: 2061 | AX55: =IF($AW55<Bommer!$E$77,0,IF($AW55=Bommer!$E$77,BG55,Takstutvikling!AX54)) ->  | AY55: =IF($AW55<Bommer!$E$77,0,IF($AW55=Bommer!$E$77,BH55,Takstutvikling!AY54)) ->  | AZ55: =IF($AW55<Bommer!$E$77,0,IF($AW55=Bommer!$E$77,BI55,Takstutvikling!AZ54)) ->  | BA55: =IF($AW55<Bommer!$E$77,0,IF($AW55=Bommer!$E$77,BJ55,Takstutvikling!BA54)) ->  | BB55: =IF($AW55<Bommer!$E$77,0,IF($AW55=Bommer!$E$77,BK55,Takstutvikling!BB54)) ->  | BC55: =IF($AW55<Bommer!$E$77,0,IF($AW55=Bommer!$E$77,BL55,Takstutvikling!BC54)) ->  | BD55: =IF($AW55<Bommer!$E$77,0,IF($AW55=Bommer!$E$77,BM55,Takstutvikling!BD54)) ->  | BF55: 2061
AE56: 2062 | AF56: 0.002495295754 | AG56: 0.02393029534 | AH56: 0.9326679211 | AI56: 0.04090648777 | AJ56: 0.5884773663 | AK56: 0.3909465021 | AL56: 0.02057613169 | AN56: 2062 | AO56: 0.002495295754 | AP56: 0.02393029534 | AQ56: 0.9326679211 | AR56: 0.04090648777 | AS56: 0.5884773663 | AT56: 0.3909465021 | AU56: 0.02057613169 | AW56: 2062 | AX56: =IF($AW56<Bommer!$E$77,0,IF($AW56=Bommer!$E$77,BG56,Takstutvikling!AX55)) ->  | AY56: =IF($AW56<Bommer!$E$77,0,IF($AW56=Bommer!$E$77,BH56,Takstutvikling!AY55)) ->  | AZ56: =IF($AW56<Bommer!$E$77,0,IF($AW56=Bommer!$E$77,BI56,Takstutvikling!AZ55)) ->  | BA56: =IF($AW56<Bommer!$E$77,0,IF($AW56=Bommer!$E$77,BJ56,Takstutvikling!BA55)) ->  | BB56: =IF($AW56<Bommer!$E$77,0,IF($AW56=Bommer!$E$77,BK56,Takstutvikling!BB55)) ->  | BC56: =IF($AW56<Bommer!$E$77,0,IF($AW56=Bommer!$E$77,BL56,Takstutvikling!BC55)) ->  | BD56: =IF($AW56<Bommer!$E$77,0,IF($AW56=Bommer!$E$77,BM56,Takstutvikling!BD55)) ->  | BF56: 2062
AE57: 2063 | AF57: 0.002495295754 | AG57: 0.02393029534 | AH57: 0.9326679211 | AI57: 0.04090648777 | AJ57: 0.5884773663 | AK57: 0.3909465021 | AL57: 0.02057613169 | AN57: 2063 | AO57: 0.002495295754 | AP57: 0.02393029534 | AQ57: 0.9326679211 | AR57: 0.04090648777 | AS57: 0.5884773663 | AT57: 0.3909465021 | AU57: 0.02057613169 | AW57: 2063 | AX57: =IF($AW57<Bommer!$E$77,0,IF($AW57=Bommer!$E$77,BG57,Takstutvikling!AX56)) ->  | AY57: =IF($AW57<Bommer!$E$77,0,IF($AW57=Bommer!$E$77,BH57,Takstutvikling!AY56)) ->  | AZ57: =IF($AW57<Bommer!$E$77,0,IF($AW57=Bommer!$E$77,BI57,Takstutvikling!AZ56)) ->  | BA57: =IF($AW57<Bommer!$E$77,0,IF($AW57=Bommer!$E$77,BJ57,Takstutvikling!BA56)) ->  | BB57: =IF($AW57<Bommer!$E$77,0,IF($AW57=Bommer!$E$77,BK57,Takstutvikling!BB56)) ->  | BC57: =IF($AW57<Bommer!$E$77,0,IF($AW57=Bommer!$E$77,BL57,Takstutvikling!BC56)) ->  | BD57: =IF($AW57<Bommer!$E$77,0,IF($AW57=Bommer!$E$77,BM57,Takstutvikling!BD56)) ->  | BF57: 2063
AE58: 2064 | AF58: 0.002495295754 | AG58: 0.02393029534 | AH58: 0.9326679211 | AI58: 0.04090648777 | AJ58: 0.5884773663 | AK58: 0.3909465021 | AL58: 0.02057613169 | AN58: 2064 | AO58: 0.002495295754 | AP58: 0.02393029534 | AQ58: 0.9326679211 | AR58: 0.04090648777 | AS58: 0.5884773663 | AT58: 0.3909465021 | AU58: 0.02057613169 | AW58: 2064 | AX58: =IF($AW58<Bommer!$E$77,0,IF($AW58=Bommer!$E$77,BG58,Takstutvikling!AX57)) ->  | AY58: =IF($AW58<Bommer!$E$77,0,IF($AW58=Bommer!$E$77,BH58,Takstutvikling!AY57)) ->  | AZ58: =IF($AW58<Bommer!$E$77,0,IF($AW58=Bommer!$E$77,BI58,Takstutvikling!AZ57)) ->  | BA58: =IF($AW58<Bommer!$E$77,0,IF($AW58=Bommer!$E$77,BJ58,Takstutvikling!BA57)) ->  | BB58: =IF($AW58<Bommer!$E$77,0,IF($AW58=Bommer!$E$77,BK58,Takstutvikling!BB57)) ->  | BC58: =IF($AW58<Bommer!$E$77,0,IF($AW58=Bommer!$E$77,BL58,Takstutvikling!BC57)) ->  | BD58: =IF($AW58<Bommer!$E$77,0,IF($AW58=Bommer!$E$77,BM58,Takstutvikling!BD57)) ->  | BF58: 2064 | BG58: =BG57 -> 
AE59: 2065 | AF59: 0.002495295754 | AG59: 0.02393029534 | AH59: 0.9326679211 | AI59: =IF($AG$4=TRUE,AR59,BA59) -> 0.04090648777 | AJ59: 0.5884773663 | AK59: 0.3909465021 | AL59: 0.02057613169 | AN59: 2065 | AO59: 0.002495295754 | AP59: 0.02393029534 | AQ59: 0.9326679211 | AR59: 0.04090648777 | AS59: 0.5884773663 | AT59: 0.3909465021 | AU59: 0.02057613169 | AW59: 2065 | AX59: =IF($AW59<Bommer!$E$77,0,IF($AW59=Bommer!$E$77,BG59,Takstutvikling!AX58)) ->  | AY59: =IF($AW59<Bommer!$E$77,0,IF($AW59=Bommer!$E$77,BH59,Takstutvikling!AY58)) ->  | AZ59: =IF($AW59<Bommer!$E$77,0,IF($AW59=Bommer!$E$77,BI59,Takstutvikling!AZ58)) ->  | BA59: =IF($AW59<Bommer!$E$77,0,IF($AW59=Bommer!$E$77,BJ59,Takstutvikling!BA58)) ->  | BB59: =IF($AW59<Bommer!$E$77,0,IF($AW59=Bommer!$E$77,BK59,Takstutvikling!BB58)) ->  | BC59: =IF($AW59<Bommer!$E$77,0,IF($AW59=Bommer!$E$77,BL59,Takstutvikling!BC58)) ->  | BD59: =IF($AW59<Bommer!$E$77,0,IF($AW59=Bommer!$E$77,BM59,Takstutvikling!BD58)) ->  | BF59: 2065
AE60: 2066 | AF60: =IF($AG$4=TRUE,AO60,AX60) -> 0.002495295754 | AG60: =IF($AG$4=TRUE,AP60,AY60) -> 0.02393029534 | AH60: =IF($AG$4=TRUE,AQ60,AZ60) -> 0.9326679211 | AI60: 0.04090648777 | AJ60: 0.5884773663 | AK60: 0.3909465021 | AL60: 0.02057613169 | AN60: 2066 | AO60: 0.002495295754 | AP60: 0.02393029534 | AQ60: 0.9326679211 | AR60: 0.04090648777 | AS60: 0.5884773663 | AT60: 0.3909465021 | AU60: 0.02057613169 | AW60: 2066 | AX60: =IF($AW60<Bommer!$E$77,0,IF($AW60=Bommer!$E$77,BG60,Takstutvikling!AX59)) ->  | AY60: =IF($AW60<Bommer!$E$77,0,IF($AW60=Bommer!$E$77,BH60,Takstutvikling!AY59)) ->  | AZ60: =IF($AW60<Bommer!$E$77,0,IF($AW60=Bommer!$E$77,BI60,Takstutvikling!AZ59)) ->  | BA60: =IF($AW60<Bommer!$E$77,0,IF($AW60=Bommer!$E$77,BJ60,Takstutvikling!BA59)) ->  | BB60: =IF($AW60<Bommer!$E$77,0,IF($AW60=Bommer!$E$77,BK60,Takstutvikling!BB59)) ->  | BC60: =IF($AW60<Bommer!$E$77,0,IF($AW60=Bommer!$E$77,BL60,Takstutvikling!BC59)) ->  | BD60: =IF($AW60<Bommer!$E$77,0,IF($AW60=Bommer!$E$77,BM60,Takstutvikling!BD59)) ->  | BF60: 2066
AE61: 2067 | AF61: 0.002495295754 | AG61: 0.02393029534 | AH61: 0.9326679211 | AI61: 0.04090648777 | AJ61: 0.5884773663 | AK61: 0.3909465021 | AL61: 0.02057613169 | AN61: 2067 | AO61: 0.002495295754 | AP61: 0.02393029534 | AQ61: 0.9326679211 | AR61: 0.04090648777 | AS61: 0.5884773663 | AT61: 0.3909465021 | AU61: 0.02057613169 | AW61: 2067 | AX61: =IF($AW61<Bommer!$E$77,0,IF($AW61=Bommer!$E$77,BG61,Takstutvikling!AX60)) ->  | AY61: =IF($AW61<Bommer!$E$77,0,IF($AW61=Bommer!$E$77,BH61,Takstutvikling!AY60)) ->  | AZ61: =IF($AW61<Bommer!$E$77,0,IF($AW61=Bommer!$E$77,BI61,Takstutvikling!AZ60)) ->  | BA61: =IF($AW61<Bommer!$E$77,0,IF($AW61=Bommer!$E$77,BJ61,Takstutvikling!BA60)) ->  | BB61: =IF($AW61<Bommer!$E$77,0,IF($AW61=Bommer!$E$77,BK61,Takstutvikling!BB60)) ->  | BC61: =IF($AW61<Bommer!$E$77,0,IF($AW61=Bommer!$E$77,BL61,Takstutvikling!BC60)) ->  | BD61: =IF($AW61<Bommer!$E$77,0,IF($AW61=Bommer!$E$77,BM61,Takstutvikling!BD60)) ->  | BF61: 2067
AE62: 2068 | AF62: 0.002495295754 | AG62: 0.02393029534 | AH62: 0.9326679211 | AI62: 0.04090648777 | AJ62: 0.5884773663 | AK62: 0.3909465021 | AL62: 0.02057613169 | AN62: 2068 | AO62: 0.002495295754 | AP62: 0.02393029534 | AQ62: 0.9326679211 | AR62: 0.04090648777 | AS62: 0.5884773663 | AT62: 0.3909465021 | AU62: 0.02057613169 | AW62: 2068 | AX62: =IF($AW62<Bommer!$E$77,0,IF($AW62=Bommer!$E$77,BG62,Takstutvikling!AX61)) ->  | AY62: =IF($AW62<Bommer!$E$77,0,IF($AW62=Bommer!$E$77,BH62,Takstutvikling!AY61)) ->  | AZ62: =IF($AW62<Bommer!$E$77,0,IF($AW62=Bommer!$E$77,BI62,Takstutvikling!AZ61)) ->  | BA62: =IF($AW62<Bommer!$E$77,0,IF($AW62=Bommer!$E$77,BJ62,Takstutvikling!BA61)) ->  | BB62: =IF($AW62<Bommer!$E$77,0,IF($AW62=Bommer!$E$77,BK62,Takstutvikling!BB61)) ->  | BC62: =IF($AW62<Bommer!$E$77,0,IF($AW62=Bommer!$E$77,BL62,Takstutvikling!BC61)) ->  | BD62: =IF($AW62<Bommer!$E$77,0,IF($AW62=Bommer!$E$77,BM62,Takstutvikling!BD61)) ->  | BF62: 2068
AE63: 2069 | AF63: 0.002495295754 | AG63: 0.02393029534 | AH63: 0.9326679211 | AI63: 0.04090648777 | AJ63: 0.5884773663 | AK63: 0.3909465021 | AL63: 0.02057613169 | AN63: 2069 | AO63: 0.002495295754 | AP63: 0.02393029534 | AQ63: 0.9326679211 | AR63: 0.04090648777 | AS63: 0.5884773663 | AT63: 0.3909465021 | AU63: 0.02057613169 | AW63: 2069 | AX63: =IF($AW63<Bommer!$E$77,0,IF($AW63=Bommer!$E$77,BG63,Takstutvikling!AX62)) ->  | AY63: =IF($AW63<Bommer!$E$77,0,IF($AW63=Bommer!$E$77,BH63,Takstutvikling!AY62)) ->  | AZ63: =IF($AW63<Bommer!$E$77,0,IF($AW63=Bommer!$E$77,BI63,Takstutvikling!AZ62)) ->  | BA63: =IF($AW63<Bommer!$E$77,0,IF($AW63=Bommer!$E$77,BJ63,Takstutvikling!BA62)) ->  | BB63: =IF($AW63<Bommer!$E$77,0,IF($AW63=Bommer!$E$77,BK63,Takstutvikling!BB62)) ->  | BC63: =IF($AW63<Bommer!$E$77,0,IF($AW63=Bommer!$E$77,BL63,Takstutvikling!BC62)) ->  | BD63: =IF($AW63<Bommer!$E$77,0,IF($AW63=Bommer!$E$77,BM63,Takstutvikling!BD62)) ->  | BF63: 2069
AE64: 2070 | AF64: 0.002495295754 | AG64: 0.02393029534 | AH64: 0.9326679211 | AI64: 0.04090648777 | AJ64: 0.5884773663 | AK64: 0.3909465021 | AL64: 0.02057613169 | AN64: 2070 | AO64: 0.002495295754 | AP64: 0.02393029534 | AQ64: 0.9326679211 | AR64: 0.04090648777 | AS64: 0.5884773663 | AT64: 0.3909465021 | AU64: 0.02057613169 | AW64: 2070 | AX64: =IF($AW64<Bommer!$E$77,0,IF($AW64=Bommer!$E$77,BG64,Takstutvikling!AX63)) ->  | AY64: =IF($AW64<Bommer!$E$77,0,IF($AW64=Bommer!$E$77,BH64,Takstutvikling!AY63)) ->  | AZ64: =IF($AW64<Bommer!$E$77,0,IF($AW64=Bommer!$E$77,BI64,Takstutvikling!AZ63)) ->  | BA64: =IF($AW64<Bommer!$E$77,0,IF($AW64=Bommer!$E$77,BJ64,Takstutvikling!BA63)) ->  | BB64: =IF($AW64<Bommer!$E$77,0,IF($AW64=Bommer!$E$77,BK64,Takstutvikling!BB63)) ->  | BC64: =IF($AW64<Bommer!$E$77,0,IF($AW64=Bommer!$E$77,BL64,Takstutvikling!BC63)) ->  | BD64: =IF($AW64<Bommer!$E$77,0,IF($AW64=Bommer!$E$77,BM64,Takstutvikling!BD63)) ->  | BF64: 2070
AE65: 2071 | AF65: 0.002495295754 | AG65: 0.02393029534 | AH65: 0.9326679211 | AI65: 0.04090648777 | AJ65: 0.5884773663 | AK65: 0.3909465021 | AL65: 0.02057613169 | AN65: 2071 | AO65: 0.002495295754 | AP65: 0.02393029534 | AQ65: 0.9326679211 | AR65: 0.04090648777 | AS65: 0.5884773663 | AT65: 0.3909465021 | AU65: 0.02057613169 | AW65: 2071 | AX65: =IF($AW65<Bommer!$E$77,0,IF($AW65=Bommer!$E$77,BG65,Takstutvikling!AX64)) ->  | AY65: =IF($AW65<Bommer!$E$77,0,IF($AW65=Bommer!$E$77,BH65,Takstutvikling!AY64)) ->  | AZ65: =IF($AW65<Bommer!$E$77,0,IF($AW65=Bommer!$E$77,BI65,Takstutvikling!AZ64)) ->  | BA65: =IF($AW65<Bommer!$E$77,0,IF($AW65=Bommer!$E$77,BJ65,Takstutvikling!BA64)) ->  | BB65: =IF($AW65<Bommer!$E$77,0,IF($AW65=Bommer!$E$77,BK65,Takstutvikling!BB64)) ->  | BC65: =IF($AW65<Bommer!$E$77,0,IF($AW65=Bommer!$E$77,BL65,Takstutvikling!BC64)) ->  | BD65: =IF($AW65<Bommer!$E$77,0,IF($AW65=Bommer!$E$77,BM65,Takstutvikling!BD64)) ->  | BF65: 2071
AE66: 2072 | AF66: 0.002495295754 | AG66: 0.02393029534 | AH66: 0.9326679211 | AI66: 0.04090648777 | AJ66: 0.5884773663 | AK66: 0.3909465021 | AL66: 0.02057613169 | AN66: 2072 | AO66: 0.002495295754 | AP66: 0.02393029534 | AQ66: 0.9326679211 | AR66: 0.04090648777 | AS66: 0.5884773663 | AT66: 0.3909465021 | AU66: 0.02057613169 | AW66: 2072 | AX66: =IF($AW66<Bommer!$E$77,0,IF($AW66=Bommer!$E$77,BG66,Takstutvikling!AX65)) ->  | AY66: =IF($AW66<Bommer!$E$77,0,IF($AW66=Bommer!$E$77,BH66,Takstutvikling!AY65)) ->  | AZ66: =IF($AW66<Bommer!$E$77,0,IF($AW66=Bommer!$E$77,BI66,Takstutvikling!AZ65)) ->  | BA66: =IF($AW66<Bommer!$E$77,0,IF($AW66=Bommer!$E$77,BJ66,Takstutvikling!BA65)) ->  | BB66: =IF($AW66<Bommer!$E$77,0,IF($AW66=Bommer!$E$77,BK66,Takstutvikling!BB65)) ->  | BC66: =IF($AW66<Bommer!$E$77,0,IF($AW66=Bommer!$E$77,BL66,Takstutvikling!BC65)) ->  | BD66: =IF($AW66<Bommer!$E$77,0,IF($AW66=Bommer!$E$77,BM66,Takstutvikling!BD65)) ->  | BF66: 2072
AE67: 2073 | AF67: 0.002495295754 | AG67: 0.02393029534 | AH67: 0.9326679211 | AI67: 0.04090648777 | AJ67: 0.5884773663 | AK67: 0.3909465021 | AL67: 0.02057613169 | AN67: 2073 | AO67: 0.002495295754 | AP67: 0.02393029534 | AQ67: 0.9326679211 | AR67: 0.04090648777 | AS67: 0.5884773663 | AT67: 0.3909465021 | AU67: 0.02057613169 | AW67: 2073 | AX67: =IF($AW67<Bommer!$E$77,0,IF($AW67=Bommer!$E$77,BG67,Takstutvikling!AX66)) ->  | AY67: =IF($AW67<Bommer!$E$77,0,IF($AW67=Bommer!$E$77,BH67,Takstutvikling!AY66)) ->  | AZ67: =IF($AW67<Bommer!$E$77,0,IF($AW67=Bommer!$E$77,BI67,Takstutvikling!AZ66)) ->  | BA67: =IF($AW67<Bommer!$E$77,0,IF($AW67=Bommer!$E$77,BJ67,Takstutvikling!BA66)) ->  | BB67: =IF($AW67<Bommer!$E$77,0,IF($AW67=Bommer!$E$77,BK67,Takstutvikling!BB66)) ->  | BC67: =IF($AW67<Bommer!$E$77,0,IF($AW67=Bommer!$E$77,BL67,Takstutvikling!BC66)) ->  | BD67: =IF($AW67<Bommer!$E$77,0,IF($AW67=Bommer!$E$77,BM67,Takstutvikling!BD66)) ->  | BF67: 2073
AE68: 2074 | AF68: 0.002495295754 | AG68: 0.02393029534 | AH68: 0.9326679211 | AI68: 0.04090648777 | AJ68: 0.5884773663 | AK68: 0.3909465021 | AL68: 0.02057613169 | AN68: 2074 | AO68: 0.002495295754 | AP68: 0.02393029534 | AQ68: 0.9326679211 | AR68: 0.04090648777 | AS68: 0.5884773663 | AT68: 0.3909465021 | AU68: 0.02057613169 | AW68: 2074 | AX68: =IF($AW68<Bommer!$E$77,0,IF($AW68=Bommer!$E$77,BG68,Takstutvikling!AX67)) ->  | AY68: =IF($AW68<Bommer!$E$77,0,IF($AW68=Bommer!$E$77,BH68,Takstutvikling!AY67)) ->  | AZ68: =IF($AW68<Bommer!$E$77,0,IF($AW68=Bommer!$E$77,BI68,Takstutvikling!AZ67)) ->  | BA68: =IF($AW68<Bommer!$E$77,0,IF($AW68=Bommer!$E$77,BJ68,Takstutvikling!BA67)) ->  | BB68: =IF($AW68<Bommer!$E$77,0,IF($AW68=Bommer!$E$77,BK68,Takstutvikling!BB67)) ->  | BC68: =IF($AW68<Bommer!$E$77,0,IF($AW68=Bommer!$E$77,BL68,Takstutvikling!BC67)) ->  | BD68: =IF($AW68<Bommer!$E$77,0,IF($AW68=Bommer!$E$77,BM68,Takstutvikling!BD67)) ->  | BF68: 2074
AE69: 2075 | AF69: 0.002495295754 | AG69: 0.02393029534 | AH69: 0.9326679211 | AI69: 0.04090648777 | AJ69: 0.5884773663 | AK69: 0.3909465021 | AL69: 0.02057613169 | AN69: 2075 | AO69: 0.002495295754 | AP69: 0.02393029534 | AQ69: 0.9326679211 | AR69: 0.04090648777 | AS69: 0.5884773663 | AT69: 0.3909465021 | AU69: 0.02057613169 | AW69: 2075 | AX69: =IF($AW69<Bommer!$E$77,0,IF($AW69=Bommer!$E$77,BG69,Takstutvikling!AX68)) ->  | AY69: =IF($AW69<Bommer!$E$77,0,IF($AW69=Bommer!$E$77,BH69,Takstutvikling!AY68)) ->  | AZ69: =IF($AW69<Bommer!$E$77,0,IF($AW69=Bommer!$E$77,BI69,Takstutvikling!AZ68)) ->  | BA69: =IF($AW69<Bommer!$E$77,0,IF($AW69=Bommer!$E$77,BJ69,Takstutvikling!BA68)) ->  | BB69: =IF($AW69<Bommer!$E$77,0,IF($AW69=Bommer!$E$77,BK69,Takstutvikling!BB68)) ->  | BC69: =IF($AW69<Bommer!$E$77,0,IF($AW69=Bommer!$E$77,BL69,Takstutvikling!BC68)) ->  | BD69: =IF($AW69<Bommer!$E$77,0,IF($AW69=Bommer!$E$77,BM69,Takstutvikling!BD68)) ->  | BF69: 2075
AE70: 2076 | AF70: 0.002495295754 | AG70: 0.02393029534 | AH70: 0.9326679211 | AI70: 0.04090648777 | AJ70: 0.5884773663 | AK70: 0.3909465021 | AL70: 0.02057613169 | AN70: 2076 | AO70: 0.002495295754 | AP70: 0.02393029534 | AQ70: 0.9326679211 | AR70: 0.04090648777 | AS70: 0.5884773663 | AT70: 0.3909465021 | AU70: 0.02057613169 | AW70: 2076 | AX70: =IF($AW70<Bommer!$E$77,0,IF($AW70=Bommer!$E$77,BG70,Takstutvikling!AX69)) ->  | AY70: =IF($AW70<Bommer!$E$77,0,IF($AW70=Bommer!$E$77,BH70,Takstutvikling!AY69)) ->  | AZ70: =IF($AW70<Bommer!$E$77,0,IF($AW70=Bommer!$E$77,BI70,Takstutvikling!AZ69)) ->  | BA70: =IF($AW70<Bommer!$E$77,0,IF($AW70=Bommer!$E$77,BJ70,Takstutvikling!BA69)) ->  | BB70: =IF($AW70<Bommer!$E$77,0,IF($AW70=Bommer!$E$77,BK70,Takstutvikling!BB69)) ->  | BC70: =IF($AW70<Bommer!$E$77,0,IF($AW70=Bommer!$E$77,BL70,Takstutvikling!BC69)) ->  | BD70: =IF($AW70<Bommer!$E$77,0,IF($AW70=Bommer!$E$77,BM70,Takstutvikling!BD69)) ->  | BF70: 2076
AE71: 2077 | AF71: 0.002495295754 | AG71: 0.02393029534 | AH71: 0.9326679211 | AI71: 0.04090648777 | AJ71: 0.5884773663 | AK71: 0.3909465021 | AL71: 0.02057613169 | AN71: 2077 | AO71: 0.002495295754 | AP71: 0.02393029534 | AQ71: 0.9326679211 | AR71: 0.04090648777 | AS71: 0.5884773663 | AT71: 0.3909465021 | AU71: 0.02057613169 | AW71: 2077 | AX71: =IF($AW71<Bommer!$E$77,0,IF($AW71=Bommer!$E$77,BG71,Takstutvikling!AX70)) ->  | AY71: =IF($AW71<Bommer!$E$77,0,IF($AW71=Bommer!$E$77,BH71,Takstutvikling!AY70)) ->  | AZ71: =IF($AW71<Bommer!$E$77,0,IF($AW71=Bommer!$E$77,BI71,Takstutvikling!AZ70)) ->  | BA71: =IF($AW71<Bommer!$E$77,0,IF($AW71=Bommer!$E$77,BJ71,Takstutvikling!BA70)) ->  | BB71: =IF($AW71<Bommer!$E$77,0,IF($AW71=Bommer!$E$77,BK71,Takstutvikling!BB70)) ->  | BC71: =IF($AW71<Bommer!$E$77,0,IF($AW71=Bommer!$E$77,BL71,Takstutvikling!BC70)) ->  | BD71: =IF($AW71<Bommer!$E$77,0,IF($AW71=Bommer!$E$77,BM71,Takstutvikling!BD70)) ->  | BF71: 2077
AE72: 2078 | AF72: 0.002495295754 | AG72: 0.02393029534 | AH72: 0.9326679211 | AI72: 0.04090648777 | AJ72: 0.5884773663 | AK72: 0.3909465021 | AL72: 0.02057613169 | AN72: 2078 | AO72: 0.002495295754 | AP72: 0.02393029534 | AQ72: 0.9326679211 | AR72: 0.04090648777 | AS72: 0.5884773663 | AT72: 0.3909465021 | AU72: 0.02057613169 | AW72: 2078 | AX72: =IF($AW72<Bommer!$E$77,0,IF($AW72=Bommer!$E$77,BG72,Takstutvikling!AX71)) ->  | AY72: =IF($AW72<Bommer!$E$77,0,IF($AW72=Bommer!$E$77,BH72,Takstutvikling!AY71)) ->  | AZ72: =IF($AW72<Bommer!$E$77,0,IF($AW72=Bommer!$E$77,BI72,Takstutvikling!AZ71)) ->  | BA72: =IF($AW72<Bommer!$E$77,0,IF($AW72=Bommer!$E$77,BJ72,Takstutvikling!BA71)) ->  | BB72: =IF($AW72<Bommer!$E$77,0,IF($AW72=Bommer!$E$77,BK72,Takstutvikling!BB71)) ->  | BC72: =IF($AW72<Bommer!$E$77,0,IF($AW72=Bommer!$E$77,BL72,Takstutvikling!BC71)) ->  | BD72: =IF($AW72<Bommer!$E$77,0,IF($AW72=Bommer!$E$77,BM72,Takstutvikling!BD71)) ->  | BF72: 2078
AE73: 2079 | AF73: 0.002495295754 | AG73: 0.02393029534 | AH73: 0.9326679211 | AI73: 0.04090648777 | AJ73: 0.5884773663 | AK73: 0.3909465021 | AL73: 0.02057613169 | AN73: 2079 | AO73: 0.002495295754 | AP73: 0.02393029534 | AQ73: 0.9326679211 | AR73: 0.04090648777 | AS73: 0.5884773663 | AT73: 0.3909465021 | AU73: 0.02057613169 | AW73: 2079 | AX73: =IF($AW73<Bommer!$E$77,0,IF($AW73=Bommer!$E$77,BG73,Takstutvikling!AX72)) ->  | AY73: =IF($AW73<Bommer!$E$77,0,IF($AW73=Bommer!$E$77,BH73,Takstutvikling!AY72)) ->  | AZ73: =IF($AW73<Bommer!$E$77,0,IF($AW73=Bommer!$E$77,BI73,Takstutvikling!AZ72)) ->  | BA73: =IF($AW73<Bommer!$E$77,0,IF($AW73=Bommer!$E$77,BJ73,Takstutvikling!BA72)) ->  | BB73: =IF($AW73<Bommer!$E$77,0,IF($AW73=Bommer!$E$77,BK73,Takstutvikling!BB72)) ->  | BC73: =IF($AW73<Bommer!$E$77,0,IF($AW73=Bommer!$E$77,BL73,Takstutvikling!BC72)) ->  | BD73: =IF($AW73<Bommer!$E$77,0,IF($AW73=Bommer!$E$77,BM73,Takstutvikling!BD72)) ->  | BF73: 2079
AE74: 2080 | AF74: 0.002495295754 | AG74: 0.02393029534 | AH74: 0.9326679211 | AI74: 0.04090648777 | AJ74: 0.5884773663 | AK74: 0.3909465021 | AL74: 0.02057613169 | AN74: 2080 | AO74: 0.002495295754 | AP74: 0.02393029534 | AQ74: 0.9326679211 | AR74: 0.04090648777 | AS74: 0.5884773663 | AT74: 0.3909465021 | AU74: 0.02057613169 | AW74: 2080 | AX74: =IF($AW74<Bommer!$E$77,0,IF($AW74=Bommer!$E$77,BG74,Takstutvikling!AX73)) ->  | AY74: =IF($AW74<Bommer!$E$77,0,IF($AW74=Bommer!$E$77,BH74,Takstutvikling!AY73)) ->  | AZ74: =IF($AW74<Bommer!$E$77,0,IF($AW74=Bommer!$E$77,BI74,Takstutvikling!AZ73)) ->  | BA74: =IF($AW74<Bommer!$E$77,0,IF($AW74=Bommer!$E$77,BJ74,Takstutvikling!BA73)) ->  | BB74: =IF($AW74<Bommer!$E$77,0,IF($AW74=Bommer!$E$77,BK74,Takstutvikling!BB73)) ->  | BC74: =IF($AW74<Bommer!$E$77,0,IF($AW74=Bommer!$E$77,BL74,Takstutvikling!BC73)) ->  | BD74: =IF($AW74<Bommer!$E$77,0,IF($AW74=Bommer!$E$77,BM74,Takstutvikling!BD73)) ->  | BF74: 2080 | BG74: =BG73 -> 
AE75: 2081 | AF75: 0.002495295754 | AG75: 0.02393029534 | AH75: 0.9326679211 | AI75: =IF($AG$4=TRUE,AR75,BA75) -> 0.04090648777 | AJ75: =IF($AG$4=TRUE,AS75,BB75) -> 0.5884773663 | AK75: =IF($AG$4=TRUE,AT75,BC75) -> 0.3909465021 | AL75: =IF($AG$4=TRUE,AU75,BD75) -> 0.02057613169 | AN75: 2081 | AO75: 0.002495295754 | AP75: 0.02393029534 | AQ75: 0.9326679211 | AR75: 0.04090648777 | AS75: 0.5884773663 | AT75: 0.3909465021 | AU75: 0.02057613169 | AW75: 2081 | AX75: =IF($AW75<Bommer!$E$77,0,IF($AW75=Bommer!$E$77,BG75,Takstutvikling!AX74)) ->  | AY75: =IF($AW75<Bommer!$E$77,0,IF($AW75=Bommer!$E$77,BH75,Takstutvikling!AY74)) ->  | AZ75: =IF($AW75<Bommer!$E$77,0,IF($AW75=Bommer!$E$77,BI75,Takstutvikling!AZ74)) ->  | BA75: =IF($AW75<Bommer!$E$77,0,IF($AW75=Bommer!$E$77,BJ75,Takstutvikling!BA74)) ->  | BB75: =IF($AW75<Bommer!$E$77,0,IF($AW75=Bommer!$E$77,BK75,Takstutvikling!BB74)) ->  | BC75: =IF($AW75<Bommer!$E$77,0,IF($AW75=Bommer!$E$77,BL75,Takstutvikling!BC74)) ->  | BD75: =IF($AW75<Bommer!$E$77,0,IF($AW75=Bommer!$E$77,BM75,Takstutvikling!BD74)) ->  | BF75: 2081

Sheet Prosjektdata
O3: =IF(COUNTIF(Sammendrag!I16:M16,50)=5,"","Noen faktorer er Justert") -> 
B5: Prosjekt | C5: Kroneverdi | D5: Prisvekst | E5: =C_Referanseår -> 2024 | F5: Sum(mill) | G5: =H5-1 -> 2023 | H5: 2024 | I5: =H5+1 -> 2025 | J5: 2026 | K5: 2027 | L5: 2028 | M5: 2029 | N5: 2030 | O5: 2031 | P5: 2032 | Q5: 2033 | R5: 2034 | S5: 2035 | T5: 2036 | U5: 2037 | V5: 2038 | W5: 2039 | X5: 2040 | Y5: 2041 | Z5: 2042 | AA5: 2043 | AB5: 2044 | AC5: 2045 | AD5: 2046 | AE5: 2047 | AF5: 2048 | AG5: 2049 | AH5: 2050 | AI5: 2051 | AJ5: 2052 | AK5: 2053 | AL5: 2054 | AM5: 2055 | AN5: 2056 | AO5: =AN5+1 -> 2057 | AP5: 2058 | AQ5: 2059 | AR5: 2060 | AS5: 2061 | AT5: 2062 | AU5: 2063 | AV5: 2064 | AW5: 2065 | AX5: 2066 | AY5: 2067 | AZ5: 2068 | BA5: 2069 | BB5: 2070 | BC5: 2071 | BD5: 2072 | BE5: 2073 | BF5: 2074
A6: Anleggskostnader | B6: 1 | C6: 2024 | D6: =AVERAGE(Prisvekst!$C$8:$C$13)/100 -> 0.02 | E6: =F6*(1+D6)^($E$5-C6) -> 0 | F6: =SUM(H6:BF6) -> 0
B7: 2 | C7: 2024 | D7: =AVERAGE(Prisvekst!$C$8:$C$13)/100 -> 0.02 | E7: =F7*(1+D7)^($E$5-C7) -> 0 | F7: =SUM(H7:BF7) -> 0
B8: 3 | C8: 2024 | D8: =AVERAGE(Prisvekst!$C$8:$C$13)/100 -> 0.02 | E8: =F8*(1+D8)^($E$5-C8) -> 0 | F8: 0
B9: 4 | C9: 2024 | D9: =AVERAGE(Prisvekst!$C$8:$C$13)/100 -> 0.02 | E9: =F9*(1+D9)^($E$5-C9) -> 0 | F9: 0
B10: Portefølje | C10: =IF(BrukPortefølje=1,Portefølje!B6,"") -> 2024 | D10: =AVERAGE(Prisvekst!$C$8:$C$13)/100 -> 0.02 | E10: =IF(F10=0,0,F10*(1+D10)^($E$5-C10)) -> 0 | F10: 0 | H10: =IF(BrukPortefølje=1,HLOOKUP(H5,Portefølje!$S$15:$BQ$51,37,0),"") -> 0 | I10: =IF(BrukPortefølje=1,HLOOKUP(I5,Portefølje!$S$15:$BQ$51,37,0),"") -> 0 | J10: =IF(BrukPortefølje=1,HLOOKUP(J5,Portefølje!$S$15:$BQ$51,37,0),"") -> 0 | K10: =IF(BrukPortefølje=1,HLOOKUP(K5,Portefølje!$S$15:$BQ$51,37,0),"") -> 0 | L10: =IF(BrukPortefølje=1,HLOOKUP(L5,Portefølje!$S$15:$BQ$51,37,0),"") -> 0 | M10: =IF(BrukPortefølje=1,HLOOKUP(M5,Portefølje!$S$15:$BQ$51,37,0),"") -> 0 | N10: =IF(BrukPortefølje=1,HLOOKUP(N5,Portefølje!$S$15:$BQ$51,37,0),"") -> 0 | O10: =IF(BrukPortefølje=1,HLOOKUP(O5,Portefølje!$S$15:$BQ$51,37,0),"") -> 0 | P10: =IF(BrukPortefølje=1,HLOOKUP(P5,Portefølje!$S$15:$BQ$51,37,0),"") -> 0 | Q10: =IF(BrukPortefølje=1,HLOOKUP(Q5,Portefølje!$S$15:$BQ$51,37,0),"") -> 0 | R10: =IF(BrukPortefølje=1,HLOOKUP(R5,Portefølje!$S$15:$BQ$51,37,0),"") -> 0 | S10: =IF(BrukPortefølje=1,HLOOKUP(S5,Portefølje!$S$15:$BQ$51,37,0),"") -> 0 | T10: =IF(BrukPortefølje=1,HLOOKUP(T5,Portefølje!$S$15:$BQ$51,37,0),"") -> 0 | U10: =IF(BrukPortefølje=1,HLOOKUP(U5,Portefølje!$S$15:$BQ$51,37,0),"") -> 0 | V10: =IF(BrukPortefølje=1,HLOOKUP(V5,Portefølje!$S$15:$BQ$51,37,0),"") -> 0 | W10: =IF(BrukPortefølje=1,HLOOKUP(W5,Portefølje!$S$15:$BQ$51,37,0),"") -> 0 | X10: =IF(BrukPortefølje=1,HLOOKUP(X5,Portefølje!$S$15:$BQ$51,37,0),"") -> 0 | Y10: =IF(BrukPortefølje=1,HLOOKUP(Y5,Portefølje!$S$15:$BQ$51,37,0),"") -> 0 | Z10: =IF(BrukPortefølje=1,HLOOKUP(Z5,Portefølje!$S$15:$BQ$51,37,0),"") -> 0 | AA10: =IF(BrukPortefølje=1,HLOOKUP(AA5,Portefølje!$S$15:$BQ$51,37,0),"") -> 0 | AB10: =IF(BrukPortefølje=1,HLOOKUP(AB5,Portefølje!$S$15:$BQ$51,37,0),"") -> 0 | AC10: =IF(BrukPortefølje=1,HLOOKUP(AC5,Portefølje!$S$15:$BQ$51,37,0),"") -> 0 | AD10: =IF(BrukPortefølje=1,HLOOKUP(AD5,Portefølje!$S$15:$BQ$51,37,0),"") -> 0 | AE10: =IF(BrukPortefølje=1,HLOOKUP(AE5,Portefølje!$S$15:$BQ$51,37,0),"") -> 0 | AF10: =IF(BrukPortefølje=1,HLOOKUP(AF5,Portefølje!$S$15:$BQ$51,37,0),"") -> 0 | AG10: =IF(BrukPortefølje=1,HLOOKUP(AG5,Portefølje!$S$15:$BQ$51,37,0),"") -> 0 | AH10: =IF(BrukPortefølje=1,HLOOKUP(AH5,Portefølje!$S$15:$BQ$51,37,0),"") -> 0 | AI10: =IF(BrukPortefølje=1,HLOOKUP(AI5,Portefølje!$S$15:$BQ$51,37,0),"") -> 0 | AJ10: =IF(BrukPortefølje=1,HLOOKUP(AJ5,Portefølje!$S$15:$BQ$51,37,0),"") -> 0 | AK10: =IF(BrukPortefølje=1,HLOOKUP(AK5,Portefølje!$S$15:$BQ$51,37,0),"") -> 0 | AL10: =IF(BrukPortefølje=1,HLOOKUP(AL5,Portefølje!$S$15:$BQ$51,37,0),"") -> 0 | AM10: =IF(BrukPortefølje=1,HLOOKUP(AM5,Portefølje!$S$15:$BQ$51,37,0),"") -> 0 | AN10: =IF(BrukPortefølje=1,HLOOKUP(AN5,Portefølje!$S$15:$BQ$51,37,0),"") -> 0 | AO10: =IF(BrukPortefølje=1,HLOOKUP(AO5,Portefølje!$S$15:$BQ$51,37,0),"") -> 0 | AP10: =IF(BrukPortefølje=1,HLOOKUP(AP5,Portefølje!$S$15:$BQ$51,37,0),"") -> 0 | AQ10: =IF(BrukPortefølje=1,HLOOKUP(AQ5,Portefølje!$S$15:$BQ$51,37,0),"") -> 0 | AR10: =IF(BrukPortefølje=1,HLOOKUP(AR5,Portefølje!$S$15:$BQ$51,37,0),"") -> 0 | AS10: =IF(BrukPortefølje=1,HLOOKUP(AS5,Portefølje!$S$15:$BQ$51,37,0),"") -> 0 | AT10: =IF(BrukPortefølje=1,HLOOKUP(AT5,Portefølje!$S$15:$BQ$51,37,0),"") -> 0 | AU10: =IF(BrukPortefølje=1,HLOOKUP(AU5,Portefølje!$S$15:$BQ$51,37,0),"") -> 0 | AV10: =IF(BrukPortefølje=1,HLOOKUP(AV5,Portefølje!$S$15:$BQ$51,37,0),"") -> 0 | AW10: =IF(BrukPortefølje=1,HLOOKUP(AW5,Portefølje!$S$15:$BQ$51,37,0),"") -> 0 | AX10: =IF(BrukPortefølje=1,HLOOKUP(AX5,Portefølje!$S$15:$BQ$51,37,0),"") -> 0 | AY10: =IF(BrukPortefølje=1,HLOOKUP(AY5,Portefølje!$S$15:$BQ$51,37,0),"") -> 0 | AZ10: =IF(BrukPortefølje=1,HLOOKUP(AZ5,Portefølje!$S$15:$BQ$51,37,0),"") -> 0 | BA10: =IF(BrukPortefølje=1,HLOOKUP(BA5,Portefølje!$S$15:$BQ$51,37,0),"") -> 0 | BB10: =IF(BrukPortefølje=1,HLOOKUP(BB5,Portefølje!$S$15:$BQ$51,37,0),"") -> 0 | BC10: =IF(BrukPortefølje=1,HLOOKUP(BC5,Portefølje!$S$15:$BQ$51,37,0),"") -> 0 | BD10: =IF(BrukPortefølje=1,HLOOKUP(BD5,Portefølje!$S$15:$BQ$51,37,0),"") -> 0 | BE10: =IF(BrukPortefølje=1,HLOOKUP(BE5,Portefølje!$S$15:$BQ$51,37,0),"") -> 0 | BF10: =IF(BrukPortefølje=1,HLOOKUP(BF5,Portefølje!$S$15:$BQ$51,37,0),"") -> 0
B11: Sum | C11: 2024 | E11: =SUM(E6:E10) -> 0 | F11: 0 | H11: =SUM(H6:H10)*investeringsfaktor -> 0 | I11: 0 | J11: =SUM(J6:J10)*investeringsfaktor -> 0 | K11: =SUM(K6:K10)*investeringsfaktor -> 0 | L11: =SUM(L6:L10)*investeringsfaktor -> 0 | M11: =SUM(M6:M10)*investeringsfaktor -> 0 | N11: 0 | O11: 0 | P11: 0 | Q11: 0 | R11: 0 | S11: 0 | T11: 0 | U11: 0 | V11: 0 | W11: 0 | X11: 0 | Y11: 0 | Z11: 0 | AA11: 0 | AB11: 0 | AC11: 0 | AD11: 0 | AE11: 0 | AF11: 0 | AG11: 0 | AH11: 0 | AI11: 0 | AJ11: 0 | AK11: 0 | AL11: 0 | AM11: 0 | AN11: =SUM(AN6:AN10)*investeringsfaktor -> 0 | AO11: 0 | AP11: 0 | AQ11: 0 | AR11: 0 | AS11: 0 | AT11: 0 | AU11: 0 | AV11: 0 | AW11: 0 | AX11: 0 | AY11: 0 | AZ11: 0 | BA11: 0 | BB11: 0 | BC11: 0 | BD11: 0 | BE11: 0 | BF11: 0
A12: Bevilgninger | B12: Statlig | C12: 2024 | D12: =AVERAGE(Prisvekst!$C$8:$C$13)/100 -> 0.02 | E12: =F12*(1+D12)^($E$5-C12) -> 0 | F12: 0
B13: Kommunale | C13: 2024 | D13: =AVERAGE(Prisvekst!$C$8:$C$13)/100 -> 0.02 | E13: =F13*(1+D13)^($E$5-C13) -> 0 | F13: 0
B14: Fylkeskommunale | C14: 2024 | D14: =AVERAGE(Prisvekst!$C$8:$C$13)/100 -> 0.02 | E14: =F14*(1+D14)^($E$5-C14) -> 0 | F14: 0
B15: Øvrig | C15: 2024 | D15: =AVERAGE(Prisvekst!$C$8:$C$13)/100 -> 0.02 | E15: =F15*(1+D15)^($E$5-C15) -> 0 | F15: 0
B16: Sum | E16: =SUM(E12:E15) -> 0 | F16: 0 | H16: =SUM(H12:H15)*Bevilgningsfaktor -> 0 | I16: 0 | J16: =SUM(J12:J15)*Bevilgningsfaktor -> 0 | K16: =SUM(K12:K15)*Bevilgningsfaktor -> 0 | L16: =SUM(L12:L15)*Bevilgningsfaktor -> 0 | M16: =SUM(M12:M15)*Bevilgningsfaktor -> 0 | N16: 0 | O16: 0 | P16: 0 | Q16: 0 | R16: 0 | S16: 0 | T16: 0 | U16: 0 | V16: 0 | W16: 0 | X16: 0 | Y16: 0 | Z16: 0 | AA16: 0 | AB16: 0 | AC16: 0 | AD16: 0 | AE16: 0 | AF16: 0 | AG16: 0 | AH16: 0 | AI16: 0 | AJ16: 0 | AK16: 0 | AL16: 0 | AM16: 0 | AN16: =SUM(AN12:AN15)*Bevilgningsfaktor -> 0 | AO16: 0 | AP16: 0 | AQ16: 0 | AR16: 0 | AS16: 0 | AT16: 0 | AU16: 0 | AV16: 0 | AW16: 0 | AX16: 0 | AY16: 0 | AZ16: 0 | BA16: 0 | BB16: 0 | BC16: 0 | BD16: 0 | BE16: 0 | BF16: 0
A17: Andre tilskudd | B17: A | C17: 2024 | D17: =AVERAGE(Prisvekst!$C$8:$C$13)/100 -> 0.02 | E17: =F17*(1+D17)^($E$5-C17) -> 0 | F17: 0
B18: B | C18: 2024 | D18: =AVERAGE(Prisvekst!$C$8:$C$13)/100 -> 0.02 | E18: =F18*(1+D18)^($E$5-C18) -> 0 | F18: 0
B19: C | C19: 2024 | D19: =AVERAGE(Prisvekst!$C$8:$C$13)/100 -> 0.02 | E19: =F19*(1+D19)^($E$5-C19) -> 0 | F19: 0
B20: D | C20: 2024 | D20: =AVERAGE(Prisvekst!$C$8:$C$13)/100 -> 0.02 | E20: =F20*(1+D20)^($E$5-C20) -> 0 | F20: 0
B21: E | C21: 2024 | D21: =AVERAGE(Prisvekst!$C$8:$C$13)/100 -> 0.02 | E21: =F21*(1+D21)^($E$5-C21) -> 0 | F21: 0
B22: Sum | E22: =SUM(E17:E21) -> 0 | F22: 0 | H22: =SUM(H17:H21)*Bevilgningsfaktor -> 0 | I22: 0 | J22: 0 | K22: 0 | L22: 0 | M22: 0 | N22: 0 | O22: 0 | P22: 0 | Q22: 0 | R22: 0 | S22: 0 | T22: 0 | U22: 0 | V22: 0 | W22: 0 | X22: 0 | Y22: 0 | Z22: 0 | AA22: 0 | AB22: 0 | AC22: 0 | AD22: 0 | AE22: 0 | AF22: 0 | AG22: 0 | AH22: 0 | AI22: 0 | AJ22: 0 | AK22: 0 | AL22: 0 | AM22: 0 | AN22: =SUM(AN17:AN21)*Bevilgningsfaktor -> 0 | AO22: 0 | AP22: 0 | AQ22: 0 | AR22: 0 | AS22: 0 | AT22: 0 | AU22: 0 | AV22: 0 | AW22: 0 | AX22: 0 | AY22: 0 | AZ22: 0 | BA22: 0 | BB22: 0 | BC22: 0 | BD22: 0 | BE22: 0 | BF22: 0
A23: Bompengerekvirering | C23: 2024 | F23: 0 | H23: =H11-H16-H22 -> 0 | I23: =I11-I16-I22 -> 0 | J23: 0 | K23: 0 | L23: 0 | M23: 0 | N23: 0 | O23: 0 | P23: 0 | Q23: 0 | R23: 0 | S23: 0 | T23: 0 | U23: 0 | V23: 0 | W23: 0 | X23: 0 | Y23: 0 | Z23: 0 | AA23: 0 | AB23: 0 | AC23: 0 | AD23: 0 | AE23: 0 | AF23: 0 | AG23: 0 | AH23: 0 | AI23: 0 | AJ23: 0 | AK23: 0 | AL23: 0 | AM23: 0 | AN23: 0 | AO23: 0 | AP23: 0 | AQ23: 0 | AR23: 0 | AS23: 0 | AT23: 0 | AU23: 0 | AV23: 0 | AW23: 0 | AX23: 0 | AY23: 0 | AZ23: 0 | BA23: 0 | BB23: 0 | BC23: 0 | BD23: 0 | BE23: 0 | BF23: =SUM(BF17:BF22) -> 0
A25: Flytende kroner
B26: Prosjekt | D26: Samlet prisvekst | F26: Sum(mill) | G26: =G5 -> 2023 | H26: =H5 -> 2024 | I26: =H26+1 -> 2025 | J26: 2026 | K26: 2027 | L26: 2028 | M26: 2029 | N26: 2030 | O26: 2031 | P26: 2032 | Q26: 2033 | R26: 2034 | S26: 2035 | T26: 2036 | U26: 2037 | V26: 2038 | W26: 2039 | X26: 2040 | Y26: 2041 | Z26: 2042 | AA26: 2043 | AB26: 2044 | AC26: 2045 | AD26: 2046 | AE26: 2047 | AF26: 2048 | AG26: 2049 | AH26: 2050 | AI26: 2051 | AJ26: 2052 | AK26: 2053 | AL26: 2054 | AM26: 2055 | AN26: 2056 | AO26: =AN26+1 -> 2057 | AP26: 2058 | AQ26: 2059 | AR26: 2060 | AS26: 2061 | AT26: 2062 | AU26: 2063 | AV26: 2064 | AW26: 2065 | AX26: 2066 | AY26: 2067 | AZ26: 2068 | BA26: 2069 | BB26: 2070 | BC26: 2071 | BD26: 2072 | BE26: 2073 | BF26: 2074
A27: Anleggskostnader | B27: =B6 -> 1 | D27: =IF(F27=0,"",(F27/F6-1)) ->  | F27: =SUM(H27:BF27) -> 0 | H27: =H6*(INDEX(Prisvekst!$O$8:$Z$67,(Prosjektdata!H$5-Prisvekst!$L$8)+1,(Prosjektdata!$C6-Prisvekst!$L$8)+1)+1) -> 0 | I27: =I6*(INDEX(Prisvekst!$O$8:$Z$67,(Prosjektdata!I$5-Prisvekst!$L$8)+1,(Prosjektdata!$C6-Prisvekst!$L$8)+1)+1) -> 0 | J27: =J6*(INDEX(Prisvekst!$O$8:$Z$67,(Prosjektdata!J$5-Prisvekst!$L$8)+1,(Prosjektdata!$C6-Prisvekst!$L$8)+1)+1) -> 0 | K27: =K6*(INDEX(Prisvekst!$O$8:$Z$67,(Prosjektdata!K$5-Prisvekst!$L$8)+1,(Prosjektdata!$C6-Prisvekst!$L$8)+1)+1) -> 0 | L27: =L6*(INDEX(Prisvekst!$O$8:$Z$67,(Prosjektdata!L$5-Prisvekst!$L$8)+1,(Prosjektdata!$C6-Prisvekst!$L$8)+1)+1) -> 0 | M27: =M6*(INDEX(Prisvekst!$O$8:$Z$67,(Prosjektdata!M$5-Prisvekst!$L$8)+1,(Prosjektdata!$C6-Prisvekst!$L$8)+1)+1) -> 0 | N27: =N6*(INDEX(Prisvekst!$O$8:$Z$67,(Prosjektdata!N$5-Prisvekst!$L$8)+1,(Prosjektdata!$C6-Prisvekst!$L$8)+1)+1) -> 0 | O27: =O6*(INDEX(Prisvekst!$O$8:$Z$67,(Prosjektdata!O$5-Prisvekst!$L$8)+1,(Prosjektdata!$C6-Prisvekst!$L$8)+1)+1) -> 0 | P27: =P6*(INDEX(Prisvekst!$O$8:$Z$67,(Prosjektdata!P$5-Prisvekst!$L$8)+1,(Prosjektdata!$C6-Prisvekst!$L$8)+1)+1) -> 0 | Q27: =Q6*(INDEX(Prisvekst!$O$8:$Z$67,(Prosjektdata!Q$5-Prisvekst!$L$8)+1,(Prosjektdata!$C6-Prisvekst!$L$8)+1)+1) -> 0 | R27: =R6*(INDEX(Prisvekst!$O$8:$Z$67,(Prosjektdata!R$5-Prisvekst!$L$8)+1,(Prosjektdata!$C6-Prisvekst!$L$8)+1)+1) -> 0 | S27: =S6*(INDEX(Prisvekst!$O$8:$Z$67,(Prosjektdata!S$5-Prisvekst!$L$8)+1,(Prosjektdata!$C6-Prisvekst!$L$8)+1)+1) -> 0 | T27: =T6*(INDEX(Prisvekst!$O$8:$Z$67,(Prosjektdata!T$5-Prisvekst!$L$8)+1,(Prosjektdata!$C6-Prisvekst!$L$8)+1)+1) -> 0 | U27: =U6*(INDEX(Prisvekst!$O$8:$Z$67,(Prosjektdata!U$5-Prisvekst!$L$8)+1,(Prosjektdata!$C6-Prisvekst!$L$8)+1)+1) -> 0 | V27: =V6*(INDEX(Prisvekst!$O$8:$Z$67,(Prosjektdata!V$5-Prisvekst!$L$8)+1,(Prosjektdata!$C6-Prisvekst!$L$8)+1)+1) -> 0 | W27: =W6*(INDEX(Prisvekst!$O$8:$Z$67,(Prosjektdata!W$5-Prisvekst!$L$8)+1,(Prosjektdata!$C6-Prisvekst!$L$8)+1)+1) -> 0 | X27: =X6*(INDEX(Prisvekst!$O$8:$Z$67,(Prosjektdata!X$5-Prisvekst!$L$8)+1,(Prosjektdata!$C6-Prisvekst!$L$8)+1)+1) -> 0 | Y27: =Y6*(INDEX(Prisvekst!$O$8:$Z$67,(Prosjektdata!Y$5-Prisvekst!$L$8)+1,(Prosjektdata!$C6-Prisvekst!$L$8)+1)+1) -> 0 | Z27: =Z6*(INDEX(Prisvekst!$O$8:$Z$67,(Prosjektdata!Z$5-Prisvekst!$L$8)+1,(Prosjektdata!$C6-Prisvekst!$L$8)+1)+1) -> 0 | AA27: =AA6*(INDEX(Prisvekst!$O$8:$Z$67,(Prosjektdata!AA$5-Prisvekst!$L$8)+1,(Prosjektdata!$C6-Prisvekst!$L$8)+1)+1) -> 0 | AB27: =AB6*(INDEX(Prisvekst!$O$8:$Z$67,(Prosjektdata!AB$5-Prisvekst!$L$8)+1,(Prosjektdata!$C6-Prisvekst!$L$8)+1)+1) -> 0 | AC27: =AC6*(INDEX(Prisvekst!$O$8:$Z$67,(Prosjektdata!AC$5-Prisvekst!$L$8)+1,(Prosjektdata!$C6-Prisvekst!$L$8)+1)+1) -> 0 | AD27: =AD6*(INDEX(Prisvekst!$O$8:$Z$67,(Prosjektdata!AD$5-Prisvekst!$L$8)+1,(Prosjektdata!$C6-Prisvekst!$L$8)+1)+1) -> 0 | AE27: =AE6*(INDEX(Prisvekst!$O$8:$Z$67,(Prosjektdata!AE$5-Prisvekst!$L$8)+1,(Prosjektdata!$C6-Prisvekst!$L$8)+1)+1) -> 0 | AF27: =AF6*(INDEX(Prisvekst!$O$8:$Z$67,(Prosjektdata!AF$5-Prisvekst!$L$8)+1,(Prosjektdata!$C6-Prisvekst!$L$8)+1)+1) -> 0 | AG27: =AG6*(INDEX(Prisvekst!$O$8:$Z$67,(Prosjektdata!AG$5-Prisvekst!$L$8)+1,(Prosjektdata!$C6-Prisvekst!$L$8)+1)+1) -> 0 | AH27: =AH6*(INDEX(Prisvekst!$O$8:$Z$67,(Prosjektdata!AH$5-Prisvekst!$L$8)+1,(Prosjektdata!$C6-Prisvekst!$L$8)+1)+1) -> 0 | AI27: =AI6*(INDEX(Prisvekst!$O$8:$Z$67,(Prosjektdata!AI$5-Prisvekst!$L$8)+1,(Prosjektdata!$C6-Prisvekst!$L$8)+1)+1) -> 0 | AJ27: =AJ6*(INDEX(Prisvekst!$O$8:$Z$67,(Prosjektdata!AJ$5-Prisvekst!$L$8)+1,(Prosjektdata!$C6-Prisvekst!$L$8)+1)+1) -> 0 | AK27: =AK6*(INDEX(Prisvekst!$O$8:$Z$67,(Prosjektdata!AK$5-Prisvekst!$L$8)+1,(Prosjektdata!$C6-Prisvekst!$L$8)+1)+1) -> 0 | AL27: =AL6*(INDEX(Prisvekst!$O$8:$Z$67,(Prosjektdata!AL$5-Prisvekst!$L$8)+1,(Prosjektdata!$C6-Prisvekst!$L$8)+1)+1) -> 0 | AM27: =AM6*(INDEX(Prisvekst!$O$8:$Z$67,(Prosjektdata!AM$5-Prisvekst!$L$8)+1,(Prosjektdata!$C6-Prisvekst!$L$8)+1)+1) -> 0 | AN27: =AN6*(INDEX(Prisvekst!$O$8:$Z$67,(Prosjektdata!AN$5-Prisvekst!$L$8)+1,(Prosjektdata!$C6-Prisvekst!$L$8)+1)+1) -> 0 | AO27: =AO6*(INDEX(Prisvekst!$O$8:$Z$67,(Prosjektdata!AO$5-Prisvekst!$L$8)+1,(Prosjektdata!$C6-Prisvekst!$L$8)+1)+1) -> 0 | AP27: =AP6*(INDEX(Prisvekst!$O$8:$Z$67,(Prosjektdata!AP$5-Prisvekst!$L$8)+1,(Prosjektdata!$C6-Prisvekst!$L$8)+1)+1) -> 0 | AQ27: =AQ6*(INDEX(Prisvekst!$O$8:$Z$67,(Prosjektdata!AQ$5-Prisvekst!$L$8)+1,(Prosjektdata!$C6-Prisvekst!$L$8)+1)+1) -> 0 | AR27: =AR6*(INDEX(Prisvekst!$O$8:$Z$67,(Prosjektdata!AR$5-Prisvekst!$L$8)+1,(Prosjektdata!$C6-Prisvekst!$L$8)+1)+1) -> 0 | AS27: =AS6*(INDEX(Prisvekst!$O$8:$Z$67,(Prosjektdata!AS$5-Prisvekst!$L$8)+1,(Prosjektdata!$C6-Prisvekst!$L$8)+1)+1) -> 0 | AT27: =AT6*(INDEX(Prisvekst!$O$8:$Z$67,(Prosjektdata!AT$5-Prisvekst!$L$8)+1,(Prosjektdata!$C6-Prisvekst!$L$8)+1)+1) -> 0 | AU27: =AU6*(INDEX(Prisvekst!$O$8:$Z$67,(Prosjektdata!AU$5-Prisvekst!$L$8)+1,(Prosjektdata!$C6-Prisvekst!$L$8)+1)+1) -> 0 | AV27: =AV6*(INDEX(Prisvekst!$O$8:$Z$67,(Prosjektdata!AV$5-Prisvekst!$L$8)+1,(Prosjektdata!$C6-Prisvekst!$L$8)+1)+1) -> 0 | AW27: =AW6*(INDEX(Prisvekst!$O$8:$Z$67,(Prosjektdata!AW$5-Prisvekst!$L$8)+1,(Prosjektdata!$C6-Prisvekst!$L$8)+1)+1) -> 0 | AX27: =AX6*(INDEX(Prisvekst!$O$8:$Z$67,(Prosjektdata!AX$5-Prisvekst!$L$8)+1,(Prosjektdata!$C6-Prisvekst!$L$8)+1)+1) -> 0 | AY27: =AY6*(INDEX(Prisvekst!$O$8:$Z$67,(Prosjektdata!AY$5-Prisvekst!$L$8)+1,(Prosjektdata!$C6-Prisvekst!$L$8)+1)+1) -> 0 | AZ27: =AZ6*(INDEX(Prisvekst!$O$8:$Z$67,(Prosjektdata!AZ$5-Prisvekst!$L$8)+1,(Prosjektdata!$C6-Prisvekst!$L$8)+1)+1) -> 0 | BA27: =BA6*(INDEX(Prisvekst!$O$8:$Z$67,(Prosjektdata!BA$5-Prisvekst!$L$8)+1,(Prosjektdata!$C6-Prisvekst!$L$8)+1)+1) -> 0 | BB27: =BB6*(INDEX(Prisvekst!$O$8:$Z$67,(Prosjektdata!BB$5-Prisvekst!$L$8)+1,(Prosjektdata!$C6-Prisvekst!$L$8)+1)+1) -> 0 | BC27: =BC6*(INDEX(Prisvekst!$O$8:$Z$67,(Prosjektdata!BC$5-Prisvekst!$L$8)+1,(Prosjektdata!$C6-Prisvekst!$L$8)+1)+1) -> 0 | BD27: =BD6*(INDEX(Prisvekst!$O$8:$Z$67,(Prosjektdata!BD$5-Prisvekst!$L$8)+1,(Prosjektdata!$C6-Prisvekst!$L$8)+1)+1) -> 0 | BE27: =BE6*(INDEX(Prisvekst!$O$8:$Z$67,(Prosjektdata!BE$5-Prisvekst!$L$8)+1,(Prosjektdata!$C6-Prisvekst!$L$8)+1)+1) -> 0 | BF27: =BF6*(INDEX(Prisvekst!$O$8:$Z$67,(Prosjektdata!BF$5-Prisvekst!$L$8)+1,(Prosjektdata!$C6-Prisvekst!$L$8)+1)+1) -> 0
B28: 2 | F28: =SUM(H28:BF28) -> 0 | H28: =H7*(INDEX(Prisvekst!$O$8:$Z$67,(Prosjektdata!H$5-Prisvekst!$L$8)+1,(Prosjektdata!$C7-Prisvekst!$L$8)+1)+1) -> 0 | I28: =I7*(INDEX(Prisvekst!$O$8:$Z$67,(Prosjektdata!I$5-Prisvekst!$L$8)+1,(Prosjektdata!$C7-Prisvekst!$L$8)+1)+1) -> 0 | J28: =J7*(INDEX(Prisvekst!$O$8:$Z$67,(Prosjektdata!J$5-Prisvekst!$L$8)+1,(Prosjektdata!$C7-Prisvekst!$L$8)+1)+1) -> 0 | K28: =K7*(INDEX(Prisvekst!$O$8:$Z$67,(Prosjektdata!K$5-Prisvekst!$L$8)+1,(Prosjektdata!$C7-Prisvekst!$L$8)+1)+1) -> 0 | L28: =L7*(INDEX(Prisvekst!$O$8:$Z$67,(Prosjektdata!L$5-Prisvekst!$L$8)+1,(Prosjektdata!$C7-Prisvekst!$L$8)+1)+1) -> 0 | M28: =M7*(INDEX(Prisvekst!$O$8:$Z$67,(Prosjektdata!M$5-Prisvekst!$L$8)+1,(Prosjektdata!$C7-Prisvekst!$L$8)+1)+1) -> 0 | N28: =N7*(INDEX(Prisvekst!$O$8:$Z$67,(Prosjektdata!N$5-Prisvekst!$L$8)+1,(Prosjektdata!$C7-Prisvekst!$L$8)+1)+1) -> 0 | O28: =O7*(INDEX(Prisvekst!$O$8:$Z$67,(Prosjektdata!O$5-Prisvekst!$L$8)+1,(Prosjektdata!$C7-Prisvekst!$L$8)+1)+1) -> 0 | P28: =P7*(INDEX(Prisvekst!$O$8:$Z$67,(Prosjektdata!P$5-Prisvekst!$L$8)+1,(Prosjektdata!$C7-Prisvekst!$L$8)+1)+1) -> 0 | Q28: =Q7*(INDEX(Prisvekst!$O$8:$Z$67,(Prosjektdata!Q$5-Prisvekst!$L$8)+1,(Prosjektdata!$C7-Prisvekst!$L$8)+1)+1) -> 0 | R28: =R7*(INDEX(Prisvekst!$O$8:$Z$67,(Prosjektdata!R$5-Prisvekst!$L$8)+1,(Prosjektdata!$C7-Prisvekst!$L$8)+1)+1) -> 0 | S28: =S7*(INDEX(Prisvekst!$O$8:$Z$67,(Prosjektdata!S$5-Prisvekst!$L$8)+1,(Prosjektdata!$C7-Prisvekst!$L$8)+1)+1) -> 0 | T28: =T7*(INDEX(Prisvekst!$O$8:$Z$67,(Prosjektdata!T$5-Prisvekst!$L$8)+1,(Prosjektdata!$C7-Prisvekst!$L$8)+1)+1) -> 0 | U28: =U7*(INDEX(Prisvekst!$O$8:$Z$67,(Prosjektdata!U$5-Prisvekst!$L$8)+1,(Prosjektdata!$C7-Prisvekst!$L$8)+1)+1) -> 0 | V28: =V7*(INDEX(Prisvekst!$O$8:$Z$67,(Prosjektdata!V$5-Prisvekst!$L$8)+1,(Prosjektdata!$C7-Prisvekst!$L$8)+1)+1) -> 0 | W28: =W7*(INDEX(Prisvekst!$O$8:$Z$67,(Prosjektdata!W$5-Prisvekst!$L$8)+1,(Prosjektdata!$C7-Prisvekst!$L$8)+1)+1) -> 0 | X28: =X7*(INDEX(Prisvekst!$O$8:$Z$67,(Prosjektdata!X$5-Prisvekst!$L$8)+1,(Prosjektdata!$C7-Prisvekst!$L$8)+1)+1) -> 0 | Y28: =Y7*(INDEX(Prisvekst!$O$8:$Z$67,(Prosjektdata!Y$5-Prisvekst!$L$8)+1,(Prosjektdata!$C7-Prisvekst!$L$8)+1)+1) -> 0 | Z28: =Z7*(INDEX(Prisvekst!$O$8:$Z$67,(Prosjektdata!Z$5-Prisvekst!$L$8)+1,(Prosjektdata!$C7-Prisvekst!$L$8)+1)+1) -> 0 | AA28: =AA7*(INDEX(Prisvekst!$O$8:$Z$67,(Prosjektdata!AA$5-Prisvekst!$L$8)+1,(Prosjektdata!$C7-Prisvekst!$L$8)+1)+1) -> 0 | AB28: =AB7*(INDEX(Prisvekst!$O$8:$Z$67,(Prosjektdata!AB$5-Prisvekst!$L$8)+1,(Prosjektdata!$C7-Prisvekst!$L$8)+1)+1) -> 0 | AC28: =AC7*(INDEX(Prisvekst!$O$8:$Z$67,(Prosjektdata!AC$5-Prisvekst!$L$8)+1,(Prosjektdata!$C7-Prisvekst!$L$8)+1)+1) -> 0 | AD28: =AD7*(INDEX(Prisvekst!$O$8:$Z$67,(Prosjektdata!AD$5-Prisvekst!$L$8)+1,(Prosjektdata!$C7-Prisvekst!$L$8)+1)+1) -> 0 | AE28: =AE7*(INDEX(Prisvekst!$O$8:$Z$67,(Prosjektdata!AE$5-Prisvekst!$L$8)+1,(Prosjektdata!$C7-Prisvekst!$L$8)+1)+1) -> 0 | AF28: =AF7*(INDEX(Prisvekst!$O$8:$Z$67,(Prosjektdata!AF$5-Prisvekst!$L$8)+1,(Prosjektdata!$C7-Prisvekst!$L$8)+1)+1) -> 0 | AG28: =AG7*(INDEX(Prisvekst!$O$8:$Z$67,(Prosjektdata!AG$5-Prisvekst!$L$8)+1,(Prosjektdata!$C7-Prisvekst!$L$8)+1)+1) -> 0 | AH28: =AH7*(INDEX(Prisvekst!$O$8:$Z$67,(Prosjektdata!AH$5-Prisvekst!$L$8)+1,(Prosjektdata!$C7-Prisvekst!$L$8)+1)+1) -> 0 | AI28: =AI7*(INDEX(Prisvekst!$O$8:$Z$67,(Prosjektdata!AI$5-Prisvekst!$L$8)+1,(Prosjektdata!$C7-Prisvekst!$L$8)+1)+1) -> 0 | AJ28: =AJ7*(INDEX(Prisvekst!$O$8:$Z$67,(Prosjektdata!AJ$5-Prisvekst!$L$8)+1,(Prosjektdata!$C7-Prisvekst!$L$8)+1)+1) -> 0 | AK28: =AK7*(INDEX(Prisvekst!$O$8:$Z$67,(Prosjektdata!AK$5-Prisvekst!$L$8)+1,(Prosjektdata!$C7-Prisvekst!$L$8)+1)+1) -> 0 | AL28: =AL7*(INDEX(Prisvekst!$O$8:$Z$67,(Prosjektdata!AL$5-Prisvekst!$L$8)+1,(Prosjektdata!$C7-Prisvekst!$L$8)+1)+1) -> 0 | AM28: =AM7*(INDEX(Prisvekst!$O$8:$Z$67,(Prosjektdata!AM$5-Prisvekst!$L$8)+1,(Prosjektdata!$C7-Prisvekst!$L$8)+1)+1) -> 0 | AN28: =AN7*(INDEX(Prisvekst!$O$8:$Z$67,(Prosjektdata!AN$5-Prisvekst!$L$8)+1,(Prosjektdata!$C7-Prisvekst!$L$8)+1)+1) -> 0 | AO28: =AO7*(INDEX(Prisvekst!$O$8:$Z$67,(Prosjektdata!AO$5-Prisvekst!$L$8)+1,(Prosjektdata!$C7-Prisvekst!$L$8)+1)+1) -> 0 | AP28: =AP7*(INDEX(Prisvekst!$O$8:$Z$67,(Prosjektdata!AP$5-Prisvekst!$L$8)+1,(Prosjektdata!$C7-Prisvekst!$L$8)+1)+1) -> 0 | AQ28: =AQ7*(INDEX(Prisvekst!$O$8:$Z$67,(Prosjektdata!AQ$5-Prisvekst!$L$8)+1,(Prosjektdata!$C7-Prisvekst!$L$8)+1)+1) -> 0 | AR28: =AR7*(INDEX(Prisvekst!$O$8:$Z$67,(Prosjektdata!AR$5-Prisvekst!$L$8)+1,(Prosjektdata!$C7-Prisvekst!$L$8)+1)+1) -> 0 | AS28: =AS7*(INDEX(Prisvekst!$O$8:$Z$67,(Prosjektdata!AS$5-Prisvekst!$L$8)+1,(Prosjektdata!$C7-Prisvekst!$L$8)+1)+1) -> 0 | AT28: =AT7*(INDEX(Prisvekst!$O$8:$Z$67,(Prosjektdata!AT$5-Prisvekst!$L$8)+1,(Prosjektdata!$C7-Prisvekst!$L$8)+1)+1) -> 0 | AU28: =AU7*(INDEX(Prisvekst!$O$8:$Z$67,(Prosjektdata!AU$5-Prisvekst!$L$8)+1,(Prosjektdata!$C7-Prisvekst!$L$8)+1)+1) -> 0 | AV28: =AV7*(INDEX(Prisvekst!$O$8:$Z$67,(Prosjektdata!AV$5-Prisvekst!$L$8)+1,(Prosjektdata!$C7-Prisvekst!$L$8)+1)+1) -> 0 | AW28: =AW7*(INDEX(Prisvekst!$O$8:$Z$67,(Prosjektdata!AW$5-Prisvekst!$L$8)+1,(Prosjektdata!$C7-Prisvekst!$L$8)+1)+1) -> 0 | AX28: =AX7*(INDEX(Prisvekst!$O$8:$Z$67,(Prosjektdata!AX$5-Prisvekst!$L$8)+1,(Prosjektdata!$C7-Prisvekst!$L$8)+1)+1) -> 0 | AY28: =AY7*(INDEX(Prisvekst!$O$8:$Z$67,(Prosjektdata!AY$5-Prisvekst!$L$8)+1,(Prosjektdata!$C7-Prisvekst!$L$8)+1)+1) -> 0 | AZ28: =AZ7*(INDEX(Prisvekst!$O$8:$Z$67,(Prosjektdata!AZ$5-Prisvekst!$L$8)+1,(Prosjektdata!$C7-Prisvekst!$L$8)+1)+1) -> 0 | BA28: =BA7*(INDEX(Prisvekst!$O$8:$Z$67,(Prosjektdata!BA$5-Prisvekst!$L$8)+1,(Prosjektdata!$C7-Prisvekst!$L$8)+1)+1) -> 0 | BB28: =BB7*(INDEX(Prisvekst!$O$8:$Z$67,(Prosjektdata!BB$5-Prisvekst!$L$8)+1,(Prosjektdata!$C7-Prisvekst!$L$8)+1)+1) -> 0 | BC28: =BC7*(INDEX(Prisvekst!$O$8:$Z$67,(Prosjektdata!BC$5-Prisvekst!$L$8)+1,(Prosjektdata!$C7-Prisvekst!$L$8)+1)+1) -> 0 | BD28: =BD7*(INDEX(Prisvekst!$O$8:$Z$67,(Prosjektdata!BD$5-Prisvekst!$L$8)+1,(Prosjektdata!$C7-Prisvekst!$L$8)+1)+1) -> 0 | BE28: =BE7*(INDEX(Prisvekst!$O$8:$Z$67,(Prosjektdata!BE$5-Prisvekst!$L$8)+1,(Prosjektdata!$C7-Prisvekst!$L$8)+1)+1) -> 0 | BF28: =BF7*(INDEX(Prisvekst!$O$8:$Z$67,(Prosjektdata!BF$5-Prisvekst!$L$8)+1,(Prosjektdata!$C7-Prisvekst!$L$8)+1)+1) -> 0
B29: 3 | F29: 0 | H29: =H8*(INDEX(Prisvekst!$O$8:$Z$67,(Prosjektdata!H$5-Prisvekst!$L$8)+1,(Prosjektdata!$C8-Prisvekst!$L$8)+1)+1) -> 0 | I29: =I8*(INDEX(Prisvekst!$O$8:$Z$67,(Prosjektdata!I$5-Prisvekst!$L$8)+1,(Prosjektdata!$C8-Prisvekst!$L$8)+1)+1) -> 0 | J29: =J8*(INDEX(Prisvekst!$O$8:$Z$67,(Prosjektdata!J$5-Prisvekst!$L$8)+1,(Prosjektdata!$C8-Prisvekst!$L$8)+1)+1) -> 0 | K29: =K8*(INDEX(Prisvekst!$O$8:$Z$67,(Prosjektdata!K$5-Prisvekst!$L$8)+1,(Prosjektdata!$C8-Prisvekst!$L$8)+1)+1) -> 0 | L29: =L8*(INDEX(Prisvekst!$O$8:$Z$67,(Prosjektdata!L$5-Prisvekst!$L$8)+1,(Prosjektdata!$C8-Prisvekst!$L$8)+1)+1) -> 0 | M29: =M8*(INDEX(Prisvekst!$O$8:$Z$67,(Prosjektdata!M$5-Prisvekst!$L$8)+1,(Prosjektdata!$C8-Prisvekst!$L$8)+1)+1) -> 0 | N29: =N8*(INDEX(Prisvekst!$O$8:$Z$67,(Prosjektdata!N$5-Prisvekst!$L$8)+1,(Prosjektdata!$C8-Prisvekst!$L$8)+1)+1) -> 0 | O29: =O8*(INDEX(Prisvekst!$O$8:$Z$67,(Prosjektdata!O$5-Prisvekst!$L$8)+1,(Prosjektdata!$C8-Prisvekst!$L$8)+1)+1) -> 0 | P29: =P8*(INDEX(Prisvekst!$O$8:$Z$67,(Prosjektdata!P$5-Prisvekst!$L$8)+1,(Prosjektdata!$C8-Prisvekst!$L$8)+1)+1) -> 0 | Q29: =Q8*(INDEX(Prisvekst!$O$8:$Z$67,(Prosjektdata!Q$5-Prisvekst!$L$8)+1,(Prosjektdata!$C8-Prisvekst!$L$8)+1)+1) -> 0 | R29: =R8*(INDEX(Prisvekst!$O$8:$Z$67,(Prosjektdata!R$5-Prisvekst!$L$8)+1,(Prosjektdata!$C8-Prisvekst!$L$8)+1)+1) -> 0 | S29: =S8*(INDEX(Prisvekst!$O$8:$Z$67,(Prosjektdata!S$5-Prisvekst!$L$8)+1,(Prosjektdata!$C8-Prisvekst!$L$8)+1)+1) -> 0 | T29: =T8*(INDEX(Prisvekst!$O$8:$Z$67,(Prosjektdata!T$5-Prisvekst!$L$8)+1,(Prosjektdata!$C8-Prisvekst!$L$8)+1)+1) -> 0 | U29: =U8*(INDEX(Prisvekst!$O$8:$Z$67,(Prosjektdata!U$5-Prisvekst!$L$8)+1,(Prosjektdata!$C8-Prisvekst!$L$8)+1)+1) -> 0 | V29: =V8*(INDEX(Prisvekst!$O$8:$Z$67,(Prosjektdata!V$5-Prisvekst!$L$8)+1,(Prosjektdata!$C8-Prisvekst!$L$8)+1)+1) -> 0 | W29: =W8*(INDEX(Prisvekst!$O$8:$Z$67,(Prosjektdata!W$5-Prisvekst!$L$8)+1,(Prosjektdata!$C8-Prisvekst!$L$8)+1)+1) -> 0 | X29: =X8*(INDEX(Prisvekst!$O$8:$Z$67,(Prosjektdata!X$5-Prisvekst!$L$8)+1,(Prosjektdata!$C8-Prisvekst!$L$8)+1)+1) -> 0 | Y29: =Y8*(INDEX(Prisvekst!$O$8:$Z$67,(Prosjektdata!Y$5-Prisvekst!$L$8)+1,(Prosjektdata!$C8-Prisvekst!$L$8)+1)+1) -> 0 | Z29: =Z8*(INDEX(Prisvekst!$O$8:$Z$67,(Prosjektdata!Z$5-Prisvekst!$L$8)+1,(Prosjektdata!$C8-Prisvekst!$L$8)+1)+1) -> 0 | AA29: =AA8*(INDEX(Prisvekst!$O$8:$Z$67,(Prosjektdata!AA$5-Prisvekst!$L$8)+1,(Prosjektdata!$C8-Prisvekst!$L$8)+1)+1) -> 0 | AB29: =AB8*(INDEX(Prisvekst!$O$8:$Z$67,(Prosjektdata!AB$5-Prisvekst!$L$8)+1,(Prosjektdata!$C8-Prisvekst!$L$8)+1)+1) -> 0 | AC29: =AC8*(INDEX(Prisvekst!$O$8:$Z$67,(Prosjektdata!AC$5-Prisvekst!$L$8)+1,(Prosjektdata!$C8-Prisvekst!$L$8)+1)+1) -> 0 | AD29: =AD8*(INDEX(Prisvekst!$O$8:$Z$67,(Prosjektdata!AD$5-Prisvekst!$L$8)+1,(Prosjektdata!$C8-Prisvekst!$L$8)+1)+1) -> 0 | AE29: =AE8*(INDEX(Prisvekst!$O$8:$Z$67,(Prosjektdata!AE$5-Prisvekst!$L$8)+1,(Prosjektdata!$C8-Prisvekst!$L$8)+1)+1) -> 0 | AF29: =AF8*(INDEX(Prisvekst!$O$8:$Z$67,(Prosjektdata!AF$5-Prisvekst!$L$8)+1,(Prosjektdata!$C8-Prisvekst!$L$8)+1)+1) -> 0 | AG29: =AG8*(INDEX(Prisvekst!$O$8:$Z$67,(Prosjektdata!AG$5-Prisvekst!$L$8)+1,(Prosjektdata!$C8-Prisvekst!$L$8)+1)+1) -> 0 | AH29: =AH8*(INDEX(Prisvekst!$O$8:$Z$67,(Prosjektdata!AH$5-Prisvekst!$L$8)+1,(Prosjektdata!$C8-Prisvekst!$L$8)+1)+1) -> 0 | AI29: =AI8*(INDEX(Prisvekst!$O$8:$Z$67,(Prosjektdata!AI$5-Prisvekst!$L$8)+1,(Prosjektdata!$C8-Prisvekst!$L$8)+1)+1) -> 0 | AJ29: =AJ8*(INDEX(Prisvekst!$O$8:$Z$67,(Prosjektdata!AJ$5-Prisvekst!$L$8)+1,(Prosjektdata!$C8-Prisvekst!$L$8)+1)+1) -> 0 | AK29: =AK8*(INDEX(Prisvekst!$O$8:$Z$67,(Prosjektdata!AK$5-Prisvekst!$L$8)+1,(Prosjektdata!$C8-Prisvekst!$L$8)+1)+1) -> 0 | AL29: =AL8*(INDEX(Prisvekst!$O$8:$Z$67,(Prosjektdata!AL$5-Prisvekst!$L$8)+1,(Prosjektdata!$C8-Prisvekst!$L$8)+1)+1) -> 0 | AM29: =AM8*(INDEX(Prisvekst!$O$8:$Z$67,(Prosjektdata!AM$5-Prisvekst!$L$8)+1,(Prosjektdata!$C8-Prisvekst!$L$8)+1)+1) -> 0 | AN29: =AN8*(INDEX(Prisvekst!$O$8:$Z$67,(Prosjektdata!AN$5-Prisvekst!$L$8)+1,(Prosjektdata!$C8-Prisvekst!$L$8)+1)+1) -> 0 | AO29: =AO8*(INDEX(Prisvekst!$O$8:$Z$67,(Prosjektdata!AO$5-Prisvekst!$L$8)+1,(Prosjektdata!$C8-Prisvekst!$L$8)+1)+1) -> 0 | AP29: =AP8*(INDEX(Prisvekst!$O$8:$Z$67,(Prosjektdata!AP$5-Prisvekst!$L$8)+1,(Prosjektdata!$C8-Prisvekst!$L$8)+1)+1) -> 0 | AQ29: =AQ8*(INDEX(Prisvekst!$O$8:$Z$67,(Prosjektdata!AQ$5-Prisvekst!$L$8)+1,(Prosjektdata!$C8-Prisvekst!$L$8)+1)+1) -> 0 | AR29: =AR8*(INDEX(Prisvekst!$O$8:$Z$67,(Prosjektdata!AR$5-Prisvekst!$L$8)+1,(Prosjektdata!$C8-Prisvekst!$L$8)+1)+1) -> 0 | AS29: =AS8*(INDEX(Prisvekst!$O$8:$Z$67,(Prosjektdata!AS$5-Prisvekst!$L$8)+1,(Prosjektdata!$C8-Prisvekst!$L$8)+1)+1) -> 0 | AT29: =AT8*(INDEX(Prisvekst!$O$8:$Z$67,(Prosjektdata!AT$5-Prisvekst!$L$8)+1,(Prosjektdata!$C8-Prisvekst!$L$8)+1)+1) -> 0 | AU29: =AU8*(INDEX(Prisvekst!$O$8:$Z$67,(Prosjektdata!AU$5-Prisvekst!$L$8)+1,(Prosjektdata!$C8-Prisvekst!$L$8)+1)+1) -> 0 | AV29: =AV8*(INDEX(Prisvekst!$O$8:$Z$67,(Prosjektdata!AV$5-Prisvekst!$L$8)+1,(Prosjektdata!$C8-Prisvekst!$L$8)+1)+1) -> 0 | AW29: =AW8*(INDEX(Prisvekst!$O$8:$Z$67,(Prosjektdata!AW$5-Prisvekst!$L$8)+1,(Prosjektdata!$C8-Prisvekst!$L$8)+1)+1) -> 0 | AX29: =AX8*(INDEX(Prisvekst!$O$8:$Z$67,(Prosjektdata!AX$5-Prisvekst!$L$8)+1,(Prosjektdata!$C8-Prisvekst!$L$8)+1)+1) -> 0 | AY29: =AY8*(INDEX(Prisvekst!$O$8:$Z$67,(Prosjektdata!AY$5-Prisvekst!$L$8)+1,(Prosjektdata!$C8-Prisvekst!$L$8)+1)+1) -> 0 | AZ29: =AZ8*(INDEX(Prisvekst!$O$8:$Z$67,(Prosjektdata!AZ$5-Prisvekst!$L$8)+1,(Prosjektdata!$C8-Prisvekst!$L$8)+1)+1) -> 0 | BA29: =BA8*(INDEX(Prisvekst!$O$8:$Z$67,(Prosjektdata!BA$5-Prisvekst!$L$8)+1,(Prosjektdata!$C8-Prisvekst!$L$8)+1)+1) -> 0 | BB29: =BB8*(INDEX(Prisvekst!$O$8:$Z$67,(Prosjektdata!BB$5-Prisvekst!$L$8)+1,(Prosjektdata!$C8-Prisvekst!$L$8)+1)+1) -> 0 | BC29: =BC8*(INDEX(Prisvekst!$O$8:$Z$67,(Prosjektdata!BC$5-Prisvekst!$L$8)+1,(Prosjektdata!$C8-Prisvekst!$L$8)+1)+1) -> 0 | BD29: =BD8*(INDEX(Prisvekst!$O$8:$Z$67,(Prosjektdata!BD$5-Prisvekst!$L$8)+1,(Prosjektdata!$C8-Prisvekst!$L$8)+1)+1) -> 0 | BE29: =BE8*(INDEX(Prisvekst!$O$8:$Z$67,(Prosjektdata!BE$5-Prisvekst!$L$8)+1,(Prosjektdata!$C8-Prisvekst!$L$8)+1)+1) -> 0 | BF29: =BF8*(INDEX(Prisvekst!$O$8:$Z$67,(Prosjektdata!BF$5-Prisvekst!$L$8)+1,(Prosjektdata!$C8-Prisvekst!$L$8)+1)+1) -> 0
B30: 4 | F30: 0 | H30: =H9*(INDEX(Prisvekst!$O$8:$Z$67,(Prosjektdata!H$5-Prisvekst!$L$8)+1,(Prosjektdata!$C9-Prisvekst!$L$8)+1)+1) -> 0 | I30: =I9*(INDEX(Prisvekst!$O$8:$Z$67,(Prosjektdata!I$5-Prisvekst!$L$8)+1,(Prosjektdata!$C9-Prisvekst!$L$8)+1)+1) -> 0 | J30: =J9*(INDEX(Prisvekst!$O$8:$Z$67,(Prosjektdata!J$5-Prisvekst!$L$8)+1,(Prosjektdata!$C9-Prisvekst!$L$8)+1)+1) -> 0 | K30: =K9*(INDEX(Prisvekst!$O$8:$Z$67,(Prosjektdata!K$5-Prisvekst!$L$8)+1,(Prosjektdata!$C9-Prisvekst!$L$8)+1)+1) -> 0 | L30: =L9*(INDEX(Prisvekst!$O$8:$Z$67,(Prosjektdata!L$5-Prisvekst!$L$8)+1,(Prosjektdata!$C9-Prisvekst!$L$8)+1)+1) -> 0 | M30: =M9*(INDEX(Prisvekst!$O$8:$Z$67,(Prosjektdata!M$5-Prisvekst!$L$8)+1,(Prosjektdata!$C9-Prisvekst!$L$8)+1)+1) -> 0 | N30: =N9*(INDEX(Prisvekst!$O$8:$Z$67,(Prosjektdata!N$5-Prisvekst!$L$8)+1,(Prosjektdata!$C9-Prisvekst!$L$8)+1)+1) -> 0 | O30: =O9*(INDEX(Prisvekst!$O$8:$Z$67,(Prosjektdata!O$5-Prisvekst!$L$8)+1,(Prosjektdata!$C9-Prisvekst!$L$8)+1)+1) -> 0 | P30: =P9*(INDEX(Prisvekst!$O$8:$Z$67,(Prosjektdata!P$5-Prisvekst!$L$8)+1,(Prosjektdata!$C9-Prisvekst!$L$8)+1)+1) -> 0 | Q30: =Q9*(INDEX(Prisvekst!$O$8:$Z$67,(Prosjektdata!Q$5-Prisvekst!$L$8)+1,(Prosjektdata!$C9-Prisvekst!$L$8)+1)+1) -> 0 | R30: =R9*(INDEX(Prisvekst!$O$8:$Z$67,(Prosjektdata!R$5-Prisvekst!$L$8)+1,(Prosjektdata!$C9-Prisvekst!$L$8)+1)+1) -> 0 | S30: =S9*(INDEX(Prisvekst!$O$8:$Z$67,(Prosjektdata!S$5-Prisvekst!$L$8)+1,(Prosjektdata!$C9-Prisvekst!$L$8)+1)+1) -> 0 | T30: =T9*(INDEX(Prisvekst!$O$8:$Z$67,(Prosjektdata!T$5-Prisvekst!$L$8)+1,(Prosjektdata!$C9-Prisvekst!$L$8)+1)+1) -> 0 | U30: =U9*(INDEX(Prisvekst!$O$8:$Z$67,(Prosjektdata!U$5-Prisvekst!$L$8)+1,(Prosjektdata!$C9-Prisvekst!$L$8)+1)+1) -> 0 | V30: =V9*(INDEX(Prisvekst!$O$8:$Z$67,(Prosjektdata!V$5-Prisvekst!$L$8)+1,(Prosjektdata!$C9-Prisvekst!$L$8)+1)+1) -> 0 | W30: =W9*(INDEX(Prisvekst!$O$8:$Z$67,(Prosjektdata!W$5-Prisvekst!$L$8)+1,(Prosjektdata!$C9-Prisvekst!$L$8)+1)+1) -> 0 | X30: =X9*(INDEX(Prisvekst!$O$8:$Z$67,(Prosjektdata!X$5-Prisvekst!$L$8)+1,(Prosjektdata!$C9-Prisvekst!$L$8)+1)+1) -> 0 | Y30: =Y9*(INDEX(Prisvekst!$O$8:$Z$67,(Prosjektdata!Y$5-Prisvekst!$L$8)+1,(Prosjektdata!$C9-Prisvekst!$L$8)+1)+1) -> 0 | Z30: =Z9*(INDEX(Prisvekst!$O$8:$Z$67,(Prosjektdata!Z$5-Prisvekst!$L$8)+1,(Prosjektdata!$C9-Prisvekst!$L$8)+1)+1) -> 0 | AA30: =AA9*(INDEX(Prisvekst!$O$8:$Z$67,(Prosjektdata!AA$5-Prisvekst!$L$8)+1,(Prosjektdata!$C9-Prisvekst!$L$8)+1)+1) -> 0 | AB30: =AB9*(INDEX(Prisvekst!$O$8:$Z$67,(Prosjektdata!AB$5-Prisvekst!$L$8)+1,(Prosjektdata!$C9-Prisvekst!$L$8)+1)+1) -> 0 | AC30: =AC9*(INDEX(Prisvekst!$O$8:$Z$67,(Prosjektdata!AC$5-Prisvekst!$L$8)+1,(Prosjektdata!$C9-Prisvekst!$L$8)+1)+1) -> 0 | AD30: =AD9*(INDEX(Prisvekst!$O$8:$Z$67,(Prosjektdata!AD$5-Prisvekst!$L$8)+1,(Prosjektdata!$C9-Prisvekst!$L$8)+1)+1) -> 0 | AE30: =AE9*(INDEX(Prisvekst!$O$8:$Z$67,(Prosjektdata!AE$5-Prisvekst!$L$8)+1,(Prosjektdata!$C9-Prisvekst!$L$8)+1)+1) -> 0 | AF30: =AF9*(INDEX(Prisvekst!$O$8:$Z$67,(Prosjektdata!AF$5-Prisvekst!$L$8)+1,(Prosjektdata!$C9-Prisvekst!$L$8)+1)+1) -> 0 | AG30: =AG9*(INDEX(Prisvekst!$O$8:$Z$67,(Prosjektdata!AG$5-Prisvekst!$L$8)+1,(Prosjektdata!$C9-Prisvekst!$L$8)+1)+1) -> 0 | AH30: =AH9*(INDEX(Prisvekst!$O$8:$Z$67,(Prosjektdata!AH$5-Prisvekst!$L$8)+1,(Prosjektdata!$C9-Prisvekst!$L$8)+1)+1) -> 0 | AI30: =AI9*(INDEX(Prisvekst!$O$8:$Z$67,(Prosjektdata!AI$5-Prisvekst!$L$8)+1,(Prosjektdata!$C9-Prisvekst!$L$8)+1)+1) -> 0 | AJ30: =AJ9*(INDEX(Prisvekst!$O$8:$Z$67,(Prosjektdata!AJ$5-Prisvekst!$L$8)+1,(Prosjektdata!$C9-Prisvekst!$L$8)+1)+1) -> 0 | AK30: =AK9*(INDEX(Prisvekst!$O$8:$Z$67,(Prosjektdata!AK$5-Prisvekst!$L$8)+1,(Prosjektdata!$C9-Prisvekst!$L$8)+1)+1) -> 0 | AL30: =AL9*(INDEX(Prisvekst!$O$8:$Z$67,(Prosjektdata!AL$5-Prisvekst!$L$8)+1,(Prosjektdata!$C9-Prisvekst!$L$8)+1)+1) -> 0 | AM30: =AM9*(INDEX(Prisvekst!$O$8:$Z$67,(Prosjektdata!AM$5-Prisvekst!$L$8)+1,(Prosjektdata!$C9-Prisvekst!$L$8)+1)+1) -> 0 | AN30: =AN9*(INDEX(Prisvekst!$O$8:$Z$67,(Prosjektdata!AN$5-Prisvekst!$L$8)+1,(Prosjektdata!$C9-Prisvekst!$L$8)+1)+1) -> 0 | AO30: =AO9*(INDEX(Prisvekst!$O$8:$Z$67,(Prosjektdata!AO$5-Prisvekst!$L$8)+1,(Prosjektdata!$C9-Prisvekst!$L$8)+1)+1) -> 0 | AP30: =AP9*(INDEX(Prisvekst!$O$8:$Z$67,(Prosjektdata!AP$5-Prisvekst!$L$8)+1,(Prosjektdata!$C9-Prisvekst!$L$8)+1)+1) -> 0 | AQ30: =AQ9*(INDEX(Prisvekst!$O$8:$Z$67,(Prosjektdata!AQ$5-Prisvekst!$L$8)+1,(Prosjektdata!$C9-Prisvekst!$L$8)+1)+1) -> 0 | AR30: =AR9*(INDEX(Prisvekst!$O$8:$Z$67,(Prosjektdata!AR$5-Prisvekst!$L$8)+1,(Prosjektdata!$C9-Prisvekst!$L$8)+1)+1) -> 0 | AS30: =AS9*(INDEX(Prisvekst!$O$8:$Z$67,(Prosjektdata!AS$5-Prisvekst!$L$8)+1,(Prosjektdata!$C9-Prisvekst!$L$8)+1)+1) -> 0 | AT30: =AT9*(INDEX(Prisvekst!$O$8:$Z$67,(Prosjektdata!AT$5-Prisvekst!$L$8)+1,(Prosjektdata!$C9-Prisvekst!$L$8)+1)+1) -> 0 | AU30: =AU9*(INDEX(Prisvekst!$O$8:$Z$67,(Prosjektdata!AU$5-Prisvekst!$L$8)+1,(Prosjektdata!$C9-Prisvekst!$L$8)+1)+1) -> 0 | AV30: =AV9*(INDEX(Prisvekst!$O$8:$Z$67,(Prosjektdata!AV$5-Prisvekst!$L$8)+1,(Prosjektdata!$C9-Prisvekst!$L$8)+1)+1) -> 0 | AW30: =AW9*(INDEX(Prisvekst!$O$8:$Z$67,(Prosjektdata!AW$5-Prisvekst!$L$8)+1,(Prosjektdata!$C9-Prisvekst!$L$8)+1)+1) -> 0 | AX30: =AX9*(INDEX(Prisvekst!$O$8:$Z$67,(Prosjektdata!AX$5-Prisvekst!$L$8)+1,(Prosjektdata!$C9-Prisvekst!$L$8)+1)+1) -> 0 | AY30: =AY9*(INDEX(Prisvekst!$O$8:$Z$67,(Prosjektdata!AY$5-Prisvekst!$L$8)+1,(Prosjektdata!$C9-Prisvekst!$L$8)+1)+1) -> 0 | AZ30: =AZ9*(INDEX(Prisvekst!$O$8:$Z$67,(Prosjektdata!AZ$5-Prisvekst!$L$8)+1,(Prosjektdata!$C9-Prisvekst!$L$8)+1)+1) -> 0 | BA30: =BA9*(INDEX(Prisvekst!$O$8:$Z$67,(Prosjektdata!BA$5-Prisvekst!$L$8)+1,(Prosjektdata!$C9-Prisvekst!$L$8)+1)+1) -> 0 | BB30: =BB9*(INDEX(Prisvekst!$O$8:$Z$67,(Prosjektdata!BB$5-Prisvekst!$L$8)+1,(Prosjektdata!$C9-Prisvekst!$L$8)+1)+1) -> 0 | BC30: =BC9*(INDEX(Prisvekst!$O$8:$Z$67,(Prosjektdata!BC$5-Prisvekst!$L$8)+1,(Prosjektdata!$C9-Prisvekst!$L$8)+1)+1) -> 0 | BD30: =BD9*(INDEX(Prisvekst!$O$8:$Z$67,(Prosjektdata!BD$5-Prisvekst!$L$8)+1,(Prosjektdata!$C9-Prisvekst!$L$8)+1)+1) -> 0 | BE30: =BE9*(INDEX(Prisvekst!$O$8:$Z$67,(Prosjektdata!BE$5-Prisvekst!$L$8)+1,(Prosjektdata!$C9-Prisvekst!$L$8)+1)+1) -> 0 | BF30: =BF9*(INDEX(Prisvekst!$O$8:$Z$67,(Prosjektdata!BF$5-Prisvekst!$L$8)+1,(Prosjektdata!$C9-Prisvekst!$L$8)+1)+1) -> 0
B31: Portefølje | F31: =SUM(H31:BF31) -> 0 | H31: =IF(BrukPortefølje=1,H10*(INDEX(Prisvekst!$O$8:$Z$67,(Prosjektdata!H$5-Prisvekst!$L$8)+1,(Prosjektdata!$C10-Prisvekst!$L$8)+1)+1),0) -> 0 | I31: =IF(BrukPortefølje=1,I10*(INDEX(Prisvekst!$O$8:$Z$67,(Prosjektdata!I$5-Prisvekst!$L$8)+1,(Prosjektdata!$C10-Prisvekst!$L$8)+1)+1),0) -> 0 | J31: =IF(BrukPortefølje=1,J10*(INDEX(Prisvekst!$O$8:$Z$67,(Prosjektdata!J$5-Prisvekst!$L$8)+1,(Prosjektdata!$C10-Prisvekst!$L$8)+1)+1),0) -> 0 | K31: =IF(BrukPortefølje=1,K10*(INDEX(Prisvekst!$O$8:$Z$67,(Prosjektdata!K$5-Prisvekst!$L$8)+1,(Prosjektdata!$C10-Prisvekst!$L$8)+1)+1),0) -> 0 | L31: =IF(BrukPortefølje=1,L10*(INDEX(Prisvekst!$O$8:$Z$67,(Prosjektdata!L$5-Prisvekst!$L$8)+1,(Prosjektdata!$C10-Prisvekst!$L$8)+1)+1),0) -> 0 | M31: =IF(BrukPortefølje=1,M10*(INDEX(Prisvekst!$O$8:$Z$67,(Prosjektdata!M$5-Prisvekst!$L$8)+1,(Prosjektdata!$C10-Prisvekst!$L$8)+1)+1),0) -> 0 | N31: =IF(BrukPortefølje=1,N10*(INDEX(Prisvekst!$O$8:$Z$67,(Prosjektdata!N$5-Prisvekst!$L$8)+1,(Prosjektdata!$C10-Prisvekst!$L$8)+1)+1),0) -> 0 | O31: =IF(BrukPortefølje=1,O10*(INDEX(Prisvekst!$O$8:$Z$67,(Prosjektdata!O$5-Prisvekst!$L$8)+1,(Prosjektdata!$C10-Prisvekst!$L$8)+1)+1),0) -> 0 | P31: =IF(BrukPortefølje=1,P10*(INDEX(Prisvekst!$O$8:$Z$67,(Prosjektdata!P$5-Prisvekst!$L$8)+1,(Prosjektdata!$C10-Prisvekst!$L$8)+1)+1),0) -> 0 | Q31: =IF(BrukPortefølje=1,Q10*(INDEX(Prisvekst!$O$8:$Z$67,(Prosjektdata!Q$5-Prisvekst!$L$8)+1,(Prosjektdata!$C10-Prisvekst!$L$8)+1)+1),0) -> 0 | R31: =IF(BrukPortefølje=1,R10*(INDEX(Prisvekst!$O$8:$Z$67,(Prosjektdata!R$5-Prisvekst!$L$8)+1,(Prosjektdata!$C10-Prisvekst!$L$8)+1)+1),0) -> 0 | S31: =IF(BrukPortefølje=1,S10*(INDEX(Prisvekst!$O$8:$Z$67,(Prosjektdata!S$5-Prisvekst!$L$8)+1,(Prosjektdata!$C10-Prisvekst!$L$8)+1)+1),0) -> 0 | T31: =IF(BrukPortefølje=1,T10*(INDEX(Prisvekst!$O$8:$Z$67,(Prosjektdata!T$5-Prisvekst!$L$8)+1,(Prosjektdata!$C10-Prisvekst!$L$8)+1)+1),0) -> 0 | U31: =IF(BrukPortefølje=1,U10*(INDEX(Prisvekst!$O$8:$Z$67,(Prosjektdata!U$5-Prisvekst!$L$8)+1,(Prosjektdata!$C10-Prisvekst!$L$8)+1)+1),0) -> 0 | V31: =IF(BrukPortefølje=1,V10*(INDEX(Prisvekst!$O$8:$Z$67,(Prosjektdata!V$5-Prisvekst!$L$8)+1,(Prosjektdata!$C10-Prisvekst!$L$8)+1)+1),0) -> 0 | W31: =IF(BrukPortefølje=1,W10*(INDEX(Prisvekst!$O$8:$Z$67,(Prosjektdata!W$5-Prisvekst!$L$8)+1,(Prosjektdata!$C10-Prisvekst!$L$8)+1)+1),0) -> 0 | X31: =IF(BrukPortefølje=1,X10*(INDEX(Prisvekst!$O$8:$Z$67,(Prosjektdata!X$5-Prisvekst!$L$8)+1,(Prosjektdata!$C10-Prisvekst!$L$8)+1)+1),0) -> 0 | Y31: =IF(BrukPortefølje=1,Y10*(INDEX(Prisvekst!$O$8:$Z$67,(Prosjektdata!Y$5-Prisvekst!$L$8)+1,(Prosjektdata!$C10-Prisvekst!$L$8)+1)+1),0) -> 0 | Z31: =IF(BrukPortefølje=1,Z10*(INDEX(Prisvekst!$O$8:$Z$67,(Prosjektdata!Z$5-Prisvekst!$L$8)+1,(Prosjektdata!$C10-Prisvekst!$L$8)+1)+1),0) -> 0 | AA31: =IF(BrukPortefølje=1,AA10*(INDEX(Prisvekst!$O$8:$Z$67,(Prosjektdata!AA$5-Prisvekst!$L$8)+1,(Prosjektdata!$C10-Prisvekst!$L$8)+1)+1),0) -> 0 | AB31: =IF(BrukPortefølje=1,AB10*(INDEX(Prisvekst!$O$8:$Z$67,(Prosjektdata!AB$5-Prisvekst!$L$8)+1,(Prosjektdata!$C10-Prisvekst!$L$8)+1)+1),0) -> 0 | AC31: =IF(BrukPortefølje=1,AC10*(INDEX(Prisvekst!$O$8:$Z$67,(Prosjektdata!AC$5-Prisvekst!$L$8)+1,(Prosjektdata!$C10-Prisvekst!$L$8)+1)+1),0) -> 0 | AD31: =IF(BrukPortefølje=1,AD10*(INDEX(Prisvekst!$O$8:$Z$67,(Prosjektdata!AD$5-Prisvekst!$L$8)+1,(Prosjektdata!$C10-Prisvekst!$L$8)+1)+1),0) -> 0 | AE31: =IF(BrukPortefølje=1,AE10*(INDEX(Prisvekst!$O$8:$Z$67,(Prosjektdata!AE$5-Prisvekst!$L$8)+1,(Prosjektdata!$C10-Prisvekst!$L$8)+1)+1),0) -> 0 | AF31: =IF(BrukPortefølje=1,AF10*(INDEX(Prisvekst!$O$8:$Z$67,(Prosjektdata!AF$5-Prisvekst!$L$8)+1,(Prosjektdata!$C10-Prisvekst!$L$8)+1)+1),0) -> 0 | AG31: =IF(BrukPortefølje=1,AG10*(INDEX(Prisvekst!$O$8:$Z$67,(Prosjektdata!AG$5-Prisvekst!$L$8)+1,(Prosjektdata!$C10-Prisvekst!$L$8)+1)+1),0) -> 0 | AH31: =IF(BrukPortefølje=1,AH10*(INDEX(Prisvekst!$O$8:$Z$67,(Prosjektdata!AH$5-Prisvekst!$L$8)+1,(Prosjektdata!$C10-Prisvekst!$L$8)+1)+1),0) -> 0 | AI31: =IF(BrukPortefølje=1,AI10*(INDEX(Prisvekst!$O$8:$Z$67,(Prosjektdata!AI$5-Prisvekst!$L$8)+1,(Prosjektdata!$C10-Prisvekst!$L$8)+1)+1),0) -> 0 | AJ31: =IF(BrukPortefølje=1,AJ10*(INDEX(Prisvekst!$O$8:$Z$67,(Prosjektdata!AJ$5-Prisvekst!$L$8)+1,(Prosjektdata!$C10-Prisvekst!$L$8)+1)+1),0) -> 0 | AK31: =IF(BrukPortefølje=1,AK10*(INDEX(Prisvekst!$O$8:$Z$67,(Prosjektdata!AK$5-Prisvekst!$L$8)+1,(Prosjektdata!$C10-Prisvekst!$L$8)+1)+1),0) -> 0 | AL31: =IF(BrukPortefølje=1,AL10*(INDEX(Prisvekst!$O$8:$Z$67,(Prosjektdata!AL$5-Prisvekst!$L$8)+1,(Prosjektdata!$C10-Prisvekst!$L$8)+1)+1),0) -> 0 | AM31: =IF(BrukPortefølje=1,AM10*(INDEX(Prisvekst!$O$8:$Z$67,(Prosjektdata!AM$5-Prisvekst!$L$8)+1,(Prosjektdata!$C10-Prisvekst!$L$8)+1)+1),0) -> 0 | AN31: =IF(BrukPortefølje=1,AN10*(INDEX(Prisvekst!$O$8:$Z$67,(Prosjektdata!AN$5-Prisvekst!$L$8)+1,(Prosjektdata!$C10-Prisvekst!$L$8)+1)+1),0) -> 0 | AO31: =IF(BrukPortefølje=1,AO10*(INDEX(Prisvekst!$O$8:$Z$67,(Prosjektdata!AO$5-Prisvekst!$L$8)+1,(Prosjektdata!$C10-Prisvekst!$L$8)+1)+1),0) -> 0 | AP31: =IF(BrukPortefølje=1,AP10*(INDEX(Prisvekst!$O$8:$Z$67,(Prosjektdata!AP$5-Prisvekst!$L$8)+1,(Prosjektdata!$C10-Prisvekst!$L$8)+1)+1),0) -> 0 | AQ31: =IF(BrukPortefølje=1,AQ10*(INDEX(Prisvekst!$O$8:$Z$67,(Prosjektdata!AQ$5-Prisvekst!$L$8)+1,(Prosjektdata!$C10-Prisvekst!$L$8)+1)+1),0) -> 0 | AR31: =IF(BrukPortefølje=1,AR10*(INDEX(Prisvekst!$O$8:$Z$67,(Prosjektdata!AR$5-Prisvekst!$L$8)+1,(Prosjektdata!$C10-Prisvekst!$L$8)+1)+1),0) -> 0 | AS31: =IF(BrukPortefølje=1,AS10*(INDEX(Prisvekst!$O$8:$Z$67,(Prosjektdata!AS$5-Prisvekst!$L$8)+1,(Prosjektdata!$C10-Prisvekst!$L$8)+1)+1),0) -> 0 | AT31: =IF(BrukPortefølje=1,AT10*(INDEX(Prisvekst!$O$8:$Z$67,(Prosjektdata!AT$5-Prisvekst!$L$8)+1,(Prosjektdata!$C10-Prisvekst!$L$8)+1)+1),0) -> 0 | AU31: =IF(BrukPortefølje=1,AU10*(INDEX(Prisvekst!$O$8:$Z$67,(Prosjektdata!AU$5-Prisvekst!$L$8)+1,(Prosjektdata!$C10-Prisvekst!$L$8)+1)+1),0) -> 0 | AV31: =IF(BrukPortefølje=1,AV10*(INDEX(Prisvekst!$O$8:$Z$67,(Prosjektdata!AV$5-Prisvekst!$L$8)+1,(Prosjektdata!$C10-Prisvekst!$L$8)+1)+1),0) -> 0 | AW31: =IF(BrukPortefølje=1,AW10*(INDEX(Prisvekst!$O$8:$Z$67,(Prosjektdata!AW$5-Prisvekst!$L$8)+1,(Prosjektdata!$C10-Prisvekst!$L$8)+1)+1),0) -> 0 | AX31: =IF(BrukPortefølje=1,AX10*(INDEX(Prisvekst!$O$8:$Z$67,(Prosjektdata!AX$5-Prisvekst!$L$8)+1,(Prosjektdata!$C10-Prisvekst!$L$8)+1)+1),0) -> 0 | AY31: =IF(BrukPortefølje=1,AY10*(INDEX(Prisvekst!$O$8:$Z$67,(Prosjektdata!AY$5-Prisvekst!$L$8)+1,(Prosjektdata!$C10-Prisvekst!$L$8)+1)+1),0) -> 0 | AZ31: =IF(BrukPortefølje=1,AZ10*(INDEX(Prisvekst!$O$8:$Z$67,(Prosjektdata!AZ$5-Prisvekst!$L$8)+1,(Prosjektdata!$C10-Prisvekst!$L$8)+1)+1),0) -> 0 | BA31: =IF(BrukPortefølje=1,BA10*(INDEX(Prisvekst!$O$8:$Z$67,(Prosjektdata!BA$5-Prisvekst!$L$8)+1,(Prosjektdata!$C10-Prisvekst!$L$8)+1)+1),0) -> 0 | BB31: =IF(BrukPortefølje=1,BB10*(INDEX(Prisvekst!$O$8:$Z$67,(Prosjektdata!BB$5-Prisvekst!$L$8)+1,(Prosjektdata!$C10-Prisvekst!$L$8)+1)+1),0) -> 0 | BC31: =IF(BrukPortefølje=1,BC10*(INDEX(Prisvekst!$O$8:$Z$67,(Prosjektdata!BC$5-Prisvekst!$L$8)+1,(Prosjektdata!$C10-Prisvekst!$L$8)+1)+1),0) -> 0 | BD31: =IF(BrukPortefølje=1,BD10*(INDEX(Prisvekst!$O$8:$Z$67,(Prosjektdata!BD$5-Prisvekst!$L$8)+1,(Prosjektdata!$C10-Prisvekst!$L$8)+1)+1),0) -> 0 | BE31: =IF(BrukPortefølje=1,BE10*(INDEX(Prisvekst!$O$8:$Z$67,(Prosjektdata!BE$5-Prisvekst!$L$8)+1,(Prosjektdata!$C10-Prisvekst!$L$8)+1)+1),0) -> 0 | BF31: =IF(BrukPortefølje=1,BF10*(INDEX(Prisvekst!$O$8:$Z$67,(Prosjektdata!BF$5-Prisvekst!$L$8)+1,(Prosjektdata!$C10-Prisvekst!$L$8)+1)+1),0) -> 0
B32: Sum | F32: 0 | H32: =SUM(H27:H31)*investeringsfaktor -> 0 | I32: 0 | J32: 0 | K32: 0 | L32: 0 | M32: 0 | N32: 0 | O32: 0 | P32: 0 | Q32: 0 | R32: 0 | S32: 0 | T32: 0 | U32: 0 | V32: 0 | W32: 0 | X32: 0 | Y32: 0 | Z32: 0 | AA32: 0 | AB32: 0 | AC32: 0 | AD32: 0 | AE32: 0 | AF32: 0 | AG32: 0 | AH32: 0 | AI32: 0 | AJ32: 0 | AK32: 0 | AL32: 0 | AM32: 0 | AN32: =SUM(AN27:AN31)*investeringsfaktor -> 0 | AO32: 0 | AP32: 0 | AQ32: 0 | AR32: 0 | AS32: 0 | AT32: 0 | AU32: 0 | AV32: 0 | AW32: 0 | AX32: 0 | AY32: 0 | AZ32: 0 | BA32: 0 | BB32: 0 | BC32: 0 | BD32: 0 | BE32: 0 | BF32: 0
A33: Bevilgninger | B33: Statlig | F33: 0 | H33: =H12*(INDEX(Prisvekst!$O$8:$Z$67,(Prosjektdata!H$5-Prisvekst!$L$8)+1,(Prosjektdata!$C12-Prisvekst!$L$8)+1)+1) -> 0 | I33: =I12*(INDEX(Prisvekst!$O$8:$Z$67,(Prosjektdata!I$5-Prisvekst!$L$8)+1,(Prosjektdata!$C12-Prisvekst!$L$8)+1)+1) -> 0 | J33: =J12*(INDEX(Prisvekst!$O$8:$Z$67,(Prosjektdata!J$5-Prisvekst!$L$8)+1,(Prosjektdata!$C12-Prisvekst!$L$8)+1)+1) -> 0 | K33: =K12*(INDEX(Prisvekst!$O$8:$Z$67,(Prosjektdata!K$5-Prisvekst!$L$8)+1,(Prosjektdata!$C12-Prisvekst!$L$8)+1)+1) -> 0 | L33: =L12*(INDEX(Prisvekst!$O$8:$Z$67,(Prosjektdata!L$5-Prisvekst!$L$8)+1,(Prosjektdata!$C12-Prisvekst!$L$8)+1)+1) -> 0 | M33: =M12*(INDEX(Prisvekst!$O$8:$Z$67,(Prosjektdata!M$5-Prisvekst!$L$8)+1,(Prosjektdata!$C12-Prisvekst!$L$8)+1)+1) -> 0 | N33: =N12*(INDEX(Prisvekst!$O$8:$Z$67,(Prosjektdata!N$5-Prisvekst!$L$8)+1,(Prosjektdata!$C12-Prisvekst!$L$8)+1)+1) -> 0 | O33: =O12*(INDEX(Prisvekst!$O$8:$Z$67,(Prosjektdata!O$5-Prisvekst!$L$8)+1,(Prosjektdata!$C12-Prisvekst!$L$8)+1)+1) -> 0 | P33: =P12*(INDEX(Prisvekst!$O$8:$Z$67,(Prosjektdata!P$5-Prisvekst!$L$8)+1,(Prosjektdata!$C12-Prisvekst!$L$8)+1)+1) -> 0 | Q33: =Q12*(INDEX(Prisvekst!$O$8:$Z$67,(Prosjektdata!Q$5-Prisvekst!$L$8)+1,(Prosjektdata!$C12-Prisvekst!$L$8)+1)+1) -> 0 | R33: =R12*(INDEX(Prisvekst!$O$8:$Z$67,(Prosjektdata!R$5-Prisvekst!$L$8)+1,(Prosjektdata!$C12-Prisvekst!$L$8)+1)+1) -> 0 | S33: =S12*(INDEX(Prisvekst!$O$8:$Z$67,(Prosjektdata!S$5-Prisvekst!$L$8)+1,(Prosjektdata!$C12-Prisvekst!$L$8)+1)+1) -> 0 | T33: =T12*(INDEX(Prisvekst!$O$8:$Z$67,(Prosjektdata!T$5-Prisvekst!$L$8)+1,(Prosjektdata!$C12-Prisvekst!$L$8)+1)+1) -> 0 | U33: =U12*(INDEX(Prisvekst!$O$8:$Z$67,(Prosjektdata!U$5-Prisvekst!$L$8)+1,(Prosjektdata!$C12-Prisvekst!$L$8)+1)+1) -> 0 | V33: =V12*(INDEX(Prisvekst!$O$8:$Z$67,(Prosjektdata!V$5-Prisvekst!$L$8)+1,(Prosjektdata!$C12-Prisvekst!$L$8)+1)+1) -> 0 | W33: =W12*(INDEX(Prisvekst!$O$8:$Z$67,(Prosjektdata!W$5-Prisvekst!$L$8)+1,(Prosjektdata!$C12-Prisvekst!$L$8)+1)+1) -> 0 | X33: =X12*(INDEX(Prisvekst!$O$8:$Z$67,(Prosjektdata!X$5-Prisvekst!$L$8)+1,(Prosjektdata!$C12-Prisvekst!$L$8)+1)+1) -> 0 | Y33: =Y12*(INDEX(Prisvekst!$O$8:$Z$67,(Prosjektdata!Y$5-Prisvekst!$L$8)+1,(Prosjektdata!$C12-Prisvekst!$L$8)+1)+1) -> 0 | Z33: =Z12*(INDEX(Prisvekst!$O$8:$Z$67,(Prosjektdata!Z$5-Prisvekst!$L$8)+1,(Prosjektdata!$C12-Prisvekst!$L$8)+1)+1) -> 0 | AA33: =AA12*(INDEX(Prisvekst!$O$8:$Z$67,(Prosjektdata!AA$5-Prisvekst!$L$8)+1,(Prosjektdata!$C12-Prisvekst!$L$8)+1)+1) -> 0 | AB33: =AB12*(INDEX(Prisvekst!$O$8:$Z$67,(Prosjektdata!AB$5-Prisvekst!$L$8)+1,(Prosjektdata!$C12-Prisvekst!$L$8)+1)+1) -> 0 | AC33: =AC12*(INDEX(Prisvekst!$O$8:$Z$67,(Prosjektdata!AC$5-Prisvekst!$L$8)+1,(Prosjektdata!$C12-Prisvekst!$L$8)+1)+1) -> 0 | AD33: =AD12*(INDEX(Prisvekst!$O$8:$Z$67,(Prosjektdata!AD$5-Prisvekst!$L$8)+1,(Prosjektdata!$C12-Prisvekst!$L$8)+1)+1) -> 0 | AE33: =AE12*(INDEX(Prisvekst!$O$8:$Z$67,(Prosjektdata!AE$5-Prisvekst!$L$8)+1,(Prosjektdata!$C12-Prisvekst!$L$8)+1)+1) -> 0 | AF33: =AF12*(INDEX(Prisvekst!$O$8:$Z$67,(Prosjektdata!AF$5-Prisvekst!$L$8)+1,(Prosjektdata!$C12-Prisvekst!$L$8)+1)+1) -> 0 | AG33: =AG12*(INDEX(Prisvekst!$O$8:$Z$67,(Prosjektdata!AG$5-Prisvekst!$L$8)+1,(Prosjektdata!$C12-Prisvekst!$L$8)+1)+1) -> 0 | AH33: =AH12*(INDEX(Prisvekst!$O$8:$Z$67,(Prosjektdata!AH$5-Prisvekst!$L$8)+1,(Prosjektdata!$C12-Prisvekst!$L$8)+1)+1) -> 0 | AI33: =AI12*(INDEX(Prisvekst!$O$8:$Z$67,(Prosjektdata!AI$5-Prisvekst!$L$8)+1,(Prosjektdata!$C12-Prisvekst!$L$8)+1)+1) -> 0 | AJ33: =AJ12*(INDEX(Prisvekst!$O$8:$Z$67,(Prosjektdata!AJ$5-Prisvekst!$L$8)+1,(Prosjektdata!$C12-Prisvekst!$L$8)+1)+1) -> 0 | AK33: =AK12*(INDEX(Prisvekst!$O$8:$Z$67,(Prosjektdata!AK$5-Prisvekst!$L$8)+1,(Prosjektdata!$C12-Prisvekst!$L$8)+1)+1) -> 0 | AL33: =AL12*(INDEX(Prisvekst!$O$8:$Z$67,(Prosjektdata!AL$5-Prisvekst!$L$8)+1,(Prosjektdata!$C12-Prisvekst!$L$8)+1)+1) -> 0 | AM33: =AM12*(INDEX(Prisvekst!$O$8:$Z$67,(Prosjektdata!AM$5-Prisvekst!$L$8)+1,(Prosjektdata!$C12-Prisvekst!$L$8)+1)+1) -> 0 | AN33: =AN12*(INDEX(Prisvekst!$O$8:$Z$67,(Prosjektdata!AN$5-Prisvekst!$L$8)+1,(Prosjektdata!$C12-Prisvekst!$L$8)+1)+1) -> 0 | AO33: =AO12*(INDEX(Prisvekst!$O$8:$Z$67,(Prosjektdata!AO$5-Prisvekst!$L$8)+1,(Prosjektdata!$C12-Prisvekst!$L$8)+1)+1) -> 0 | AP33: =AP12*(INDEX(Prisvekst!$O$8:$Z$67,(Prosjektdata!AP$5-Prisvekst!$L$8)+1,(Prosjektdata!$C12-Prisvekst!$L$8)+1)+1) -> 0 | AQ33: =AQ12*(INDEX(Prisvekst!$O$8:$Z$67,(Prosjektdata!AQ$5-Prisvekst!$L$8)+1,(Prosjektdata!$C12-Prisvekst!$L$8)+1)+1) -> 0 | AR33: =AR12*(INDEX(Prisvekst!$O$8:$Z$67,(Prosjektdata!AR$5-Prisvekst!$L$8)+1,(Prosjektdata!$C12-Prisvekst!$L$8)+1)+1) -> 0 | AS33: =AS12*(INDEX(Prisvekst!$O$8:$Z$67,(Prosjektdata!AS$5-Prisvekst!$L$8)+1,(Prosjektdata!$C12-Prisvekst!$L$8)+1)+1) -> 0 | AT33: =AT12*(INDEX(Prisvekst!$O$8:$Z$67,(Prosjektdata!AT$5-Prisvekst!$L$8)+1,(Prosjektdata!$C12-Prisvekst!$L$8)+1)+1) -> 0 | AU33: =AU12*(INDEX(Prisvekst!$O$8:$Z$67,(Prosjektdata!AU$5-Prisvekst!$L$8)+1,(Prosjektdata!$C12-Prisvekst!$L$8)+1)+1) -> 0 | AV33: =AV12*(INDEX(Prisvekst!$O$8:$Z$67,(Prosjektdata!AV$5-Prisvekst!$L$8)+1,(Prosjektdata!$C12-Prisvekst!$L$8)+1)+1) -> 0 | AW33: =AW12*(INDEX(Prisvekst!$O$8:$Z$67,(Prosjektdata!AW$5-Prisvekst!$L$8)+1,(Prosjektdata!$C12-Prisvekst!$L$8)+1)+1) -> 0 | AX33: =AX12*(INDEX(Prisvekst!$O$8:$Z$67,(Prosjektdata!AX$5-Prisvekst!$L$8)+1,(Prosjektdata!$C12-Prisvekst!$L$8)+1)+1) -> 0 | AY33: =AY12*(INDEX(Prisvekst!$O$8:$Z$67,(Prosjektdata!AY$5-Prisvekst!$L$8)+1,(Prosjektdata!$C12-Prisvekst!$L$8)+1)+1) -> 0 | AZ33: =AZ12*(INDEX(Prisvekst!$O$8:$Z$67,(Prosjektdata!AZ$5-Prisvekst!$L$8)+1,(Prosjektdata!$C12-Prisvekst!$L$8)+1)+1) -> 0 | BA33: =BA12*(INDEX(Prisvekst!$O$8:$Z$67,(Prosjektdata!BA$5-Prisvekst!$L$8)+1,(Prosjektdata!$C12-Prisvekst!$L$8)+1)+1) -> 0 | BB33: =BB12*(INDEX(Prisvekst!$O$8:$Z$67,(Prosjektdata!BB$5-Prisvekst!$L$8)+1,(Prosjektdata!$C12-Prisvekst!$L$8)+1)+1) -> 0 | BC33: =BC12*(INDEX(Prisvekst!$O$8:$Z$67,(Prosjektdata!BC$5-Prisvekst!$L$8)+1,(Prosjektdata!$C12-Prisvekst!$L$8)+1)+1) -> 0 | BD33: =BD12*(INDEX(Prisvekst!$O$8:$Z$67,(Prosjektdata!BD$5-Prisvekst!$L$8)+1,(Prosjektdata!$C12-Prisvekst!$L$8)+1)+1) -> 0 | BE33: =BE12*(INDEX(Prisvekst!$O$8:$Z$67,(Prosjektdata!BE$5-Prisvekst!$L$8)+1,(Prosjektdata!$C12-Prisvekst!$L$8)+1)+1) -> 0 | BF33: =BF12*(INDEX(Prisvekst!$O$8:$Z$67,(Prosjektdata!BF$5-Prisvekst!$L$8)+1,(Prosjektdata!$C12-Prisvekst!$L$8)+1)+1) -> 0
B34: Kommunale | D34: =IF(F34=0,"",(F34/F13-1)) ->  | F34: 0 | H34: =H13*(INDEX(Prisvekst!$O$8:$Z$67,(Prosjektdata!H$5-Prisvekst!$L$8)+1,(Prosjektdata!$C13-Prisvekst!$L$8)+1)+1) -> 0 | I34: =I13*(INDEX(Prisvekst!$O$8:$Z$67,(Prosjektdata!I$5-Prisvekst!$L$8)+1,(Prosjektdata!$C13-Prisvekst!$L$8)+1)+1) -> 0 | J34: =J13*(INDEX(Prisvekst!$O$8:$Z$67,(Prosjektdata!J$5-Prisvekst!$L$8)+1,(Prosjektdata!$C13-Prisvekst!$L$8)+1)+1) -> 0 | K34: =K13*(INDEX(Prisvekst!$O$8:$Z$67,(Prosjektdata!K$5-Prisvekst!$L$8)+1,(Prosjektdata!$C13-Prisvekst!$L$8)+1)+1) -> 0 | L34: =L13*(INDEX(Prisvekst!$O$8:$Z$67,(Prosjektdata!L$5-Prisvekst!$L$8)+1,(Prosjektdata!$C13-Prisvekst!$L$8)+1)+1) -> 0 | M34: =M13*(INDEX(Prisvekst!$O$8:$Z$67,(Prosjektdata!M$5-Prisvekst!$L$8)+1,(Prosjektdata!$C13-Prisvekst!$L$8)+1)+1) -> 0 | N34: =N13*(INDEX(Prisvekst!$O$8:$Z$67,(Prosjektdata!N$5-Prisvekst!$L$8)+1,(Prosjektdata!$C13-Prisvekst!$L$8)+1)+1) -> 0 | O34: =O13*(INDEX(Prisvekst!$O$8:$Z$67,(Prosjektdata!O$5-Prisvekst!$L$8)+1,(Prosjektdata!$C13-Prisvekst!$L$8)+1)+1) -> 0 | P34: =P13*(INDEX(Prisvekst!$O$8:$Z$67,(Prosjektdata!P$5-Prisvekst!$L$8)+1,(Prosjektdata!$C13-Prisvekst!$L$8)+1)+1) -> 0 | Q34: =Q13*(INDEX(Prisvekst!$O$8:$Z$67,(Prosjektdata!Q$5-Prisvekst!$L$8)+1,(Prosjektdata!$C13-Prisvekst!$L$8)+1)+1) -> 0 | R34: =R13*(INDEX(Prisvekst!$O$8:$Z$67,(Prosjektdata!R$5-Prisvekst!$L$8)+1,(Prosjektdata!$C13-Prisvekst!$L$8)+1)+1) -> 0 | S34: =S13*(INDEX(Prisvekst!$O$8:$Z$67,(Prosjektdata!S$5-Prisvekst!$L$8)+1,(Prosjektdata!$C13-Prisvekst!$L$8)+1)+1) -> 0 | T34: =T13*(INDEX(Prisvekst!$O$8:$Z$67,(Prosjektdata!T$5-Prisvekst!$L$8)+1,(Prosjektdata!$C13-Prisvekst!$L$8)+1)+1) -> 0 | U34: =U13*(INDEX(Prisvekst!$O$8:$Z$67,(Prosjektdata!U$5-Prisvekst!$L$8)+1,(Prosjektdata!$C13-Prisvekst!$L$8)+1)+1) -> 0 | V34: =V13*(INDEX(Prisvekst!$O$8:$Z$67,(Prosjektdata!V$5-Prisvekst!$L$8)+1,(Prosjektdata!$C13-Prisvekst!$L$8)+1)+1) -> 0 | W34: =W13*(INDEX(Prisvekst!$O$8:$Z$67,(Prosjektdata!W$5-Prisvekst!$L$8)+1,(Prosjektdata!$C13-Prisvekst!$L$8)+1)+1) -> 0 | X34: =X13*(INDEX(Prisvekst!$O$8:$Z$67,(Prosjektdata!X$5-Prisvekst!$L$8)+1,(Prosjektdata!$C13-Prisvekst!$L$8)+1)+1) -> 0 | Y34: =Y13*(INDEX(Prisvekst!$O$8:$Z$67,(Prosjektdata!Y$5-Prisvekst!$L$8)+1,(Prosjektdata!$C13-Prisvekst!$L$8)+1)+1) -> 0 | Z34: =Z13*(INDEX(Prisvekst!$O$8:$Z$67,(Prosjektdata!Z$5-Prisvekst!$L$8)+1,(Prosjektdata!$C13-Prisvekst!$L$8)+1)+1) -> 0 | AA34: =AA13*(INDEX(Prisvekst!$O$8:$Z$67,(Prosjektdata!AA$5-Prisvekst!$L$8)+1,(Prosjektdata!$C13-Prisvekst!$L$8)+1)+1) -> 0 | AB34: =AB13*(INDEX(Prisvekst!$O$8:$Z$67,(Prosjektdata!AB$5-Prisvekst!$L$8)+1,(Prosjektdata!$C13-Prisvekst!$L$8)+1)+1) -> 0 | AC34: =AC13*(INDEX(Prisvekst!$O$8:$Z$67,(Prosjektdata!AC$5-Prisvekst!$L$8)+1,(Prosjektdata!$C13-Prisvekst!$L$8)+1)+1) -> 0 | AD34: =AD13*(INDEX(Prisvekst!$O$8:$Z$67,(Prosjektdata!AD$5-Prisvekst!$L$8)+1,(Prosjektdata!$C13-Prisvekst!$L$8)+1)+1) -> 0 | AE34: =AE13*(INDEX(Prisvekst!$O$8:$Z$67,(Prosjektdata!AE$5-Prisvekst!$L$8)+1,(Prosjektdata!$C13-Prisvekst!$L$8)+1)+1) -> 0 | AF34: =AF13*(INDEX(Prisvekst!$O$8:$Z$67,(Prosjektdata!AF$5-Prisvekst!$L$8)+1,(Prosjektdata!$C13-Prisvekst!$L$8)+1)+1) -> 0 | AG34: =AG13*(INDEX(Prisvekst!$O$8:$Z$67,(Prosjektdata!AG$5-Prisvekst!$L$8)+1,(Prosjektdata!$C13-Prisvekst!$L$8)+1)+1) -> 0 | AH34: =AH13*(INDEX(Prisvekst!$O$8:$Z$67,(Prosjektdata!AH$5-Prisvekst!$L$8)+1,(Prosjektdata!$C13-Prisvekst!$L$8)+1)+1) -> 0 | AI34: =AI13*(INDEX(Prisvekst!$O$8:$Z$67,(Prosjektdata!AI$5-Prisvekst!$L$8)+1,(Prosjektdata!$C13-Prisvekst!$L$8)+1)+1) -> 0 | AJ34: =AJ13*(INDEX(Prisvekst!$O$8:$Z$67,(Prosjektdata!AJ$5-Prisvekst!$L$8)+1,(Prosjektdata!$C13-Prisvekst!$L$8)+1)+1) -> 0 | AK34: =AK13*(INDEX(Prisvekst!$O$8:$Z$67,(Prosjektdata!AK$5-Prisvekst!$L$8)+1,(Prosjektdata!$C13-Prisvekst!$L$8)+1)+1) -> 0 | AL34: =AL13*(INDEX(Prisvekst!$O$8:$Z$67,(Prosjektdata!AL$5-Prisvekst!$L$8)+1,(Prosjektdata!$C13-Prisvekst!$L$8)+1)+1) -> 0 | AM34: =AM13*(INDEX(Prisvekst!$O$8:$Z$67,(Prosjektdata!AM$5-Prisvekst!$L$8)+1,(Prosjektdata!$C13-Prisvekst!$L$8)+1)+1) -> 0 | AN34: =AN13*(INDEX(Prisvekst!$O$8:$Z$67,(Prosjektdata!AN$5-Prisvekst!$L$8)+1,(Prosjektdata!$C13-Prisvekst!$L$8)+1)+1) -> 0 | AO34: =AO13*(INDEX(Prisvekst!$O$8:$Z$67,(Prosjektdata!AO$5-Prisvekst!$L$8)+1,(Prosjektdata!$C13-Prisvekst!$L$8)+1)+1) -> 0 | AP34: =AP13*(INDEX(Prisvekst!$O$8:$Z$67,(Prosjektdata!AP$5-Prisvekst!$L$8)+1,(Prosjektdata!$C13-Prisvekst!$L$8)+1)+1) -> 0 | AQ34: =AQ13*(INDEX(Prisvekst!$O$8:$Z$67,(Prosjektdata!AQ$5-Prisvekst!$L$8)+1,(Prosjektdata!$C13-Prisvekst!$L$8)+1)+1) -> 0 | AR34: =AR13*(INDEX(Prisvekst!$O$8:$Z$67,(Prosjektdata!AR$5-Prisvekst!$L$8)+1,(Prosjektdata!$C13-Prisvekst!$L$8)+1)+1) -> 0 | AS34: =AS13*(INDEX(Prisvekst!$O$8:$Z$67,(Prosjektdata!AS$5-Prisvekst!$L$8)+1,(Prosjektdata!$C13-Prisvekst!$L$8)+1)+1) -> 0 | AT34: =AT13*(INDEX(Prisvekst!$O$8:$Z$67,(Prosjektdata!AT$5-Prisvekst!$L$8)+1,(Prosjektdata!$C13-Prisvekst!$L$8)+1)+1) -> 0 | AU34: =AU13*(INDEX(Prisvekst!$O$8:$Z$67,(Prosjektdata!AU$5-Prisvekst!$L$8)+1,(Prosjektdata!$C13-Prisvekst!$L$8)+1)+1) -> 0 | AV34: =AV13*(INDEX(Prisvekst!$O$8:$Z$67,(Prosjektdata!AV$5-Prisvekst!$L$8)+1,(Prosjektdata!$C13-Prisvekst!$L$8)+1)+1) -> 0 | AW34: =AW13*(INDEX(Prisvekst!$O$8:$Z$67,(Prosjektdata!AW$5-Prisvekst!$L$8)+1,(Prosjektdata!$C13-Prisvekst!$L$8)+1)+1) -> 0 | AX34: =AX13*(INDEX(Prisvekst!$O$8:$Z$67,(Prosjektdata!AX$5-Prisvekst!$L$8)+1,(Prosjektdata!$C13-Prisvekst!$L$8)+1)+1) -> 0 | AY34: =AY13*(INDEX(Prisvekst!$O$8:$Z$67,(Prosjektdata!AY$5-Prisvekst!$L$8)+1,(Prosjektdata!$C13-Prisvekst!$L$8)+1)+1) -> 0 | AZ34: =AZ13*(INDEX(Prisvekst!$O$8:$Z$67,(Prosjektdata!AZ$5-Prisvekst!$L$8)+1,(Prosjektdata!$C13-Prisvekst!$L$8)+1)+1) -> 0 | BA34: =BA13*(INDEX(Prisvekst!$O$8:$Z$67,(Prosjektdata!BA$5-Prisvekst!$L$8)+1,(Prosjektdata!$C13-Prisvekst!$L$8)+1)+1) -> 0 | BB34: =BB13*(INDEX(Prisvekst!$O$8:$Z$67,(Prosjektdata!BB$5-Prisvekst!$L$8)+1,(Prosjektdata!$C13-Prisvekst!$L$8)+1)+1) -> 0 | BC34: =BC13*(INDEX(Prisvekst!$O$8:$Z$67,(Prosjektdata!BC$5-Prisvekst!$L$8)+1,(Prosjektdata!$C13-Prisvekst!$L$8)+1)+1) -> 0 | BD34: =BD13*(INDEX(Prisvekst!$O$8:$Z$67,(Prosjektdata!BD$5-Prisvekst!$L$8)+1,(Prosjektdata!$C13-Prisvekst!$L$8)+1)+1) -> 0 | BE34: =BE13*(INDEX(Prisvekst!$O$8:$Z$67,(Prosjektdata!BE$5-Prisvekst!$L$8)+1,(Prosjektdata!$C13-Prisvekst!$L$8)+1)+1) -> 0 | BF34: =BF13*(INDEX(Prisvekst!$O$8:$Z$67,(Prosjektdata!BF$5-Prisvekst!$L$8)+1,(Prosjektdata!$C13-Prisvekst!$L$8)+1)+1) -> 0
B35: Fylkeskommunale | F35: 0 | H35: =H14*(INDEX(Prisvekst!$O$8:$Z$67,(Prosjektdata!H$5-Prisvekst!$L$8)+1,(Prosjektdata!$C14-Prisvekst!$L$8)+1)+1) -> 0 | I35: =I14*(INDEX(Prisvekst!$O$8:$Z$67,(Prosjektdata!I$5-Prisvekst!$L$8)+1,(Prosjektdata!$C14-Prisvekst!$L$8)+1)+1) -> 0 | J35: =J14*(INDEX(Prisvekst!$O$8:$Z$67,(Prosjektdata!J$5-Prisvekst!$L$8)+1,(Prosjektdata!$C14-Prisvekst!$L$8)+1)+1) -> 0 | K35: =K14*(INDEX(Prisvekst!$O$8:$Z$67,(Prosjektdata!K$5-Prisvekst!$L$8)+1,(Prosjektdata!$C14-Prisvekst!$L$8)+1)+1) -> 0 | L35: =L14*(INDEX(Prisvekst!$O$8:$Z$67,(Prosjektdata!L$5-Prisvekst!$L$8)+1,(Prosjektdata!$C14-Prisvekst!$L$8)+1)+1) -> 0 | M35: =M14*(INDEX(Prisvekst!$O$8:$Z$67,(Prosjektdata!M$5-Prisvekst!$L$8)+1,(Prosjektdata!$C14-Prisvekst!$L$8)+1)+1) -> 0 | N35: =N14*(INDEX(Prisvekst!$O$8:$Z$67,(Prosjektdata!N$5-Prisvekst!$L$8)+1,(Prosjektdata!$C14-Prisvekst!$L$8)+1)+1) -> 0 | O35: =O14*(INDEX(Prisvekst!$O$8:$Z$67,(Prosjektdata!O$5-Prisvekst!$L$8)+1,(Prosjektdata!$C14-Prisvekst!$L$8)+1)+1) -> 0 | P35: =P14*(INDEX(Prisvekst!$O$8:$Z$67,(Prosjektdata!P$5-Prisvekst!$L$8)+1,(Prosjektdata!$C14-Prisvekst!$L$8)+1)+1) -> 0 | Q35: =Q14*(INDEX(Prisvekst!$O$8:$Z$67,(Prosjektdata!Q$5-Prisvekst!$L$8)+1,(Prosjektdata!$C14-Prisvekst!$L$8)+1)+1) -> 0 | R35: =R14*(INDEX(Prisvekst!$O$8:$Z$67,(Prosjektdata!R$5-Prisvekst!$L$8)+1,(Prosjektdata!$C14-Prisvekst!$L$8)+1)+1) -> 0 | S35: =S14*(INDEX(Prisvekst!$O$8:$Z$67,(Prosjektdata!S$5-Prisvekst!$L$8)+1,(Prosjektdata!$C14-Prisvekst!$L$8)+1)+1) -> 0 | T35: =T14*(INDEX(Prisvekst!$O$8:$Z$67,(Prosjektdata!T$5-Prisvekst!$L$8)+1,(Prosjektdata!$C14-Prisvekst!$L$8)+1)+1) -> 0 | U35: =U14*(INDEX(Prisvekst!$O$8:$Z$67,(Prosjektdata!U$5-Prisvekst!$L$8)+1,(Prosjektdata!$C14-Prisvekst!$L$8)+1)+1) -> 0 | V35: =V14*(INDEX(Prisvekst!$O$8:$Z$67,(Prosjektdata!V$5-Prisvekst!$L$8)+1,(Prosjektdata!$C14-Prisvekst!$L$8)+1)+1) -> 0 | W35: =W14*(INDEX(Prisvekst!$O$8:$Z$67,(Prosjektdata!W$5-Prisvekst!$L$8)+1,(Prosjektdata!$C14-Prisvekst!$L$8)+1)+1) -> 0 | X35: =X14*(INDEX(Prisvekst!$O$8:$Z$67,(Prosjektdata!X$5-Prisvekst!$L$8)+1,(Prosjektdata!$C14-Prisvekst!$L$8)+1)+1) -> 0 | Y35: =Y14*(INDEX(Prisvekst!$O$8:$Z$67,(Prosjektdata!Y$5-Prisvekst!$L$8)+1,(Prosjektdata!$C14-Prisvekst!$L$8)+1)+1) -> 0 | Z35: =Z14*(INDEX(Prisvekst!$O$8:$Z$67,(Prosjektdata!Z$5-Prisvekst!$L$8)+1,(Prosjektdata!$C14-Prisvekst!$L$8)+1)+1) -> 0 | AA35: =AA14*(INDEX(Prisvekst!$O$8:$Z$67,(Prosjektdata!AA$5-Prisvekst!$L$8)+1,(Prosjektdata!$C14-Prisvekst!$L$8)+1)+1) -> 0 | AB35: =AB14*(INDEX(Prisvekst!$O$8:$Z$67,(Prosjektdata!AB$5-Prisvekst!$L$8)+1,(Prosjektdata!$C14-Prisvekst!$L$8)+1)+1) -> 0 | AC35: =AC14*(INDEX(Prisvekst!$O$8:$Z$67,(Prosjektdata!AC$5-Prisvekst!$L$8)+1,(Prosjektdata!$C14-Prisvekst!$L$8)+1)+1) -> 0 | AD35: =AD14*(INDEX(Prisvekst!$O$8:$Z$67,(Prosjektdata!AD$5-Prisvekst!$L$8)+1,(Prosjektdata!$C14-Prisvekst!$L$8)+1)+1) -> 0 | AE35: =AE14*(INDEX(Prisvekst!$O$8:$Z$67,(Prosjektdata!AE$5-Prisvekst!$L$8)+1,(Prosjektdata!$C14-Prisvekst!$L$8)+1)+1) -> 0 | AF35: =AF14*(INDEX(Prisvekst!$O$8:$Z$67,(Prosjektdata!AF$5-Prisvekst!$L$8)+1,(Prosjektdata!$C14-Prisvekst!$L$8)+1)+1) -> 0 | AG35: =AG14*(INDEX(Prisvekst!$O$8:$Z$67,(Prosjektdata!AG$5-Prisvekst!$L$8)+1,(Prosjektdata!$C14-Prisvekst!$L$8)+1)+1) -> 0 | AH35: =AH14*(INDEX(Prisvekst!$O$8:$Z$67,(Prosjektdata!AH$5-Prisvekst!$L$8)+1,(Prosjektdata!$C14-Prisvekst!$L$8)+1)+1) -> 0 | AI35: =AI14*(INDEX(Prisvekst!$O$8:$Z$67,(Prosjektdata!AI$5-Prisvekst!$L$8)+1,(Prosjektdata!$C14-Prisvekst!$L$8)+1)+1) -> 0 | AJ35: =AJ14*(INDEX(Prisvekst!$O$8:$Z$67,(Prosjektdata!AJ$5-Prisvekst!$L$8)+1,(Prosjektdata!$C14-Prisvekst!$L$8)+1)+1) -> 0 | AK35: =AK14*(INDEX(Prisvekst!$O$8:$Z$67,(Prosjektdata!AK$5-Prisvekst!$L$8)+1,(Prosjektdata!$C14-Prisvekst!$L$8)+1)+1) -> 0 | AL35: =AL14*(INDEX(Prisvekst!$O$8:$Z$67,(Prosjektdata!AL$5-Prisvekst!$L$8)+1,(Prosjektdata!$C14-Prisvekst!$L$8)+1)+1) -> 0 | AM35: =AM14*(INDEX(Prisvekst!$O$8:$Z$67,(Prosjektdata!AM$5-Prisvekst!$L$8)+1,(Prosjektdata!$C14-Prisvekst!$L$8)+1)+1) -> 0 | AN35: =AN14*(INDEX(Prisvekst!$O$8:$Z$67,(Prosjektdata!AN$5-Prisvekst!$L$8)+1,(Prosjektdata!$C14-Prisvekst!$L$8)+1)+1) -> 0 | AO35: =AO14*(INDEX(Prisvekst!$O$8:$Z$67,(Prosjektdata!AO$5-Prisvekst!$L$8)+1,(Prosjektdata!$C14-Prisvekst!$L$8)+1)+1) -> 0 | AP35: =AP14*(INDEX(Prisvekst!$O$8:$Z$67,(Prosjektdata!AP$5-Prisvekst!$L$8)+1,(Prosjektdata!$C14-Prisvekst!$L$8)+1)+1) -> 0 | AQ35: =AQ14*(INDEX(Prisvekst!$O$8:$Z$67,(Prosjektdata!AQ$5-Prisvekst!$L$8)+1,(Prosjektdata!$C14-Prisvekst!$L$8)+1)+1) -> 0 | AR35: =AR14*(INDEX(Prisvekst!$O$8:$Z$67,(Prosjektdata!AR$5-Prisvekst!$L$8)+1,(Prosjektdata!$C14-Prisvekst!$L$8)+1)+1) -> 0 | AS35: =AS14*(INDEX(Prisvekst!$O$8:$Z$67,(Prosjektdata!AS$5-Prisvekst!$L$8)+1,(Prosjektdata!$C14-Prisvekst!$L$8)+1)+1) -> 0 | AT35: =AT14*(INDEX(Prisvekst!$O$8:$Z$67,(Prosjektdata!AT$5-Prisvekst!$L$8)+1,(Prosjektdata!$C14-Prisvekst!$L$8)+1)+1) -> 0 | AU35: =AU14*(INDEX(Prisvekst!$O$8:$Z$67,(Prosjektdata!AU$5-Prisvekst!$L$8)+1,(Prosjektdata!$C14-Prisvekst!$L$8)+1)+1) -> 0 | AV35: =AV14*(INDEX(Prisvekst!$O$8:$Z$67,(Prosjektdata!AV$5-Prisvekst!$L$8)+1,(Prosjektdata!$C14-Prisvekst!$L$8)+1)+1) -> 0 | AW35: =AW14*(INDEX(Prisvekst!$O$8:$Z$67,(Prosjektdata!AW$5-Prisvekst!$L$8)+1,(Prosjektdata!$C14-Prisvekst!$L$8)+1)+1) -> 0 | AX35: =AX14*(INDEX(Prisvekst!$O$8:$Z$67,(Prosjektdata!AX$5-Prisvekst!$L$8)+1,(Prosjektdata!$C14-Prisvekst!$L$8)+1)+1) -> 0 | AY35: =AY14*(INDEX(Prisvekst!$O$8:$Z$67,(Prosjektdata!AY$5-Prisvekst!$L$8)+1,(Prosjektdata!$C14-Prisvekst!$L$8)+1)+1) -> 0 | AZ35: =AZ14*(INDEX(Prisvekst!$O$8:$Z$67,(Prosjektdata!AZ$5-Prisvekst!$L$8)+1,(Prosjektdata!$C14-Prisvekst!$L$8)+1)+1) -> 0 | BA35: =BA14*(INDEX(Prisvekst!$O$8:$Z$67,(Prosjektdata!BA$5-Prisvekst!$L$8)+1,(Prosjektdata!$C14-Prisvekst!$L$8)+1)+1) -> 0 | BB35: =BB14*(INDEX(Prisvekst!$O$8:$Z$67,(Prosjektdata!BB$5-Prisvekst!$L$8)+1,(Prosjektdata!$C14-Prisvekst!$L$8)+1)+1) -> 0 | BC35: =BC14*(INDEX(Prisvekst!$O$8:$Z$67,(Prosjektdata!BC$5-Prisvekst!$L$8)+1,(Prosjektdata!$C14-Prisvekst!$L$8)+1)+1) -> 0 | BD35: =BD14*(INDEX(Prisvekst!$O$8:$Z$67,(Prosjektdata!BD$5-Prisvekst!$L$8)+1,(Prosjektdata!$C14-Prisvekst!$L$8)+1)+1) -> 0 | BE35: =BE14*(INDEX(Prisvekst!$O$8:$Z$67,(Prosjektdata!BE$5-Prisvekst!$L$8)+1,(Prosjektdata!$C14-Prisvekst!$L$8)+1)+1) -> 0 | BF35: =BF14*(INDEX(Prisvekst!$O$8:$Z$67,(Prosjektdata!BF$5-Prisvekst!$L$8)+1,(Prosjektdata!$C14-Prisvekst!$L$8)+1)+1) -> 0
B36: Øvrig | F36: 0 | H36: =H15*(INDEX(Prisvekst!$O$8:$Z$67,(Prosjektdata!H$5-Prisvekst!$L$8)+1,(Prosjektdata!$C15-Prisvekst!$L$8)+1)+1) -> 0 | I36: =I15*(INDEX(Prisvekst!$O$8:$Z$67,(Prosjektdata!I$5-Prisvekst!$L$8)+1,(Prosjektdata!$C15-Prisvekst!$L$8)+1)+1) -> 0 | J36: =J15*(INDEX(Prisvekst!$O$8:$Z$67,(Prosjektdata!J$5-Prisvekst!$L$8)+1,(Prosjektdata!$C15-Prisvekst!$L$8)+1)+1) -> 0 | K36: =K15*(INDEX(Prisvekst!$O$8:$Z$67,(Prosjektdata!K$5-Prisvekst!$L$8)+1,(Prosjektdata!$C15-Prisvekst!$L$8)+1)+1) -> 0 | L36: =L15*(INDEX(Prisvekst!$O$8:$Z$67,(Prosjektdata!L$5-Prisvekst!$L$8)+1,(Prosjektdata!$C15-Prisvekst!$L$8)+1)+1) -> 0 | M36: =M15*(INDEX(Prisvekst!$O$8:$Z$67,(Prosjektdata!M$5-Prisvekst!$L$8)+1,(Prosjektdata!$C15-Prisvekst!$L$8)+1)+1) -> 0 | N36: =N15*(INDEX(Prisvekst!$O$8:$Z$67,(Prosjektdata!N$5-Prisvekst!$L$8)+1,(Prosjektdata!$C15-Prisvekst!$L$8)+1)+1) -> 0 | O36: =O15*(INDEX(Prisvekst!$O$8:$Z$67,(Prosjektdata!O$5-Prisvekst!$L$8)+1,(Prosjektdata!$C15-Prisvekst!$L$8)+1)+1) -> 0 | P36: =P15*(INDEX(Prisvekst!$O$8:$Z$67,(Prosjektdata!P$5-Prisvekst!$L$8)+1,(Prosjektdata!$C15-Prisvekst!$L$8)+1)+1) -> 0 | Q36: =Q15*(INDEX(Prisvekst!$O$8:$Z$67,(Prosjektdata!Q$5-Prisvekst!$L$8)+1,(Prosjektdata!$C15-Prisvekst!$L$8)+1)+1) -> 0 | R36: =R15*(INDEX(Prisvekst!$O$8:$Z$67,(Prosjektdata!R$5-Prisvekst!$L$8)+1,(Prosjektdata!$C15-Prisvekst!$L$8)+1)+1) -> 0 | S36: =S15*(INDEX(Prisvekst!$O$8:$Z$67,(Prosjektdata!S$5-Prisvekst!$L$8)+1,(Prosjektdata!$C15-Prisvekst!$L$8)+1)+1) -> 0 | T36: =T15*(INDEX(Prisvekst!$O$8:$Z$67,(Prosjektdata!T$5-Prisvekst!$L$8)+1,(Prosjektdata!$C15-Prisvekst!$L$8)+1)+1) -> 0 | U36: =U15*(INDEX(Prisvekst!$O$8:$Z$67,(Prosjektdata!U$5-Prisvekst!$L$8)+1,(Prosjektdata!$C15-Prisvekst!$L$8)+1)+1) -> 0 | V36: =V15*(INDEX(Prisvekst!$O$8:$Z$67,(Prosjektdata!V$5-Prisvekst!$L$8)+1,(Prosjektdata!$C15-Prisvekst!$L$8)+1)+1) -> 0 | W36: =W15*(INDEX(Prisvekst!$O$8:$Z$67,(Prosjektdata!W$5-Prisvekst!$L$8)+1,(Prosjektdata!$C15-Prisvekst!$L$8)+1)+1) -> 0 | X36: =X15*(INDEX(Prisvekst!$O$8:$Z$67,(Prosjektdata!X$5-Prisvekst!$L$8)+1,(Prosjektdata!$C15-Prisvekst!$L$8)+1)+1) -> 0 | Y36: =Y15*(INDEX(Prisvekst!$O$8:$Z$67,(Prosjektdata!Y$5-Prisvekst!$L$8)+1,(Prosjektdata!$C15-Prisvekst!$L$8)+1)+1) -> 0 | Z36: =Z15*(INDEX(Prisvekst!$O$8:$Z$67,(Prosjektdata!Z$5-Prisvekst!$L$8)+1,(Prosjektdata!$C15-Prisvekst!$L$8)+1)+1) -> 0 | AA36: =AA15*(INDEX(Prisvekst!$O$8:$Z$67,(Prosjektdata!AA$5-Prisvekst!$L$8)+1,(Prosjektdata!$C15-Prisvekst!$L$8)+1)+1) -> 0 | AB36: =AB15*(INDEX(Prisvekst!$O$8:$Z$67,(Prosjektdata!AB$5-Prisvekst!$L$8)+1,(Prosjektdata!$C15-Prisvekst!$L$8)+1)+1) -> 0 | AC36: =AC15*(INDEX(Prisvekst!$O$8:$Z$67,(Prosjektdata!AC$5-Prisvekst!$L$8)+1,(Prosjektdata!$C15-Prisvekst!$L$8)+1)+1) -> 0 | AD36: =AD15*(INDEX(Prisvekst!$O$8:$Z$67,(Prosjektdata!AD$5-Prisvekst!$L$8)+1,(Prosjektdata!$C15-Prisvekst!$L$8)+1)+1) -> 0 | AE36: =AE15*(INDEX(Prisvekst!$O$8:$Z$67,(Prosjektdata!AE$5-Prisvekst!$L$8)+1,(Prosjektdata!$C15-Prisvekst!$L$8)+1)+1) -> 0 | AF36: =AF15*(INDEX(Prisvekst!$O$8:$Z$67,(Prosjektdata!AF$5-Prisvekst!$L$8)+1,(Prosjektdata!$C15-Prisvekst!$L$8)+1)+1) -> 0 | AG36: =AG15*(INDEX(Prisvekst!$O$8:$Z$67,(Prosjektdata!AG$5-Prisvekst!$L$8)+1,(Prosjektdata!$C15-Prisvekst!$L$8)+1)+1) -> 0 | AH36: =AH15*(INDEX(Prisvekst!$O$8:$Z$67,(Prosjektdata!AH$5-Prisvekst!$L$8)+1,(Prosjektdata!$C15-Prisvekst!$L$8)+1)+1) -> 0 | AI36: =AI15*(INDEX(Prisvekst!$O$8:$Z$67,(Prosjektdata!AI$5-Prisvekst!$L$8)+1,(Prosjektdata!$C15-Prisvekst!$L$8)+1)+1) -> 0 | AJ36: =AJ15*(INDEX(Prisvekst!$O$8:$Z$67,(Prosjektdata!AJ$5-Prisvekst!$L$8)+1,(Prosjektdata!$C15-Prisvekst!$L$8)+1)+1) -> 0 | AK36: =AK15*(INDEX(Prisvekst!$O$8:$Z$67,(Prosjektdata!AK$5-Prisvekst!$L$8)+1,(Prosjektdata!$C15-Prisvekst!$L$8)+1)+1) -> 0 | AL36: =AL15*(INDEX(Prisvekst!$O$8:$Z$67,(Prosjektdata!AL$5-Prisvekst!$L$8)+1,(Prosjektdata!$C15-Prisvekst!$L$8)+1)+1) -> 0 | AM36: =AM15*(INDEX(Prisvekst!$O$8:$Z$67,(Prosjektdata!AM$5-Prisvekst!$L$8)+1,(Prosjektdata!$C15-Prisvekst!$L$8)+1)+1) -> 0 | AN36: =AN15*(INDEX(Prisvekst!$O$8:$Z$67,(Prosjektdata!AN$5-Prisvekst!$L$8)+1,(Prosjektdata!$C15-Prisvekst!$L$8)+1)+1) -> 0 | AO36: =AO15*(INDEX(Prisvekst!$O$8:$Z$67,(Prosjektdata!AO$5-Prisvekst!$L$8)+1,(Prosjektdata!$C15-Prisvekst!$L$8)+1)+1) -> 0 | AP36: =AP15*(INDEX(Prisvekst!$O$8:$Z$67,(Prosjektdata!AP$5-Prisvekst!$L$8)+1,(Prosjektdata!$C15-Prisvekst!$L$8)+1)+1) -> 0 | AQ36: =AQ15*(INDEX(Prisvekst!$O$8:$Z$67,(Prosjektdata!AQ$5-Prisvekst!$L$8)+1,(Prosjektdata!$C15-Prisvekst!$L$8)+1)+1) -> 0 | AR36: =AR15*(INDEX(Prisvekst!$O$8:$Z$67,(Prosjektdata!AR$5-Prisvekst!$L$8)+1,(Prosjektdata!$C15-Prisvekst!$L$8)+1)+1) -> 0 | AS36: =AS15*(INDEX(Prisvekst!$O$8:$Z$67,(Prosjektdata!AS$5-Prisvekst!$L$8)+1,(Prosjektdata!$C15-Prisvekst!$L$8)+1)+1) -> 0 | AT36: =AT15*(INDEX(Prisvekst!$O$8:$Z$67,(Prosjektdata!AT$5-Prisvekst!$L$8)+1,(Prosjektdata!$C15-Prisvekst!$L$8)+1)+1) -> 0 | AU36: =AU15*(INDEX(Prisvekst!$O$8:$Z$67,(Prosjektdata!AU$5-Prisvekst!$L$8)+1,(Prosjektdata!$C15-Prisvekst!$L$8)+1)+1) -> 0 | AV36: =AV15*(INDEX(Prisvekst!$O$8:$Z$67,(Prosjektdata!AV$5-Prisvekst!$L$8)+1,(Prosjektdata!$C15-Prisvekst!$L$8)+1)+1) -> 0 | AW36: =AW15*(INDEX(Prisvekst!$O$8:$Z$67,(Prosjektdata!AW$5-Prisvekst!$L$8)+1,(Prosjektdata!$C15-Prisvekst!$L$8)+1)+1) -> 0 | AX36: =AX15*(INDEX(Prisvekst!$O$8:$Z$67,(Prosjektdata!AX$5-Prisvekst!$L$8)+1,(Prosjektdata!$C15-Prisvekst!$L$8)+1)+1) -> 0 | AY36: =AY15*(INDEX(Prisvekst!$O$8:$Z$67,(Prosjektdata!AY$5-Prisvekst!$L$8)+1,(Prosjektdata!$C15-Prisvekst!$L$8)+1)+1) -> 0 | AZ36: =AZ15*(INDEX(Prisvekst!$O$8:$Z$67,(Prosjektdata!AZ$5-Prisvekst!$L$8)+1,(Prosjektdata!$C15-Prisvekst!$L$8)+1)+1) -> 0 | BA36: =BA15*(INDEX(Prisvekst!$O$8:$Z$67,(Prosjektdata!BA$5-Prisvekst!$L$8)+1,(Prosjektdata!$C15-Prisvekst!$L$8)+1)+1) -> 0 | BB36: =BB15*(INDEX(Prisvekst!$O$8:$Z$67,(Prosjektdata!BB$5-Prisvekst!$L$8)+1,(Prosjektdata!$C15-Prisvekst!$L$8)+1)+1) -> 0 | BC36: =BC15*(INDEX(Prisvekst!$O$8:$Z$67,(Prosjektdata!BC$5-Prisvekst!$L$8)+1,(Prosjektdata!$C15-Prisvekst!$L$8)+1)+1) -> 0 | BD36: =BD15*(INDEX(Prisvekst!$O$8:$Z$67,(Prosjektdata!BD$5-Prisvekst!$L$8)+1,(Prosjektdata!$C15-Prisvekst!$L$8)+1)+1) -> 0 | BE36: =BE15*(INDEX(Prisvekst!$O$8:$Z$67,(Prosjektdata!BE$5-Prisvekst!$L$8)+1,(Prosjektdata!$C15-Prisvekst!$L$8)+1)+1) -> 0 | BF36: =BF15*(INDEX(Prisvekst!$O$8:$Z$67,(Prosjektdata!BF$5-Prisvekst!$L$8)+1,(Prosjektdata!$C15-Prisvekst!$L$8)+1)+1) -> 0
B37: Sum | F37: 0 | H37: =SUM(H33:H36)*Bevilgningsfaktor -> 0 | I37: 0 | J37: 0 | K37: 0 | L37: 0 | M37: 0 | N37: 0 | O37: 0 | P37: 0 | Q37: 0 | R37: 0 | S37: 0 | T37: 0 | U37: 0 | V37: 0 | W37: 0 | X37: 0 | Y37: 0 | Z37: 0 | AA37: 0 | AB37: 0 | AC37: 0 | AD37: 0 | AE37: 0 | AF37: 0 | AG37: 0 | AH37: 0 | AI37: 0 | AJ37: 0 | AK37: 0 | AL37: 0 | AM37: 0 | AN37: =SUM(AN33:AN36)*Bevilgningsfaktor -> 0 | AO37: 0 | AP37: 0 | AQ37: 0 | AR37: 0 | AS37: 0 | AT37: 0 | AU37: 0 | AV37: 0 | AW37: 0 | AX37: 0 | AY37: 0 | AZ37: 0 | BA37: 0 | BB37: 0 | BC37: 0 | BD37: 0 | BE37: 0 | BF37: 0
A38: Andre tilskudd | B38: A | F38: 0 | H38: =H17*(INDEX(Prisvekst!$O$8:$Z$67,(Prosjektdata!H$5-Prisvekst!$L$8)+1,(Prosjektdata!$C17-Prisvekst!$L$8)+1)+1) -> 0 | I38: =I17*(INDEX(Prisvekst!$O$8:$Z$67,(Prosjektdata!I$5-Prisvekst!$L$8)+1,(Prosjektdata!$C17-Prisvekst!$L$8)+1)+1) -> 0 | J38: =J17*(INDEX(Prisvekst!$O$8:$Z$67,(Prosjektdata!J$5-Prisvekst!$L$8)+1,(Prosjektdata!$C17-Prisvekst!$L$8)+1)+1) -> 0 | K38: =K17*(INDEX(Prisvekst!$O$8:$Z$67,(Prosjektdata!K$5-Prisvekst!$L$8)+1,(Prosjektdata!$C17-Prisvekst!$L$8)+1)+1) -> 0 | L38: =L17*(INDEX(Prisvekst!$O$8:$Z$67,(Prosjektdata!L$5-Prisvekst!$L$8)+1,(Prosjektdata!$C17-Prisvekst!$L$8)+1)+1) -> 0 | M38: =M17*(INDEX(Prisvekst!$O$8:$Z$67,(Prosjektdata!M$5-Prisvekst!$L$8)+1,(Prosjektdata!$C17-Prisvekst!$L$8)+1)+1) -> 0 | N38: =N17*(INDEX(Prisvekst!$O$8:$Z$67,(Prosjektdata!N$5-Prisvekst!$L$8)+1,(Prosjektdata!$C17-Prisvekst!$L$8)+1)+1) -> 0 | O38: =O17*(INDEX(Prisvekst!$O$8:$Z$67,(Prosjektdata!O$5-Prisvekst!$L$8)+1,(Prosjektdata!$C17-Prisvekst!$L$8)+1)+1) -> 0 | P38: =P17*(INDEX(Prisvekst!$O$8:$Z$67,(Prosjektdata!P$5-Prisvekst!$L$8)+1,(Prosjektdata!$C17-Prisvekst!$L$8)+1)+1) -> 0 | Q38: =Q17*(INDEX(Prisvekst!$O$8:$Z$67,(Prosjektdata!Q$5-Prisvekst!$L$8)+1,(Prosjektdata!$C17-Prisvekst!$L$8)+1)+1) -> 0 | R38: =R17*(INDEX(Prisvekst!$O$8:$Z$67,(Prosjektdata!R$5-Prisvekst!$L$8)+1,(Prosjektdata!$C17-Prisvekst!$L$8)+1)+1) -> 0 | S38: =S17*(INDEX(Prisvekst!$O$8:$Z$67,(Prosjektdata!S$5-Prisvekst!$L$8)+1,(Prosjektdata!$C17-Prisvekst!$L$8)+1)+1) -> 0 | T38: =T17*(INDEX(Prisvekst!$O$8:$Z$67,(Prosjektdata!T$5-Prisvekst!$L$8)+1,(Prosjektdata!$C17-Prisvekst!$L$8)+1)+1) -> 0 | U38: =U17*(INDEX(Prisvekst!$O$8:$Z$67,(Prosjektdata!U$5-Prisvekst!$L$8)+1,(Prosjektdata!$C17-Prisvekst!$L$8)+1)+1) -> 0 | V38: =V17*(INDEX(Prisvekst!$O$8:$Z$67,(Prosjektdata!V$5-Prisvekst!$L$8)+1,(Prosjektdata!$C17-Prisvekst!$L$8)+1)+1) -> 0 | W38: =W17*(INDEX(Prisvekst!$O$8:$Z$67,(Prosjektdata!W$5-Prisvekst!$L$8)+1,(Prosjektdata!$C17-Prisvekst!$L$8)+1)+1) -> 0 | X38: =X17*(INDEX(Prisvekst!$O$8:$Z$67,(Prosjektdata!X$5-Prisvekst!$L$8)+1,(Prosjektdata!$C17-Prisvekst!$L$8)+1)+1) -> 0 | Y38: =Y17*(INDEX(Prisvekst!$O$8:$Z$67,(Prosjektdata!Y$5-Prisvekst!$L$8)+1,(Prosjektdata!$C17-Prisvekst!$L$8)+1)+1) -> 0 | Z38: =Z17*(INDEX(Prisvekst!$O$8:$Z$67,(Prosjektdata!Z$5-Prisvekst!$L$8)+1,(Prosjektdata!$C17-Prisvekst!$L$8)+1)+1) -> 0 | AA38: =AA17*(INDEX(Prisvekst!$O$8:$Z$67,(Prosjektdata!AA$5-Prisvekst!$L$8)+1,(Prosjektdata!$C17-Prisvekst!$L$8)+1)+1) -> 0 | AB38: =AB17*(INDEX(Prisvekst!$O$8:$Z$67,(Prosjektdata!AB$5-Prisvekst!$L$8)+1,(Prosjektdata!$C17-Prisvekst!$L$8)+1)+1) -> 0 | AC38: =AC17*(INDEX(Prisvekst!$O$8:$Z$67,(Prosjektdata!AC$5-Prisvekst!$L$8)+1,(Prosjektdata!$C17-Prisvekst!$L$8)+1)+1) -> 0 | AD38: =AD17*(INDEX(Prisvekst!$O$8:$Z$67,(Prosjektdata!AD$5-Prisvekst!$L$8)+1,(Prosjektdata!$C17-Prisvekst!$L$8)+1)+1) -> 0 | AE38: =AE17*(INDEX(Prisvekst!$O$8:$Z$67,(Prosjektdata!AE$5-Prisvekst!$L$8)+1,(Prosjektdata!$C17-Prisvekst!$L$8)+1)+1) -> 0 | AF38: =AF17*(INDEX(Prisvekst!$O$8:$Z$67,(Prosjektdata!AF$5-Prisvekst!$L$8)+1,(Prosjektdata!$C17-Prisvekst!$L$8)+1)+1) -> 0 | AG38: =AG17*(INDEX(Prisvekst!$O$8:$Z$67,(Prosjektdata!AG$5-Prisvekst!$L$8)+1,(Prosjektdata!$C17-Prisvekst!$L$8)+1)+1) -> 0 | AH38: =AH17*(INDEX(Prisvekst!$O$8:$Z$67,(Prosjektdata!AH$5-Prisvekst!$L$8)+1,(Prosjektdata!$C17-Prisvekst!$L$8)+1)+1) -> 0 | AI38: =AI17*(INDEX(Prisvekst!$O$8:$Z$67,(Prosjektdata!AI$5-Prisvekst!$L$8)+1,(Prosjektdata!$C17-Prisvekst!$L$8)+1)+1) -> 0 | AJ38: =AJ17*(INDEX(Prisvekst!$O$8:$Z$67,(Prosjektdata!AJ$5-Prisvekst!$L$8)+1,(Prosjektdata!$C17-Prisvekst!$L$8)+1)+1) -> 0 | AK38: =AK17*(INDEX(Prisvekst!$O$8:$Z$67,(Prosjektdata!AK$5-Prisvekst!$L$8)+1,(Prosjektdata!$C17-Prisvekst!$L$8)+1)+1) -> 0 | AL38: =AL17*(INDEX(Prisvekst!$O$8:$Z$67,(Prosjektdata!AL$5-Prisvekst!$L$8)+1,(Prosjektdata!$C17-Prisvekst!$L$8)+1)+1) -> 0 | AM38: =AM17*(INDEX(Prisvekst!$O$8:$Z$67,(Prosjektdata!AM$5-Prisvekst!$L$8)+1,(Prosjektdata!$C17-Prisvekst!$L$8)+1)+1) -> 0 | AN38: =AN17*(INDEX(Prisvekst!$O$8:$Z$67,(Prosjektdata!AN$5-Prisvekst!$L$8)+1,(Prosjektdata!$C17-Prisvekst!$L$8)+1)+1) -> 0 | AO38: =AO17*(INDEX(Prisvekst!$O$8:$Z$67,(Prosjektdata!AO$5-Prisvekst!$L$8)+1,(Prosjektdata!$C17-Prisvekst!$L$8)+1)+1) -> 0 | AP38: =AP17*(INDEX(Prisvekst!$O$8:$Z$67,(Prosjektdata!AP$5-Prisvekst!$L$8)+1,(Prosjektdata!$C17-Prisvekst!$L$8)+1)+1) -> 0 | AQ38: =AQ17*(INDEX(Prisvekst!$O$8:$Z$67,(Prosjektdata!AQ$5-Prisvekst!$L$8)+1,(Prosjektdata!$C17-Prisvekst!$L$8)+1)+1) -> 0 | AR38: =AR17*(INDEX(Prisvekst!$O$8:$Z$67,(Prosjektdata!AR$5-Prisvekst!$L$8)+1,(Prosjektdata!$C17-Prisvekst!$L$8)+1)+1) -> 0 | AS38: =AS17*(INDEX(Prisvekst!$O$8:$Z$67,(Prosjektdata!AS$5-Prisvekst!$L$8)+1,(Prosjektdata!$C17-Prisvekst!$L$8)+1)+1) -> 0 | AT38: =AT17*(INDEX(Prisvekst!$O$8:$Z$67,(Prosjektdata!AT$5-Prisvekst!$L$8)+1,(Prosjektdata!$C17-Prisvekst!$L$8)+1)+1) -> 0 | AU38: =AU17*(INDEX(Prisvekst!$O$8:$Z$67,(Prosjektdata!AU$5-Prisvekst!$L$8)+1,(Prosjektdata!$C17-Prisvekst!$L$8)+1)+1) -> 0 | AV38: =AV17*(INDEX(Prisvekst!$O$8:$Z$67,(Prosjektdata!AV$5-Prisvekst!$L$8)+1,(Prosjektdata!$C17-Prisvekst!$L$8)+1)+1) -> 0 | AW38: =AW17*(INDEX(Prisvekst!$O$8:$Z$67,(Prosjektdata!AW$5-Prisvekst!$L$8)+1,(Prosjektdata!$C17-Prisvekst!$L$8)+1)+1) -> 0 | AX38: =AX17*(INDEX(Prisvekst!$O$8:$Z$67,(Prosjektdata!AX$5-Prisvekst!$L$8)+1,(Prosjektdata!$C17-Prisvekst!$L$8)+1)+1) -> 0 | AY38: =AY17*(INDEX(Prisvekst!$O$8:$Z$67,(Prosjektdata!AY$5-Prisvekst!$L$8)+1,(Prosjektdata!$C17-Prisvekst!$L$8)+1)+1) -> 0 | AZ38: =AZ17*(INDEX(Prisvekst!$O$8:$Z$67,(Prosjektdata!AZ$5-Prisvekst!$L$8)+1,(Prosjektdata!$C17-Prisvekst!$L$8)+1)+1) -> 0 | BA38: =BA17*(INDEX(Prisvekst!$O$8:$Z$67,(Prosjektdata!BA$5-Prisvekst!$L$8)+1,(Prosjektdata!$C17-Prisvekst!$L$8)+1)+1) -> 0 | BB38: =BB17*(INDEX(Prisvekst!$O$8:$Z$67,(Prosjektdata!BB$5-Prisvekst!$L$8)+1,(Prosjektdata!$C17-Prisvekst!$L$8)+1)+1) -> 0 | BC38: =BC17*(INDEX(Prisvekst!$O$8:$Z$67,(Prosjektdata!BC$5-Prisvekst!$L$8)+1,(Prosjektdata!$C17-Prisvekst!$L$8)+1)+1) -> 0 | BD38: =BD17*(INDEX(Prisvekst!$O$8:$Z$67,(Prosjektdata!BD$5-Prisvekst!$L$8)+1,(Prosjektdata!$C17-Prisvekst!$L$8)+1)+1) -> 0 | BE38: =BE17*(INDEX(Prisvekst!$O$8:$Z$67,(Prosjektdata!BE$5-Prisvekst!$L$8)+1,(Prosjektdata!$C17-Prisvekst!$L$8)+1)+1) -> 0 | BF38: =BF17*(INDEX(Prisvekst!$O$8:$Z$67,(Prosjektdata!BF$5-Prisvekst!$L$8)+1,(Prosjektdata!$C17-Prisvekst!$L$8)+1)+1) -> 0
B39: B | F39: 0 | H39: =H18*(1+$D18)^(H$5-$C18) -> 0 | I39: =I18*(INDEX(Prisvekst!$O$8:$Z$67,(Prosjektdata!I$5-Prisvekst!$L$8)+1,(Prosjektdata!$C18-Prisvekst!$L$8)+1)+1) -> 0 | J39: =J18*(INDEX(Prisvekst!$O$8:$Z$67,(Prosjektdata!J$5-Prisvekst!$L$8)+1,(Prosjektdata!$C18-Prisvekst!$L$8)+1)+1) -> 0 | K39: =K18*(INDEX(Prisvekst!$O$8:$Z$67,(Prosjektdata!K$5-Prisvekst!$L$8)+1,(Prosjektdata!$C18-Prisvekst!$L$8)+1)+1) -> 0 | L39: =L18*(INDEX(Prisvekst!$O$8:$Z$67,(Prosjektdata!L$5-Prisvekst!$L$8)+1,(Prosjektdata!$C18-Prisvekst!$L$8)+1)+1) -> 0 | M39: =M18*(INDEX(Prisvekst!$O$8:$Z$67,(Prosjektdata!M$5-Prisvekst!$L$8)+1,(Prosjektdata!$C18-Prisvekst!$L$8)+1)+1) -> 0 | N39: =N18*(INDEX(Prisvekst!$O$8:$Z$67,(Prosjektdata!N$5-Prisvekst!$L$8)+1,(Prosjektdata!$C18-Prisvekst!$L$8)+1)+1) -> 0 | O39: =O18*(INDEX(Prisvekst!$O$8:$Z$67,(Prosjektdata!O$5-Prisvekst!$L$8)+1,(Prosjektdata!$C18-Prisvekst!$L$8)+1)+1) -> 0 | P39: =P18*(INDEX(Prisvekst!$O$8:$Z$67,(Prosjektdata!P$5-Prisvekst!$L$8)+1,(Prosjektdata!$C18-Prisvekst!$L$8)+1)+1) -> 0 | Q39: =Q18*(INDEX(Prisvekst!$O$8:$Z$67,(Prosjektdata!Q$5-Prisvekst!$L$8)+1,(Prosjektdata!$C18-Prisvekst!$L$8)+1)+1) -> 0 | R39: =R18*(INDEX(Prisvekst!$O$8:$Z$67,(Prosjektdata!R$5-Prisvekst!$L$8)+1,(Prosjektdata!$C18-Prisvekst!$L$8)+1)+1) -> 0 | S39: =S18*(INDEX(Prisvekst!$O$8:$Z$67,(Prosjektdata!S$5-Prisvekst!$L$8)+1,(Prosjektdata!$C18-Prisvekst!$L$8)+1)+1) -> 0 | T39: =T18*(INDEX(Prisvekst!$O$8:$Z$67,(Prosjektdata!T$5-Prisvekst!$L$8)+1,(Prosjektdata!$C18-Prisvekst!$L$8)+1)+1) -> 0 | U39: =U18*(INDEX(Prisvekst!$O$8:$Z$67,(Prosjektdata!U$5-Prisvekst!$L$8)+1,(Prosjektdata!$C18-Prisvekst!$L$8)+1)+1) -> 0 | V39: =V18*(INDEX(Prisvekst!$O$8:$Z$67,(Prosjektdata!V$5-Prisvekst!$L$8)+1,(Prosjektdata!$C18-Prisvekst!$L$8)+1)+1) -> 0 | W39: =W18*(INDEX(Prisvekst!$O$8:$Z$67,(Prosjektdata!W$5-Prisvekst!$L$8)+1,(Prosjektdata!$C18-Prisvekst!$L$8)+1)+1) -> 0 | X39: =X18*(INDEX(Prisvekst!$O$8:$Z$67,(Prosjektdata!X$5-Prisvekst!$L$8)+1,(Prosjektdata!$C18-Prisvekst!$L$8)+1)+1) -> 0 | Y39: =Y18*(INDEX(Prisvekst!$O$8:$Z$67,(Prosjektdata!Y$5-Prisvekst!$L$8)+1,(Prosjektdata!$C18-Prisvekst!$L$8)+1)+1) -> 0 | Z39: =Z18*(INDEX(Prisvekst!$O$8:$Z$67,(Prosjektdata!Z$5-Prisvekst!$L$8)+1,(Prosjektdata!$C18-Prisvekst!$L$8)+1)+1) -> 0 | AA39: =AA18*(INDEX(Prisvekst!$O$8:$Z$67,(Prosjektdata!AA$5-Prisvekst!$L$8)+1,(Prosjektdata!$C18-Prisvekst!$L$8)+1)+1) -> 0 | AB39: =AB18*(INDEX(Prisvekst!$O$8:$Z$67,(Prosjektdata!AB$5-Prisvekst!$L$8)+1,(Prosjektdata!$C18-Prisvekst!$L$8)+1)+1) -> 0 | AC39: =AC18*(INDEX(Prisvekst!$O$8:$Z$67,(Prosjektdata!AC$5-Prisvekst!$L$8)+1,(Prosjektdata!$C18-Prisvekst!$L$8)+1)+1) -> 0 | AD39: =AD18*(INDEX(Prisvekst!$O$8:$Z$67,(Prosjektdata!AD$5-Prisvekst!$L$8)+1,(Prosjektdata!$C18-Prisvekst!$L$8)+1)+1) -> 0 | AE39: =AE18*(INDEX(Prisvekst!$O$8:$Z$67,(Prosjektdata!AE$5-Prisvekst!$L$8)+1,(Prosjektdata!$C18-Prisvekst!$L$8)+1)+1) -> 0 | AF39: =AF18*(INDEX(Prisvekst!$O$8:$Z$67,(Prosjektdata!AF$5-Prisvekst!$L$8)+1,(Prosjektdata!$C18-Prisvekst!$L$8)+1)+1) -> 0 | AG39: =AG18*(INDEX(Prisvekst!$O$8:$Z$67,(Prosjektdata!AG$5-Prisvekst!$L$8)+1,(Prosjektdata!$C18-Prisvekst!$L$8)+1)+1) -> 0 | AH39: =AH18*(INDEX(Prisvekst!$O$8:$Z$67,(Prosjektdata!AH$5-Prisvekst!$L$8)+1,(Prosjektdata!$C18-Prisvekst!$L$8)+1)+1) -> 0 | AI39: =AI18*(INDEX(Prisvekst!$O$8:$Z$67,(Prosjektdata!AI$5-Prisvekst!$L$8)+1,(Prosjektdata!$C18-Prisvekst!$L$8)+1)+1) -> 0 | AJ39: =AJ18*(INDEX(Prisvekst!$O$8:$Z$67,(Prosjektdata!AJ$5-Prisvekst!$L$8)+1,(Prosjektdata!$C18-Prisvekst!$L$8)+1)+1) -> 0 | AK39: =AK18*(INDEX(Prisvekst!$O$8:$Z$67,(Prosjektdata!AK$5-Prisvekst!$L$8)+1,(Prosjektdata!$C18-Prisvekst!$L$8)+1)+1) -> 0 | AL39: =AL18*(INDEX(Prisvekst!$O$8:$Z$67,(Prosjektdata!AL$5-Prisvekst!$L$8)+1,(Prosjektdata!$C18-Prisvekst!$L$8)+1)+1) -> 0 | AM39: =AM18*(INDEX(Prisvekst!$O$8:$Z$67,(Prosjektdata!AM$5-Prisvekst!$L$8)+1,(Prosjektdata!$C18-Prisvekst!$L$8)+1)+1) -> 0 | AN39: =AN18*(INDEX(Prisvekst!$O$8:$Z$67,(Prosjektdata!AN$5-Prisvekst!$L$8)+1,(Prosjektdata!$C18-Prisvekst!$L$8)+1)+1) -> 0 | AO39: =AO18*(INDEX(Prisvekst!$O$8:$Z$67,(Prosjektdata!AO$5-Prisvekst!$L$8)+1,(Prosjektdata!$C18-Prisvekst!$L$8)+1)+1) -> 0 | AP39: =AP18*(INDEX(Prisvekst!$O$8:$Z$67,(Prosjektdata!AP$5-Prisvekst!$L$8)+1,(Prosjektdata!$C18-Prisvekst!$L$8)+1)+1) -> 0 | AQ39: =AQ18*(INDEX(Prisvekst!$O$8:$Z$67,(Prosjektdata!AQ$5-Prisvekst!$L$8)+1,(Prosjektdata!$C18-Prisvekst!$L$8)+1)+1) -> 0 | AR39: =AR18*(INDEX(Prisvekst!$O$8:$Z$67,(Prosjektdata!AR$5-Prisvekst!$L$8)+1,(Prosjektdata!$C18-Prisvekst!$L$8)+1)+1) -> 0 | AS39: =AS18*(INDEX(Prisvekst!$O$8:$Z$67,(Prosjektdata!AS$5-Prisvekst!$L$8)+1,(Prosjektdata!$C18-Prisvekst!$L$8)+1)+1) -> 0 | AT39: =AT18*(INDEX(Prisvekst!$O$8:$Z$67,(Prosjektdata!AT$5-Prisvekst!$L$8)+1,(Prosjektdata!$C18-Prisvekst!$L$8)+1)+1) -> 0 | AU39: =AU18*(INDEX(Prisvekst!$O$8:$Z$67,(Prosjektdata!AU$5-Prisvekst!$L$8)+1,(Prosjektdata!$C18-Prisvekst!$L$8)+1)+1) -> 0 | AV39: =AV18*(INDEX(Prisvekst!$O$8:$Z$67,(Prosjektdata!AV$5-Prisvekst!$L$8)+1,(Prosjektdata!$C18-Prisvekst!$L$8)+1)+1) -> 0 | AW39: =AW18*(INDEX(Prisvekst!$O$8:$Z$67,(Prosjektdata!AW$5-Prisvekst!$L$8)+1,(Prosjektdata!$C18-Prisvekst!$L$8)+1)+1) -> 0 | AX39: =AX18*(INDEX(Prisvekst!$O$8:$Z$67,(Prosjektdata!AX$5-Prisvekst!$L$8)+1,(Prosjektdata!$C18-Prisvekst!$L$8)+1)+1) -> 0 | AY39: =AY18*(INDEX(Prisvekst!$O$8:$Z$67,(Prosjektdata!AY$5-Prisvekst!$L$8)+1,(Prosjektdata!$C18-Prisvekst!$L$8)+1)+1) -> 0 | AZ39: =AZ18*(INDEX(Prisvekst!$O$8:$Z$67,(Prosjektdata!AZ$5-Prisvekst!$L$8)+1,(Prosjektdata!$C18-Prisvekst!$L$8)+1)+1) -> 0 | BA39: =BA18*(INDEX(Prisvekst!$O$8:$Z$67,(Prosjektdata!BA$5-Prisvekst!$L$8)+1,(Prosjektdata!$C18-Prisvekst!$L$8)+1)+1) -> 0 | BB39: =BB18*(INDEX(Prisvekst!$O$8:$Z$67,(Prosjektdata!BB$5-Prisvekst!$L$8)+1,(Prosjektdata!$C18-Prisvekst!$L$8)+1)+1) -> 0 | BC39: =BC18*(INDEX(Prisvekst!$O$8:$Z$67,(Prosjektdata!BC$5-Prisvekst!$L$8)+1,(Prosjektdata!$C18-Prisvekst!$L$8)+1)+1) -> 0 | BD39: =BD18*(INDEX(Prisvekst!$O$8:$Z$67,(Prosjektdata!BD$5-Prisvekst!$L$8)+1,(Prosjektdata!$C18-Prisvekst!$L$8)+1)+1) -> 0 | BE39: =BE18*(INDEX(Prisvekst!$O$8:$Z$67,(Prosjektdata!BE$5-Prisvekst!$L$8)+1,(Prosjektdata!$C18-Prisvekst!$L$8)+1)+1) -> 0 | BF39: =BF18*(INDEX(Prisvekst!$O$8:$Z$67,(Prosjektdata!BF$5-Prisvekst!$L$8)+1,(Prosjektdata!$C18-Prisvekst!$L$8)+1)+1) -> 0
B40: C | F40: 0 | H40: =H19*(1+$D19)^(H$5-$C19) -> 0 | I40: =I19*(INDEX(Prisvekst!$O$8:$Z$67,(Prosjektdata!I$5-Prisvekst!$L$8)+1,(Prosjektdata!$C19-Prisvekst!$L$8)+1)+1) -> 0 | J40: =J19*(INDEX(Prisvekst!$O$8:$Z$67,(Prosjektdata!J$5-Prisvekst!$L$8)+1,(Prosjektdata!$C19-Prisvekst!$L$8)+1)+1) -> 0 | K40: =K19*(INDEX(Prisvekst!$O$8:$Z$67,(Prosjektdata!K$5-Prisvekst!$L$8)+1,(Prosjektdata!$C19-Prisvekst!$L$8)+1)+1) -> 0 | L40: =L19*(INDEX(Prisvekst!$O$8:$Z$67,(Prosjektdata!L$5-Prisvekst!$L$8)+1,(Prosjektdata!$C19-Prisvekst!$L$8)+1)+1) -> 0 | M40: =M19*(INDEX(Prisvekst!$O$8:$Z$67,(Prosjektdata!M$5-Prisvekst!$L$8)+1,(Prosjektdata!$C19-Prisvekst!$L$8)+1)+1) -> 0 | N40: =N19*(INDEX(Prisvekst!$O$8:$Z$67,(Prosjektdata!N$5-Prisvekst!$L$8)+1,(Prosjektdata!$C19-Prisvekst!$L$8)+1)+1) -> 0 | O40: =O19*(INDEX(Prisvekst!$O$8:$Z$67,(Prosjektdata!O$5-Prisvekst!$L$8)+1,(Prosjektdata!$C19-Prisvekst!$L$8)+1)+1) -> 0 | P40: =P19*(INDEX(Prisvekst!$O$8:$Z$67,(Prosjektdata!P$5-Prisvekst!$L$8)+1,(Prosjektdata!$C19-Prisvekst!$L$8)+1)+1) -> 0 | Q40: =Q19*(INDEX(Prisvekst!$O$8:$Z$67,(Prosjektdata!Q$5-Prisvekst!$L$8)+1,(Prosjektdata!$C19-Prisvekst!$L$8)+1)+1) -> 0 | R40: =R19*(INDEX(Prisvekst!$O$8:$Z$67,(Prosjektdata!R$5-Prisvekst!$L$8)+1,(Prosjektdata!$C19-Prisvekst!$L$8)+1)+1) -> 0 | S40: =S19*(INDEX(Prisvekst!$O$8:$Z$67,(Prosjektdata!S$5-Prisvekst!$L$8)+1,(Prosjektdata!$C19-Prisvekst!$L$8)+1)+1) -> 0 | T40: =T19*(INDEX(Prisvekst!$O$8:$Z$67,(Prosjektdata!T$5-Prisvekst!$L$8)+1,(Prosjektdata!$C19-Prisvekst!$L$8)+1)+1) -> 0 | U40: =U19*(INDEX(Prisvekst!$O$8:$Z$67,(Prosjektdata!U$5-Prisvekst!$L$8)+1,(Prosjektdata!$C19-Prisvekst!$L$8)+1)+1) -> 0 | V40: =V19*(INDEX(Prisvekst!$O$8:$Z$67,(Prosjektdata!V$5-Prisvekst!$L$8)+1,(Prosjektdata!$C19-Prisvekst!$L$8)+1)+1) -> 0 | W40: =W19*(INDEX(Prisvekst!$O$8:$Z$67,(Prosjektdata!W$5-Prisvekst!$L$8)+1,(Prosjektdata!$C19-Prisvekst!$L$8)+1)+1) -> 0 | X40: =X19*(INDEX(Prisvekst!$O$8:$Z$67,(Prosjektdata!X$5-Prisvekst!$L$8)+1,(Prosjektdata!$C19-Prisvekst!$L$8)+1)+1) -> 0 | Y40: =Y19*(INDEX(Prisvekst!$O$8:$Z$67,(Prosjektdata!Y$5-Prisvekst!$L$8)+1,(Prosjektdata!$C19-Prisvekst!$L$8)+1)+1) -> 0 | Z40: =Z19*(INDEX(Prisvekst!$O$8:$Z$67,(Prosjektdata!Z$5-Prisvekst!$L$8)+1,(Prosjektdata!$C19-Prisvekst!$L$8)+1)+1) -> 0 | AA40: =AA19*(INDEX(Prisvekst!$O$8:$Z$67,(Prosjektdata!AA$5-Prisvekst!$L$8)+1,(Prosjektdata!$C19-Prisvekst!$L$8)+1)+1) -> 0 | AB40: =AB19*(INDEX(Prisvekst!$O$8:$Z$67,(Prosjektdata!AB$5-Prisvekst!$L$8)+1,(Prosjektdata!$C19-Prisvekst!$L$8)+1)+1) -> 0 | AC40: =AC19*(INDEX(Prisvekst!$O$8:$Z$67,(Prosjektdata!AC$5-Prisvekst!$L$8)+1,(Prosjektdata!$C19-Prisvekst!$L$8)+1)+1) -> 0 | AD40: =AD19*(INDEX(Prisvekst!$O$8:$Z$67,(Prosjektdata!AD$5-Prisvekst!$L$8)+1,(Prosjektdata!$C19-Prisvekst!$L$8)+1)+1) -> 0 | AE40: =AE19*(INDEX(Prisvekst!$O$8:$Z$67,(Prosjektdata!AE$5-Prisvekst!$L$8)+1,(Prosjektdata!$C19-Prisvekst!$L$8)+1)+1) -> 0 | AF40: =AF19*(INDEX(Prisvekst!$O$8:$Z$67,(Prosjektdata!AF$5-Prisvekst!$L$8)+1,(Prosjektdata!$C19-Prisvekst!$L$8)+1)+1) -> 0 | AG40: =AG19*(INDEX(Prisvekst!$O$8:$Z$67,(Prosjektdata!AG$5-Prisvekst!$L$8)+1,(Prosjektdata!$C19-Prisvekst!$L$8)+1)+1) -> 0 | AH40: =AH19*(INDEX(Prisvekst!$O$8:$Z$67,(Prosjektdata!AH$5-Prisvekst!$L$8)+1,(Prosjektdata!$C19-Prisvekst!$L$8)+1)+1) -> 0 | AI40: =AI19*(INDEX(Prisvekst!$O$8:$Z$67,(Prosjektdata!AI$5-Prisvekst!$L$8)+1,(Prosjektdata!$C19-Prisvekst!$L$8)+1)+1) -> 0 | AJ40: =AJ19*(INDEX(Prisvekst!$O$8:$Z$67,(Prosjektdata!AJ$5-Prisvekst!$L$8)+1,(Prosjektdata!$C19-Prisvekst!$L$8)+1)+1) -> 0 | AK40: =AK19*(INDEX(Prisvekst!$O$8:$Z$67,(Prosjektdata!AK$5-Prisvekst!$L$8)+1,(Prosjektdata!$C19-Prisvekst!$L$8)+1)+1) -> 0 | AL40: =AL19*(INDEX(Prisvekst!$O$8:$Z$67,(Prosjektdata!AL$5-Prisvekst!$L$8)+1,(Prosjektdata!$C19-Prisvekst!$L$8)+1)+1) -> 0 | AM40: =AM19*(INDEX(Prisvekst!$O$8:$Z$67,(Prosjektdata!AM$5-Prisvekst!$L$8)+1,(Prosjektdata!$C19-Prisvekst!$L$8)+1)+1) -> 0 | AN40: =AN19*(INDEX(Prisvekst!$O$8:$Z$67,(Prosjektdata!AN$5-Prisvekst!$L$8)+1,(Prosjektdata!$C19-Prisvekst!$L$8)+1)+1) -> 0 | AO40: =AO19*(INDEX(Prisvekst!$O$8:$Z$67,(Prosjektdata!AO$5-Prisvekst!$L$8)+1,(Prosjektdata!$C19-Prisvekst!$L$8)+1)+1) -> 0 | AP40: =AP19*(INDEX(Prisvekst!$O$8:$Z$67,(Prosjektdata!AP$5-Prisvekst!$L$8)+1,(Prosjektdata!$C19-Prisvekst!$L$8)+1)+1) -> 0 | AQ40: =AQ19*(INDEX(Prisvekst!$O$8:$Z$67,(Prosjektdata!AQ$5-Prisvekst!$L$8)+1,(Prosjektdata!$C19-Prisvekst!$L$8)+1)+1) -> 0 | AR40: =AR19*(INDEX(Prisvekst!$O$8:$Z$67,(Prosjektdata!AR$5-Prisvekst!$L$8)+1,(Prosjektdata!$C19-Prisvekst!$L$8)+1)+1) -> 0 | AS40: =AS19*(INDEX(Prisvekst!$O$8:$Z$67,(Prosjektdata!AS$5-Prisvekst!$L$8)+1,(Prosjektdata!$C19-Prisvekst!$L$8)+1)+1) -> 0 | AT40: =AT19*(INDEX(Prisvekst!$O$8:$Z$67,(Prosjektdata!AT$5-Prisvekst!$L$8)+1,(Prosjektdata!$C19-Prisvekst!$L$8)+1)+1) -> 0 | AU40: =AU19*(INDEX(Prisvekst!$O$8:$Z$67,(Prosjektdata!AU$5-Prisvekst!$L$8)+1,(Prosjektdata!$C19-Prisvekst!$L$8)+1)+1) -> 0 | AV40: =AV19*(INDEX(Prisvekst!$O$8:$Z$67,(Prosjektdata!AV$5-Prisvekst!$L$8)+1,(Prosjektdata!$C19-Prisvekst!$L$8)+1)+1) -> 0 | AW40: =AW19*(INDEX(Prisvekst!$O$8:$Z$67,(Prosjektdata!AW$5-Prisvekst!$L$8)+1,(Prosjektdata!$C19-Prisvekst!$L$8)+1)+1) -> 0 | AX40: =AX19*(INDEX(Prisvekst!$O$8:$Z$67,(Prosjektdata!AX$5-Prisvekst!$L$8)+1,(Prosjektdata!$C19-Prisvekst!$L$8)+1)+1) -> 0 | AY40: =AY19*(INDEX(Prisvekst!$O$8:$Z$67,(Prosjektdata!AY$5-Prisvekst!$L$8)+1,(Prosjektdata!$C19-Prisvekst!$L$8)+1)+1) -> 0 | AZ40: =AZ19*(INDEX(Prisvekst!$O$8:$Z$67,(Prosjektdata!AZ$5-Prisvekst!$L$8)+1,(Prosjektdata!$C19-Prisvekst!$L$8)+1)+1) -> 0 | BA40: =BA19*(INDEX(Prisvekst!$O$8:$Z$67,(Prosjektdata!BA$5-Prisvekst!$L$8)+1,(Prosjektdata!$C19-Prisvekst!$L$8)+1)+1) -> 0 | BB40: =BB19*(INDEX(Prisvekst!$O$8:$Z$67,(Prosjektdata!BB$5-Prisvekst!$L$8)+1,(Prosjektdata!$C19-Prisvekst!$L$8)+1)+1) -> 0 | BC40: =BC19*(INDEX(Prisvekst!$O$8:$Z$67,(Prosjektdata!BC$5-Prisvekst!$L$8)+1,(Prosjektdata!$C19-Prisvekst!$L$8)+1)+1) -> 0 | BD40: =BD19*(INDEX(Prisvekst!$O$8:$Z$67,(Prosjektdata!BD$5-Prisvekst!$L$8)+1,(Prosjektdata!$C19-Prisvekst!$L$8)+1)+1) -> 0 | BE40: =BE19*(INDEX(Prisvekst!$O$8:$Z$67,(Prosjektdata!BE$5-Prisvekst!$L$8)+1,(Prosjektdata!$C19-Prisvekst!$L$8)+1)+1) -> 0 | BF40: =BF19*(INDEX(Prisvekst!$O$8:$Z$67,(Prosjektdata!BF$5-Prisvekst!$L$8)+1,(Prosjektdata!$C19-Prisvekst!$L$8)+1)+1) -> 0
B41: D | F41: 0 | H41: =H20*(1+$D20)^(H$5-$C20) -> 0 | I41: =I20*(INDEX(Prisvekst!$O$8:$Z$67,(Prosjektdata!I$5-Prisvekst!$L$8)+1,(Prosjektdata!$C20-Prisvekst!$L$8)+1)+1) -> 0 | J41: =J20*(INDEX(Prisvekst!$O$8:$Z$67,(Prosjektdata!J$5-Prisvekst!$L$8)+1,(Prosjektdata!$C20-Prisvekst!$L$8)+1)+1) -> 0 | K41: =K20*(INDEX(Prisvekst!$O$8:$Z$67,(Prosjektdata!K$5-Prisvekst!$L$8)+1,(Prosjektdata!$C20-Prisvekst!$L$8)+1)+1) -> 0 | L41: =L20*(INDEX(Prisvekst!$O$8:$Z$67,(Prosjektdata!L$5-Prisvekst!$L$8)+1,(Prosjektdata!$C20-Prisvekst!$L$8)+1)+1) -> 0 | M41: =M20*(INDEX(Prisvekst!$O$8:$Z$67,(Prosjektdata!M$5-Prisvekst!$L$8)+1,(Prosjektdata!$C20-Prisvekst!$L$8)+1)+1) -> 0 | N41: =N20*(INDEX(Prisvekst!$O$8:$Z$67,(Prosjektdata!N$5-Prisvekst!$L$8)+1,(Prosjektdata!$C20-Prisvekst!$L$8)+1)+1) -> 0 | O41: =O20*(INDEX(Prisvekst!$O$8:$Z$67,(Prosjektdata!O$5-Prisvekst!$L$8)+1,(Prosjektdata!$C20-Prisvekst!$L$8)+1)+1) -> 0 | P41: =P20*(INDEX(Prisvekst!$O$8:$Z$67,(Prosjektdata!P$5-Prisvekst!$L$8)+1,(Prosjektdata!$C20-Prisvekst!$L$8)+1)+1) -> 0 | Q41: =Q20*(INDEX(Prisvekst!$O$8:$Z$67,(Prosjektdata!Q$5-Prisvekst!$L$8)+1,(Prosjektdata!$C20-Prisvekst!$L$8)+1)+1) -> 0 | R41: =R20*(INDEX(Prisvekst!$O$8:$Z$67,(Prosjektdata!R$5-Prisvekst!$L$8)+1,(Prosjektdata!$C20-Prisvekst!$L$8)+1)+1) -> 0 | S41: =S20*(INDEX(Prisvekst!$O$8:$Z$67,(Prosjektdata!S$5-Prisvekst!$L$8)+1,(Prosjektdata!$C20-Prisvekst!$L$8)+1)+1) -> 0 | T41: =T20*(INDEX(Prisvekst!$O$8:$Z$67,(Prosjektdata!T$5-Prisvekst!$L$8)+1,(Prosjektdata!$C20-Prisvekst!$L$8)+1)+1) -> 0 | U41: =U20*(INDEX(Prisvekst!$O$8:$Z$67,(Prosjektdata!U$5-Prisvekst!$L$8)+1,(Prosjektdata!$C20-Prisvekst!$L$8)+1)+1) -> 0 | V41: =V20*(INDEX(Prisvekst!$O$8:$Z$67,(Prosjektdata!V$5-Prisvekst!$L$8)+1,(Prosjektdata!$C20-Prisvekst!$L$8)+1)+1) -> 0 | W41: =W20*(INDEX(Prisvekst!$O$8:$Z$67,(Prosjektdata!W$5-Prisvekst!$L$8)+1,(Prosjektdata!$C20-Prisvekst!$L$8)+1)+1) -> 0 | X41: =X20*(INDEX(Prisvekst!$O$8:$Z$67,(Prosjektdata!X$5-Prisvekst!$L$8)+1,(Prosjektdata!$C20-Prisvekst!$L$8)+1)+1) -> 0 | Y41: =Y20*(INDEX(Prisvekst!$O$8:$Z$67,(Prosjektdata!Y$5-Prisvekst!$L$8)+1,(Prosjektdata!$C20-Prisvekst!$L$8)+1)+1) -> 0 | Z41: =Z20*(INDEX(Prisvekst!$O$8:$Z$67,(Prosjektdata!Z$5-Prisvekst!$L$8)+1,(Prosjektdata!$C20-Prisvekst!$L$8)+1)+1) -> 0 | AA41: =AA20*(INDEX(Prisvekst!$O$8:$Z$67,(Prosjektdata!AA$5-Prisvekst!$L$8)+1,(Prosjektdata!$C20-Prisvekst!$L$8)+1)+1) -> 0 | AB41: =AB20*(INDEX(Prisvekst!$O$8:$Z$67,(Prosjektdata!AB$5-Prisvekst!$L$8)+1,(Prosjektdata!$C20-Prisvekst!$L$8)+1)+1) -> 0 | AC41: =AC20*(INDEX(Prisvekst!$O$8:$Z$67,(Prosjektdata!AC$5-Prisvekst!$L$8)+1,(Prosjektdata!$C20-Prisvekst!$L$8)+1)+1) -> 0 | AD41: =AD20*(INDEX(Prisvekst!$O$8:$Z$67,(Prosjektdata!AD$5-Prisvekst!$L$8)+1,(Prosjektdata!$C20-Prisvekst!$L$8)+1)+1) -> 0 | AE41: =AE20*(INDEX(Prisvekst!$O$8:$Z$67,(Prosjektdata!AE$5-Prisvekst!$L$8)+1,(Prosjektdata!$C20-Prisvekst!$L$8)+1)+1) -> 0 | AF41: =AF20*(INDEX(Prisvekst!$O$8:$Z$67,(Prosjektdata!AF$5-Prisvekst!$L$8)+1,(Prosjektdata!$C20-Prisvekst!$L$8)+1)+1) -> 0 | AG41: =AG20*(INDEX(Prisvekst!$O$8:$Z$67,(Prosjektdata!AG$5-Prisvekst!$L$8)+1,(Prosjektdata!$C20-Prisvekst!$L$8)+1)+1) -> 0 | AH41: =AH20*(INDEX(Prisvekst!$O$8:$Z$67,(Prosjektdata!AH$5-Prisvekst!$L$8)+1,(Prosjektdata!$C20-Prisvekst!$L$8)+1)+1) -> 0 | AI41: =AI20*(INDEX(Prisvekst!$O$8:$Z$67,(Prosjektdata!AI$5-Prisvekst!$L$8)+1,(Prosjektdata!$C20-Prisvekst!$L$8)+1)+1) -> 0 | AJ41: =AJ20*(INDEX(Prisvekst!$O$8:$Z$67,(Prosjektdata!AJ$5-Prisvekst!$L$8)+1,(Prosjektdata!$C20-Prisvekst!$L$8)+1)+1) -> 0 | AK41: =AK20*(INDEX(Prisvekst!$O$8:$Z$67,(Prosjektdata!AK$5-Prisvekst!$L$8)+1,(Prosjektdata!$C20-Prisvekst!$L$8)+1)+1) -> 0 | AL41: =AL20*(INDEX(Prisvekst!$O$8:$Z$67,(Prosjektdata!AL$5-Prisvekst!$L$8)+1,(Prosjektdata!$C20-Prisvekst!$L$8)+1)+1) -> 0 | AM41: =AM20*(INDEX(Prisvekst!$O$8:$Z$67,(Prosjektdata!AM$5-Prisvekst!$L$8)+1,(Prosjektdata!$C20-Prisvekst!$L$8)+1)+1) -> 0 | AN41: =AN20*(INDEX(Prisvekst!$O$8:$Z$67,(Prosjektdata!AN$5-Prisvekst!$L$8)+1,(Prosjektdata!$C20-Prisvekst!$L$8)+1)+1) -> 0 | AO41: =AO20*(INDEX(Prisvekst!$O$8:$Z$67,(Prosjektdata!AO$5-Prisvekst!$L$8)+1,(Prosjektdata!$C20-Prisvekst!$L$8)+1)+1) -> 0 | AP41: =AP20*(INDEX(Prisvekst!$O$8:$Z$67,(Prosjektdata!AP$5-Prisvekst!$L$8)+1,(Prosjektdata!$C20-Prisvekst!$L$8)+1)+1) -> 0 | AQ41: =AQ20*(INDEX(Prisvekst!$O$8:$Z$67,(Prosjektdata!AQ$5-Prisvekst!$L$8)+1,(Prosjektdata!$C20-Prisvekst!$L$8)+1)+1) -> 0 | AR41: =AR20*(INDEX(Prisvekst!$O$8:$Z$67,(Prosjektdata!AR$5-Prisvekst!$L$8)+1,(Prosjektdata!$C20-Prisvekst!$L$8)+1)+1) -> 0 | AS41: =AS20*(INDEX(Prisvekst!$O$8:$Z$67,(Prosjektdata!AS$5-Prisvekst!$L$8)+1,(Prosjektdata!$C20-Prisvekst!$L$8)+1)+1) -> 0 | AT41: =AT20*(INDEX(Prisvekst!$O$8:$Z$67,(Prosjektdata!AT$5-Prisvekst!$L$8)+1,(Prosjektdata!$C20-Prisvekst!$L$8)+1)+1) -> 0 | AU41: =AU20*(INDEX(Prisvekst!$O$8:$Z$67,(Prosjektdata!AU$5-Prisvekst!$L$8)+1,(Prosjektdata!$C20-Prisvekst!$L$8)+1)+1) -> 0 | AV41: =AV20*(INDEX(Prisvekst!$O$8:$Z$67,(Prosjektdata!AV$5-Prisvekst!$L$8)+1,(Prosjektdata!$C20-Prisvekst!$L$8)+1)+1) -> 0 | AW41: =AW20*(INDEX(Prisvekst!$O$8:$Z$67,(Prosjektdata!AW$5-Prisvekst!$L$8)+1,(Prosjektdata!$C20-Prisvekst!$L$8)+1)+1) -> 0 | AX41: =AX20*(INDEX(Prisvekst!$O$8:$Z$67,(Prosjektdata!AX$5-Prisvekst!$L$8)+1,(Prosjektdata!$C20-Prisvekst!$L$8)+1)+1) -> 0 | AY41: =AY20*(INDEX(Prisvekst!$O$8:$Z$67,(Prosjektdata!AY$5-Prisvekst!$L$8)+1,(Prosjektdata!$C20-Prisvekst!$L$8)+1)+1) -> 0 | AZ41: =AZ20*(INDEX(Prisvekst!$O$8:$Z$67,(Prosjektdata!AZ$5-Prisvekst!$L$8)+1,(Prosjektdata!$C20-Prisvekst!$L$8)+1)+1) -> 0 | BA41: =BA20*(INDEX(Prisvekst!$O$8:$Z$67,(Prosjektdata!BA$5-Prisvekst!$L$8)+1,(Prosjektdata!$C20-Prisvekst!$L$8)+1)+1) -> 0 | BB41: =BB20*(INDEX(Prisvekst!$O$8:$Z$67,(Prosjektdata!BB$5-Prisvekst!$L$8)+1,(Prosjektdata!$C20-Prisvekst!$L$8)+1)+1) -> 0 | BC41: =BC20*(INDEX(Prisvekst!$O$8:$Z$67,(Prosjektdata!BC$5-Prisvekst!$L$8)+1,(Prosjektdata!$C20-Prisvekst!$L$8)+1)+1) -> 0 | BD41: =BD20*(INDEX(Prisvekst!$O$8:$Z$67,(Prosjektdata!BD$5-Prisvekst!$L$8)+1,(Prosjektdata!$C20-Prisvekst!$L$8)+1)+1) -> 0 | BE41: =BE20*(INDEX(Prisvekst!$O$8:$Z$67,(Prosjektdata!BE$5-Prisvekst!$L$8)+1,(Prosjektdata!$C20-Prisvekst!$L$8)+1)+1) -> 0 | BF41: =BF20*(INDEX(Prisvekst!$O$8:$Z$67,(Prosjektdata!BF$5-Prisvekst!$L$8)+1,(Prosjektdata!$C20-Prisvekst!$L$8)+1)+1) -> 0
B42: E | F42: 0 | H42: =H21*(1+$D21)^(H$5-$C21) -> 0 | I42: =I21*(INDEX(Prisvekst!$O$8:$Z$67,(Prosjektdata!I$5-Prisvekst!$L$8)+1,(Prosjektdata!$C21-Prisvekst!$L$8)+1)+1) -> 0 | J42: =J21*(INDEX(Prisvekst!$O$8:$Z$67,(Prosjektdata!J$5-Prisvekst!$L$8)+1,(Prosjektdata!$C21-Prisvekst!$L$8)+1)+1) -> 0 | K42: =K21*(INDEX(Prisvekst!$O$8:$Z$67,(Prosjektdata!K$5-Prisvekst!$L$8)+1,(Prosjektdata!$C21-Prisvekst!$L$8)+1)+1) -> 0 | L42: =L21*(INDEX(Prisvekst!$O$8:$Z$67,(Prosjektdata!L$5-Prisvekst!$L$8)+1,(Prosjektdata!$C21-Prisvekst!$L$8)+1)+1) -> 0 | M42: =M21*(INDEX(Prisvekst!$O$8:$Z$67,(Prosjektdata!M$5-Prisvekst!$L$8)+1,(Prosjektdata!$C21-Prisvekst!$L$8)+1)+1) -> 0 | N42: =N21*(INDEX(Prisvekst!$O$8:$Z$67,(Prosjektdata!N$5-Prisvekst!$L$8)+1,(Prosjektdata!$C21-Prisvekst!$L$8)+1)+1) -> 0 | O42: =O21*(INDEX(Prisvekst!$O$8:$Z$67,(Prosjektdata!O$5-Prisvekst!$L$8)+1,(Prosjektdata!$C21-Prisvekst!$L$8)+1)+1) -> 0 | P42: =P21*(INDEX(Prisvekst!$O$8:$Z$67,(Prosjektdata!P$5-Prisvekst!$L$8)+1,(Prosjektdata!$C21-Prisvekst!$L$8)+1)+1) -> 0 | Q42: =Q21*(INDEX(Prisvekst!$O$8:$Z$67,(Prosjektdata!Q$5-Prisvekst!$L$8)+1,(Prosjektdata!$C21-Prisvekst!$L$8)+1)+1) -> 0 | R42: =R21*(INDEX(Prisvekst!$O$8:$Z$67,(Prosjektdata!R$5-Prisvekst!$L$8)+1,(Prosjektdata!$C21-Prisvekst!$L$8)+1)+1) -> 0 | S42: =S21*(INDEX(Prisvekst!$O$8:$Z$67,(Prosjektdata!S$5-Prisvekst!$L$8)+1,(Prosjektdata!$C21-Prisvekst!$L$8)+1)+1) -> 0 | T42: =T21*(INDEX(Prisvekst!$O$8:$Z$67,(Prosjektdata!T$5-Prisvekst!$L$8)+1,(Prosjektdata!$C21-Prisvekst!$L$8)+1)+1) -> 0 | U42: =U21*(INDEX(Prisvekst!$O$8:$Z$67,(Prosjektdata!U$5-Prisvekst!$L$8)+1,(Prosjektdata!$C21-Prisvekst!$L$8)+1)+1) -> 0 | V42: =V21*(INDEX(Prisvekst!$O$8:$Z$67,(Prosjektdata!V$5-Prisvekst!$L$8)+1,(Prosjektdata!$C21-Prisvekst!$L$8)+1)+1) -> 0 | W42: =W21*(INDEX(Prisvekst!$O$8:$Z$67,(Prosjektdata!W$5-Prisvekst!$L$8)+1,(Prosjektdata!$C21-Prisvekst!$L$8)+1)+1) -> 0 | X42: =X21*(INDEX(Prisvekst!$O$8:$Z$67,(Prosjektdata!X$5-Prisvekst!$L$8)+1,(Prosjektdata!$C21-Prisvekst!$L$8)+1)+1) -> 0 | Y42: =Y21*(INDEX(Prisvekst!$O$8:$Z$67,(Prosjektdata!Y$5-Prisvekst!$L$8)+1,(Prosjektdata!$C21-Prisvekst!$L$8)+1)+1) -> 0 | Z42: =Z21*(INDEX(Prisvekst!$O$8:$Z$67,(Prosjektdata!Z$5-Prisvekst!$L$8)+1,(Prosjektdata!$C21-Prisvekst!$L$8)+1)+1) -> 0 | AA42: =AA21*(INDEX(Prisvekst!$O$8:$Z$67,(Prosjektdata!AA$5-Prisvekst!$L$8)+1,(Prosjektdata!$C21-Prisvekst!$L$8)+1)+1) -> 0 | AB42: =AB21*(INDEX(Prisvekst!$O$8:$Z$67,(Prosjektdata!AB$5-Prisvekst!$L$8)+1,(Prosjektdata!$C21-Prisvekst!$L$8)+1)+1) -> 0 | AC42: =AC21*(INDEX(Prisvekst!$O$8:$Z$67,(Prosjektdata!AC$5-Prisvekst!$L$8)+1,(Prosjektdata!$C21-Prisvekst!$L$8)+1)+1) -> 0 | AD42: =AD21*(INDEX(Prisvekst!$O$8:$Z$67,(Prosjektdata!AD$5-Prisvekst!$L$8)+1,(Prosjektdata!$C21-Prisvekst!$L$8)+1)+1) -> 0 | AE42: =AE21*(INDEX(Prisvekst!$O$8:$Z$67,(Prosjektdata!AE$5-Prisvekst!$L$8)+1,(Prosjektdata!$C21-Prisvekst!$L$8)+1)+1) -> 0 | AF42: =AF21*(INDEX(Prisvekst!$O$8:$Z$67,(Prosjektdata!AF$5-Prisvekst!$L$8)+1,(Prosjektdata!$C21-Prisvekst!$L$8)+1)+1) -> 0 | AG42: =AG21*(INDEX(Prisvekst!$O$8:$Z$67,(Prosjektdata!AG$5-Prisvekst!$L$8)+1,(Prosjektdata!$C21-Prisvekst!$L$8)+1)+1) -> 0 | AH42: =AH21*(INDEX(Prisvekst!$O$8:$Z$67,(Prosjektdata!AH$5-Prisvekst!$L$8)+1,(Prosjektdata!$C21-Prisvekst!$L$8)+1)+1) -> 0 | AI42: =AI21*(INDEX(Prisvekst!$O$8:$Z$67,(Prosjektdata!AI$5-Prisvekst!$L$8)+1,(Prosjektdata!$C21-Prisvekst!$L$8)+1)+1) -> 0 | AJ42: =AJ21*(INDEX(Prisvekst!$O$8:$Z$67,(Prosjektdata!AJ$5-Prisvekst!$L$8)+1,(Prosjektdata!$C21-Prisvekst!$L$8)+1)+1) -> 0 | AK42: =AK21*(INDEX(Prisvekst!$O$8:$Z$67,(Prosjektdata!AK$5-Prisvekst!$L$8)+1,(Prosjektdata!$C21-Prisvekst!$L$8)+1)+1) -> 0 | AL42: =AL21*(INDEX(Prisvekst!$O$8:$Z$67,(Prosjektdata!AL$5-Prisvekst!$L$8)+1,(Prosjektdata!$C21-Prisvekst!$L$8)+1)+1) -> 0 | AM42: =AM21*(INDEX(Prisvekst!$O$8:$Z$67,(Prosjektdata!AM$5-Prisvekst!$L$8)+1,(Prosjektdata!$C21-Prisvekst!$L$8)+1)+1) -> 0 | AN42: =AN21*(INDEX(Prisvekst!$O$8:$Z$67,(Prosjektdata!AN$5-Prisvekst!$L$8)+1,(Prosjektdata!$C21-Prisvekst!$L$8)+1)+1) -> 0 | AO42: =AO21*(INDEX(Prisvekst!$O$8:$Z$67,(Prosjektdata!AO$5-Prisvekst!$L$8)+1,(Prosjektdata!$C21-Prisvekst!$L$8)+1)+1) -> 0 | AP42: =AP21*(INDEX(Prisvekst!$O$8:$Z$67,(Prosjektdata!AP$5-Prisvekst!$L$8)+1,(Prosjektdata!$C21-Prisvekst!$L$8)+1)+1) -> 0 | AQ42: =AQ21*(INDEX(Prisvekst!$O$8:$Z$67,(Prosjektdata!AQ$5-Prisvekst!$L$8)+1,(Prosjektdata!$C21-Prisvekst!$L$8)+1)+1) -> 0 | AR42: =AR21*(INDEX(Prisvekst!$O$8:$Z$67,(Prosjektdata!AR$5-Prisvekst!$L$8)+1,(Prosjektdata!$C21-Prisvekst!$L$8)+1)+1) -> 0 | AS42: =AS21*(INDEX(Prisvekst!$O$8:$Z$67,(Prosjektdata!AS$5-Prisvekst!$L$8)+1,(Prosjektdata!$C21-Prisvekst!$L$8)+1)+1) -> 0 | AT42: =AT21*(INDEX(Prisvekst!$O$8:$Z$67,(Prosjektdata!AT$5-Prisvekst!$L$8)+1,(Prosjektdata!$C21-Prisvekst!$L$8)+1)+1) -> 0 | AU42: =AU21*(INDEX(Prisvekst!$O$8:$Z$67,(Prosjektdata!AU$5-Prisvekst!$L$8)+1,(Prosjektdata!$C21-Prisvekst!$L$8)+1)+1) -> 0 | AV42: =AV21*(INDEX(Prisvekst!$O$8:$Z$67,(Prosjektdata!AV$5-Prisvekst!$L$8)+1,(Prosjektdata!$C21-Prisvekst!$L$8)+1)+1) -> 0 | AW42: =AW21*(INDEX(Prisvekst!$O$8:$Z$67,(Prosjektdata!AW$5-Prisvekst!$L$8)+1,(Prosjektdata!$C21-Prisvekst!$L$8)+1)+1) -> 0 | AX42: =AX21*(INDEX(Prisvekst!$O$8:$Z$67,(Prosjektdata!AX$5-Prisvekst!$L$8)+1,(Prosjektdata!$C21-Prisvekst!$L$8)+1)+1) -> 0 | AY42: =AY21*(INDEX(Prisvekst!$O$8:$Z$67,(Prosjektdata!AY$5-Prisvekst!$L$8)+1,(Prosjektdata!$C21-Prisvekst!$L$8)+1)+1) -> 0 | AZ42: =AZ21*(INDEX(Prisvekst!$O$8:$Z$67,(Prosjektdata!AZ$5-Prisvekst!$L$8)+1,(Prosjektdata!$C21-Prisvekst!$L$8)+1)+1) -> 0 | BA42: =BA21*(INDEX(Prisvekst!$O$8:$Z$67,(Prosjektdata!BA$5-Prisvekst!$L$8)+1,(Prosjektdata!$C21-Prisvekst!$L$8)+1)+1) -> 0 | BB42: =BB21*(INDEX(Prisvekst!$O$8:$Z$67,(Prosjektdata!BB$5-Prisvekst!$L$8)+1,(Prosjektdata!$C21-Prisvekst!$L$8)+1)+1) -> 0 | BC42: =BC21*(INDEX(Prisvekst!$O$8:$Z$67,(Prosjektdata!BC$5-Prisvekst!$L$8)+1,(Prosjektdata!$C21-Prisvekst!$L$8)+1)+1) -> 0 | BD42: =BD21*(INDEX(Prisvekst!$O$8:$Z$67,(Prosjektdata!BD$5-Prisvekst!$L$8)+1,(Prosjektdata!$C21-Prisvekst!$L$8)+1)+1) -> 0 | BE42: =BE21*(INDEX(Prisvekst!$O$8:$Z$67,(Prosjektdata!BE$5-Prisvekst!$L$8)+1,(Prosjektdata!$C21-Prisvekst!$L$8)+1)+1) -> 0 | BF42: =BF21*(INDEX(Prisvekst!$O$8:$Z$67,(Prosjektdata!BF$5-Prisvekst!$L$8)+1,(Prosjektdata!$C21-Prisvekst!$L$8)+1)+1) -> 0
B43: Sum | F43: 0 | H43: =SUM(H38:H42) -> 0 | I43: =SUM(I38:I42) -> 0 | J43: =SUM(J38:J42) -> 0 | K43: 0 | L43: 0 | M43: 0 | N43: 0 | O43: 0 | P43: 0 | Q43: 0 | R43: 0 | S43: 0 | T43: 0 | U43: 0 | V43: 0 | W43: 0 | X43: 0 | Y43: 0 | Z43: 0 | AA43: 0 | AB43: 0 | AC43: 0 | AD43: 0 | AE43: 0 | AF43: 0 | AG43: 0 | AH43: 0 | AI43: 0 | AJ43: 0 | AK43: 0 | AL43: 0 | AM43: 0 | AN43: 0 | AO43: 0 | AP43: 0 | AQ43: 0 | AR43: 0 | AS43: 0 | AT43: 0 | AU43: 0 | AV43: 0 | AW43: 0 | AX43: 0 | AY43: 0 | AZ43: 0 | BA43: 0 | BB43: 0 | BC43: 0 | BD43: 0 | BE43: 0 | BF43: 0
A44: Bompengerekvirering | F44: 0 | H44: =H32-H37-H43 -> 0 | I44: =I32-I37-I43 -> 0 | J44: 0 | K44: 0 | L44: 0 | M44: 0 | N44: 0 | O44: 0 | P44: 0 | Q44: 0 | R44: 0 | S44: 0 | T44: 0 | U44: 0 | V44: 0 | W44: 0 | X44: 0 | Y44: 0 | Z44: 0 | AA44: 0 | AB44: 0 | AC44: 0 | AD44: 0 | AE44: 0 | AF44: 0 | AG44: 0 | AH44: 0 | AI44: 0 | AJ44: 0 | AK44: 0 | AL44: 0 | AM44: 0 | AN44: 0 | AO44: 0 | AP44: 0 | AQ44: 0 | AR44: 0 | AS44: 0 | AT44: 0 | AU44: 0 | AV44: 0 | AW44: 0 | AX44: 0 | AY44: 0 | AZ44: 0 | BA44: 0 | BB44: 0 | BC44: 0 | BD44: 0 | BE44: 0 | BF44: 0

Sheet Prisvekst
B5: =I5&" "&I6&" "&I7 ->  | I5: =IF(E22>0," Årene må være i stigende rekkefølge F22","") -> 
C6: Prisvekst | I6: =IF(E7=TRUE,"Feil verdi, må være tall","") ->  | N6: Prisvekst | O6: =L8 -> 2024 | P6: =O6+1 -> 2025 | Q6: =P6+1 -> 2026 | R6: 2027 | S6: 2028 | T6: 2029 | U6: 2030 | V6: 2031 | W6: 2032 | X6: 2033 | Y6: 2034 | Z6: 2035
B7: Fra år | E7: =ISERROR(Prosjektdata!F32) -> FALSE | I7: =IF(F22>0,"Man må angi rentenivå for alle år","") ->  | L7: År | N7: Per år | O7: 1 | P7: =O7+1 -> 2 | Q7: =P7+1 -> 3 | R7: 4 | S7: 5 | T7: 6 | U7: 7 | V7: 8 | W7: 9 | X7: 10 | Y7: 11 | Z7: 12
B8: =SMALL(C25:C26,1) -> 2024 | C8: 2 | D8: =IF(B8="",D7,B8) -> 2024 | E8: 0 | F8: =IF(AND(B8>0,C8=""=TRUE),1,0) -> 0 | K8: 1 år | L8: =B8 -> 2024 | M8: 1 | N8: =VLOOKUP(L8,$B$8:$C$21,2)/100 -> 0.02 | P8: =(1-1/(1+O9))*-1 -> -0.01960784314 | Q8: =(1-1/(1+O10))*-1 -> -0.03883121876 | R8: =(1-1/(1+O11))*-1 -> -0.05767766545 | S8: =(1-1/(1+O12))*-1 -> -0.07615457397 | T8: =(1-1/(1+O13))*-1 -> -0.09426919017 | U8: =(1-1/(1+O14))*-1 -> -0.1120286178 | V8: =(1-1/(1+O15))*-1 -> -0.1294398214 | W8: =(1-1/(1+O16))*-1 -> -0.1465096288 | X8: =(1-1/(1+O17))*-1 -> -0.1632447341 | Y8: =(1-1/(1+O18))*-1 -> -0.1796517001 | Z8: =(1-1/(1+O19))*-1 -> -0.1957369609
D9: =IF(B9="",D8,B9) -> 2024 | E9: =IF(D9>=D8,0,1) -> 0 | F9: =IF(AND(B9>0,C9=""=TRUE),1,0) -> 0 | L9: =L8+1 -> 2025 | M9: =M8+1 -> 2 | N9: =VLOOKUP(L9,$B$8:$C$21,2)/100 -> 0.02 | O9: =((1+N8)*(1+O8))-1 -> 0.02 | Q9: =(1-1/(1+P10))*-1 -> -0.01960784314 | R9: =(1-1/(1+P11))*-1 -> -0.03883121876 | S9: =(1-1/(1+P12))*-1 -> -0.05767766545 | T9: =(1-1/(1+P13))*-1 -> -0.07615457397 | U9: =(1-1/(1+P14))*-1 -> -0.09426919017 | V9: =(1-1/(1+P15))*-1 -> -0.1120286178 | W9: =(1-1/(1+P16))*-1 -> -0.1294398214 | X9: =(1-1/(1+P17))*-1 -> -0.1465096288 | Y9: =(1-1/(1+P18))*-1 -> -0.1632447341 | Z9: =(1-1/(1+P19))*-1 -> -0.1796517001
D10: 2024 | E10: =IF(D10>=D9,0,1) -> 0 | F10: 0 | L10: =L9+1 -> 2026 | M10: =M9+1 -> 3 | N10: 0.02 | O10: =((1+$N9)*(1+O9))-1 -> 0.0404 | P10: =((1+$N9)*(1+P9))-1 -> 0.02 | R10: =(1-1/(1+Q11))*-1 -> -0.01960784314 | S10: =(1-1/(1+Q12))*-1 -> -0.03883121876 | T10: =(1-1/(1+Q13))*-1 -> -0.05767766545 | U10: =(1-1/(1+Q14))*-1 -> -0.07615457397 | V10: =(1-1/(1+Q15))*-1 -> -0.09426919017 | W10: =(1-1/(1+Q16))*-1 -> -0.1120286178 | X10: =(1-1/(1+Q17))*-1 -> -0.1294398214 | Y10: =(1-1/(1+R19))*-1 -> -0.1465096288 | Z10: =(1-1/(1+Q19))*-1 -> -0.1632447341
D11: 2024 | E11: =IF(D11>=D10,0,1) -> 0 | F11: 0 | L11: 2027 | M11: 4 | N11: 0.02 | O11: =((1+$N10)*(1+O10))-1 -> 0.061208 | P11: =((1+$N10)*(1+P10))-1 -> 0.0404 | Q11: 0.02 | S11: =(1-1/(1+R12))*-1 -> -0.01960784314 | T11: =(1-1/(1+R13))*-1 -> -0.03883121876 | U11: =(1-1/(1+R14))*-1 -> -0.05767766545 | V11: =(1-1/(1+R15))*-1 -> -0.07615457397 | W11: =(1-1/(1+R16))*-1 -> -0.09426919017 | X11: =(1-1/(1+R17))*-1 -> -0.1120286178 | Y11: =(1-1/(1+R18))*-1 -> -0.1294398214 | Z11: =(1-1/(1+R19))*-1 -> -0.1465096288
D12: 2024 | E12: =IF(D12>=D11,0,1) -> 0 | F12: 0 | L12: 2028 | M12: 5 | N12: 0.02 | O12: 0.08243216 | P12: 0.061208 | Q12: 0.0404 | R12: 0.02 | T12: =(1-1/(1+S13))*-1 -> -0.01960784314 | U12: =(1-1/(1+S14))*-1 -> -0.03883121876 | V12: =(1-1/(1+S15))*-1 -> -0.05767766545 | W12: =(1-1/(1+S16))*-1 -> -0.07615457397 | X12: =(1-1/(1+S17))*-1 -> -0.09426919017 | Y12: =(1-1/(1+S18))*-1 -> -0.1120286178 | Z12: =(1-1/(1+S19))*-1 -> -0.1294398214
D13: 2024 | E13: =IF(D13>=D12,0,1) -> 0 | F13: 0 | L13: 2029 | M13: 6 | N13: 0.02 | O13: 0.1040808032 | P13: 0.08243216 | Q13: 0.061208 | R13: 0.0404 | S13: 0.02 | U13: =(1-1/(1+T14))*-1 -> -0.01960784314 | V13: =(1-1/(1+T15))*-1 -> -0.03883121876 | W13: =(1-1/(1+T16))*-1 -> -0.05767766545 | X13: =(1-1/(1+T17))*-1 -> -0.07615457397 | Y13: =(1-1/(1+T18))*-1 -> -0.09426919017 | Z13: =(1-1/(1+T19))*-1 -> -0.1120286178
D14: 2024 | E14: =IF(D14>=D13,0,1) -> 0 | F14: 0 | L14: 2030 | M14: 7 | N14: 0.02 | O14: 0.1261624193 | P14: 0.1040808032 | Q14: 0.08243216 | R14: 0.061208 | S14: 0.0404 | T14: =((1+$N13)*(1+T13))-1 -> 0.02 | V14: =(1-1/(1+U15))*-1 -> -0.01960784314 | W14: =(1-1/(1+U16))*-1 -> -0.03883121876 | X14: =(1-1/(1+U17))*-1 -> -0.05767766545 | Y14: =(1-1/(1+U18))*-1 -> -0.07615457397 | Z14: =(1-1/(1+U19))*-1 -> -0.09426919017
D15: 2024 | E15: 0 | F15: 0 | L15: 2031 | M15: 8 | N15: 0.02 | O15: 0.1486856676 | P15: 0.1261624193 | Q15: 0.1040808032 | R15: 0.08243216 | S15: 0.061208 | T15: 0.0404 | U15: 0.02 | W15: =(1-1/(1+V16))*-1 -> -0.01960784314 | X15: =(1-1/(1+V17))*-1 -> -0.03883121876 | Y15: =(1-1/(1+V18))*-1 -> -0.05767766545 | Z15: =(1-1/(1+V19))*-1 -> -0.07615457397
D16: 2024 | E16: 0 | F16: 0 | L16: 2032 | M16: 9 | N16: 0.02 | O16: 0.171659381 | P16: 0.1486856676 | Q16: 0.1261624193 | R16: 0.1040808032 | S16: 0.08243216 | T16: 0.061208 | U16: 0.0404 | V16: 0.02 | X16: =(1-1/(1+W17))*-1 -> -0.01960784314 | Y16: =(1-1/(1+W18))*-1 -> -0.03883121876 | Z16: =(1-1/(1+W19))*-1 -> -0.05767766545
D17: 2024 | E17: 0 | F17: 0 | L17: 2033 | M17: 10 | N17: 0.02 | O17: 0.1950925686 | P17: 0.171659381 | Q17: 0.1486856676 | R17: 0.1261624193 | S17: 0.1040808032 | T17: 0.08243216 | U17: 0.061208 | V17: 0.0404 | W17: 0.02 | Y17: =(1-1/(1+X18))*-1 -> -0.01960784314 | Z17: =(1-1/(1+X19))*-1 -> -0.03883121876
D18: 2024 | E18: 0 | F18: 0 | L18: 2034 | M18: 11 | N18: 0.02 | O18: 0.21899442 | P18: 0.1950925686 | Q18: 0.171659381 | R18: 0.1486856676 | S18: 0.1261624193 | T18: 0.1040808032 | U18: 0.08243216 | V18: 0.061208 | W18: 0.0404 | X18: 0.02 | Z18: =(1-1/(1+Y19))*-1 -> -0.01960784314
D19: 2024 | E19: 0 | F19: 0 | L19: 2035 | M19: 12 | N19: 0.02 | O19: 0.2433743084 | P19: 0.21899442 | Q19: 0.1950925686 | R19: 0.171659381 | S19: 0.1486856676 | T19: 0.1261624193 | U19: 0.1040808032 | V19: 0.08243216 | W19: 0.061208 | X19: 0.0404 | Y19: =((1+$N18)*(1+Y18))-1 -> 0.02
D20: 2024 | E20: 0 | F20: 0 | L20: 2036 | M20: 13 | N20: 0.02 | O20: 0.2682417946 | P20: 0.2433743084 | Q20: 0.21899442 | R20: 0.1950925686 | S20: 0.171659381 | T20: 0.1486856676 | U20: 0.1261624193 | V20: 0.1040808032 | W20: 0.08243216 | X20: 0.061208 | Y20: 0.0404 | Z20: 0.02
D21: 2024 | E21: 0 | F21: 0 | L21: 2037 | M21: 14 | N21: 0.02 | O21: 0.2936066305 | Q21: 0.2433743084 | R21: 0.21899442 | S21: 0.1950925686 | T21: 0.171659381 | U21: 0.1486856676 | V21: 0.1261624193 | W21: 0.1040808032 | X21: 0.08243216 | Y21: 0.061208 | Z21: 0.0404
E22: =SUM(E8:E13) -> 0 | F22: =SUM(F8:F21) -> 0 | L22: 2038 | M22: 15 | N22: 0.02 | O22: 0.3194787631 | P22: 0.02 | Q22: 0.2682417946 | R22: 0.2433743084 | S22: 0.21899442 | T22: 0.1950925686 | U22: 0.171659381 | V22: 0.1486856676 | W22: 0.1261624193 | X22: 0.1040808032 | Y22: 0.08243216 | Z22: 0.061208
L23: 2039 | M23: 16 | N23: 0.02 | O23: 0.3458683383 | P23: 0.0404 | Q23: 0.2936066305 | R23: 0.2682417946 | S23: 0.2433743084 | T23: 0.21899442 | U23: 0.1950925686 | V23: 0.171659381 | W23: 0.1486856676 | X23: 0.1261624193 | Y23: 0.1040808032 | Z23: 0.08243216
L24: 2040 | M24: 17 | N24: 0.02 | O24: 0.3727857051 | P24: 0.061208 | Q24: 0.3194787631 | R24: 0.2936066305 | S24: 0.2682417946 | T24: 0.2433743084 | U24: 0.21899442 | V24: 0.1950925686 | W24: 0.171659381 | X24: 0.1486856676 | Y24: 0.1261624193 | Z24: 0.1040808032
B25: Laveste prisår | C25: =SMALL(Prosjektdata!C6:C23,1) -> 2024 | L25: 2041 | M25: 18 | N25: 0.02 | O25: 0.4002414192 | P25: 0.08243216 | Q25: 0.3458683383 | R25: 0.3194787631 | S25: 0.2936066305 | T25: 0.2682417946 | U25: 0.2433743084 | V25: 0.21899442 | W25: 0.1950925686 | X25: 0.171659381 | Y25: 0.1486856676 | Z25: 0.1261624193
B26: Laveste finansieringsår | C26: =forste_ar_finan -> 2024 | L26: 2042 | M26: 19 | N26: 0.02 | O26: 0.4282462476 | P26: 0.1040808032 | Q26: 0.3727857051 | R26: 0.3458683383 | S26: 0.3194787631 | T26: 0.2936066305 | U26: 0.2682417946 | V26: 0.2433743084 | W26: 0.21899442 | X26: 0.1950925686 | Y26: 0.171659381 | Z26: 0.1486856676
L27: 2043 | M27: 20 | N27: 0.02 | O27: 0.4568111725 | P27: 0.1261624193 | Q27: 0.4002414192 | R27: 0.3727857051 | S27: 0.3458683383 | T27: 0.3194787631 | U27: 0.2936066305 | V27: 0.2682417946 | W27: 0.2433743084 | X27: 0.21899442 | Y27: 0.1950925686 | Z27: 0.171659381
L28: 2044 | M28: 21 | N28: 0.02 | O28: 0.485947396 | P28: 0.1486856676 | Q28: 0.4282462476 | R28: 0.4002414192 | S28: 0.3727857051 | T28: 0.3458683383 | U28: 0.3194787631 | V28: 0.2936066305 | W28: 0.2682417946 | X28: 0.2433743084 | Y28: 0.21899442 | Z28: 0.1950925686
L29: 2045 | M29: 22 | N29: 0.02 | O29: 0.5156663439 | P29: 0.171659381 | Q29: 0.4568111725 | R29: 0.4282462476 | S29: 0.4002414192 | T29: 0.3727857051 | U29: 0.3458683383 | V29: 0.3194787631 | W29: 0.2936066305 | X29: 0.2682417946 | Y29: 0.2433743084 | Z29: 0.21899442
L30: 2046 | M30: 23 | N30: 0.02 | O30: 0.5459796708 | P30: 0.1950925686 | Q30: 0.485947396 | R30: 0.4568111725 | S30: 0.4282462476 | T30: 0.4002414192 | U30: 0.3727857051 | V30: 0.3458683383 | W30: 0.3194787631 | X30: 0.2936066305 | Y30: 0.2682417946 | Z30: 0.2433743084
L31: 2047 | M31: 24 | N31: 0.02 | O31: 0.5768992642 | P31: 0.21899442 | Q31: 0.5156663439 | R31: 0.485947396 | S31: 0.4568111725 | T31: 0.4282462476 | U31: 0.4002414192 | V31: 0.3727857051 | W31: 0.3458683383 | X31: 0.3194787631 | Y31: 0.2936066305 | Z31: 0.2682417946
L32: 2048 | M32: 25 | N32: 0.02 | O32: 0.6084372495 | P32: 0.2433743084 | Q32: 0.5459796708 | R32: 0.5156663439 | S32: 0.485947396 | T32: 0.4568111725 | U32: 0.4282462476 | V32: 0.4002414192 | W32: 0.3727857051 | X32: 0.3458683383 | Y32: 0.3194787631 | Z32: 0.2936066305
L33: 2049 | M33: 26 | N33: 0.02 | O33: 0.6406059945 | P33: 0.2682417946 | Q33: 0.5768992642 | R33: 0.5459796708 | S33: 0.5156663439 | T33: 0.485947396 | U33: 0.4568111725 | V33: 0.4282462476 | W33: 0.4002414192 | X33: 0.3727857051 | Y33: 0.3458683383 | Z33: 0.3194787631
L34: 2050 | M34: 27 | N34: 0.02 | O34: 0.6734181144 | P34: 0.2936066305 | Q34: 0.6084372495 | R34: 0.5768992642 | S34: 0.5459796708 | T34: 0.5156663439 | U34: 0.485947396 | V34: 0.4568111725 | W34: 0.4282462476 | X34: 0.4002414192 | Y34: 0.3727857051 | Z34: 0.3458683383
L35: 2051 | M35: 28 | N35: 0.02 | O35: 0.7068864766 | P35: 0.3194787631 | Q35: 0.6406059945 | R35: 0.6084372495 | S35: 0.5768992642 | T35: 0.5459796708 | U35: 0.5156663439 | V35: 0.485947396 | W35: 0.4568111725 | X35: 0.4282462476 | Y35: 0.4002414192 | Z35: 0.3727857051
L36: 2052 | M36: 29 | N36: 0.02 | O36: 0.7410242062 | P36: 0.3458683383 | Q36: 0.6734181144 | R36: 0.6406059945 | S36: 0.6084372495 | T36: 0.5768992642 | U36: 0.5459796708 | V36: 0.5156663439 | W36: 0.485947396 | X36: 0.4568111725 | Y36: 0.4282462476 | Z36: 0.4002414192
L37: 2053 | M37: 30 | N37: 0.02 | O37: 0.7758446903 | P37: 0.3727857051 | Q37: 0.7068864766 | R37: 0.6734181144 | S37: 0.6406059945 | T37: 0.6084372495 | U37: 0.5768992642 | V37: 0.5459796708 | W37: 0.5156663439 | X37: 0.485947396 | Y37: 0.4568111725 | Z37: 0.4282462476
L38: 2054 | M38: 31 | N38: 0.02 | O38: 0.8113615841 | P38: 0.4002414192 | Q38: 0.7410242062 | R38: 0.7068864766 | S38: 0.6734181144 | T38: 0.6406059945 | U38: 0.6084372495 | V38: 0.5768992642 | W38: 0.5459796708 | X38: 0.5156663439 | Y38: 0.485947396 | Z38: 0.4568111725
L39: 2055 | M39: 32 | N39: 0.02 | O39: 0.8475888158 | P39: 0.4282462476 | Q39: 0.7758446903 | R39: 0.7410242062 | S39: 0.7068864766 | T39: 0.6734181144 | U39: 0.6406059945 | V39: 0.6084372495 | W39: 0.5768992642 | X39: 0.5459796708 | Y39: 0.5156663439 | Z39: 0.485947396
L40: 2056 | M40: 33 | N40: 0.02 | O40: 0.8845405921 | P40: 0.4568111725 | Q40: 0.8113615841 | R40: 0.7758446903 | S40: 0.7410242062 | T40: 0.7068864766 | U40: 0.6734181144 | V40: 0.6406059945 | W40: 0.6084372495 | X40: 0.5768992642 | Y40: 0.5459796708 | Z40: 0.5156663439
L41: 2057 | M41: 34 | N41: 0.02 | O41: 0.9222314039 | P41: 0.485947396 | Q41: 0.8475888158 | R41: 0.8113615841 | S41: =((1+$N40)*(1+S40))-1 -> 0.7758446903 | T41: 0.7410242062 | U41: 0.7068864766 | V41: 0.6734181144 | W41: 0.6406059945 | X41: 0.6084372495 | Y41: 0.5768992642 | Z41: 0.5459796708
L42: 2058 | M42: 35 | N42: 0.02 | O42: 0.960676032 | P42: 0.5156663439 | Q42: 0.8845405921 | R42: 0.8475888158 | S42: 0.8113615841 | T42: 0.7758446903 | U42: 0.7410242062 | V42: 0.7068864766 | W42: 0.6734181144 | X42: 0.6406059945 | Y42: 0.6084372495 | Z42: 0.5768992642
L43: 2059 | M43: 36 | N43: =VLOOKUP(L43,$B$8:$C$21,2)/100 -> 0.02 | O43: 0.9998895527 | P43: 0.5459796708 | Q43: 0.9222314039 | R43: 0.8845405921 | S43: 0.8475888158 | T43: 0.8113615841 | U43: 0.7758446903 | V43: 0.7410242062 | W43: 0.7068864766 | X43: 0.6734181144 | Y43: 0.6406059945 | Z43: 0.6084372495
L44: 2060 | M44: 37 | N44: 0.02 | O44: 1.039887344 | P44: 0.5768992642 | Q44: 0.960676032 | R44: 0.9222314039 | S44: 0.8845405921 | T44: 0.8475888158 | U44: 0.8113615841 | V44: 0.7758446903 | W44: 0.7410242062 | X44: 0.7068864766 | Y44: 0.6734181144 | Z44: 0.6406059945
L45: 2061 | M45: 38 | N45: 0.02 | O45: 1.080685091 | P45: 0.6084372495 | Q45: 0.9998895527 | R45: 0.960676032 | S45: 0.9222314039 | T45: 0.8845405921 | U45: 0.8475888158 | V45: 0.8113615841 | W45: 0.7758446903 | X45: 0.7410242062 | Y45: 0.7068864766 | Z45: 0.6734181144
L46: 2062 | M46: 39 | N46: 0.02 | O46: 1.122298792 | P46: 0.6406059945 | Q46: 1.039887344 | R46: 0.9998895527 | S46: 0.960676032 | T46: 0.9222314039 | U46: 0.8845405921 | V46: 0.8475888158 | W46: 0.8113615841 | X46: 0.7758446903 | Y46: 0.7410242062 | Z46: 0.7068864766
L47: 2063 | M47: 40 | N47: 0.02 | O47: 1.164744768 | P47: 0.6734181144 | Q47: 1.080685091 | R47: 1.039887344 | S47: 0.9998895527 | T47: 0.960676032 | U47: 0.9222314039 | V47: 0.8845405921 | W47: 0.8475888158 | X47: 0.8113615841 | Y47: 0.7758446903 | Z47: 0.7410242062
L48: 2064 | M48: 41 | N48: 0.02 | O48: 1.208039664 | P48: 0.7068864766 | Q48: 1.122298792 | R48: 1.080685091 | S48: 1.039887344 | T48: 0.9998895527 | U48: 0.960676032 | V48: 0.9222314039 | W48: 0.8845405921 | X48: 0.8475888158 | Y48: 0.8113615841 | Z48: 0.7758446903
L49: 2065 | M49: 42 | N49: 0.02 | O49: 1.252200457 | P49: 0.7410242062 | Q49: 1.164744768 | R49: 1.122298792 | S49: 1.080685091 | T49: 1.039887344 | U49: 0.9998895527 | V49: 0.960676032 | W49: 0.9222314039 | X49: 0.8845405921 | Y49: 0.8475888158 | Z49: 0.8113615841
L50: 2066 | M50: 43 | N50: 0.02 | O50: 1.297244466 | P50: 0.7758446903 | Q50: 1.208039664 | R50: 1.164744768 | S50: 1.122298792 | T50: 1.080685091 | U50: 1.039887344 | V50: 0.9998895527 | W50: 0.960676032 | X50: 0.9222314039 | Y50: 0.8845405921 | Z50: 0.8475888158
L51: 2067 | M51: 44 | N51: 0.02 | O51: 1.343189355 | P51: 0.8113615841 | Q51: 1.252200457 | R51: 1.208039664 | S51: 1.164744768 | T51: 1.122298792 | U51: 1.080685091 | V51: 1.039887344 | W51: 0.9998895527 | X51: 0.960676032 | Y51: 0.9222314039 | Z51: 0.8845405921
L52: 2068 | M52: 45 | N52: 0.02 | O52: 1.390053142 | P52: 0.8475888158 | Q52: 1.297244466 | R52: 1.252200457 | S52: 1.208039664 | T52: 1.164744768 | U52: 1.122298792 | V52: 1.080685091 | W52: 1.039887344 | X52: 0.9998895527 | Y52: 0.960676032 | Z52: 0.9222314039
L53: 2069 | M53: 46 | N53: 0.02 | O53: 1.437854205 | P53: 0.8845405921 | Q53: 1.343189355 | R53: 1.297244466 | S53: 1.252200457 | T53: 1.208039664 | U53: 1.164744768 | V53: 1.122298792 | W53: 1.080685091 | X53: 1.039887344 | Y53: 0.9998895527 | Z53: 0.960676032
L54: 2070 | M54: 47 | N54: 0.02 | O54: 1.486611289 | P54: 0.9222314039 | Q54: 1.390053142 | R54: 1.343189355 | S54: 1.297244466 | T54: 1.252200457 | U54: 1.208039664 | V54: 1.164744768 | W54: 1.122298792 | X54: 1.080685091 | Y54: 1.039887344 | Z54: 0.9998895527
L55: 2071 | M55: 48 | N55: 0.02 | O55: 1.536343515 | P55: 0.960676032 | Q55: 1.437854205 | R55: 1.390053142 | S55: 1.343189355 | T55: 1.297244466 | U55: 1.252200457 | V55: 1.208039664 | W55: 1.164744768 | X55: 1.122298792 | Y55: 1.080685091 | Z55: 1.039887344
L56: 2072 | M56: 49 | N56: 0.02 | O56: 1.587070385 | P56: 0.9998895527 | Q56: 1.486611289 | R56: 1.437854205 | S56: 1.390053142 | T56: 1.343189355 | U56: 1.297244466 | V56: 1.252200457 | W56: 1.208039664 | X56: 1.164744768 | Y56: 1.122298792 | Z56: 1.080685091
L57: 2073 | M57: 50 | N57: 0.02 | O57: 1.638811793 | P57: 1.039887344 | Q57: 1.536343515 | R57: 1.486611289 | S57: 1.437854205 | T57: 1.390053142 | U57: 1.343189355 | V57: 1.297244466 | W57: 1.252200457 | X57: 1.208039664 | Y57: 1.164744768 | Z57: 1.122298792
L58: =L57+1 -> 2074 | M58: 51 | N58: 0.02 | O58: 1.691588029 | P58: 1.080685091 | Q58: 1.587070385 | R58: 1.536343515 | S58: 1.486611289 | T58: 1.437854205 | U58: 1.390053142 | V58: 1.343189355 | W58: 1.297244466 | X58: 1.252200457 | Y58: 1.208039664 | Z58: 1.164744768
L59: 2075 | M59: 52 | N59: 0.02 | O59: 1.74541979 | P59: 1.122298792 | Q59: 1.638811793 | R59: 1.587070385 | S59: 1.536343515 | T59: 1.486611289 | U59: 1.437854205 | V59: 1.390053142 | W59: 1.343189355 | X59: 1.297244466 | Y59: 1.252200457 | Z59: 1.208039664
L60: 2076 | M60: 53 | N60: 0.02 | O60: 1.800328185 | P60: 1.164744768 | Q60: 1.691588029 | R60: 1.638811793 | S60: 1.587070385 | T60: 1.536343515 | U60: 1.486611289 | V60: 1.437854205 | W60: 1.390053142 | X60: 1.343189355 | Y60: 1.297244466 | Z60: 1.252200457
L61: 2077 | M61: 54 | N61: 0.02 | O61: 1.856334749 | P61: 1.208039664 | Q61: 1.74541979 | R61: 1.691588029 | S61: 1.638811793 | T61: 1.587070385 | U61: 1.536343515 | V61: 1.486611289 | W61: 1.437854205 | X61: 1.390053142 | Y61: 1.343189355 | Z61: 1.297244466
L62: 2078 | M62: 55 | N62: 0.02 | O62: 1.913461444 | P62: 1.252200457 | Q62: 1.800328185 | R62: 1.74541979 | S62: 1.691588029 | T62: 1.638811793 | U62: 1.587070385 | V62: 1.536343515 | W62: 1.486611289 | X62: 1.437854205 | Y62: 1.390053142 | Z62: 1.343189355
L63: 2079 | M63: 56 | N63: 0.02 | O63: 1.971730673 | P63: 1.297244466 | Q63: 1.856334749 | R63: 1.800328185 | S63: 1.74541979 | T63: 1.691588029 | U63: 1.638811793 | V63: 1.587070385 | W63: 1.536343515 | X63: =((1+$N62)*(1+X62))-1 -> 1.486611289 | Y63: 1.437854205 | Z63: 1.390053142
L64: 2080 | M64: 57 | N64: 0.02 | O64: 2.031165286 | P64: 1.343189355 | Q64: 1.913461444 | R64: 1.856334749 | S64: 1.800328185 | T64: 1.74541979 | U64: 1.691588029 | V64: 1.638811793 | W64: 1.587070385 | X64: =((1+$N63)*(1+X63))-1 -> 1.536343515 | Y64: 1.486611289 | Z64: 1.437854205
L65: 2081 | M65: 58 | N65: 0.02 | O65: 2.091788592 | P65: 1.390053142 | Q65: 1.971730673 | R65: 1.913461444 | S65: 1.856334749 | T65: 1.800328185 | U65: 1.74541979 | V65: 1.691588029 | W65: 1.638811793 | X65: =((1+$N64)*(1+X64))-1 -> 1.587070385 | Y65: 1.536343515 | Z65: 1.486611289
L66: 2082 | M66: 59 | N66: 0.02 | O66: 2.153624364 | P66: 1.437854205 | Q66: 2.031165286 | R66: 1.971730673 | S66: 1.913461444 | T66: 1.856334749 | U66: 1.800328185 | V66: 1.74541979 | W66: 1.691588029 | X66: =((1+$N65)*(1+X65))-1 -> 1.638811793 | Y66: 1.587070385 | Z66: 1.536343515
L67: 2083 | M67: 60 | N67: 0.02 | O67: 2.216696851 | P67: 1.486611289 | Q67: 2.091788592 | R67: 2.031165286 | S67: 1.971730673 | T67: 1.913461444 | U67: 1.856334749 | V67: 1.800328185 | W67: 1.74541979 | X67: =((1+$N66)*(1+X66))-1 -> 1.691588029 | Y67: 1.638811793 | Z67: 1.587070385

Sheet Sammendrag
C4: =IF(tillegstakst<>0,"Det er lagt inn ekstra takstjusteringer!R9","") -> 
B5: =HLOOKUP(4,T13:W15,3,0) ->  | C5: =IF(COUNTIF(I16:M16,50)<>5,"Noen Faktorer er justert",IF(SUM(I11:M11)=0,"","Noen faktorer er Justert")) ->  | I5: Takst | J5: Investering | K5: Bevilgning | L5: Trafikk | M5: Rente
B6: Oppsummering | C6: Totalt | D6: Statlig | E6: Fylkeskommunalt | F6: Kommunalt | G6: Øvrig
B7: ="Investering (mill "&C_Referanseår&" kr)" -> Investering (mill 2024 kr) | C7: =Prosjektdata!E11 -> 0
B8: ="Finansieringsbidrag (mill "&C_Referanseår&" kr)" -> Finansieringsbidrag (mill 2024 kr) | C8: =SUM(D8:G8) -> 0 | D8: =Prosjektdata!F12*Bevilgningsfaktor*((1+Prosjektdata!D6^(C_Referanseår-Prosjektdata!C12))) -> 0 | E8: =Prosjektdata!E14 -> 0 | F8: =Prosjektdata!E13 -> 0 | G8: =Prosjektdata!E15+Prosjektdata!F22 -> 0
B9: ="Egenandel(%)" -> Egenandel(%) | C9: =IF(ISERROR(C8/C7=TRUE),0,C8/C7) -> 0 | D9: =IF(D7>0,D8/D7,"") ->  | E9: =IF(E7>0,E8/E7,"") ->  | F9: =IF(F7>0,F8/F7,"") -> 
B10: ="Bompengeinntekter i innkrevingsperioden(mill "&C_Referanseår&" kr)" -> Bompengeinntekter i innkrevingsperioden(mill 2024 kr) | C10: =IF(ISERROR(C12+C11)=TRUE,"",C12+C11) -> 0
B11: ="Innkrevingskostnad (mill "&C_Referanseår&" kr)" -> Innkrevingskostnad (mill 2024 kr) | C11: =IF(ISERROR(s_innkrevingskost=TRUE),"",n_innkrevingskostnad) -> 0 | I11: =Takstfaktor-1 -> 0 | J11: =investeringsfaktor-1 -> 0 | K11: 0 | L11: =trafikkfaktor-1 -> 0 | M11: =Rentefaktor -> 0
B12: ="Netto bompengeinntekter (mill "&C_Referanseår&" kr)" -> Netto bompengeinntekter (mill 2024 kr) | C12: =Sammendrag2!C12 -> 0
B13: ="Finansieringskostnader (mill "&C_Referanseår&" kr)" -> Finansieringskostnader (mill 2024 kr) | C13: =IF(ISERROR(C10-C7+C8)=TRUE,"",(C10-C7+C8)) -> 0 | H13: Endring | I13: 0 | J13: 0 | K13: 0 | L13: 0 | M13: 0 | S13: Faktorer | T13: =IF(T14=3,4,0) -> 0 | U13: =IF(U14>0,4,0) -> 0 | V13: =IF(V14>0,4,0) -> 0 | W13: =IF(W14=0,4,0) -> 4
B14: =IF(ISERROR("Maksgjeld i millioner (år "&maksgjeldår&" )"=TRUE),"",("Maksgjeld i millioner (år "&maksgjeldår&" )")) -> Maksgjeld i millioner (år 2024 ) | C14: =IF(ISERROR(Maksgjeld),"",Maksgjeld) -> 0 | H14: Utgangspunkt | I14: =C18/Takstfaktor -> 0 | J14: =C7*investeringsfaktor -> 0 | K14: =C8/Bevilgingsfaktor -> 0 | L14: =C20/trafikkfaktor -> 0 | M14: =IF(ISERROR(gjennomsnittsrente-Rentefaktor)=TRUE,0,(gjennomsnittsrente-Rentefaktor)) -> 0 | S14: =COUNTIF(I16:M16,50)+SUM(I13:M13)=5 -> TRUE | T14: =U14+V14 -> 0 | U14: =IF(brukt_egen_takst>0,1,0) -> 0 | V14: =IF(Brukt_kjøreøypark>0,2,0) -> 0 | W14: =SUM(U14:V14) -> 0
B15: =IF(ISERROR("Maksgjeld i millioner (år "&maksgjeldår&" )"=TRUE),"",("Garantibehov (år "&maksgjeldår&" )")) -> Garantibehov (år 2024 ) | C15: =IF(C14="","",C14*1.2) -> 0 | H15: Differanse | I15: =C18-I14 -> 0 | J15: =C7-J14 -> 0 | K15: =C8-K14 -> 0 | L15: =C20-L14 -> 0 | M15: =Rentefaktor -> 0 | T15: Det er brukt egen takst- og kjøretøyparkutvikling | U15: Det er brukt egen takstutvikling | V15: Det er brukt kjøretøyparkutvikling | W15: ="" -> 
B16: Nedbetalingstid(år) | C16: =IF(ISERROR(IF(Finansiering!P57>0,"Aldri",SUM(Finansiering!W7:W57,))=TRUE),"",IF(Finansiering!P57>0,"Aldri",SUM(Finansiering!W7:W57,))) -> 0 | H16: Faktor | I16: 50 | J16: 50 | K16: 50 | L16: 50 | M16: 50
B17: Nedbetalingsår | C17: =IF(ISERROR(IF(Finansiering!P57>0,"Aldri",MAX(Finansiering!V:V)))=TRUE,0,IF(Finansiering!P57>0,"Aldri",MAX(Finansiering!V:V))) -> 0 | D17: Det er brukt takstjustering
B18: ="Gjennomsnittstakst("&C_Referanseår&" kr)" -> Gjennomsnittstakst(2024 kr) | C18: =IF(ISERROR(Gjennomsnittsinntekt)=TRUE,0,Gjennomsnittsinntekt) -> 0 | H18: Endring | I18: =1+(I16-50)/100+I13 -> 1 | J18: =1+(J16-50)/100+J13 -> 1 | K18: =1+(K16-50)/100+K13 -> 1 | L18: =1+((L16-50)/100)+L13 -> 1 | M18: =(M16-50)/1000+M13 -> 0
B19: Gjennomsnittsrente | C19: =IF(ISERROR(gjennomsnittsrente)=TRUE,0,gjennomsnittsrente) -> 0
B20: Sum ÅDT alle bommer (kjt/d) | C20: =Sum_trafikk*trafikkfaktor -> 0
B21: Rentekostnader i innkrevingsperioden (mill) | C21: =IF(ISERROR(lånerente_løpende-innskuddsrente_løpende)=TRUE,0,lånerente_løpende-innskuddsrente_løpende) -> 0
B22: Brutto bompenger løpende kroner | C22: =Sammendrag2!W72 -> 0
B23: ="Bompengeinntekter i innkrevingsperioden ( " &C_Referanseår&" kr)" -> Bompengeinntekter i innkrevingsperioden ( 2024 kr) | C23: =Sammendrag2!W73 -> 0
B25: ="Lånerenter i innkrevingsperioden ( " &C_Referanseår&" kr)" -> Lånerenter i innkrevingsperioden ( 2024 kr) | C25: =Rentekostnad_faste -> 0
B26: ="Renteinntekter i innkrevingsperioden ( " &C_Referanseår&" kr)" -> Renteinntekter i innkrevingsperioden ( 2024 kr) | C26: =Renteinntekter_faste -> 0
B28: Startår graf | C28: 2028 | K28: Alternativ
B29: Sluttår graf | C29: 2045 | L29: 1 | M29: =IF(Scenarier!$Q$5=1,Scenarier!E7,"") -> 0 | N29: 2 | O29: =IF(Scenarier!$Q$5=1,Scenarier!G7,"") -> 0 | P29: 3 | Q29: =IF(Scenarier!$Q$5=1,Scenarier!I7,"") -> 0
B30: Ønsket vist nedbetalingsår | C30: 2043 | H30: =B6 -> Oppsummering | K30: =Scenarier!C8 -> Aktivt | L30: Resultat | M30: Endring | N30: Resultat | O30: Endring | P30: Resultat | Q30: Endring
H31: =B7 -> Investering (mill 2024 kr) | K31: =C7 -> 0 | L31: =IF(Scenarier!$D$5=1,Scenarier!D9,"") ->  | M31: =IF(Scenarier!$D$5>0,L31-$K31,"") ->  | N31: =IF(Scenarier!$E$5=1,Scenarier!E9,"") ->  | O31: =IF(Scenarier!$E$5>0,N31-$K31,"") ->  | P31: =IF(Scenarier!$F$5=1,Scenarier!F9,"") ->  | Q31: =IF(Scenarier!$F$5>0,P31-$K31,"") -> 
H32: =B8 -> Finansieringsbidrag (mill 2024 kr) | K32: =C8 -> 0 | L32: =IF(Scenarier!$D$5=1,Scenarier!D10,"") ->  | M32: =IF(Scenarier!$D$5>0,L32-$K32,"") ->  | N32: =IF(Scenarier!$E$5=1,Scenarier!E10,"") ->  | O32: =IF(Scenarier!$E$5>0,N32-$K32,"") ->  | P32: =IF(Scenarier!$F$5=1,Scenarier!F10,"") ->  | Q32: =IF(Scenarier!$F$5>0,P32-$K32,"") ->  | Y32: 0
H33: =B9 -> Egenandel(%) | K33: =C9 -> 0 | L33: =IF(Scenarier!$D$5=1,Scenarier!D11,"") ->  | M33: =IF(Scenarier!$D$5>0,L33-$K33,"") ->  | N33: =IF(Scenarier!$E$5=1,Scenarier!E11,"") ->  | O33: =IF(Scenarier!$E$5>0,N33-$K33,"") ->  | P33: =IF(Scenarier!$F$5=1,Scenarier!F11,"") ->  | Q33: =IF(Scenarier!$F$5>0,P33-$K33,"") -> 
H34: =B11 -> Innkrevingskostnad (mill 2024 kr) | K34: =C11 -> 0 | L34: =IF(Scenarier!$D$5=1,Scenarier!D12,"") ->  | M34: =IF(Scenarier!$D$5>0,L34-$K34,"") ->  | N34: =IF(Scenarier!$E$5=1,Scenarier!E12,"") ->  | O34: =IF(Scenarier!$E$5>0,N34-$K34,"") ->  | P34: =IF(Scenarier!$F$5=1,Scenarier!F12,"") ->  | Q34: =IF(Scenarier!$F$5>0,P34-$K34,"") -> 
H35: =B12 -> Netto bompengeinntekter (mill 2024 kr) | K35: 0 | L35: =IF(Scenarier!$D$5=1,Scenarier!D13,"") ->  | M35: =IF(Scenarier!$D$5>0,L35-$K35,"") ->  | N35: =IF(Scenarier!$E$5=1,Scenarier!E13,"") ->  | O35: =IF(Scenarier!$E$5>0,N35-$K35,"") ->  | P35: =IF(Scenarier!$F$5=1,Scenarier!F13,"") ->  | Q35: =IF(Scenarier!$F$5>0,P35-$K35,"") -> 
H36: =B13 -> Finansieringskostnader (mill 2024 kr) | K36: 0 | L36: =IF(Scenarier!$D$5=1,Scenarier!D14,"") ->  | M36: =IF(Scenarier!$D$5>0,L36-$K36,"") ->  | N36: =IF(Scenarier!$E$5=1,Scenarier!E14,"") ->  | O36: =IF(Scenarier!$E$5>0,N36-$K36,"") ->  | P36: =IF(Scenarier!$F$5=1,Scenarier!F14,"") ->  | Q36: =IF(Scenarier!$F$5>0,P36-$K36,"") -> 
H37: =IF(B14="","Maksgjeld",B14) -> Maksgjeld i millioner (år 2024 ) | K37: 0 | L37: =IF(Scenarier!$D$5=1,Scenarier!D15,"") ->  | M37: =IF(Scenarier!$D$5>0,L37-$K37,"") ->  | N37: =IF(Scenarier!$E$5=1,Scenarier!E15,"") ->  | O37: =IF(Scenarier!$E$5>0,N37-$K37,"") ->  | P37: =IF(Scenarier!$F$5=1,Scenarier!F15,"") ->  | Q37: =IF(Scenarier!$F$5>0,P37-$K37,"") -> 
H38: =B15 -> Garantibehov (år 2024 ) | K38: 0 | L38: =IF(Scenarier!$D$5=1,Scenarier!D16,"") ->  | M38: =IF(Scenarier!$D$5>0,L38-$K38,"") ->  | N38: =IF(Scenarier!$E$5=1,Scenarier!E16,"") ->  | O38: =IF(Scenarier!$E$5>0,N38-$K38,"") ->  | P38: =IF(Scenarier!$F$5=1,Scenarier!F16,"") ->  | Q38: =IF(Scenarier!$F$5>0,P38-$K38,"") -> 
H39: =B16 -> Nedbetalingstid(år) | K39: 0 | L39: =IF(Scenarier!$D$5=1,Scenarier!D17,"") ->  | M39: =IF(L39="Aldri","",IF(Scenarier!$D$5>0,L39-$K39,"")) ->  | N39: =IF(Scenarier!$E$5=1,Scenarier!E17,"") ->  | O39: =IF(Scenarier!$E$5>0,N39-$K39,"") ->  | P39: =IF(Scenarier!$F$5=1,Scenarier!F17,"") ->  | Q39: =IF(Scenarier!$F$5>0,P39-$K39,"") -> 
H40: =B17 -> Nedbetalingsår | K40: 0 | L40: =IF(Scenarier!$D$5=1,Scenarier!D18,"") ->  | M40: =IF(L40="Aldri","",IF(Scenarier!$D$5>0,L40-$K40,"")) ->  | N40: =IF(Scenarier!$E$5=1,Scenarier!E18,"") ->  | O40: =IF(Scenarier!$E$5>0,N40-$K40,"") ->  | P40: =IF(Scenarier!$F$5=1,Scenarier!F18,"") ->  | Q40: =IF(Scenarier!$F$5>0,P40-$K40,"") -> 
H41: =B18 -> Gjennomsnittstakst(2024 kr) | K41: 0 | L41: =IF(Scenarier!$D$5=1,Scenarier!D19,"") ->  | M41: =IF(Scenarier!$D$5>0,L41-$K41,"") ->  | N41: =IF(Scenarier!$E$5=1,Scenarier!E19,"") ->  | O41: =IF(Scenarier!$E$5>0,N41-$K41,"") ->  | P41: =IF(Scenarier!$F$5=1,Scenarier!F19,"") ->  | Q41: =IF(Scenarier!$F$5>0,P41-$K41,"") -> 
H42: =B20 -> Sum ÅDT alle bommer (kjt/d) | K42: =C20 -> 0 | L42: =IF(Scenarier!$D$5=1,Scenarier!D20,"") ->  | M42: =IF(Scenarier!$D$5>0,L42-$K42,"") ->  | N42: =IF(Scenarier!$E$5=1,Scenarier!E20,"") ->  | O42: =IF(Scenarier!$E$5>0,N42-$K42,"") ->  | P42: =IF(Scenarier!$F$5=1,Scenarier!F20,"") ->  | Q42: =IF(Scenarier!$F$5>0,P42-$K42,"") -> 
H43: Rentekostnader (mill) | K43: =C21 -> 0 | L43: =IF(Scenarier!$D$5=1,Scenarier!D21,"") ->  | M43: =IF(Scenarier!$D$5>0,L43-$K43,"") ->  | N43: =IF(Scenarier!$E$5=1,Scenarier!E21,"") ->  | O43: =IF(Scenarier!$E$5>0,N43-$K43,"") ->  | P43: =IF(Scenarier!$F$5=1,Scenarier!F21,"") ->  | Q43: =IF(Scenarier!$F$5>0,P43-$K43,"") -> 
D83: Faste kroner
B84: Visning | C84: År | D84: Investering | E84: Statlige bidrag | F84: Øvrige bidrag | G84: Innkrevingskostnader | H84: Kolonne1 | I84: Netto bominntekter | J84: Lånesaldo | K84: Visningsår | L84: Innkrevingsår | M84: Bompenger_til_nedbetalt | N84: Kolonne2 | O84: Nedbetalt | P84: Alternativ1 | Q84: Alternativ2 | R84: Alternativ3
B85: =IF(OR(C85<($C$28),C85>($C$29))=FALSE,1,0) -> 0 | C85: =Finansiering!B7 -> 2024 | D85: =HLOOKUP($C85,Prosjektdata!$H$5:$BF$23,7,0)*-1 -> 0 | E85: =HLOOKUP($C85,Prosjektdata!$H$5:$BF$23,11,0) -> 0 | F85: =HLOOKUP($C85,Prosjektdata!$H$5:$BF$23,17,0) -> 0 | G85: =(Finansiering!G7)*(1+Prisstigning)^(C_Referanseår-Sammendrag!C85)*Finansiering!X7 -> 0 | I85: =(Finansiering!F7-Finansiering!G7)*(1+Prisstigning)^(C_Referanseår-Sammendrag!C85) -> 0 | J85: =Finansiering!P7 -> 0 | K85: =IF(Tabell3[[#This Row],[År]]=$C$30,Maksgjeld+100,0) -> 0 | L85: =IF(Tabell3[[#This Row],[Nedbetalt]]>0,"w",Finansiering!T7) -> 0 | M85: =Finansiering!X7*Tabell3[[#This Row],[Netto bominntekter]] -> 0 | O85: =IF(Tabell3[[#This Row],[År]]=$C$17,-1*Maksgjeld,0) -> 0 | P85: =IF(Scenarier!$Q$6=TRUE,Scenarier!Q8,0) -> 0 | Q85: =IF(Scenarier!$R$6=TRUE,Scenarier!R8,0) -> 0 | R85: =IF(Scenarier!$S$6=TRUE,Scenarier!S8,0) -> 0
B86: 0 | C86: =Finansiering!B8 -> 2025 | D86: =HLOOKUP($C86,Prosjektdata!$H$5:$BF$23,7,0)*-1 -> 0 | E86: =HLOOKUP($C86,Prosjektdata!$H$5:$BF$23,11,0) -> 0 | F86: =HLOOKUP($C86,Prosjektdata!$H$5:$BF$23,17,0) -> 0 | G86: =(Finansiering!G8)*(1+Prisstigning)^(C_Referanseår-Sammendrag!C86)*Finansiering!X8 -> 0 | I86: =(Finansiering!F8-Finansiering!G8)*(1+Prisstigning)^(C_Referanseår-Sammendrag!C86) -> 0 | J86: =Finansiering!P8 -> 0 | K86: =IF(Tabell3[[#This Row],[År]]=$C$30,Maksgjeld+100,0) -> 0 | L86: =IF(Tabell3[[#This Row],[Nedbetalt]]>0,"w",Finansiering!T8) -> 0 | M86: =Finansiering!X8*Tabell3[[#This Row],[Netto bominntekter]] -> 0 | O86: =IF(Tabell3[[#This Row],[År]]=$C$17,-1*Maksgjeld,0) -> 0 | P86: =IF(Scenarier!$Q$6=TRUE,Scenarier!Q9,0) -> 0 | Q86: =IF(Scenarier!$R$6=TRUE,Scenarier!R9,0) -> 0 | R86: =IF(Scenarier!$S$6=TRUE,Scenarier!S9,0) -> 0 | AA86: Radetiketter | AB86: Summer av Investering | AC86: Summer av Statlige bidrag | AD86: Summer av Øvrige bidrag | AE86: Summer av Netto bominntekter | AF86: Summer av Lånesaldo
B87: 0 | C87: =Finansiering!B9 -> 2026 | D87: =HLOOKUP($C87,Prosjektdata!$H$5:$BF$23,7,0)*-1 -> 0 | E87: =HLOOKUP($C87,Prosjektdata!$H$5:$BF$23,11,0) -> 0 | F87: =HLOOKUP($C87,Prosjektdata!$H$5:$BF$23,17,0) -> 0 | G87: =(Finansiering!G9)*(1+Prisstigning)^(C_Referanseår-Sammendrag!C87)*Finansiering!X9 -> 0 | I87: =(Finansiering!F9-Finansiering!G9)*(1+Prisstigning)^(C_Referanseår-Sammendrag!C87) -> 0 | J87: =Finansiering!P9 -> 0 | K87: =IF(Tabell3[[#This Row],[År]]=$C$30,Maksgjeld+100,0) -> 0 | L87: =IF(Tabell3[[#This Row],[Nedbetalt]]>0,"w",Finansiering!T9) -> 0 | M87: =Finansiering!X9*Tabell3[[#This Row],[Netto bominntekter]] -> 0 | O87: =IF(Tabell3[[#This Row],[År]]=$C$17,-1*Maksgjeld,0) -> 0 | P87: =IF(Scenarier!$Q$6=TRUE,Scenarier!Q10,0) -> 0 | Q87: =IF(Scenarier!$R$6=TRUE,Scenarier!R10,0) -> 0 | R87: =IF(Scenarier!$S$6=TRUE,Scenarier!S10,0) -> 0 | AA87: 2016 | AB87: 0 | AC87: 0 | AD87: 0 | AE87: 0 | AF87: 0
B88: 0 | C88: =Finansiering!B10 -> 2027 | D88: =HLOOKUP($C88,Prosjektdata!$H$5:$BF$23,7,0)*-1 -> 0 | E88: =HLOOKUP($C88,Prosjektdata!$H$5:$BF$23,11,0) -> 0 | F88: =HLOOKUP($C88,Prosjektdata!$H$5:$BF$23,17,0) -> 0 | G88: =(Finansiering!G10)*(1+Prisstigning)^(C_Referanseår-Sammendrag!C88)*Finansiering!X10 -> 0 | I88: =(Finansiering!F10-Finansiering!G10)*(1+Prisstigning)^(C_Referanseår-Sammendrag!C88) -> 0 | J88: =Finansiering!P10 -> 0 | K88: =IF(Tabell3[[#This Row],[År]]=$C$30,Maksgjeld+100,0) -> 0 | L88: =IF(Tabell3[[#This Row],[Nedbetalt]]>0,"w",Finansiering!T10) -> 0 | M88: =Finansiering!X10*Tabell3[[#This Row],[Netto bominntekter]] -> 0 | O88: =IF(Tabell3[[#This Row],[År]]=$C$17,-1*Maksgjeld,0) -> 0 | P88: =IF(Scenarier!$Q$6=TRUE,Scenarier!Q11,0) -> 0 | Q88: =IF(Scenarier!$R$6=TRUE,Scenarier!R11,0) -> 0 | R88: =IF(Scenarier!$S$6=TRUE,Scenarier!S11,0) -> 0 | AA88: 2017 | AB88: -100 | AC88: 50 | AD88: 0 | AE88: 0 | AF88: 48.05843906
B89: 1 | C89: =Finansiering!B11 -> 2028 | D89: =HLOOKUP($C89,Prosjektdata!$H$5:$BF$23,7,0)*-1 -> 0 | E89: =HLOOKUP($C89,Prosjektdata!$H$5:$BF$23,11,0) -> 0 | F89: =HLOOKUP($C89,Prosjektdata!$H$5:$BF$23,17,0) -> 0 | G89: =(Finansiering!G11)*(1+Prisstigning)^(C_Referanseår-Sammendrag!C89)*Finansiering!X11 -> 0 | I89: =(Finansiering!F11-Finansiering!G11)*(1+Prisstigning)^(C_Referanseår-Sammendrag!C89) -> 0 | J89: =Finansiering!P11 -> 0 | K89: =IF(Tabell3[[#This Row],[År]]=$C$30,Maksgjeld+100,0) -> 0 | L89: =IF(Tabell3[[#This Row],[Nedbetalt]]>0,"w",Finansiering!T11) -> 0 | M89: =Finansiering!X11*Tabell3[[#This Row],[Netto bominntekter]] -> 0 | O89: =IF(Tabell3[[#This Row],[År]]=$C$17,-1*Maksgjeld,0) -> 0 | P89: =IF(Scenarier!$Q$6=TRUE,Scenarier!Q12,0) -> 0 | Q89: =IF(Scenarier!$R$6=TRUE,Scenarier!R12,0) -> 0 | R89: =IF(Scenarier!$S$6=TRUE,Scenarier!S12,0) -> 0 | AA89: 2018 | AB89: -200 | AC89: 50 | AD89: 0 | AE89: 0 | AF89: 197.0396002
B90: 1 | C90: =Finansiering!B12 -> 2029 | D90: =HLOOKUP($C90,Prosjektdata!$H$5:$BF$23,7,0)*-1 -> 0 | E90: =HLOOKUP($C90,Prosjektdata!$H$5:$BF$23,11,0) -> 0 | F90: =HLOOKUP($C90,Prosjektdata!$H$5:$BF$23,17,0) -> 0 | G90: =(Finansiering!G12)*(1+Prisstigning)^(C_Referanseår-Sammendrag!C90)*Finansiering!X12 -> 0 | I90: =(Finansiering!F12-Finansiering!G12)*(1+Prisstigning)^(C_Referanseår-Sammendrag!C90) -> 0 | J90: =Finansiering!P12 -> 0 | K90: =IF(Tabell3[[#This Row],[År]]=$C$30,Maksgjeld+100,0) -> 0 | L90: =IF(Tabell3[[#This Row],[Nedbetalt]]>0,"w",Finansiering!T12) -> 0 | M90: =Finansiering!X12*Tabell3[[#This Row],[Netto bominntekter]] -> 0 | O90: =IF(Tabell3[[#This Row],[År]]=$C$17,-1*Maksgjeld,0) -> 0 | P90: =IF(Scenarier!$Q$6=TRUE,Scenarier!Q13,0) -> 0 | Q90: =IF(Scenarier!$R$6=TRUE,Scenarier!R13,0) -> 0 | R90: =IF(Scenarier!$S$6=TRUE,Scenarier!S13,0) -> 0 | AA90: 2019 | AB90: -200 | AC90: 100 | AD90: 0 | AE90: 0 | AF90: 304.9211842
B91: 1 | C91: =Finansiering!B13 -> 2030 | D91: =HLOOKUP($C91,Prosjektdata!$H$5:$BF$23,7,0)*-1 -> 0 | E91: =HLOOKUP($C91,Prosjektdata!$H$5:$BF$23,11,0) -> 0 | F91: =HLOOKUP($C91,Prosjektdata!$H$5:$BF$23,17,0) -> 0 | G91: =(Finansiering!G13)*(1+Prisstigning)^(C_Referanseår-Sammendrag!C91)*Finansiering!X13 -> 0 | I91: =(Finansiering!F13-Finansiering!G13)*(1+Prisstigning)^(C_Referanseår-Sammendrag!C91) -> 0 | J91: =Finansiering!P13 -> 0 | K91: =IF(Tabell3[[#This Row],[År]]=$C$30,Maksgjeld+100,0) -> 0 | L91: =IF(Tabell3[[#This Row],[Nedbetalt]]>0,"w",Finansiering!T13) -> 0 | M91: =Finansiering!X13*Tabell3[[#This Row],[Netto bominntekter]] -> 0 | O91: =IF(Tabell3[[#This Row],[År]]=$C$17,-1*Maksgjeld,0) -> 0 | P91: =IF(Scenarier!$Q$6=TRUE,Scenarier!Q14,0) -> 0 | Q91: =IF(Scenarier!$R$6=TRUE,Scenarier!R14,0) -> 0 | R91: =IF(Scenarier!$S$6=TRUE,Scenarier!S14,0) -> 0 | AA91: 2020 | AB91: -200 | AC91: 100 | AD91: 0 | AE91: 0 | AF91: 419.1180315
B92: 1 | C92: =Finansiering!B14 -> 2031 | D92: =HLOOKUP($C92,Prosjektdata!$H$5:$BF$23,7,0)*-1 -> 0 | E92: =HLOOKUP($C92,Prosjektdata!$H$5:$BF$23,11,0) -> 0 | F92: =HLOOKUP($C92,Prosjektdata!$H$5:$BF$23,17,0) -> 0 | G92: =(Finansiering!G14)*(1+Prisstigning)^(C_Referanseår-Sammendrag!C92)*Finansiering!X14 -> 0 | I92: =(Finansiering!F14-Finansiering!G14)*(1+Prisstigning)^(C_Referanseår-Sammendrag!C92) -> 0 | J92: =Finansiering!P14 -> 0 | K92: =IF(Tabell3[[#This Row],[År]]=$C$30,Maksgjeld+100,0) -> 0 | L92: =IF(Tabell3[[#This Row],[Nedbetalt]]>0,"w",Finansiering!T14) -> 0 | M92: =Finansiering!X14*Tabell3[[#This Row],[Netto bominntekter]] -> 0 | O92: =IF(Tabell3[[#This Row],[År]]=$C$17,-1*Maksgjeld,0) -> 0 | P92: =IF(Scenarier!$Q$6=TRUE,Scenarier!Q15,0) -> 0 | Q92: =IF(Scenarier!$R$6=TRUE,Scenarier!R15,0) -> 0 | R92: =IF(Scenarier!$S$6=TRUE,Scenarier!S15,0) -> 0 | AA92: 2021 | AB92: -130 | AC92: 100 | AD92: 0 | AE92: 19.14377671 | AF92: 449.571219
B93: 1 | C93: =Finansiering!B15 -> 2032 | D93: =HLOOKUP($C93,Prosjektdata!$H$5:$BF$23,7,0)*-1 -> 0 | E93: =HLOOKUP($C93,Prosjektdata!$H$5:$BF$23,11,0) -> 0 | F93: =HLOOKUP($C93,Prosjektdata!$H$5:$BF$23,17,0) -> 0 | G93: =(Finansiering!G15)*(1+Prisstigning)^(C_Referanseår-Sammendrag!C93)*Finansiering!X15 -> 0 | I93: =(Finansiering!F15-Finansiering!G15)*(1+Prisstigning)^(C_Referanseår-Sammendrag!C93) -> 0 | J93: =Finansiering!P15 -> 0 | K93: =IF(Tabell3[[#This Row],[År]]=$C$30,Maksgjeld+100,0) -> 0 | L93: =IF(Tabell3[[#This Row],[Nedbetalt]]>0,"w",Finansiering!T15) -> 0 | M93: =Finansiering!X15*Tabell3[[#This Row],[Netto bominntekter]] -> 0 | O93: =IF(Tabell3[[#This Row],[År]]=$C$17,-1*Maksgjeld,0) -> 0 | P93: =IF(Scenarier!$Q$6=TRUE,Scenarier!Q16,0) -> 0 | Q93: =IF(Scenarier!$R$6=TRUE,Scenarier!R16,0) -> 0 | R93: =IF(Scenarier!$S$6=TRUE,Scenarier!S16,0) -> 0 | AA93: 2022 | AB93: 0 | AC93: 0 | AD93: 0 | AE93: 22.0387281 | AF93: 447.6541366
B94: 1 | C94: =Finansiering!B16 -> 2033 | D94: =HLOOKUP($C94,Prosjektdata!$H$5:$BF$23,7,0)*-1 -> 0 | E94: =HLOOKUP($C94,Prosjektdata!$H$5:$BF$23,11,0) -> 0 | F94: =HLOOKUP($C94,Prosjektdata!$H$5:$BF$23,17,0) -> 0 | G94: =(Finansiering!G16)*(1+Prisstigning)^(C_Referanseår-Sammendrag!C94)*Finansiering!X16 -> 0 | I94: =(Finansiering!F16-Finansiering!G16)*(1+Prisstigning)^(C_Referanseår-Sammendrag!C94) -> 0 | J94: =Finansiering!P16 -> 0 | K94: =IF(Tabell3[[#This Row],[År]]=$C$30,Maksgjeld+100,0) -> 0 | L94: =IF(Tabell3[[#This Row],[Nedbetalt]]>0,"w",Finansiering!T16) -> 0 | M94: =Finansiering!X16*Tabell3[[#This Row],[Netto bominntekter]] -> 0 | O94: =IF(Tabell3[[#This Row],[År]]=$C$17,-1*Maksgjeld,0) -> 0 | P94: =IF(Scenarier!$Q$6=TRUE,Scenarier!Q17,0) -> 0 | Q94: =IF(Scenarier!$R$6=TRUE,Scenarier!R17,0) -> 0 | R94: =IF(Scenarier!$S$6=TRUE,Scenarier!S17,0) -> 0 | AA94: 2023 | AB94: 0 | AC94: 0 | AD94: 0 | AE94: 42.50226348 | AF94: 426.710039
B95: 1 | C95: =Finansiering!B17 -> 2034 | D95: =HLOOKUP($C95,Prosjektdata!$H$5:$BF$23,7,0)*-1 -> 0 | E95: =HLOOKUP($C95,Prosjektdata!$H$5:$BF$23,11,0) -> 0 | F95: =HLOOKUP($C95,Prosjektdata!$H$5:$BF$23,17,0) -> 0 | G95: =(Finansiering!G17)*(1+Prisstigning)^(C_Referanseår-Sammendrag!C95)*Finansiering!X17 -> 0 | I95: =(Finansiering!F17-Finansiering!G17)*(1+Prisstigning)^(C_Referanseår-Sammendrag!C95) -> 0 | J95: =Finansiering!P17 -> 0 | K95: =IF(Tabell3[[#This Row],[År]]=$C$30,Maksgjeld+100,0) -> 0 | L95: =IF(Tabell3[[#This Row],[Nedbetalt]]>0,"w",Finansiering!T17) -> 0 | M95: =Finansiering!X17*Tabell3[[#This Row],[Netto bominntekter]] -> 0 | O95: =IF(Tabell3[[#This Row],[År]]=$C$17,-1*Maksgjeld,0) -> 0 | P95: =IF(Scenarier!$Q$6=TRUE,Scenarier!Q18,0) -> 0 | Q95: =IF(Scenarier!$R$6=TRUE,Scenarier!R18,0) -> 0 | R95: =IF(Scenarier!$S$6=TRUE,Scenarier!S18,0) -> 0 | AA95: 2024 | AB95: 0 | AC95: 0 | AD95: 0 | AE95: 59.28852972 | AF95: 390.085412
B96: 1 | C96: =Finansiering!B18 -> 2035 | D96: =HLOOKUP($C96,Prosjektdata!$H$5:$BF$23,7,0)*-1 -> 0 | E96: =HLOOKUP($C96,Prosjektdata!$H$5:$BF$23,11,0) -> 0 | F96: =HLOOKUP($C96,Prosjektdata!$H$5:$BF$23,17,0) -> 0 | G96: =(Finansiering!G18)*(1+Prisstigning)^(C_Referanseår-Sammendrag!C96)*Finansiering!X18 -> 0 | I96: =(Finansiering!F18-Finansiering!G18)*(1+Prisstigning)^(C_Referanseår-Sammendrag!C96) -> 0 | J96: =Finansiering!P18 -> 0 | K96: =IF(Tabell3[[#This Row],[År]]=$C$30,Maksgjeld+100,0) -> 0 | L96: =IF(Tabell3[[#This Row],[Nedbetalt]]>0,"w",Finansiering!T18) -> 0 | M96: =Finansiering!X18*Tabell3[[#This Row],[Netto bominntekter]] -> 0 | O96: =IF(Tabell3[[#This Row],[År]]=$C$17,-1*Maksgjeld,0) -> 0 | P96: =IF(Scenarier!$Q$6=TRUE,Scenarier!Q19,0) -> 0 | Q96: =IF(Scenarier!$R$6=TRUE,Scenarier!R19,0) -> 0 | R96: =IF(Scenarier!$S$6=TRUE,Scenarier!S19,0) -> 0 | AA96: 2025 | AB96: 0 | AC96: 0 | AD96: 0 | AE96: 77.90552244 | AF96: 335.6553935
B97: 1 | C97: =Finansiering!B19 -> 2036 | D97: =HLOOKUP($C97,Prosjektdata!$H$5:$BF$23,7,0)*-1 -> 0 | E97: =HLOOKUP($C97,Prosjektdata!$H$5:$BF$23,11,0) -> 0 | F97: =HLOOKUP($C97,Prosjektdata!$H$5:$BF$23,17,0) -> 0 | G97: =(Finansiering!G19)*(1+Prisstigning)^(C_Referanseår-Sammendrag!C97)*Finansiering!X19 -> 0 | I97: =(Finansiering!F19-Finansiering!G19)*(1+Prisstigning)^(C_Referanseår-Sammendrag!C97) -> 0 | J97: =Finansiering!P19 -> 0 | K97: =IF(Tabell3[[#This Row],[År]]=$C$30,Maksgjeld+100,0) -> 0 | L97: =IF(Tabell3[[#This Row],[Nedbetalt]]>0,"w",Finansiering!T19) -> 0 | M97: =Finansiering!X19*Tabell3[[#This Row],[Netto bominntekter]] -> 0 | O97: =IF(Tabell3[[#This Row],[År]]=$C$17,-1*Maksgjeld,0) -> 0 | P97: =IF(Scenarier!$Q$6=TRUE,Scenarier!Q20,0) -> 0 | Q97: =IF(Scenarier!$R$6=TRUE,Scenarier!R20,0) -> 0 | R97: =IF(Scenarier!$S$6=TRUE,Scenarier!S20,0) -> 0 | AA97: 2026 | AB97: 0 | AC97: 0 | AD97: 0 | AE97: 89.92346745 | AF97: 270.1245077
B98: 1 | C98: =Finansiering!B20 -> 2037 | D98: =HLOOKUP($C98,Prosjektdata!$H$5:$BF$23,7,0)*-1 -> 0 | E98: =HLOOKUP($C98,Prosjektdata!$H$5:$BF$23,11,0) -> 0 | F98: =HLOOKUP($C98,Prosjektdata!$H$5:$BF$23,17,0) -> 0 | G98: =(Finansiering!G20)*(1+Prisstigning)^(C_Referanseår-Sammendrag!C98)*Finansiering!X20 -> 0 | I98: =(Finansiering!F20-Finansiering!G20)*(1+Prisstigning)^(C_Referanseår-Sammendrag!C98) -> 0 | J98: =Finansiering!P20 -> 0 | K98: =IF(Tabell3[[#This Row],[År]]=$C$30,Maksgjeld+100,0) -> 0 | L98: =IF(Tabell3[[#This Row],[Nedbetalt]]>0,"w",Finansiering!T20) -> 0 | M98: =Finansiering!X20*Tabell3[[#This Row],[Netto bominntekter]] -> 0 | O98: =IF(Tabell3[[#This Row],[År]]=$C$17,-1*Maksgjeld,0) -> 0 | P98: =IF(Scenarier!$Q$6=TRUE,Scenarier!Q21,0) -> 0 | Q98: =IF(Scenarier!$R$6=TRUE,Scenarier!R21,0) -> 0 | R98: =IF(Scenarier!$S$6=TRUE,Scenarier!S21,0) -> 0 | AA98: 2027 | AB98: 0 | AC98: 0 | AD98: 0 | AE98: 94.75668918 | AF98: 199.0928329
B99: 1 | C99: =Finansiering!B21 -> 2038 | D99: =HLOOKUP($C99,Prosjektdata!$H$5:$BF$23,7,0)*-1 -> 0 | E99: =HLOOKUP($C99,Prosjektdata!$H$5:$BF$23,11,0) -> 0 | F99: =HLOOKUP($C99,Prosjektdata!$H$5:$BF$23,17,0) -> 0 | G99: =(Finansiering!G21)*(1+Prisstigning)^(C_Referanseår-Sammendrag!C99)*Finansiering!X21 -> 0 | I99: =(Finansiering!F21-Finansiering!G21)*(1+Prisstigning)^(C_Referanseår-Sammendrag!C99) -> 0 | J99: =Finansiering!P21 -> 0 | K99: =IF(Tabell3[[#This Row],[År]]=$C$30,Maksgjeld+100,0) -> 0 | L99: =IF(Tabell3[[#This Row],[Nedbetalt]]>0,"w",Finansiering!T21) -> 0 | M99: =Finansiering!X21*Tabell3[[#This Row],[Netto bominntekter]] -> 0 | O99: =IF(Tabell3[[#This Row],[År]]=$C$17,-1*Maksgjeld,0) -> 0 | P99: =IF(Scenarier!$Q$6=TRUE,Scenarier!Q22,0) -> 0 | Q99: =IF(Scenarier!$R$6=TRUE,Scenarier!R22,0) -> 0 | R99: =IF(Scenarier!$S$6=TRUE,Scenarier!S22,0) -> 0 | AA99: 2028 | AB99: 0 | AC99: 0 | AD99: 0 | AE99: 99.8499927 | AF99: 122.2331598
B100: 1 | C100: =Finansiering!B22 -> 2039 | D100: =HLOOKUP($C100,Prosjektdata!$H$5:$BF$23,7,0)*-1 -> 0 | E100: =HLOOKUP($C100,Prosjektdata!$H$5:$BF$23,11,0) -> 0 | F100: =HLOOKUP($C100,Prosjektdata!$H$5:$BF$23,17,0) -> 0 | G100: =(Finansiering!G22)*(1+Prisstigning)^(C_Referanseår-Sammendrag!C100)*Finansiering!X22 -> 0 | I100: =(Finansiering!F22-Finansiering!G22)*(1+Prisstigning)^(C_Referanseår-Sammendrag!C100) -> 0 | J100: =Finansiering!P22 -> 0 | K100: =IF(Tabell3[[#This Row],[År]]=$C$30,Maksgjeld+100,0) -> 0 | L100: =IF(Tabell3[[#This Row],[Nedbetalt]]>0,"w",Finansiering!T22) -> 0 | M100: =Finansiering!X22*Tabell3[[#This Row],[Netto bominntekter]] -> 0 | O100: =IF(Tabell3[[#This Row],[År]]=$C$17,-1*Maksgjeld,0) -> 0 | P100: =IF(Scenarier!$Q$6=TRUE,Scenarier!Q23,0) -> 0 | Q100: =IF(Scenarier!$R$6=TRUE,Scenarier!R23,0) -> 0 | R100: =IF(Scenarier!$S$6=TRUE,Scenarier!S23,0) -> 0 | AA100: 2029 | AB100: 0 | AC100: 0 | AD100: 0 | AE100: 105.217427 | AF100: 39.20108859
B101: 1 | C101: =Finansiering!B23 -> 2040 | D101: =HLOOKUP($C101,Prosjektdata!$H$5:$BF$23,7,0)*-1 -> 0 | E101: =HLOOKUP($C101,Prosjektdata!$H$5:$BF$23,11,0) -> 0 | F101: =HLOOKUP($C101,Prosjektdata!$H$5:$BF$23,17,0) -> 0 | G101: =(Finansiering!G23)*(1+Prisstigning)^(C_Referanseår-Sammendrag!C101)*Finansiering!X23 -> 0 | I101: =(Finansiering!F23-Finansiering!G23)*(1+Prisstigning)^(C_Referanseår-Sammendrag!C101) -> 0 | J101: =Finansiering!P23 -> 0 | K101: =IF(Tabell3[[#This Row],[År]]=$C$30,Maksgjeld+100,0) -> 0 | L101: =IF(Tabell3[[#This Row],[Nedbetalt]]>0,"w",Finansiering!T23) -> 0 | M101: =Finansiering!X23*Tabell3[[#This Row],[Netto bominntekter]] -> 0 | O101: =IF(Tabell3[[#This Row],[År]]=$C$17,-1*Maksgjeld,0) -> 0 | P101: =IF(Scenarier!$Q$6=TRUE,Scenarier!Q24,0) -> 0 | Q101: =IF(Scenarier!$R$6=TRUE,Scenarier!R24,0) -> 0 | R101: =IF(Scenarier!$S$6=TRUE,Scenarier!S24,0) -> 0 | AA101: 2030 | AB101: 0 | AC101: 0 | AD101: 0 | AE101: 110.8738045 | AF101: -50.36582087
B102: 1 | C102: =Finansiering!B24 -> 2041 | D102: =HLOOKUP($C102,Prosjektdata!$H$5:$BF$23,7,0)*-1 -> 0 | E102: =HLOOKUP($C102,Prosjektdata!$H$5:$BF$23,11,0) -> 0 | F102: =HLOOKUP($C102,Prosjektdata!$H$5:$BF$23,17,0) -> 0 | G102: =(Finansiering!G24)*(1+Prisstigning)^(C_Referanseår-Sammendrag!C102)*Finansiering!X24 -> 0 | I102: =(Finansiering!F24-Finansiering!G24)*(1+Prisstigning)^(C_Referanseår-Sammendrag!C102) -> 0 | J102: =Finansiering!P24 -> 0 | K102: =IF(Tabell3[[#This Row],[År]]=$C$30,Maksgjeld+100,0) -> 0 | L102: =IF(Tabell3[[#This Row],[Nedbetalt]]>0,"w",Finansiering!T24) -> 0 | M102: =Finansiering!X24*Tabell3[[#This Row],[Netto bominntekter]] -> 0 | O102: =IF(Tabell3[[#This Row],[År]]=$C$17,-1*Maksgjeld,0) -> 0 | P102: =IF(Scenarier!$Q$6=TRUE,Scenarier!Q25,0) -> 0 | Q102: =IF(Scenarier!$R$6=TRUE,Scenarier!R25,0) -> 0 | R102: =IF(Scenarier!$S$6=TRUE,Scenarier!S25,0) -> 0 | AA102: 2031 | AB102: 0 | AC102: 0 | AD102: 0 | AE102: 116.8347424 | AF102: -146.8489383
B103: 1 | C103: =Finansiering!B25 -> 2042 | D103: =HLOOKUP($C103,Prosjektdata!$H$5:$BF$23,7,0)*-1 -> 0 | E103: =HLOOKUP($C103,Prosjektdata!$H$5:$BF$23,11,0) -> 0 | F103: =HLOOKUP($C103,Prosjektdata!$H$5:$BF$23,17,0) -> 0 | G103: =(Finansiering!G25)*(1+Prisstigning)^(C_Referanseår-Sammendrag!C103)*Finansiering!X25 -> 0 | I103: =(Finansiering!F25-Finansiering!G25)*(1+Prisstigning)^(C_Referanseår-Sammendrag!C103) -> 0 | J103: =Finansiering!P25 -> 0 | K103: =IF(Tabell3[[#This Row],[År]]=$C$30,Maksgjeld+100,0) -> 0 | L103: =IF(Tabell3[[#This Row],[Nedbetalt]]>0,"w",Finansiering!T25) -> 0 | M103: =Finansiering!X25*Tabell3[[#This Row],[Netto bominntekter]] -> 0 | O103: =IF(Tabell3[[#This Row],[År]]=$C$17,-1*Maksgjeld,0) -> 0 | P103: =IF(Scenarier!$Q$6=TRUE,Scenarier!Q26,0) -> 0 | Q103: =IF(Scenarier!$R$6=TRUE,Scenarier!R26,0) -> 0 | R103: =IF(Scenarier!$S$6=TRUE,Scenarier!S26,0) -> 0 | AA103: 2032 | AB103: 0 | AC103: 0 | AD103: 0 | AE103: 123.116707 | AF103: -250.6494951
B104: 1 | C104: =Finansiering!B26 -> 2043 | D104: =HLOOKUP($C104,Prosjektdata!$H$5:$BF$23,7,0)*-1 -> 0 | E104: =HLOOKUP($C104,Prosjektdata!$H$5:$BF$23,11,0) -> 0 | F104: =HLOOKUP($C104,Prosjektdata!$H$5:$BF$23,17,0) -> 0 | G104: =(Finansiering!G26)*(1+Prisstigning)^(C_Referanseår-Sammendrag!C104)*Finansiering!X26 -> 0 | I104: =(Finansiering!F26-Finansiering!G26)*(1+Prisstigning)^(C_Referanseår-Sammendrag!C104) -> 0 | J104: =Finansiering!P26 -> 0 | K104: =IF(Tabell3[[#This Row],[År]]=$C$30,Maksgjeld+100,0) -> 100 | L104: =IF(Tabell3[[#This Row],[Nedbetalt]]>0,"w",Finansiering!T26) -> 0 | M104: =Finansiering!X26*Tabell3[[#This Row],[Netto bominntekter]] -> 0 | O104: =IF(Tabell3[[#This Row],[År]]=$C$17,-1*Maksgjeld,0) -> 0 | P104: =IF(Scenarier!$Q$6=TRUE,Scenarier!Q27,0) -> 0 | Q104: =IF(Scenarier!$R$6=TRUE,Scenarier!R27,0) -> 0 | R104: =IF(Scenarier!$S$6=TRUE,Scenarier!S27,0) -> 0 | AA104: 2033 | AB104: 0 | AC104: 0 | AD104: 0 | AE104: 130.1482506 | AF104: -362.5082192
B105: 1 | C105: =Finansiering!B27 -> 2044 | D105: =HLOOKUP($C105,Prosjektdata!$H$5:$BF$23,7,0)*-1 -> 0 | E105: =HLOOKUP($C105,Prosjektdata!$H$5:$BF$23,11,0) -> 0 | F105: =HLOOKUP($C105,Prosjektdata!$H$5:$BF$23,17,0) -> 0 | G105: =(Finansiering!G27)*(1+Prisstigning)^(C_Referanseår-Sammendrag!C105)*Finansiering!X27 -> 0 | I105: =(Finansiering!F27-Finansiering!G27)*(1+Prisstigning)^(C_Referanseår-Sammendrag!C105) -> 0 | J105: =Finansiering!P27 -> 0 | K105: =IF(Tabell3[[#This Row],[År]]=$C$30,Maksgjeld+100,0) -> 0 | L105: =IF(Tabell3[[#This Row],[Nedbetalt]]>0,"w",Finansiering!T27) -> 0 | M105: =Finansiering!X27*Tabell3[[#This Row],[Netto bominntekter]] -> 0 | O105: =IF(Tabell3[[#This Row],[År]]=$C$17,-1*Maksgjeld,0) -> 0 | P105: =IF(Scenarier!$Q$6=TRUE,Scenarier!Q28,0) -> 0 | Q105: =IF(Scenarier!$R$6=TRUE,Scenarier!R28,0) -> 0 | R105: =IF(Scenarier!$S$6=TRUE,Scenarier!S28,0) -> 0 | AA105: 2034 | AB105: 0 | AC105: 0 | AD105: 0 | AE105: 137.5920487 | AF105: -482.9126185
B106: 1 | C106: =Finansiering!B28 -> 2045 | D106: =HLOOKUP($C106,Prosjektdata!$H$5:$BF$23,7,0)*-1 -> 0 | E106: =HLOOKUP($C106,Prosjektdata!$H$5:$BF$23,11,0) -> 0 | F106: =HLOOKUP($C106,Prosjektdata!$H$5:$BF$23,17,0) -> 0 | G106: =(Finansiering!G28)*(1+Prisstigning)^(C_Referanseår-Sammendrag!C106)*Finansiering!X28 -> 0 | I106: =(Finansiering!F28-Finansiering!G28)*(1+Prisstigning)^(C_Referanseår-Sammendrag!C106) -> 0 | J106: =Finansiering!P28 -> 0 | K106: =IF(Tabell3[[#This Row],[År]]=$C$30,Maksgjeld+100,0) -> 0 | L106: =IF(Tabell3[[#This Row],[Nedbetalt]]>0,"w",Finansiering!T28) -> 0 | M106: =Finansiering!X28*Tabell3[[#This Row],[Netto bominntekter]] -> 0 | O106: =IF(Tabell3[[#This Row],[År]]=$C$17,-1*Maksgjeld,0) -> 0 | P106: =IF(Scenarier!$Q$6=TRUE,Scenarier!Q29,0) -> 0 | Q106: =IF(Scenarier!$R$6=TRUE,Scenarier!R29,0) -> 0 | R106: =IF(Scenarier!$S$6=TRUE,Scenarier!S29,0) -> 0 | AA106: 2035 | AB106: 0 | AC106: 0 | AD106: 0 | AE106: 145.4729613 | AF106: -612.3770527
B107: 0 | C107: =Finansiering!B29 -> 2046 | D107: =HLOOKUP($C107,Prosjektdata!$H$5:$BF$23,7,0)*-1 -> 0 | E107: =HLOOKUP($C107,Prosjektdata!$H$5:$BF$23,11,0) -> 0 | F107: =HLOOKUP($C107,Prosjektdata!$H$5:$BF$23,17,0) -> 0 | G107: =(Finansiering!G29)*(1+Prisstigning)^(C_Referanseår-Sammendrag!C107)*Finansiering!X29 -> 0 | I107: =(Finansiering!F29-Finansiering!G29)*(1+Prisstigning)^(C_Referanseår-Sammendrag!C107) -> 0 | J107: =Finansiering!P29 -> 0 | K107: =IF(Tabell3[[#This Row],[År]]=$C$30,Maksgjeld+100,0) -> 0 | L107: =IF(Tabell3[[#This Row],[Nedbetalt]]>0,"w",Finansiering!T29) -> 0 | M107: =Finansiering!X29*Tabell3[[#This Row],[Netto bominntekter]] -> 0 | O107: =IF(Tabell3[[#This Row],[År]]=$C$17,-1*Maksgjeld,0) -> 0 | P107: =IF(Scenarier!$Q$6=TRUE,Scenarier!Q30,0) -> 0 | Q107: =IF(Scenarier!$R$6=TRUE,Scenarier!R30,0) -> 0 | R107: =IF(Scenarier!$S$6=TRUE,Scenarier!S30,0) -> 0 | AA107: 2036 | AB107: 0 | AC107: 0 | AD107: 0 | AE107: 116.8823771 | AF107: -724.4577097
B108: 0 | C108: =Finansiering!B30 -> 2047 | D108: =HLOOKUP($C108,Prosjektdata!$H$5:$BF$23,7,0)*-1 -> 0 | E108: =HLOOKUP($C108,Prosjektdata!$H$5:$BF$23,11,0) -> 0 | F108: =HLOOKUP($C108,Prosjektdata!$H$5:$BF$23,17,0) -> 0 | G108: =(Finansiering!G30)*(1+Prisstigning)^(C_Referanseår-Sammendrag!C108)*Finansiering!X30 -> 0 | I108: =(Finansiering!F30-Finansiering!G30)*(1+Prisstigning)^(C_Referanseår-Sammendrag!C108) -> 0 | J108: =Finansiering!P30 -> 0 | K108: =IF(Tabell3[[#This Row],[År]]=$C$30,Maksgjeld+100,0) -> 0 | L108: =IF(Tabell3[[#This Row],[Nedbetalt]]>0,"w",Finansiering!T30) -> 0 | M108: =Finansiering!X30*Tabell3[[#This Row],[Netto bominntekter]] -> 0 | O108: =IF(Tabell3[[#This Row],[År]]=$C$17,-1*Maksgjeld,0) -> 0 | P108: =IF(Scenarier!$Q$6=TRUE,Scenarier!Q31,0) -> 0 | Q108: =IF(Scenarier!$R$6=TRUE,Scenarier!R31,0) -> 0 | R108: =IF(Scenarier!$S$6=TRUE,Scenarier!S31,0) -> 0 | AA108: 2037 | AB108: 0 | AC108: 0 | AD108: 0 | AE108: 116.0698846 | AF108: -839.1574173
B109: 0 | C109: =Finansiering!B31 -> 2048 | D109: =HLOOKUP($C109,Prosjektdata!$H$5:$BF$23,7,0)*-1 -> 0 | E109: =HLOOKUP($C109,Prosjektdata!$H$5:$BF$23,11,0) -> 0 | F109: =HLOOKUP($C109,Prosjektdata!$H$5:$BF$23,17,0) -> 0 | G109: =(Finansiering!G31)*(1+Prisstigning)^(C_Referanseår-Sammendrag!C109)*Finansiering!X31 -> 0 | I109: =(Finansiering!F31-Finansiering!G31)*(1+Prisstigning)^(C_Referanseår-Sammendrag!C109) -> 0 | J109: =Finansiering!P31 -> 0 | K109: =IF(Tabell3[[#This Row],[År]]=$C$30,Maksgjeld+100,0) -> 0 | L109: =IF(Tabell3[[#This Row],[Nedbetalt]]>0,"w",Finansiering!T31) -> 0 | M109: =Finansiering!X31*Tabell3[[#This Row],[Netto bominntekter]] -> 0 | O109: =IF(Tabell3[[#This Row],[År]]=$C$17,-1*Maksgjeld,0) -> 0 | P109: =IF(Scenarier!$Q$6=TRUE,Scenarier!Q32,0) -> 0 | Q109: =IF(Scenarier!$R$6=TRUE,Scenarier!R32,0) -> 0 | R109: =IF(Scenarier!$S$6=TRUE,Scenarier!S32,0) -> 0 | T109: =IF(Scenarier!$R$6=TRUE,Scenarier!U32,0) -> 0 | AA109: 2038 | AB109: 0 | AC109: 0 | AD109: 0 | AE109: 123.0512104 | AF109: -962.1191273
B110: 0 | C110: =Finansiering!B32 -> 2049 | D110: =HLOOKUP($C110,Prosjektdata!$H$5:$BF$23,7,0)*-1 -> 0 | E110: =HLOOKUP($C110,Prosjektdata!$H$5:$BF$23,11,0) -> 0 | F110: =HLOOKUP($C110,Prosjektdata!$H$5:$BF$23,17,0) -> 0 | G110: =(Finansiering!G32)*(1+Prisstigning)^(C_Referanseår-Sammendrag!C110)*Finansiering!X32 -> 0 | I110: =(Finansiering!F32-Finansiering!G32)*(1+Prisstigning)^(C_Referanseår-Sammendrag!C110) -> 0 | J110: =Finansiering!P32 -> 0 | K110: =IF(Tabell3[[#This Row],[År]]=$C$30,Maksgjeld+100,0) -> 0 | L110: =IF(Tabell3[[#This Row],[Nedbetalt]]>0,"w",Finansiering!T32) -> 0 | M110: =Finansiering!X32*Tabell3[[#This Row],[Netto bominntekter]] -> 0 | O110: =IF(Tabell3[[#This Row],[År]]=$C$17,-1*Maksgjeld,0) -> 0 | P110: =IF(Scenarier!$Q$6=TRUE,Scenarier!Q33,0) -> 0 | Q110: =IF(Scenarier!$R$6=TRUE,Scenarier!R33,0) -> 0 | R110: =IF(Scenarier!$S$6=TRUE,Scenarier!S33,0) -> 0 | AA110: 2039 | AB110: 0 | AC110: 0 | AD110: 0 | AE110: 130.465226 | AF110: -1093.839807
B111: 0 | C111: =Finansiering!B33 -> 2050 | D111: =HLOOKUP($C111,Prosjektdata!$H$5:$BF$23,7,0)*-1 -> 0 | E111: =HLOOKUP($C111,Prosjektdata!$H$5:$BF$23,11,0) -> 0 | F111: =HLOOKUP($C111,Prosjektdata!$H$5:$BF$23,17,0) -> 0 | G111: =(Finansiering!G33)*(1+Prisstigning)^(C_Referanseår-Sammendrag!C111)*Finansiering!X33 -> 0 | I111: =(Finansiering!F33-Finansiering!G33)*(1+Prisstigning)^(C_Referanseår-Sammendrag!C111) -> 0 | J111: =Finansiering!P33 -> 0 | K111: =IF(Tabell3[[#This Row],[År]]=$C$30,Maksgjeld+100,0) -> 0 | L111: =IF(Tabell3[[#This Row],[Nedbetalt]]>0,"w",Finansiering!T33) -> 0 | M111: =Finansiering!X33*Tabell3[[#This Row],[Netto bominntekter]] -> 0 | O111: =IF(Tabell3[[#This Row],[År]]=$C$17,-1*Maksgjeld,0) -> 0 | P111: =IF(Scenarier!$Q$6=TRUE,Scenarier!Q34,0) -> 0 | Q111: =IF(Scenarier!$R$6=TRUE,Scenarier!R34,0) -> 0 | R111: =IF(Scenarier!$S$6=TRUE,Scenarier!S34,0) -> 0 | AA111: Totalsum | AB111: -830 | AC111: 400 | AD111: 0 | AE111: 1861.133609 | AF111: -1875.771162
B112: 0 | C112: =Finansiering!B34 -> 2051 | D112: =HLOOKUP($C112,Prosjektdata!$H$5:$BF$23,7,0)*-1 -> 0 | E112: =HLOOKUP($C112,Prosjektdata!$H$5:$BF$23,11,0) -> 0 | F112: =HLOOKUP($C112,Prosjektdata!$H$5:$BF$23,17,0) -> 0 | G112: =(Finansiering!G34)*(1+Prisstigning)^(C_Referanseår-Sammendrag!C112)*Finansiering!X34 -> 0 | I112: =(Finansiering!F34-Finansiering!G34)*(1+Prisstigning)^(C_Referanseår-Sammendrag!C112) -> 0 | J112: =Finansiering!P34 -> 0 | K112: =IF(Tabell3[[#This Row],[År]]=$C$30,Maksgjeld+100,0) -> 0 | L112: =IF(Tabell3[[#This Row],[Nedbetalt]]>0,"w",Finansiering!T34) -> 0 | M112: =Finansiering!X34*Tabell3[[#This Row],[Netto bominntekter]] -> 0 | O112: =IF(Tabell3[[#This Row],[År]]=$C$17,-1*Maksgjeld,0) -> 0 | P112: =IF(Scenarier!$Q$6=TRUE,Scenarier!Q35,0) -> 0 | Q112: =IF(Scenarier!$R$6=TRUE,Scenarier!R35,0) -> 0 | R112: =IF(Scenarier!$S$6=TRUE,Scenarier!S35,0) -> 0
B113: 0 | C113: =Finansiering!B35 -> 2052 | D113: =HLOOKUP($C113,Prosjektdata!$H$5:$BF$23,7,0)*-1 -> 0 | E113: =HLOOKUP($C113,Prosjektdata!$H$5:$BF$23,11,0) -> 0 | F113: =HLOOKUP($C113,Prosjektdata!$H$5:$BF$23,17,0) -> 0 | G113: =(Finansiering!G35)*(1+Prisstigning)^(C_Referanseår-Sammendrag!C113)*Finansiering!X35 -> 0 | I113: =(Finansiering!F35-Finansiering!G35)*(1+Prisstigning)^(C_Referanseår-Sammendrag!C113) -> 0 | J113: =Finansiering!P35 -> 0 | K113: =IF(Tabell3[[#This Row],[År]]=$C$30,Maksgjeld+100,0) -> 0 | L113: =IF(Tabell3[[#This Row],[Nedbetalt]]>0,"w",Finansiering!T35) -> 0 | M113: =Finansiering!X35*Tabell3[[#This Row],[Netto bominntekter]] -> 0 | O113: =IF(Tabell3[[#This Row],[År]]=$C$17,-1*Maksgjeld,0) -> 0 | P113: =IF(Scenarier!$Q$6=TRUE,Scenarier!Q36,0) -> 0 | Q113: =IF(Scenarier!$R$6=TRUE,Scenarier!R36,0) -> 0 | R113: =IF(Scenarier!$S$6=TRUE,Scenarier!S36,0) -> 0
B114: 0 | C114: =Finansiering!B36 -> 2053 | D114: =HLOOKUP($C114,Prosjektdata!$H$5:$BF$23,7,0)*-1 -> 0 | E114: =HLOOKUP($C114,Prosjektdata!$H$5:$BF$23,11,0) -> 0 | F114: =HLOOKUP($C114,Prosjektdata!$H$5:$BF$23,17,0) -> 0 | G114: =(Finansiering!G36)*(1+Prisstigning)^(C_Referanseår-Sammendrag!C114)*Finansiering!X36 -> 0 | I114: =(Finansiering!F36-Finansiering!G36)*(1+Prisstigning)^(C_Referanseår-Sammendrag!C114) -> 0 | J114: =Finansiering!P36 -> 0 | K114: =IF(Tabell3[[#This Row],[År]]=$C$30,Maksgjeld+100,0) -> 0 | L114: =IF(Tabell3[[#This Row],[Nedbetalt]]>0,"w",Finansiering!T36) -> 0 | M114: =Finansiering!X36*Tabell3[[#This Row],[Netto bominntekter]] -> 0 | O114: =IF(Tabell3[[#This Row],[År]]=$C$17,-1*Maksgjeld,0) -> 0 | P114: =IF(Scenarier!$Q$6=TRUE,Scenarier!Q37,0) -> 0 | Q114: =IF(Scenarier!$R$6=TRUE,Scenarier!R37,0) -> 0 | R114: =IF(Scenarier!$S$6=TRUE,Scenarier!S37,0) -> 0
B115: 0 | C115: =Finansiering!B37 -> 2054 | D115: =HLOOKUP($C115,Prosjektdata!$H$5:$BF$23,7,0)*-1 -> 0 | E115: =HLOOKUP($C115,Prosjektdata!$H$5:$BF$23,11,0) -> 0 | F115: =HLOOKUP($C115,Prosjektdata!$H$5:$BF$23,17,0) -> 0 | G115: =(Finansiering!G37)*(1+Prisstigning)^(C_Referanseår-Sammendrag!C115)*Finansiering!X37 -> 0 | I115: =(Finansiering!F37-Finansiering!G37)*(1+Prisstigning)^(C_Referanseår-Sammendrag!C115) -> 0 | J115: =Finansiering!P37 -> 0 | K115: =IF(Tabell3[[#This Row],[År]]=$C$30,Maksgjeld+100,0) -> 0 | L115: =IF(Tabell3[[#This Row],[Nedbetalt]]>0,"w",Finansiering!T37) -> 0 | M115: =Finansiering!X37*Tabell3[[#This Row],[Netto bominntekter]] -> 0 | O115: =IF(Tabell3[[#This Row],[År]]=$C$17,-1*Maksgjeld,0) -> 0 | P115: =IF(Scenarier!$Q$6=TRUE,Scenarier!Q38,0) -> 0 | Q115: =IF(Scenarier!$R$6=TRUE,Scenarier!R38,0) -> 0 | R115: =IF(Scenarier!$S$6=TRUE,Scenarier!S38,0) -> 0
B116: 0 | C116: =Finansiering!B38 -> 2055 | D116: =HLOOKUP($C116,Prosjektdata!$H$5:$BF$23,7,0)*-1 -> 0 | E116: =HLOOKUP($C116,Prosjektdata!$H$5:$BF$23,11,0) -> 0 | F116: =HLOOKUP($C116,Prosjektdata!$H$5:$BF$23,17,0) -> 0 | G116: =(Finansiering!G38)*(1+Prisstigning)^(C_Referanseår-Sammendrag!C116)*Finansiering!X38 -> 0 | I116: =(Finansiering!F38-Finansiering!G38)*(1+Prisstigning)^(C_Referanseår-Sammendrag!C116) -> 0 | J116: =Finansiering!P38 -> 0 | K116: =IF(Tabell3[[#This Row],[År]]=$C$30,Maksgjeld+100,0) -> 0 | L116: =IF(Tabell3[[#This Row],[Nedbetalt]]>0,"w",Finansiering!T38) -> 0 | M116: =Finansiering!X38*Tabell3[[#This Row],[Netto bominntekter]] -> 0 | O116: =IF(Tabell3[[#This Row],[År]]=$C$17,-1*Maksgjeld,0) -> 0 | P116: =IF(Scenarier!$Q$6=TRUE,Scenarier!Q39,0) -> 0 | Q116: =IF(Scenarier!$R$6=TRUE,Scenarier!R39,0) -> 0 | R116: =IF(Scenarier!$S$6=TRUE,Scenarier!S39,0) -> 0
B117: =IF(OR(C117<($C$28),C117>($C$29))=FALSE,1,0) -> 0 | C117: =Finansiering!B39 -> 2056 | D117: =HLOOKUP($C117,Prosjektdata!$H$5:$BF$23,7,0)*-1 -> 0 | E117: =HLOOKUP($C117,Prosjektdata!$H$5:$BF$23,11,0) -> 0 | F117: =HLOOKUP($C117,Prosjektdata!$H$5:$BF$23,17,0) -> 0 | G117: =(Finansiering!G39)*(1+Prisstigning)^(C_Referanseår-Sammendrag!C117)*Finansiering!X39 -> 0 | I117: =(Finansiering!F39-Finansiering!G39)*(1+Prisstigning)^(C_Referanseår-Sammendrag!C117) -> 0 | J117: =Finansiering!P39 -> 0 | K117: =IF(Tabell3[[#This Row],[År]]=$C$30,Maksgjeld+100,0) -> 0 | L117: =IF(Tabell3[[#This Row],[Nedbetalt]]>0,"w",Finansiering!T39) -> 0 | M117: =Finansiering!X39*Tabell3[[#This Row],[Netto bominntekter]] -> 0 | O117: =IF(Tabell3[[#This Row],[År]]=$C$17,-1*Maksgjeld,0) -> 0 | P117: =IF(Scenarier!$Q$6=TRUE,Scenarier!Q40,0) -> 0 | Q117: =IF(Scenarier!$R$6=TRUE,Scenarier!R40,0) -> 0 | R117: =IF(Scenarier!$S$6=TRUE,Scenarier!S40,0) -> 0
B118: 0 | C118: =Finansiering!B40 -> 2057 | D118: =HLOOKUP($C118,Prosjektdata!$H$5:$BF$23,7,0)*-1 -> 0 | E118: =HLOOKUP($C118,Prosjektdata!$H$5:$BF$23,11,0) -> 0 | F118: =HLOOKUP($C118,Prosjektdata!$H$5:$BF$23,17,0) -> 0 | G118: =(Finansiering!G40)*(1+Prisstigning)^(C_Referanseår-Sammendrag!C118)*Finansiering!X40 -> 0 | I118: =(Finansiering!F40-Finansiering!G40)*(1+Prisstigning)^(C_Referanseår-Sammendrag!C118) -> 0 | J118: =Finansiering!P40 -> 0 | K118: =IF(Tabell3[[#This Row],[År]]=$C$30,Maksgjeld+100,0) -> 0 | L118: =IF(Tabell3[[#This Row],[Nedbetalt]]>0,"w",Finansiering!T40) -> 0 | M118: =Finansiering!X40*Tabell3[[#This Row],[Netto bominntekter]] -> 0 | O118: =IF(Tabell3[[#This Row],[År]]=$C$17,-1*Maksgjeld,0) -> 0 | P118: =IF(Scenarier!$Q$6=TRUE,Scenarier!Q41,0) -> 0 | Q118: =IF(Scenarier!$R$6=TRUE,Scenarier!R41,0) -> 0 | R118: =IF(Scenarier!$S$6=TRUE,Scenarier!S41,0) -> 0
B119: 0 | C119: =Finansiering!B41 -> 2058 | D119: =HLOOKUP($C119,Prosjektdata!$H$5:$BF$23,7,0)*-1 -> 0 | E119: =HLOOKUP($C119,Prosjektdata!$H$5:$BF$23,11,0) -> 0 | F119: =HLOOKUP($C119,Prosjektdata!$H$5:$BF$23,17,0) -> 0 | G119: =(Finansiering!G41)*(1+Prisstigning)^(C_Referanseår-Sammendrag!C119)*Finansiering!X41 -> 0 | I119: =(Finansiering!F41-Finansiering!G41)*(1+Prisstigning)^(C_Referanseår-Sammendrag!C119) -> 0 | J119: =Finansiering!P41 -> 0 | K119: =IF(Tabell3[[#This Row],[År]]=$C$30,Maksgjeld+100,0) -> 0 | L119: =IF(Tabell3[[#This Row],[Nedbetalt]]>0,"w",Finansiering!T41) -> 0 | M119: =Finansiering!X41*Tabell3[[#This Row],[Netto bominntekter]] -> 0 | O119: =IF(Tabell3[[#This Row],[År]]=$C$17,-1*Maksgjeld,0) -> 0 | P119: =IF(Scenarier!$Q$6=TRUE,Scenarier!Q42,0) -> 0 | Q119: =IF(Scenarier!$R$6=TRUE,Scenarier!R42,0) -> 0 | R119: =IF(Scenarier!$S$6=TRUE,Scenarier!S42,0) -> 0
B120: 0 | C120: =Finansiering!B42 -> 2059 | D120: =HLOOKUP($C120,Prosjektdata!$H$5:$BF$23,7,0)*-1 -> 0 | E120: =HLOOKUP($C120,Prosjektdata!$H$5:$BF$23,11,0) -> 0 | F120: =HLOOKUP($C120,Prosjektdata!$H$5:$BF$23,17,0) -> 0 | G120: =(Finansiering!G42)*(1+Prisstigning)^(C_Referanseår-Sammendrag!C120)*Finansiering!X42 -> 0 | I120: =(Finansiering!F42-Finansiering!G42)*(1+Prisstigning)^(C_Referanseår-Sammendrag!C120) -> 0 | J120: =Finansiering!P42 -> 0 | K120: =IF(Tabell3[[#This Row],[År]]=$C$30,Maksgjeld+100,0) -> 0 | L120: =IF(Tabell3[[#This Row],[Nedbetalt]]>0,"w",Finansiering!T42) -> 0 | M120: =Finansiering!X42*Tabell3[[#This Row],[Netto bominntekter]] -> 0 | O120: =IF(Tabell3[[#This Row],[År]]=$C$17,-1*Maksgjeld,0) -> 0 | P120: =IF(Scenarier!$Q$6=TRUE,Scenarier!Q43,0) -> 0 | Q120: =IF(Scenarier!$R$6=TRUE,Scenarier!R43,0) -> 0 | R120: =IF(Scenarier!$S$6=TRUE,Scenarier!S43,0) -> 0
B121: 0 | C121: =Finansiering!B43 -> 2060 | D121: =HLOOKUP($C121,Prosjektdata!$H$5:$BF$23,7,0)*-1 -> 0 | E121: =HLOOKUP($C121,Prosjektdata!$H$5:$BF$23,11,0) -> 0 | F121: =HLOOKUP($C121,Prosjektdata!$H$5:$BF$23,17,0) -> 0 | G121: =(Finansiering!G43)*(1+Prisstigning)^(C_Referanseår-Sammendrag!C121)*Finansiering!X43 -> 0 | I121: =(Finansiering!F43-Finansiering!G43)*(1+Prisstigning)^(C_Referanseår-Sammendrag!C121) -> 0 | J121: =Finansiering!P43 -> 0 | K121: =IF(Tabell3[[#This Row],[År]]=$C$30,Maksgjeld+100,0) -> 0 | L121: =IF(Tabell3[[#This Row],[Nedbetalt]]>0,"w",Finansiering!T43) -> 0 | M121: =Finansiering!X43*Tabell3[[#This Row],[Netto bominntekter]] -> 0 | O121: =IF(Tabell3[[#This Row],[År]]=$C$17,-1*Maksgjeld,0) -> 0 | P121: =IF(Scenarier!$Q$6=TRUE,Scenarier!Q44,0) -> 0 | Q121: =IF(Scenarier!$R$6=TRUE,Scenarier!R44,0) -> 0 | R121: =IF(Scenarier!$S$6=TRUE,Scenarier!S44,0) -> 0
B122: 0 | C122: =Finansiering!B44 -> 2061 | D122: =HLOOKUP($C122,Prosjektdata!$H$5:$BF$23,7,0)*-1 -> 0 | E122: =HLOOKUP($C122,Prosjektdata!$H$5:$BF$23,11,0) -> 0 | F122: =HLOOKUP($C122,Prosjektdata!$H$5:$BF$23,17,0) -> 0 | G122: =(Finansiering!G44)*(1+Prisstigning)^(C_Referanseår-Sammendrag!C122)*Finansiering!X44 -> 0 | I122: =(Finansiering!F44-Finansiering!G44)*(1+Prisstigning)^(C_Referanseår-Sammendrag!C122) -> 0 | J122: =Finansiering!P44 -> 0 | K122: =IF(Tabell3[[#This Row],[År]]=$C$30,Maksgjeld+100,0) -> 0 | L122: =IF(Tabell3[[#This Row],[Nedbetalt]]>0,"w",Finansiering!T44) -> 0 | M122: =Finansiering!X44*Tabell3[[#This Row],[Netto bominntekter]] -> 0 | O122: =IF(Tabell3[[#This Row],[År]]=$C$17,-1*Maksgjeld,0) -> 0 | P122: =IF(Scenarier!$Q$6=TRUE,Scenarier!Q45,0) -> 0 | Q122: =IF(Scenarier!$R$6=TRUE,Scenarier!R45,0) -> 0 | R122: =IF(Scenarier!$S$6=TRUE,Scenarier!S45,0) -> 0
B123: 0 | C123: =Finansiering!B45 -> 2062 | D123: =HLOOKUP($C123,Prosjektdata!$H$5:$BF$23,7,0)*-1 -> 0 | E123: =HLOOKUP($C123,Prosjektdata!$H$5:$BF$23,11,0) -> 0 | F123: =HLOOKUP($C123,Prosjektdata!$H$5:$BF$23,17,0) -> 0 | G123: =(Finansiering!G45)*(1+Prisstigning)^(C_Referanseår-Sammendrag!C123)*Finansiering!X45 -> 0 | I123: =(Finansiering!F45-Finansiering!G45)*(1+Prisstigning)^(C_Referanseår-Sammendrag!C123) -> 0 | J123: =Finansiering!P45 -> 0 | K123: =IF(Tabell3[[#This Row],[År]]=$C$30,Maksgjeld+100,0) -> 0 | L123: =IF(Tabell3[[#This Row],[Nedbetalt]]>0,"w",Finansiering!T45) -> 0 | M123: =Finansiering!X45*Tabell3[[#This Row],[Netto bominntekter]] -> 0 | O123: =IF(Tabell3[[#This Row],[År]]=$C$17,-1*Maksgjeld,0) -> 0 | P123: =IF(Scenarier!$Q$6=TRUE,Scenarier!Q46,0) -> 0 | Q123: =IF(Scenarier!$R$6=TRUE,Scenarier!R46,0) -> 0 | R123: =IF(Scenarier!$S$6=TRUE,Scenarier!S46,0) -> 0
B124: 0 | C124: =Finansiering!B46 -> 2063 | D124: =HLOOKUP($C124,Prosjektdata!$H$5:$BF$23,7,0)*-1 -> 0 | E124: =HLOOKUP($C124,Prosjektdata!$H$5:$BF$23,11,0) -> 0 | F124: =HLOOKUP($C124,Prosjektdata!$H$5:$BF$23,17,0) -> 0 | G124: =(Finansiering!G46)*(1+Prisstigning)^(C_Referanseår-Sammendrag!C124)*Finansiering!X46 -> 0 | I124: =(Finansiering!F46-Finansiering!G46)*(1+Prisstigning)^(C_Referanseår-Sammendrag!C124) -> 0 | J124: =Finansiering!P46 -> 0 | K124: =IF(Tabell3[[#This Row],[År]]=$C$30,Maksgjeld+100,0) -> 0 | L124: =IF(Tabell3[[#This Row],[Nedbetalt]]>0,"w",Finansiering!T46) -> 0 | M124: =Finansiering!X46*Tabell3[[#This Row],[Netto bominntekter]] -> 0 | O124: =IF(Tabell3[[#This Row],[År]]=$C$17,-1*Maksgjeld,0) -> 0 | P124: =IF(Scenarier!$Q$6=TRUE,Scenarier!Q47,0) -> 0 | Q124: =IF(Scenarier!$R$6=TRUE,Scenarier!R47,0) -> 0 | R124: =IF(Scenarier!$S$6=TRUE,Scenarier!S47,0) -> 0
B125: 0 | C125: =Finansiering!B47 -> 2064 | D125: =HLOOKUP($C125,Prosjektdata!$H$5:$BF$23,7,0)*-1 -> 0 | E125: =HLOOKUP($C125,Prosjektdata!$H$5:$BF$23,11,0) -> 0 | F125: =HLOOKUP($C125,Prosjektdata!$H$5:$BF$23,17,0) -> 0 | G125: =(Finansiering!G47)*(1+Prisstigning)^(C_Referanseår-Sammendrag!C125)*Finansiering!X47 -> 0 | I125: =(Finansiering!F47-Finansiering!G47)*(1+Prisstigning)^(C_Referanseår-Sammendrag!C125) -> 0 | J125: =Finansiering!P47 -> 0 | K125: =IF(Tabell3[[#This Row],[År]]=$C$30,Maksgjeld+100,0) -> 0 | L125: =IF(Tabell3[[#This Row],[Nedbetalt]]>0,"w",Finansiering!T47) -> 0 | M125: =Finansiering!X47*Tabell3[[#This Row],[Netto bominntekter]] -> 0 | O125: =IF(Tabell3[[#This Row],[År]]=$C$17,-1*Maksgjeld,0) -> 0 | P125: =IF(Scenarier!$Q$6=TRUE,Scenarier!Q48,0) -> 0 | Q125: =IF(Scenarier!$R$6=TRUE,Scenarier!R48,0) -> 0 | R125: =IF(Scenarier!$S$6=TRUE,Scenarier!S48,0) -> 0
B126: 0 | C126: =Finansiering!B48 -> 2065 | D126: =HLOOKUP($C126,Prosjektdata!$H$5:$BF$23,7,0)*-1 -> 0 | E126: =HLOOKUP($C126,Prosjektdata!$H$5:$BF$23,11,0) -> 0 | F126: =HLOOKUP($C126,Prosjektdata!$H$5:$BF$23,17,0) -> 0 | G126: =(Finansiering!G48)*(1+Prisstigning)^(C_Referanseår-Sammendrag!C126)*Finansiering!X48 -> 0 | I126: =(Finansiering!F48-Finansiering!G48)*(1+Prisstigning)^(C_Referanseår-Sammendrag!C126) -> 0 | J126: =Finansiering!P48 -> 0 | K126: =IF(Tabell3[[#This Row],[År]]=$C$30,Maksgjeld+100,0) -> 0 | L126: =IF(Tabell3[[#This Row],[Nedbetalt]]>0,"w",Finansiering!T48) -> 0 | M126: =Finansiering!X48*Tabell3[[#This Row],[Netto bominntekter]] -> 0 | O126: =IF(Tabell3[[#This Row],[År]]=$C$17,-1*Maksgjeld,0) -> 0 | P126: =IF(Scenarier!$Q$6=TRUE,Scenarier!Q49,0) -> 0 | Q126: =IF(Scenarier!$R$6=TRUE,Scenarier!R49,0) -> 0 | R126: =IF(Scenarier!$S$6=TRUE,Scenarier!S49,0) -> 0
B127: 0 | C127: =Finansiering!B49 -> 2066 | D127: =HLOOKUP($C127,Prosjektdata!$H$5:$BF$23,7,0)*-1 -> 0 | E127: =HLOOKUP($C127,Prosjektdata!$H$5:$BF$23,11,0) -> 0 | F127: =HLOOKUP($C127,Prosjektdata!$H$5:$BF$23,17,0) -> 0 | G127: =(Finansiering!G49)*(1+Prisstigning)^(C_Referanseår-Sammendrag!C127)*Finansiering!X49 -> 0 | I127: =(Finansiering!F49-Finansiering!G49)*(1+Prisstigning)^(C_Referanseår-Sammendrag!C127) -> 0 | J127: =Finansiering!P49 -> 0 | K127: =IF(Tabell3[[#This Row],[År]]=$C$30,Maksgjeld+100,0) -> 0 | L127: =IF(Tabell3[[#This Row],[Nedbetalt]]>0,"w",Finansiering!T49) -> 0 | M127: =Finansiering!X49*Tabell3[[#This Row],[Netto bominntekter]] -> 0 | O127: =IF(Tabell3[[#This Row],[År]]=$C$17,-1*Maksgjeld,0) -> 0 | P127: =IF(Scenarier!$Q$6=TRUE,Scenarier!Q50,0) -> 0 | Q127: =IF(Scenarier!$R$6=TRUE,Scenarier!R50,0) -> 0 | R127: =IF(Scenarier!$S$6=TRUE,Scenarier!S50,0) -> 0
B128: 0 | C128: =Finansiering!B50 -> 2067 | D128: =HLOOKUP($C128,Prosjektdata!$H$5:$BF$23,7,0)*-1 -> 0 | E128: =HLOOKUP($C128,Prosjektdata!$H$5:$BF$23,11,0) -> 0 | F128: =HLOOKUP($C128,Prosjektdata!$H$5:$BF$23,17,0) -> 0 | G128: =(Finansiering!G50)*(1+Prisstigning)^(C_Referanseår-Sammendrag!C128)*Finansiering!X50 -> 0 | I128: =(Finansiering!F50-Finansiering!G50)*(1+Prisstigning)^(C_Referanseår-Sammendrag!C128) -> 0 | J128: =Finansiering!P50 -> 0 | K128: =IF(Tabell3[[#This Row],[År]]=$C$30,Maksgjeld+100,0) -> 0 | L128: =IF(Tabell3[[#This Row],[Nedbetalt]]>0,"w",Finansiering!T50) -> 0 | M128: =Finansiering!X50*Tabell3[[#This Row],[Netto bominntekter]] -> 0 | O128: =IF(Tabell3[[#This Row],[År]]=$C$17,-1*Maksgjeld,0) -> 0 | P128: =IF(Scenarier!$Q$6=TRUE,Scenarier!Q51,0) -> 0 | Q128: =IF(Scenarier!$R$6=TRUE,Scenarier!R51,0) -> 0 | R128: =IF(Scenarier!$S$6=TRUE,Scenarier!S51,0) -> 0
B129: 0 | C129: =Finansiering!B51 -> 2068 | D129: =HLOOKUP($C129,Prosjektdata!$H$5:$BF$23,7,0)*-1 -> 0 | E129: =HLOOKUP($C129,Prosjektdata!$H$5:$BF$23,11,0) -> 0 | F129: =HLOOKUP($C129,Prosjektdata!$H$5:$BF$23,17,0) -> 0 | G129: =(Finansiering!G51)*(1+Prisstigning)^(C_Referanseår-Sammendrag!C129)*Finansiering!X51 -> 0 | I129: =(Finansiering!F51-Finansiering!G51)*(1+Prisstigning)^(C_Referanseår-Sammendrag!C129) -> 0 | J129: =Finansiering!P51 -> 0 | K129: =IF(Tabell3[[#This Row],[År]]=$C$30,Maksgjeld+100,0) -> 0 | L129: =IF(Tabell3[[#This Row],[Nedbetalt]]>0,"w",Finansiering!T51) -> 0 | M129: =Finansiering!X51*Tabell3[[#This Row],[Netto bominntekter]] -> 0 | O129: =IF(Tabell3[[#This Row],[År]]=$C$17,-1*Maksgjeld,0) -> 0 | P129: =IF(Scenarier!$Q$6=TRUE,Scenarier!Q52,0) -> 0 | Q129: =IF(Scenarier!$R$6=TRUE,Scenarier!R52,0) -> 0 | R129: =IF(Scenarier!$S$6=TRUE,Scenarier!S52,0) -> 0
B130: 0 | C130: =Finansiering!B52 -> 2069 | D130: =HLOOKUP($C130,Prosjektdata!$H$5:$BF$23,7,0)*-1 -> 0 | E130: =HLOOKUP($C130,Prosjektdata!$H$5:$BF$23,11,0) -> 0 | F130: =HLOOKUP($C130,Prosjektdata!$H$5:$BF$23,17,0) -> 0 | G130: =(Finansiering!G52)*(1+Prisstigning)^(C_Referanseår-Sammendrag!C130)*Finansiering!X52 -> 0 | I130: =(Finansiering!F52-Finansiering!G52)*(1+Prisstigning)^(C_Referanseår-Sammendrag!C130) -> 0 | J130: =Finansiering!P52 -> 0 | K130: =IF(Tabell3[[#This Row],[År]]=$C$30,Maksgjeld+100,0) -> 0 | L130: =IF(Tabell3[[#This Row],[Nedbetalt]]>0,"w",Finansiering!T52) -> 0 | M130: =Finansiering!X52*Tabell3[[#This Row],[Netto bominntekter]] -> 0 | O130: =IF(Tabell3[[#This Row],[År]]=$C$17,-1*Maksgjeld,0) -> 0 | P130: =IF(Scenarier!$Q$6=TRUE,Scenarier!Q53,0) -> 0 | Q130: =IF(Scenarier!$R$6=TRUE,Scenarier!R53,0) -> 0 | R130: =IF(Scenarier!$S$6=TRUE,Scenarier!S53,0) -> 0
B131: 0 | C131: =Finansiering!B53 -> 2070 | D131: =HLOOKUP($C131,Prosjektdata!$H$5:$BF$23,7,0)*-1 -> 0 | E131: =HLOOKUP($C131,Prosjektdata!$H$5:$BF$23,11,0) -> 0 | F131: =HLOOKUP($C131,Prosjektdata!$H$5:$BF$23,17,0) -> 0 | G131: =(Finansiering!G53)*(1+Prisstigning)^(C_Referanseår-Sammendrag!C131)*Finansiering!X53 -> 0 | I131: =(Finansiering!F53-Finansiering!G53)*(1+Prisstigning)^(C_Referanseår-Sammendrag!C131) -> 0 | J131: =Finansiering!P53 -> 0 | K131: =IF(Tabell3[[#This Row],[År]]=$C$30,Maksgjeld+100,0) -> 0 | L131: =IF(Tabell3[[#This Row],[Nedbetalt]]>0,"w",Finansiering!T53) -> 0 | M131: =Finansiering!X53*Tabell3[[#This Row],[Netto bominntekter]] -> 0 | O131: =IF(Tabell3[[#This Row],[År]]=$C$17,-1*Maksgjeld,0) -> 0 | P131: =IF(Scenarier!$Q$6=TRUE,Scenarier!Q54,0) -> 0 | Q131: =IF(Scenarier!$R$6=TRUE,Scenarier!R54,0) -> 0 | R131: =IF(Scenarier!$S$6=TRUE,Scenarier!S54,0) -> 0
B132: 0 | C132: =Finansiering!B54 -> 2071 | D132: =HLOOKUP($C132,Prosjektdata!$H$5:$BF$23,7,0)*-1 -> 0 | E132: =HLOOKUP($C132,Prosjektdata!$H$5:$BF$23,11,0) -> 0 | F132: =HLOOKUP($C132,Prosjektdata!$H$5:$BF$23,17,0) -> 0 | G132: =(Finansiering!G54)*(1+Prisstigning)^(C_Referanseår-Sammendrag!C132)*Finansiering!X54 -> 0 | I132: =(Finansiering!F54-Finansiering!G54)*(1+Prisstigning)^(C_Referanseår-Sammendrag!C132) -> 0 | J132: =Finansiering!P54 -> 0 | K132: =IF(Tabell3[[#This Row],[År]]=$C$30,Maksgjeld+100,0) -> 0 | L132: =IF(Tabell3[[#This Row],[Nedbetalt]]>0,"w",Finansiering!T54) -> 0 | M132: =Finansiering!X54*Tabell3[[#This Row],[Netto bominntekter]] -> 0 | O132: =IF(Tabell3[[#This Row],[År]]=$C$17,-1*Maksgjeld,0) -> 0 | P132: =IF(Scenarier!$Q$6=TRUE,Scenarier!Q55,0) -> 0 | Q132: =IF(Scenarier!$R$6=TRUE,Scenarier!R55,0) -> 0 | R132: =IF(Scenarier!$S$6=TRUE,Scenarier!S55,0) -> 0
B133: 0 | C133: =Finansiering!B55 -> 2072 | D133: =HLOOKUP($C133,Prosjektdata!$H$5:$BF$23,7,0)*-1 -> 0 | E133: =HLOOKUP($C133,Prosjektdata!$H$5:$BF$23,11,0) -> 0 | F133: =HLOOKUP($C133,Prosjektdata!$H$5:$BF$23,17,0) -> 0 | G133: =(Finansiering!G55)*(1+Prisstigning)^(C_Referanseår-Sammendrag!C133)*Finansiering!X55 -> 0 | I133: =(Finansiering!F55-Finansiering!G55)*(1+Prisstigning)^(C_Referanseår-Sammendrag!C133) -> 0 | J133: =Finansiering!P55 -> 0 | K133: =IF(Tabell3[[#This Row],[År]]=$C$30,Maksgjeld+100,0) -> 0 | L133: =IF(Tabell3[[#This Row],[Nedbetalt]]>0,"w",Finansiering!T55) -> 0 | M133: =Finansiering!X55*Tabell3[[#This Row],[Netto bominntekter]] -> 0 | O133: =IF(Tabell3[[#This Row],[År]]=$C$17,-1*Maksgjeld,0) -> 0 | P133: =IF(Scenarier!$Q$6=TRUE,Scenarier!Q56,0) -> 0 | Q133: =IF(Scenarier!$R$6=TRUE,Scenarier!R56,0) -> 0 | R133: =IF(Scenarier!$S$6=TRUE,Scenarier!S56,0) -> 0
B134: 0 | C134: =Finansiering!B56 -> 2073 | D134: =HLOOKUP($C134,Prosjektdata!$H$5:$BF$23,7,0)*-1 -> 0 | E134: =HLOOKUP($C134,Prosjektdata!$H$5:$BF$23,11,0) -> 0 | F134: =HLOOKUP($C134,Prosjektdata!$H$5:$BF$23,17,0) -> 0 | G134: =(Finansiering!G56)*(1+Prisstigning)^(C_Referanseår-Sammendrag!C134)*Finansiering!X56 -> 0 | I134: =(Finansiering!F56-Finansiering!G56)*(1+Prisstigning)^(C_Referanseår-Sammendrag!C134) -> 0 | J134: =Finansiering!P56 -> 0 | K134: =IF(Tabell3[[#This Row],[År]]=$C$30,Maksgjeld+100,0) -> 0 | L134: =IF(Tabell3[[#This Row],[Nedbetalt]]>0,"w",Finansiering!T56) -> 0 | M134: =Finansiering!X56*Tabell3[[#This Row],[Netto bominntekter]] -> 0 | O134: =IF(Tabell3[[#This Row],[År]]=$C$17,-1*Maksgjeld,0) -> 0 | P134: =IF(Scenarier!$Q$6=TRUE,Scenarier!Q57,0) -> 0 | Q134: =IF(Scenarier!$R$6=TRUE,Scenarier!R57,0) -> 0 | R134: =IF(Scenarier!$S$6=TRUE,Scenarier!S57,0) -> 0
B135: 0 | C135: =Finansiering!B57 -> 2074 | D135: =HLOOKUP($C135,Prosjektdata!$H$5:$BF$23,7,0)*-1 -> 0 | E135: =HLOOKUP($C135,Prosjektdata!$H$5:$BF$23,11,0) -> 0 | F135: =HLOOKUP($C135,Prosjektdata!$H$5:$BF$23,17,0) -> 0 | G135: =(Finansiering!G57)*(1+Prisstigning)^(C_Referanseår-Sammendrag!C135)*Finansiering!X57 -> 0 | I135: =(Finansiering!F57-Finansiering!G57)*(1+Prisstigning)^(C_Referanseår-Sammendrag!C135) -> 0 | J135: =Finansiering!P57 -> 0 | K135: =IF(Tabell3[[#This Row],[År]]=$C$30,Maksgjeld+100,0) -> 0 | L135: =IF(Tabell3[[#This Row],[Nedbetalt]]>0,"w",Finansiering!T57) -> 0 | M135: =Finansiering!X57*Tabell3[[#This Row],[Netto bominntekter]] -> 0 | O135: =IF(Tabell3[[#This Row],[År]]=$C$17,-1*Maksgjeld,0) -> 0 | P135: =IF(Scenarier!$Q$6=TRUE,Scenarier!Q58,0) -> 0 | Q135: =IF(Scenarier!$R$6=TRUE,Scenarier!R58,0) -> 0 | R135: =IF(Scenarier!$S$6=TRUE,Scenarier!S58,0) -> 0
C136: Sum | D136: =SUM(D85:D135) -> 0 | E136: =SUM(E85:E135) -> 0 | F136: =SUM(F85:F135) -> 0 | G136: =SUM(G85:G135) -> 0 | M136: =SUBTOTAL(109,Tabell3[Bompenger_til_nedbetalt]) -> 0

Sheet Sammendrag2
C4: =IF(tillegstakst<>0,"Det er lagt inn ekstra takstjusteringer!R9","") -> 
C5: =IF(COUNTIF(I16:M16,50)<>5,"Noen Faktorer er justert",IF(SUM(I11:M11)=0,"","Noen faktorer er Justert")) ->  | I5: Takst | J5: Investering | K5: Bevilgning | L5: Trafikk | M5: Rente
B6: Oppsummering | C6: Totalt | D6: Statlig | E6: Fylkeskommunalt | F6: Kommunalt | G6: Øvrig
B7: ="Investering (mill "&C_Referanseår&" kr)" -> Investering (mill 2024 kr) | C7: =Prosjektdata!E11 -> 0
B8: ="Finansieringsbidrag (mill "&C_Referanseår&" kr)" -> Finansieringsbidrag (mill 2024 kr) | C8: =Prosjektdata!E16 -> 0 | D8: =Prosjektdata!F12*Bevilgningsfaktor*((1+Prosjektdata!D6^(C_Referanseår-Prosjektdata!C12))) -> 0 | E8: =Prosjektdata!E14 -> 0 | F8: =Prosjektdata!E13 -> 0 | G8: =Prosjektdata!E15 -> 0
B9: ="Egenandel(%)" -> Egenandel(%) | C9: =IF(ISERROR(C8/C7=TRUE),0,C8/C7) -> 0 | D9: =IF(D7>0,D8/D7,"") ->  | E9: =IF(E7>0,E8/E7,"") ->  | F9: =IF(F7>0,F8/F7,"") -> 
B10: ="Brutto bompengeinntekter (mill "&C_Referanseår&" kr)" -> Brutto bompengeinntekter (mill 2024 kr) | C10: =IF(ISERROR(C12+C11)=TRUE,"",C12+C11) -> 0
B11: ="Innkrevingskostnad (mill "&C_Referanseår&" kr)" -> Innkrevingskostnad (mill 2024 kr) | C11: =IF(ISERROR(s_innkrevingskost=TRUE),"",n_innkrevingskostnad) -> 0 | I11: =Takstfaktor-1 -> 0 | J11: =investeringsfaktor-1 -> 0 | K11: 0 | L11: =trafikkfaktor-1 -> 0 | M11: =Rentefaktor -> 0
B12: ="Netto bompengeinntekter (mill "&C_Referanseår&" kr)" -> Netto bompengeinntekter (mill 2024 kr) | C12: =IF(ISERROR(netto_bom_faste=TRUE),"",netto_bom_faste) -> 0
B13: ="Finansieringskostnader (mill "&C_Referanseår&" kr)" -> Finansieringskostnader (mill 2024 kr) | C13: =IF(ISERROR(C10-C7+C8)=TRUE,"",(C10-C7+C8)) -> 0 | H13: Endring | I13: 0 | J13: 0 | K13: 0 | L13: 0 | M13: 0
B14: =IF(ISERROR("Maksgjeld i millioner (år "&maksgjeldår&" )"=TRUE),"",("Maksgjeld i millioner (år "&maksgjeldår&" )")) -> Maksgjeld i millioner (år 2024 ) | C14: =IF(ISERROR(Maksgjeld),"",Maksgjeld) -> 0 | H14: Utgangspunkt | I14: =C17/Takstfaktor -> 0 | J14: =C7*investeringsfaktor -> 0 | K14: =C8/Bevilgingsfaktor -> 0 | L14: =C19/trafikkfaktor -> 0 | M14: =IF(ISERROR(gjennomsnittsrente-Rentefaktor)=TRUE,0,(gjennomsnittsrente-Rentefaktor)) -> 0 | T14: =COUNTIF(I16:M16,50)+SUM(I13:M13)=5 -> TRUE
B15: Nedbetalingstid(år) | C15: =IF(ISERROR(IF(Finansiering!P57>0,"Aldri",SUM(Finansiering!W7:W57,))=TRUE),"",IF(Finansiering!P57>0,"Aldri",SUM(Finansiering!W7:W57,))) -> 0 | H15: Differanse | I15: =C17-I14 -> 0 | J15: =C7-J14 -> 0 | K15: =C8-K14 -> 0 | L15: =C19-L14 -> 0 | M15: =Rentefaktor -> 0
B16: Nedbetalingsår | C16: =IF(ISERROR(IF(Finansiering!P57>0,"Aldri",MAX(Finansiering!V:V)))=TRUE,0,IF(Finansiering!P57>0,"Aldri",MAX(Finansiering!V:V))) -> 0 | H16: Faktor | I16: 50 | J16: 50 | K16: 50 | L16: 50 | M16: 50
B17: ="Gjennomsnittstakst("&C_Referanseår&" kr)" -> Gjennomsnittstakst(2024 kr) | C17: =IF(ISERROR(Gjennomsnittsinntekt)=TRUE,0,Gjennomsnittsinntekt) -> 0 | D17: Det er brukt takstjustering
B18: Gjennomsnittsrente | C18: =IF(ISERROR(gjennomsnittsrente)=TRUE,0,gjennomsnittsrente) -> 0 | H18: Endring | I18: =1+(I16-50)/100+I13 -> 1 | J18: =1+(J16-50)/100+J13 -> 1 | K18: =1+(K16-50)/100+K13 -> 1 | L18: =1+((L16-50)/100)+L13 -> 1 | M18: =(M16-50)/1000+M13 -> 0
B19: Sum ÅDT alle bommer (kjt/d) | C19: =Sum_trafikk*trafikkfaktor -> 0
B20: Rentekostnader i innkrevingsperioden (mill) | C20: =lånerente_løpende-innskuddsrente_løpende -> 0
B22: Startår graf | C22: =Sammendrag!C28 -> 2028 | K22: Alternativ
B23: Sluttår graf | C23: =Sammendrag!C29 -> 2045 | L23: 1 | M23: =IF(Scenarier!$Q$5=1,Scenarier!E7,"") -> 0 | N23: 2 | P23: =IF(Scenarier!$Q$5=1,Scenarier!G7,"") -> 0 | Q23: 3 | R23: =IF(Scenarier!$Q$5=1,Scenarier!I7,"") -> 0
B24: Ønsket vist nedbetalingsår | C24: =Sammendrag!C30 -> 2043 | H24: =B6 -> Oppsummering | K24: =Scenarier!C8 -> Aktivt | L24: Resultat | M24: Endring | N24: Resultat | P24: Endring | Q24: Resultat | R24: Endring
H25: =B7 -> Investering (mill 2024 kr) | K25: =C7 -> 0 | L25: =IF(Scenarier!$D$5=1,Scenarier!D9,"") ->  | M25: =IF(Scenarier!$D$5>0,L25-$K25,"") ->  | N25: =IF(Scenarier!$E$5=1,Scenarier!E9,"") ->  | P25: =IF(Scenarier!$E$5>0,N25-$K25,"") ->  | Q25: =IF(Scenarier!$F$5=1,Scenarier!F9,"") ->  | R25: =IF(Scenarier!$F$5>0,Q25-$K25,"") -> 
H26: =B8 -> Finansieringsbidrag (mill 2024 kr) | K26: =C8 -> 0 | L26: =IF(Scenarier!$D$5=1,Scenarier!D10,"") ->  | M26: =IF(Scenarier!$D$5>0,L26-$K26,"") ->  | N26: =IF(Scenarier!$E$5=1,Scenarier!E10,"") ->  | P26: =IF(Scenarier!$E$5>0,N26-$K26,"") ->  | Q26: =IF(Scenarier!$F$5=1,Scenarier!F10,"") ->  | R26: =IF(Scenarier!$F$5>0,Q26-$K26,"") ->  | Z26: 0
H27: =B9 -> Egenandel(%) | K27: =C9 -> 0 | L27: =IF(Scenarier!$D$5=1,Scenarier!D11,"") ->  | M27: =IF(Scenarier!$D$5>0,L27-$K27,"") ->  | N27: =IF(Scenarier!$E$5=1,Scenarier!E11,"") ->  | P27: =IF(Scenarier!$E$5>0,N27-$K27,"") ->  | Q27: =IF(Scenarier!$F$5=1,Scenarier!F11,"") ->  | R27: =IF(Scenarier!$F$5>0,Q27-$K27,"") -> 
H28: =B11 -> Innkrevingskostnad (mill 2024 kr) | K28: =C11 -> 0 | L28: =IF(Scenarier!$D$5=1,Scenarier!D12,"") ->  | M28: =IF(Scenarier!$D$5>0,L28-$K28,"") ->  | N28: =IF(Scenarier!$E$5=1,Scenarier!E12,"") ->  | P28: =IF(Scenarier!$E$5>0,N28-$K28,"") ->  | Q28: =IF(Scenarier!$F$5=1,Scenarier!F12,"") ->  | R28: =IF(Scenarier!$F$5>0,Q28-$K28,"") -> 
H29: =B12 -> Netto bompengeinntekter (mill 2024 kr) | K29: 0 | L29: =IF(Scenarier!$D$5=1,Scenarier!D13,"") ->  | M29: =IF(Scenarier!$D$5>0,L29-$K29,"") ->  | N29: =IF(Scenarier!$E$5=1,Scenarier!E13,"") ->  | P29: =IF(Scenarier!$E$5>0,N29-$K29,"") ->  | Q29: =IF(Scenarier!$F$5=1,Scenarier!F13,"") ->  | R29: =IF(Scenarier!$F$5>0,Q29-$K29,"") -> 
H30: =B13 -> Finansieringskostnader (mill 2024 kr) | K30: 0 | L30: =IF(Scenarier!$D$5=1,Scenarier!D14,"") ->  | M30: =IF(Scenarier!$D$5>0,L30-$K30,"") ->  | N30: =IF(Scenarier!$E$5=1,Scenarier!E14,"") ->  | P30: =IF(Scenarier!$E$5>0,N30-$K30,"") ->  | Q30: =IF(Scenarier!$F$5=1,Scenarier!F14,"") ->  | R30: =IF(Scenarier!$F$5>0,Q30-$K30,"") -> 
H31: =IF(B14="","Maksgjeld",B14) -> Maksgjeld i millioner (år 2024 ) | K31: 0 | L31: =IF(Scenarier!$D$5=1,Scenarier!D15,"") ->  | M31: =IF(Scenarier!$D$5>0,L31-$K31,"") ->  | N31: =IF(Scenarier!$E$5=1,Scenarier!E15,"") ->  | P31: =IF(Scenarier!$E$5>0,N31-$K31,"") ->  | Q31: =IF(Scenarier!$F$5=1,Scenarier!F15,"") ->  | R31: =IF(Scenarier!$F$5>0,Q31-$K31,"") -> 
H32: =B15 -> Nedbetalingstid(år) | K32: 0 | L32: =IF(Scenarier!$D$5=1,Scenarier!D17,"") ->  | M32: =IF(L32="Aldri","",IF(Scenarier!$D$5>0,L32-$K32,"")) ->  | N32: =IF(Scenarier!$E$5=1,Scenarier!E17,"") ->  | P32: =IF(Scenarier!$E$5>0,N32-$K32,"") ->  | Q32: =IF(Scenarier!$F$5=1,Scenarier!F17,"") ->  | R32: =IF(Scenarier!$F$5>0,Q32-$K32,"") -> 
H33: =B16 -> Nedbetalingsår | K33: 0 | L33: =IF(Scenarier!$D$5=1,Scenarier!D18,"") ->  | M33: =IF(L33="Aldri","",IF(Scenarier!$D$5>0,L33-$K33,"")) ->  | N33: =IF(Scenarier!$E$5=1,Scenarier!E18,"") ->  | P33: =IF(Scenarier!$E$5>0,N33-$K33,"") ->  | Q33: =IF(Scenarier!$F$5=1,Scenarier!F18,"") ->  | R33: =IF(Scenarier!$F$5>0,Q33-$K33,"") -> 
H34: =B17 -> Gjennomsnittstakst(2024 kr) | K34: 0 | L34: =IF(Scenarier!$D$5=1,Scenarier!D19,"") ->  | M34: =IF(Scenarier!$D$5>0,L34-$K34,"") ->  | N34: =IF(Scenarier!$E$5=1,Scenarier!E19,"") ->  | P34: =IF(Scenarier!$E$5>0,N34-$K34,"") ->  | Q34: =IF(Scenarier!$F$5=1,Scenarier!F19,"") ->  | R34: =IF(Scenarier!$F$5>0,Q34-$K34,"") -> 
H35: =B19 -> Sum ÅDT alle bommer (kjt/d) | K35: =C19 -> 0 | L35: =IF(Scenarier!$D$5=1,Scenarier!D20,"") ->  | M35: =IF(Scenarier!$D$5>0,L35-$K35,"") ->  | N35: =IF(Scenarier!$E$5=1,Scenarier!E20,"") ->  | P35: =IF(Scenarier!$E$5>0,N35-$K35,"") ->  | Q35: =IF(Scenarier!$F$5=1,Scenarier!F20,"") ->  | R35: =IF(Scenarier!$F$5>0,Q35-$K35,"") -> 
H36: Rentekostnader (mill) | K36: =C20 -> 0 | L36: =IF(Scenarier!$D$5=1,Scenarier!D21,"") ->  | M36: =IF(Scenarier!$D$5>0,L36-$K36,"") ->  | N36: =IF(Scenarier!$E$5=1,Scenarier!E21,"") ->  | P36: =IF(Scenarier!$E$5>0,N36-$K36,"") ->  | Q36: =IF(Scenarier!$F$5=1,Scenarier!F21,"") ->  | R36: =IF(Scenarier!$F$5>0,Q36-$K36,"") -> 
V72: Brutto bompenger | W72: =SUMIFS(H80:H108,L80:L108,1) -> 0
V73: ="Bruttobompenger i innkrevingsperioden "& C_Referanseår& " kr" -> Bruttobompenger i innkrevingsperioden 2024 kr | W73: =N130 -> 0
V74: ="Brutto bompenger til nedbetalt i"& C_Referanseår& " kr" -> Brutto bompenger til nedbetalt i2024 kr | W74: =O130 -> 0
V75: ="Netto bompenger til nedbetalt i"& C_Referanseår& " kr" -> Netto bompenger til nedbetalt i2024 kr | W75: =M130 -> 0
D77: Faste kroner
B78: Visning | C78: År | D78: Investering | E78: Statlige bidrag | F78: Øvrige bidrag | G78: Innkrevingskostnader | H78: Bominntekter | I78: Netto bominntekter | J78: Lånesaldo | K78: Visningsår | L78: Innkrevingsår | M78: Bompenger_til_nedbetalt | N78: Brutto bominntekter i perioden | O78: Brutto bompenger til nedbetalt | P78: Nedbetalt | Q78: Alternativ1 | R78: Alternativ2 | S78: Alternativ3
B79: =IF(OR(C79<($C$22),C79>($C$23))=FALSE,1,0) -> 0 | C79: =Finansiering!B7 -> 2024 | D79: =HLOOKUP($C79,Prosjektdata!$H$5:$BF$23,7,0)*-1 -> 0 | E79: =HLOOKUP($C79,Prosjektdata!$H$5:$BF$23,11,0) -> 0 | F79: =HLOOKUP($C79,Prosjektdata!$H$5:$BF$23,17,0) -> 0 | G79: =(Finansiering!G7)*(1+Prisstigning)^(C_Referanseår-Sammendrag2!C79)*Finansiering!X7 -> 0 | H79: =Finansiering!F7 -> 0 | I79: =(Finansiering!F7-Finansiering!G7)*(1+Prisstigning)^(C_Referanseår-Sammendrag2!C79) -> 0 | J79: =Finansiering!P7 -> 0 | K79: =IF(Tabell35[[#This Row],[År]]=$C$24,Maksgjeld+100,0) -> 0 | L79: =IF(Tabell35[[#This Row],[Nedbetalt]]>0,"w",Finansiering!T7) -> 0 | M79: =Finansiering!X7*Tabell35[[#This Row],[Netto bominntekter]] -> 0 | N79: =(Tabell35[[#This Row],[Bominntekter]])*(1+Prisstigning)^(C_Referanseår-Sammendrag2!C79) -> 0 | O79: =Finansiering!X7*Tabell35[[#This Row],[Brutto bominntekter i perioden]] -> 0 | P79: =IF(Tabell35[[#This Row],[År]]=$C$16,-1*Maksgjeld,0) -> 0 | Q79: =IF(Scenarier!$Q$6=TRUE,Scenarier!Q8,0) -> 0 | R79: =IF(Scenarier!$R$6=TRUE,Scenarier!R8,0) -> 0 | S79: =IF(Scenarier!$S$6=TRUE,Scenarier!S8,0) -> 0
B80: 0 | C80: =Finansiering!B8 -> 2025 | D80: =HLOOKUP($C80,Prosjektdata!$H$5:$BF$23,7,0)*-1 -> 0 | E80: =HLOOKUP($C80,Prosjektdata!$H$5:$BF$23,11,0) -> 0 | F80: =HLOOKUP($C80,Prosjektdata!$H$5:$BF$23,17,0) -> 0 | G80: =(Finansiering!G8)*(1+Prisstigning)^(C_Referanseår-Sammendrag2!C80)*Finansiering!X8 -> 0 | H80: =Finansiering!F8 -> 0 | I80: =(Finansiering!F8-Finansiering!G8)*(1+Prisstigning)^(C_Referanseår-Sammendrag2!C80) -> 0 | J80: =Finansiering!P8 -> 0 | K80: =IF(Tabell35[[#This Row],[År]]=$C$24,Maksgjeld+100,0) -> 0 | L80: =IF(Tabell35[[#This Row],[Nedbetalt]]>0,"w",Finansiering!T8) -> 0 | M80: =Finansiering!X8*Tabell35[[#This Row],[Netto bominntekter]] -> 0 | N80: =(Tabell35[[#This Row],[Bominntekter]])*(1+Prisstigning)^(C_Referanseår-Sammendrag2!C80) -> 0 | O80: =Finansiering!X8*Tabell35[[#This Row],[Brutto bominntekter i perioden]] -> 0 | P80: =IF(Tabell35[[#This Row],[År]]=$C$16,-1*Maksgjeld,0) -> 0 | Q80: =IF(Scenarier!$Q$6=TRUE,Scenarier!Q9,0) -> 0 | R80: =IF(Scenarier!$R$6=TRUE,Scenarier!R9,0) -> 0 | S80: =IF(Scenarier!$S$6=TRUE,Scenarier!S9,0) -> 0
B81: 0 | C81: =Finansiering!B9 -> 2026 | D81: =HLOOKUP($C81,Prosjektdata!$H$5:$BF$23,7,0)*-1 -> 0 | E81: =HLOOKUP($C81,Prosjektdata!$H$5:$BF$23,11,0) -> 0 | F81: =HLOOKUP($C81,Prosjektdata!$H$5:$BF$23,17,0) -> 0 | G81: =(Finansiering!G9)*(1+Prisstigning)^(C_Referanseår-Sammendrag2!C81)*Finansiering!X9 -> 0 | H81: =Finansiering!F9 -> 0 | I81: =(Finansiering!F9-Finansiering!G9)*(1+Prisstigning)^(C_Referanseår-Sammendrag2!C81) -> 0 | J81: =Finansiering!P9 -> 0 | K81: =IF(Tabell35[[#This Row],[År]]=$C$24,Maksgjeld+100,0) -> 0 | L81: =IF(Tabell35[[#This Row],[Nedbetalt]]>0,"w",Finansiering!T9) -> 0 | M81: =Finansiering!X9*Tabell35[[#This Row],[Netto bominntekter]] -> 0 | N81: =(Tabell35[[#This Row],[Bominntekter]])*(1+Prisstigning)^(C_Referanseår-Sammendrag2!C81) -> 0 | O81: =Finansiering!X9*Tabell35[[#This Row],[Brutto bominntekter i perioden]] -> 0 | P81: =IF(Tabell35[[#This Row],[År]]=$C$16,-1*Maksgjeld,0) -> 0 | Q81: =IF(Scenarier!$Q$6=TRUE,Scenarier!Q10,0) -> 0 | R81: =IF(Scenarier!$R$6=TRUE,Scenarier!R10,0) -> 0 | S81: =IF(Scenarier!$S$6=TRUE,Scenarier!S10,0) -> 0
B82: 0 | C82: =Finansiering!B10 -> 2027 | D82: =HLOOKUP($C82,Prosjektdata!$H$5:$BF$23,7,0)*-1 -> 0 | E82: =HLOOKUP($C82,Prosjektdata!$H$5:$BF$23,11,0) -> 0 | F82: =HLOOKUP($C82,Prosjektdata!$H$5:$BF$23,17,0) -> 0 | G82: =(Finansiering!G10)*(1+Prisstigning)^(C_Referanseår-Sammendrag2!C82)*Finansiering!X10 -> 0 | H82: =Finansiering!F10 -> 0 | I82: =(Finansiering!F10-Finansiering!G10)*(1+Prisstigning)^(C_Referanseår-Sammendrag2!C82) -> 0 | J82: =Finansiering!P10 -> 0 | K82: =IF(Tabell35[[#This Row],[År]]=$C$24,Maksgjeld+100,0) -> 0 | L82: =IF(Tabell35[[#This Row],[Nedbetalt]]>0,"w",Finansiering!T10) -> 0 | M82: =Finansiering!X10*Tabell35[[#This Row],[Netto bominntekter]] -> 0 | N82: =(Tabell35[[#This Row],[Bominntekter]])*(1+Prisstigning)^(C_Referanseår-Sammendrag2!C82) -> 0 | O82: =Finansiering!X10*Tabell35[[#This Row],[Brutto bominntekter i perioden]] -> 0 | P82: =IF(Tabell35[[#This Row],[År]]=$C$16,-1*Maksgjeld,0) -> 0 | Q82: =IF(Scenarier!$Q$6=TRUE,Scenarier!Q11,0) -> 0 | R82: =IF(Scenarier!$R$6=TRUE,Scenarier!R11,0) -> 0 | S82: =IF(Scenarier!$S$6=TRUE,Scenarier!S11,0) -> 0
B83: 1 | C83: =Finansiering!B11 -> 2028 | D83: =HLOOKUP($C83,Prosjektdata!$H$5:$BF$23,7,0)*-1 -> 0 | E83: =HLOOKUP($C83,Prosjektdata!$H$5:$BF$23,11,0) -> 0 | F83: =HLOOKUP($C83,Prosjektdata!$H$5:$BF$23,17,0) -> 0 | G83: =(Finansiering!G11)*(1+Prisstigning)^(C_Referanseår-Sammendrag2!C83)*Finansiering!X11 -> 0 | H83: =Finansiering!F11 -> 0 | I83: =(Finansiering!F11-Finansiering!G11)*(1+Prisstigning)^(C_Referanseår-Sammendrag2!C83) -> 0 | J83: =Finansiering!P11 -> 0 | K83: =IF(Tabell35[[#This Row],[År]]=$C$24,Maksgjeld+100,0) -> 0 | L83: =IF(Tabell35[[#This Row],[Nedbetalt]]>0,"w",Finansiering!T11) -> 0 | M83: =Finansiering!X11*Tabell35[[#This Row],[Netto bominntekter]] -> 0 | N83: =(Tabell35[[#This Row],[Bominntekter]])*(1+Prisstigning)^(C_Referanseår-Sammendrag2!C83) -> 0 | O83: =Finansiering!X11*Tabell35[[#This Row],[Brutto bominntekter i perioden]] -> 0 | P83: =IF(Tabell35[[#This Row],[År]]=$C$16,-1*Maksgjeld,0) -> 0 | Q83: =IF(Scenarier!$Q$6=TRUE,Scenarier!Q12,0) -> 0 | R83: =IF(Scenarier!$R$6=TRUE,Scenarier!R12,0) -> 0 | S83: =IF(Scenarier!$S$6=TRUE,Scenarier!S12,0) -> 0
B84: 1 | C84: =Finansiering!B12 -> 2029 | D84: =HLOOKUP($C84,Prosjektdata!$H$5:$BF$23,7,0)*-1 -> 0 | E84: =HLOOKUP($C84,Prosjektdata!$H$5:$BF$23,11,0) -> 0 | F84: =HLOOKUP($C84,Prosjektdata!$H$5:$BF$23,17,0) -> 0 | G84: =(Finansiering!G12)*(1+Prisstigning)^(C_Referanseår-Sammendrag2!C84)*Finansiering!X12 -> 0 | H84: =Finansiering!F12 -> 0 | I84: =(Finansiering!F12-Finansiering!G12)*(1+Prisstigning)^(C_Referanseår-Sammendrag2!C84) -> 0 | J84: =Finansiering!P12 -> 0 | K84: =IF(Tabell35[[#This Row],[År]]=$C$24,Maksgjeld+100,0) -> 0 | L84: =IF(Tabell35[[#This Row],[Nedbetalt]]>0,"w",Finansiering!T12) -> 0 | M84: =Finansiering!X12*Tabell35[[#This Row],[Netto bominntekter]] -> 0 | N84: =(Tabell35[[#This Row],[Bominntekter]])*(1+Prisstigning)^(C_Referanseår-Sammendrag2!C84) -> 0 | O84: =Finansiering!X12*Tabell35[[#This Row],[Brutto bominntekter i perioden]] -> 0 | P84: =IF(Tabell35[[#This Row],[År]]=$C$16,-1*Maksgjeld,0) -> 0 | Q84: =IF(Scenarier!$Q$6=TRUE,Scenarier!Q13,0) -> 0 | R84: =IF(Scenarier!$R$6=TRUE,Scenarier!R13,0) -> 0 | S84: =IF(Scenarier!$S$6=TRUE,Scenarier!S13,0) -> 0
B85: 1 | C85: =Finansiering!B13 -> 2030 | D85: =HLOOKUP($C85,Prosjektdata!$H$5:$BF$23,7,0)*-1 -> 0 | E85: =HLOOKUP($C85,Prosjektdata!$H$5:$BF$23,11,0) -> 0 | F85: =HLOOKUP($C85,Prosjektdata!$H$5:$BF$23,17,0) -> 0 | G85: =(Finansiering!G13)*(1+Prisstigning)^(C_Referanseår-Sammendrag2!C85)*Finansiering!X13 -> 0 | H85: =Finansiering!F13 -> 0 | I85: =(Finansiering!F13-Finansiering!G13)*(1+Prisstigning)^(C_Referanseår-Sammendrag2!C85) -> 0 | J85: =Finansiering!P13 -> 0 | K85: =IF(Tabell35[[#This Row],[År]]=$C$24,Maksgjeld+100,0) -> 0 | L85: =IF(Tabell35[[#This Row],[Nedbetalt]]>0,"w",Finansiering!T13) -> 0 | M85: =Finansiering!X13*Tabell35[[#This Row],[Netto bominntekter]] -> 0 | N85: =(Tabell35[[#This Row],[Bominntekter]])*(1+Prisstigning)^(C_Referanseår-Sammendrag2!C85) -> 0 | O85: =Finansiering!X13*Tabell35[[#This Row],[Brutto bominntekter i perioden]] -> 0 | P85: =IF(Tabell35[[#This Row],[År]]=$C$16,-1*Maksgjeld,0) -> 0 | Q85: =IF(Scenarier!$Q$6=TRUE,Scenarier!Q14,0) -> 0 | R85: =IF(Scenarier!$R$6=TRUE,Scenarier!R14,0) -> 0 | S85: =IF(Scenarier!$S$6=TRUE,Scenarier!S14,0) -> 0
B86: 1 | C86: =Finansiering!B14 -> 2031 | D86: =HLOOKUP($C86,Prosjektdata!$H$5:$BF$23,7,0)*-1 -> 0 | E86: =HLOOKUP($C86,Prosjektdata!$H$5:$BF$23,11,0) -> 0 | F86: =HLOOKUP($C86,Prosjektdata!$H$5:$BF$23,17,0) -> 0 | G86: =(Finansiering!G14)*(1+Prisstigning)^(C_Referanseår-Sammendrag2!C86)*Finansiering!X14 -> 0 | H86: =Finansiering!F14 -> 0 | I86: =(Finansiering!F14-Finansiering!G14)*(1+Prisstigning)^(C_Referanseår-Sammendrag2!C86) -> 0 | J86: =Finansiering!P14 -> 0 | K86: =IF(Tabell35[[#This Row],[År]]=$C$24,Maksgjeld+100,0) -> 0 | L86: =IF(Tabell35[[#This Row],[Nedbetalt]]>0,"w",Finansiering!T14) -> 0 | M86: =Finansiering!X14*Tabell35[[#This Row],[Netto bominntekter]] -> 0 | N86: =(Tabell35[[#This Row],[Bominntekter]])*(1+Prisstigning)^(C_Referanseår-Sammendrag2!C86) -> 0 | O86: =Finansiering!X14*Tabell35[[#This Row],[Brutto bominntekter i perioden]] -> 0 | P86: =IF(Tabell35[[#This Row],[År]]=$C$16,-1*Maksgjeld,0) -> 0 | Q86: =IF(Scenarier!$Q$6=TRUE,Scenarier!Q15,0) -> 0 | R86: =IF(Scenarier!$R$6=TRUE,Scenarier!R15,0) -> 0 | S86: =IF(Scenarier!$S$6=TRUE,Scenarier!S15,0) -> 0
B87: 1 | C87: =Finansiering!B15 -> 2032 | D87: =HLOOKUP($C87,Prosjektdata!$H$5:$BF$23,7,0)*-1 -> 0 | E87: =HLOOKUP($C87,Prosjektdata!$H$5:$BF$23,11,0) -> 0 | F87: =HLOOKUP($C87,Prosjektdata!$H$5:$BF$23,17,0) -> 0 | G87: =(Finansiering!G15)*(1+Prisstigning)^(C_Referanseår-Sammendrag2!C87)*Finansiering!X15 -> 0 | H87: =Finansiering!F15 -> 0 | I87: =(Finansiering!F15-Finansiering!G15)*(1+Prisstigning)^(C_Referanseår-Sammendrag2!C87) -> 0 | J87: =Finansiering!P15 -> 0 | K87: =IF(Tabell35[[#This Row],[År]]=$C$24,Maksgjeld+100,0) -> 0 | L87: =IF(Tabell35[[#This Row],[Nedbetalt]]>0,"w",Finansiering!T15) -> 0 | M87: =Finansiering!X15*Tabell35[[#This Row],[Netto bominntekter]] -> 0 | N87: =(Tabell35[[#This Row],[Bominntekter]])*(1+Prisstigning)^(C_Referanseår-Sammendrag2!C87) -> 0 | O87: =Finansiering!X15*Tabell35[[#This Row],[Brutto bominntekter i perioden]] -> 0 | P87: =IF(Tabell35[[#This Row],[År]]=$C$16,-1*Maksgjeld,0) -> 0 | Q87: =IF(Scenarier!$Q$6=TRUE,Scenarier!Q16,0) -> 0 | R87: =IF(Scenarier!$R$6=TRUE,Scenarier!R16,0) -> 0 | S87: =IF(Scenarier!$S$6=TRUE,Scenarier!S16,0) -> 0
B88: 1 | C88: =Finansiering!B16 -> 2033 | D88: =HLOOKUP($C88,Prosjektdata!$H$5:$BF$23,7,0)*-1 -> 0 | E88: =HLOOKUP($C88,Prosjektdata!$H$5:$BF$23,11,0) -> 0 | F88: =HLOOKUP($C88,Prosjektdata!$H$5:$BF$23,17,0) -> 0 | G88: =(Finansiering!G16)*(1+Prisstigning)^(C_Referanseår-Sammendrag2!C88)*Finansiering!X16 -> 0 | H88: =Finansiering!F16 -> 0 | I88: =(Finansiering!F16-Finansiering!G16)*(1+Prisstigning)^(C_Referanseår-Sammendrag2!C88) -> 0 | J88: =Finansiering!P16 -> 0 | K88: =IF(Tabell35[[#This Row],[År]]=$C$24,Maksgjeld+100,0) -> 0 | L88: =IF(Tabell35[[#This Row],[Nedbetalt]]>0,"w",Finansiering!T16) -> 0 | M88: =Finansiering!X16*Tabell35[[#This Row],[Netto bominntekter]] -> 0 | N88: =(Tabell35[[#This Row],[Bominntekter]])*(1+Prisstigning)^(C_Referanseår-Sammendrag2!C88) -> 0 | O88: =Finansiering!X16*Tabell35[[#This Row],[Brutto bominntekter i perioden]] -> 0 | P88: =IF(Tabell35[[#This Row],[År]]=$C$16,-1*Maksgjeld,0) -> 0 | Q88: =IF(Scenarier!$Q$6=TRUE,Scenarier!Q17,0) -> 0 | R88: =IF(Scenarier!$R$6=TRUE,Scenarier!R17,0) -> 0 | S88: =IF(Scenarier!$S$6=TRUE,Scenarier!S17,0) -> 0
B89: 1 | C89: =Finansiering!B17 -> 2034 | D89: =HLOOKUP($C89,Prosjektdata!$H$5:$BF$23,7,0)*-1 -> 0 | E89: =HLOOKUP($C89,Prosjektdata!$H$5:$BF$23,11,0) -> 0 | F89: =HLOOKUP($C89,Prosjektdata!$H$5:$BF$23,17,0) -> 0 | G89: =(Finansiering!G17)*(1+Prisstigning)^(C_Referanseår-Sammendrag2!C89)*Finansiering!X17 -> 0 | H89: =Finansiering!F17 -> 0 | I89: =(Finansiering!F17-Finansiering!G17)*(1+Prisstigning)^(C_Referanseår-Sammendrag2!C89) -> 0 | J89: =Finansiering!P17 -> 0 | K89: =IF(Tabell35[[#This Row],[År]]=$C$24,Maksgjeld+100,0) -> 0 | L89: =IF(Tabell35[[#This Row],[Nedbetalt]]>0,"w",Finansiering!T17) -> 0 | M89: =Finansiering!X17*Tabell35[[#This Row],[Netto bominntekter]] -> 0 | N89: =(Tabell35[[#This Row],[Bominntekter]])*(1+Prisstigning)^(C_Referanseår-Sammendrag2!C89) -> 0 | O89: =Finansiering!X17*Tabell35[[#This Row],[Brutto bominntekter i perioden]] -> 0 | P89: =IF(Tabell35[[#This Row],[År]]=$C$16,-1*Maksgjeld,0) -> 0 | Q89: =IF(Scenarier!$Q$6=TRUE,Scenarier!Q18,0) -> 0 | R89: =IF(Scenarier!$R$6=TRUE,Scenarier!R18,0) -> 0 | S89: =IF(Scenarier!$S$6=TRUE,Scenarier!S18,0) -> 0
B90: 1 | C90: =Finansiering!B18 -> 2035 | D90: =HLOOKUP($C90,Prosjektdata!$H$5:$BF$23,7,0)*-1 -> 0 | E90: =HLOOKUP($C90,Prosjektdata!$H$5:$BF$23,11,0) -> 0 | F90: =HLOOKUP($C90,Prosjektdata!$H$5:$BF$23,17,0) -> 0 | G90: =(Finansiering!G18)*(1+Prisstigning)^(C_Referanseår-Sammendrag2!C90)*Finansiering!X18 -> 0 | H90: =Finansiering!F18 -> 0 | I90: =(Finansiering!F18-Finansiering!G18)*(1+Prisstigning)^(C_Referanseår-Sammendrag2!C90) -> 0 | J90: =Finansiering!P18 -> 0 | K90: =IF(Tabell35[[#This Row],[År]]=$C$24,Maksgjeld+100,0) -> 0 | L90: =IF(Tabell35[[#This Row],[Nedbetalt]]>0,"w",Finansiering!T18) -> 0 | M90: =Finansiering!X18*Tabell35[[#This Row],[Netto bominntekter]] -> 0 | N90: =(Tabell35[[#This Row],[Bominntekter]])*(1+Prisstigning)^(C_Referanseår-Sammendrag2!C90) -> 0 | O90: =Finansiering!X18*Tabell35[[#This Row],[Brutto bominntekter i perioden]] -> 0 | P90: =IF(Tabell35[[#This Row],[År]]=$C$16,-1*Maksgjeld,0) -> 0 | Q90: =IF(Scenarier!$Q$6=TRUE,Scenarier!Q19,0) -> 0 | R90: =IF(Scenarier!$R$6=TRUE,Scenarier!R19,0) -> 0 | S90: =IF(Scenarier!$S$6=TRUE,Scenarier!S19,0) -> 0
B91: 1 | C91: =Finansiering!B19 -> 2036 | D91: =HLOOKUP($C91,Prosjektdata!$H$5:$BF$23,7,0)*-1 -> 0 | E91: =HLOOKUP($C91,Prosjektdata!$H$5:$BF$23,11,0) -> 0 | F91: =HLOOKUP($C91,Prosjektdata!$H$5:$BF$23,17,0) -> 0 | G91: =(Finansiering!G19)*(1+Prisstigning)^(C_Referanseår-Sammendrag2!C91)*Finansiering!X19 -> 0 | H91: =Finansiering!F19 -> 0 | I91: =(Finansiering!F19-Finansiering!G19)*(1+Prisstigning)^(C_Referanseår-Sammendrag2!C91) -> 0 | J91: =Finansiering!P19 -> 0 | K91: =IF(Tabell35[[#This Row],[År]]=$C$24,Maksgjeld+100,0) -> 0 | L91: =IF(Tabell35[[#This Row],[Nedbetalt]]>0,"w",Finansiering!T19) -> 0 | M91: =Finansiering!X19*Tabell35[[#This Row],[Netto bominntekter]] -> 0 | N91: =(Tabell35[[#This Row],[Bominntekter]])*(1+Prisstigning)^(C_Referanseår-Sammendrag2!C91) -> 0 | O91: =Finansiering!X19*Tabell35[[#This Row],[Brutto bominntekter i perioden]] -> 0 | P91: =IF(Tabell35[[#This Row],[År]]=$C$16,-1*Maksgjeld,0) -> 0 | Q91: =IF(Scenarier!$Q$6=TRUE,Scenarier!Q20,0) -> 0 | R91: =IF(Scenarier!$R$6=TRUE,Scenarier!R20,0) -> 0 | S91: =IF(Scenarier!$S$6=TRUE,Scenarier!S20,0) -> 0
B92: 1 | C92: =Finansiering!B20 -> 2037 | D92: =HLOOKUP($C92,Prosjektdata!$H$5:$BF$23,7,0)*-1 -> 0 | E92: =HLOOKUP($C92,Prosjektdata!$H$5:$BF$23,11,0) -> 0 | F92: =HLOOKUP($C92,Prosjektdata!$H$5:$BF$23,17,0) -> 0 | G92: =(Finansiering!G20)*(1+Prisstigning)^(C_Referanseår-Sammendrag2!C92)*Finansiering!X20 -> 0 | H92: =Finansiering!F20 -> 0 | I92: =(Finansiering!F20-Finansiering!G20)*(1+Prisstigning)^(C_Referanseår-Sammendrag2!C92) -> 0 | J92: =Finansiering!P20 -> 0 | K92: =IF(Tabell35[[#This Row],[År]]=$C$24,Maksgjeld+100,0) -> 0 | L92: =IF(Tabell35[[#This Row],[Nedbetalt]]>0,"w",Finansiering!T20) -> 0 | M92: =Finansiering!X20*Tabell35[[#This Row],[Netto bominntekter]] -> 0 | N92: =(Tabell35[[#This Row],[Bominntekter]])*(1+Prisstigning)^(C_Referanseår-Sammendrag2!C92) -> 0 | O92: =Finansiering!X20*Tabell35[[#This Row],[Brutto bominntekter i perioden]] -> 0 | P92: =IF(Tabell35[[#This Row],[År]]=$C$16,-1*Maksgjeld,0) -> 0 | Q92: =IF(Scenarier!$Q$6=TRUE,Scenarier!Q21,0) -> 0 | R92: =IF(Scenarier!$R$6=TRUE,Scenarier!R21,0) -> 0 | S92: =IF(Scenarier!$S$6=TRUE,Scenarier!S21,0) -> 0
B93: 1 | C93: =Finansiering!B21 -> 2038 | D93: =HLOOKUP($C93,Prosjektdata!$H$5:$BF$23,7,0)*-1 -> 0 | E93: =HLOOKUP($C93,Prosjektdata!$H$5:$BF$23,11,0) -> 0 | F93: =HLOOKUP($C93,Prosjektdata!$H$5:$BF$23,17,0) -> 0 | G93: =(Finansiering!G21)*(1+Prisstigning)^(C_Referanseår-Sammendrag2!C93)*Finansiering!X21 -> 0 | H93: =Finansiering!F21 -> 0 | I93: =(Finansiering!F21-Finansiering!G21)*(1+Prisstigning)^(C_Referanseår-Sammendrag2!C93) -> 0 | J93: =Finansiering!P21 -> 0 | K93: =IF(Tabell35[[#This Row],[År]]=$C$24,Maksgjeld+100,0) -> 0 | L93: =IF(Tabell35[[#This Row],[Nedbetalt]]>0,"w",Finansiering!T21) -> 0 | M93: =Finansiering!X21*Tabell35[[#This Row],[Netto bominntekter]] -> 0 | N93: =(Tabell35[[#This Row],[Bominntekter]])*(1+Prisstigning)^(C_Referanseår-Sammendrag2!C93) -> 0 | O93: =Finansiering!X21*Tabell35[[#This Row],[Brutto bominntekter i perioden]] -> 0 | P93: =IF(Tabell35[[#This Row],[År]]=$C$16,-1*Maksgjeld,0) -> 0 | Q93: =IF(Scenarier!$Q$6=TRUE,Scenarier!Q22,0) -> 0 | R93: =IF(Scenarier!$R$6=TRUE,Scenarier!R22,0) -> 0 | S93: =IF(Scenarier!$S$6=TRUE,Scenarier!S22,0) -> 0
B94: 1 | C94: =Finansiering!B22 -> 2039 | D94: =HLOOKUP($C94,Prosjektdata!$H$5:$BF$23,7,0)*-1 -> 0 | E94: =HLOOKUP($C94,Prosjektdata!$H$5:$BF$23,11,0) -> 0 | F94: =HLOOKUP($C94,Prosjektdata!$H$5:$BF$23,17,0) -> 0 | G94: =(Finansiering!G22)*(1+Prisstigning)^(C_Referanseår-Sammendrag2!C94)*Finansiering!X22 -> 0 | H94: =Finansiering!F22 -> 0 | I94: =(Finansiering!F22-Finansiering!G22)*(1+Prisstigning)^(C_Referanseår-Sammendrag2!C94) -> 0 | J94: =Finansiering!P22 -> 0 | K94: =IF(Tabell35[[#This Row],[År]]=$C$24,Maksgjeld+100,0) -> 0 | L94: =IF(Tabell35[[#This Row],[Nedbetalt]]>0,"w",Finansiering!T22) -> 0 | M94: =Finansiering!X22*Tabell35[[#This Row],[Netto bominntekter]] -> 0 | N94: =(Tabell35[[#This Row],[Bominntekter]])*(1+Prisstigning)^(C_Referanseår-Sammendrag2!C94) -> 0 | O94: =Finansiering!X22*Tabell35[[#This Row],[Brutto bominntekter i perioden]] -> 0 | P94: =IF(Tabell35[[#This Row],[År]]=$C$16,-1*Maksgjeld,0) -> 0 | Q94: =IF(Scenarier!$Q$6=TRUE,Scenarier!Q23,0) -> 0 | R94: =IF(Scenarier!$R$6=TRUE,Scenarier!R23,0) -> 0 | S94: =IF(Scenarier!$S$6=TRUE,Scenarier!S23,0) -> 0
B95: 1 | C95: =Finansiering!B23 -> 2040 | D95: =HLOOKUP($C95,Prosjektdata!$H$5:$BF$23,7,0)*-1 -> 0 | E95: =HLOOKUP($C95,Prosjektdata!$H$5:$BF$23,11,0) -> 0 | F95: =HLOOKUP($C95,Prosjektdata!$H$5:$BF$23,17,0) -> 0 | G95: =(Finansiering!G23)*(1+Prisstigning)^(C_Referanseår-Sammendrag2!C95)*Finansiering!X23 -> 0 | H95: =Finansiering!F23 -> 0 | I95: =(Finansiering!F23-Finansiering!G23)*(1+Prisstigning)^(C_Referanseår-Sammendrag2!C95) -> 0 | J95: =Finansiering!P23 -> 0 | K95: =IF(Tabell35[[#This Row],[År]]=$C$24,Maksgjeld+100,0) -> 0 | L95: =IF(Tabell35[[#This Row],[Nedbetalt]]>0,"w",Finansiering!T23) -> 0 | M95: =Finansiering!X23*Tabell35[[#This Row],[Netto bominntekter]] -> 0 | N95: =(Tabell35[[#This Row],[Bominntekter]])*(1+Prisstigning)^(C_Referanseår-Sammendrag2!C95) -> 0 | O95: =Finansiering!X23*Tabell35[[#This Row],[Brutto bominntekter i perioden]] -> 0 | P95: =IF(Tabell35[[#This Row],[År]]=$C$16,-1*Maksgjeld,0) -> 0 | Q95: =IF(Scenarier!$Q$6=TRUE,Scenarier!Q24,0) -> 0 | R95: =IF(Scenarier!$R$6=TRUE,Scenarier!R24,0) -> 0 | S95: =IF(Scenarier!$S$6=TRUE,Scenarier!S24,0) -> 0
B96: 1 | C96: =Finansiering!B24 -> 2041 | D96: =HLOOKUP($C96,Prosjektdata!$H$5:$BF$23,7,0)*-1 -> 0 | E96: =HLOOKUP($C96,Prosjektdata!$H$5:$BF$23,11,0) -> 0 | F96: =HLOOKUP($C96,Prosjektdata!$H$5:$BF$23,17,0) -> 0 | G96: =(Finansiering!G24)*(1+Prisstigning)^(C_Referanseår-Sammendrag2!C96)*Finansiering!X24 -> 0 | H96: =Finansiering!F24 -> 0 | I96: =(Finansiering!F24-Finansiering!G24)*(1+Prisstigning)^(C_Referanseår-Sammendrag2!C96) -> 0 | J96: =Finansiering!P24 -> 0 | K96: =IF(Tabell35[[#This Row],[År]]=$C$24,Maksgjeld+100,0) -> 0 | L96: =IF(Tabell35[[#This Row],[Nedbetalt]]>0,"w",Finansiering!T24) -> 0 | M96: =Finansiering!X24*Tabell35[[#This Row],[Netto bominntekter]] -> 0 | N96: =(Tabell35[[#This Row],[Bominntekter]])*(1+Prisstigning)^(C_Referanseår-Sammendrag2!C96) -> 0 | O96: =Finansiering!X24*Tabell35[[#This Row],[Brutto bominntekter i perioden]] -> 0 | P96: =IF(Tabell35[[#This Row],[År]]=$C$16,-1*Maksgjeld,0) -> 0 | Q96: =IF(Scenarier!$Q$6=TRUE,Scenarier!Q25,0) -> 0 | R96: =IF(Scenarier!$R$6=TRUE,Scenarier!R25,0) -> 0 | S96: =IF(Scenarier!$S$6=TRUE,Scenarier!S25,0) -> 0
B97: 1 | C97: =Finansiering!B25 -> 2042 | D97: =HLOOKUP($C97,Prosjektdata!$H$5:$BF$23,7,0)*-1 -> 0 | E97: =HLOOKUP($C97,Prosjektdata!$H$5:$BF$23,11,0) -> 0 | F97: =HLOOKUP($C97,Prosjektdata!$H$5:$BF$23,17,0) -> 0 | G97: =(Finansiering!G25)*(1+Prisstigning)^(C_Referanseår-Sammendrag2!C97)*Finansiering!X25 -> 0 | H97: =Finansiering!F25 -> 0 | I97: =(Finansiering!F25-Finansiering!G25)*(1+Prisstigning)^(C_Referanseår-Sammendrag2!C97) -> 0 | J97: =Finansiering!P25 -> 0 | K97: =IF(Tabell35[[#This Row],[År]]=$C$24,Maksgjeld+100,0) -> 0 | L97: =IF(Tabell35[[#This Row],[Nedbetalt]]>0,"w",Finansiering!T25) -> 0 | M97: =Finansiering!X25*Tabell35[[#This Row],[Netto bominntekter]] -> 0 | N97: =(Tabell35[[#This Row],[Bominntekter]])*(1+Prisstigning)^(C_Referanseår-Sammendrag2!C97) -> 0 | O97: =Finansiering!X25*Tabell35[[#This Row],[Brutto bominntekter i perioden]] -> 0 | P97: =IF(Tabell35[[#This Row],[År]]=$C$16,-1*Maksgjeld,0) -> 0 | Q97: =IF(Scenarier!$Q$6=TRUE,Scenarier!Q26,0) -> 0 | R97: =IF(Scenarier!$R$6=TRUE,Scenarier!R26,0) -> 0 | S97: =IF(Scenarier!$S$6=TRUE,Scenarier!S26,0) -> 0
B98: 1 | C98: =Finansiering!B26 -> 2043 | D98: =HLOOKUP($C98,Prosjektdata!$H$5:$BF$23,7,0)*-1 -> 0 | E98: =HLOOKUP($C98,Prosjektdata!$H$5:$BF$23,11,0) -> 0 | F98: =HLOOKUP($C98,Prosjektdata!$H$5:$BF$23,17,0) -> 0 | G98: =(Finansiering!G26)*(1+Prisstigning)^(C_Referanseår-Sammendrag2!C98)*Finansiering!X26 -> 0 | H98: =Finansiering!F26 -> 0 | I98: =(Finansiering!F26-Finansiering!G26)*(1+Prisstigning)^(C_Referanseår-Sammendrag2!C98) -> 0 | J98: =Finansiering!P26 -> 0 | K98: =IF(Tabell35[[#This Row],[År]]=$C$24,Maksgjeld+100,0) -> 100 | L98: =IF(Tabell35[[#This Row],[Nedbetalt]]>0,"w",Finansiering!T26) -> 0 | M98: =Finansiering!X26*Tabell35[[#This Row],[Netto bominntekter]] -> 0 | N98: =(Tabell35[[#This Row],[Bominntekter]])*(1+Prisstigning)^(C_Referanseår-Sammendrag2!C98) -> 0 | O98: =Finansiering!X26*Tabell35[[#This Row],[Brutto bominntekter i perioden]] -> 0 | P98: =IF(Tabell35[[#This Row],[År]]=$C$16,-1*Maksgjeld,0) -> 0 | Q98: =IF(Scenarier!$Q$6=TRUE,Scenarier!Q27,0) -> 0 | R98: =IF(Scenarier!$R$6=TRUE,Scenarier!R27,0) -> 0 | S98: =IF(Scenarier!$S$6=TRUE,Scenarier!S27,0) -> 0
B99: 1 | C99: =Finansiering!B27 -> 2044 | D99: =HLOOKUP($C99,Prosjektdata!$H$5:$BF$23,7,0)*-1 -> 0 | E99: =HLOOKUP($C99,Prosjektdata!$H$5:$BF$23,11,0) -> 0 | F99: =HLOOKUP($C99,Prosjektdata!$H$5:$BF$23,17,0) -> 0 | G99: =(Finansiering!G27)*(1+Prisstigning)^(C_Referanseår-Sammendrag2!C99)*Finansiering!X27 -> 0 | H99: =Finansiering!F27 -> 0 | I99: =(Finansiering!F27-Finansiering!G27)*(1+Prisstigning)^(C_Referanseår-Sammendrag2!C99) -> 0 | J99: =Finansiering!P27 -> 0 | K99: =IF(Tabell35[[#This Row],[År]]=$C$24,Maksgjeld+100,0) -> 0 | L99: =IF(Tabell35[[#This Row],[Nedbetalt]]>0,"w",Finansiering!T27) -> 0 | M99: =Finansiering!X27*Tabell35[[#This Row],[Netto bominntekter]] -> 0 | N99: =(Tabell35[[#This Row],[Bominntekter]])*(1+Prisstigning)^(C_Referanseår-Sammendrag2!C99) -> 0 | O99: =Finansiering!X27*Tabell35[[#This Row],[Brutto bominntekter i perioden]] -> 0 | P99: =IF(Tabell35[[#This Row],[År]]=$C$16,-1*Maksgjeld,0) -> 0 | Q99: =IF(Scenarier!$Q$6=TRUE,Scenarier!Q28,0) -> 0 | R99: =IF(Scenarier!$R$6=TRUE,Scenarier!R28,0) -> 0 | S99: =IF(Scenarier!$S$6=TRUE,Scenarier!S28,0) -> 0
B100: 1 | C100: =Finansiering!B28 -> 2045 | D100: =HLOOKUP($C100,Prosjektdata!$H$5:$BF$23,7,0)*-1 -> 0 | E100: =HLOOKUP($C100,Prosjektdata!$H$5:$BF$23,11,0) -> 0 | F100: =HLOOKUP($C100,Prosjektdata!$H$5:$BF$23,17,0) -> 0 | G100: =(Finansiering!G28)*(1+Prisstigning)^(C_Referanseår-Sammendrag2!C100)*Finansiering!X28 -> 0 | H100: =Finansiering!F28 -> 0 | I100: =(Finansiering!F28-Finansiering!G28)*(1+Prisstigning)^(C_Referanseår-Sammendrag2!C100) -> 0 | J100: =Finansiering!P28 -> 0 | K100: =IF(Tabell35[[#This Row],[År]]=$C$24,Maksgjeld+100,0) -> 0 | L100: =IF(Tabell35[[#This Row],[Nedbetalt]]>0,"w",Finansiering!T28) -> 0 | M100: =Finansiering!X28*Tabell35[[#This Row],[Netto bominntekter]] -> 0 | N100: =(Tabell35[[#This Row],[Bominntekter]])*(1+Prisstigning)^(C_Referanseår-Sammendrag2!C100) -> 0 | O100: =Finansiering!X28*Tabell35[[#This Row],[Brutto bominntekter i perioden]] -> 0 | P100: =IF(Tabell35[[#This Row],[År]]=$C$16,-1*Maksgjeld,0) -> 0 | Q100: =IF(Scenarier!$Q$6=TRUE,Scenarier!Q29,0) -> 0 | R100: =IF(Scenarier!$R$6=TRUE,Scenarier!R29,0) -> 0 | S100: =IF(Scenarier!$S$6=TRUE,Scenarier!S29,0) -> 0
B101: 0 | C101: =Finansiering!B29 -> 2046 | D101: =HLOOKUP($C101,Prosjektdata!$H$5:$BF$23,7,0)*-1 -> 0 | E101: =HLOOKUP($C101,Prosjektdata!$H$5:$BF$23,11,0) -> 0 | F101: =HLOOKUP($C101,Prosjektdata!$H$5:$BF$23,17,0) -> 0 | G101: =(Finansiering!G29)*(1+Prisstigning)^(C_Referanseår-Sammendrag2!C101)*Finansiering!X29 -> 0 | H101: =Finansiering!F29 -> 0 | I101: =(Finansiering!F29-Finansiering!G29)*(1+Prisstigning)^(C_Referanseår-Sammendrag2!C101) -> 0 | J101: =Finansiering!P29 -> 0 | K101: =IF(Tabell35[[#This Row],[År]]=$C$24,Maksgjeld+100,0) -> 0 | L101: =IF(Tabell35[[#This Row],[Nedbetalt]]>0,"w",Finansiering!T29) -> 0 | M101: =Finansiering!X29*Tabell35[[#This Row],[Netto bominntekter]] -> 0 | N101: =(Tabell35[[#This Row],[Bominntekter]])*(1+Prisstigning)^(C_Referanseår-Sammendrag2!C101) -> 0 | O101: =Finansiering!X29*Tabell35[[#This Row],[Brutto bominntekter i perioden]] -> 0 | P101: =IF(Tabell35[[#This Row],[År]]=$C$16,-1*Maksgjeld,0) -> 0 | Q101: =IF(Scenarier!$Q$6=TRUE,Scenarier!Q30,0) -> 0 | R101: =IF(Scenarier!$R$6=TRUE,Scenarier!R30,0) -> 0 | S101: =IF(Scenarier!$S$6=TRUE,Scenarier!S30,0) -> 0
B102: 0 | C102: =Finansiering!B30 -> 2047 | D102: =HLOOKUP($C102,Prosjektdata!$H$5:$BF$23,7,0)*-1 -> 0 | E102: =HLOOKUP($C102,Prosjektdata!$H$5:$BF$23,11,0) -> 0 | F102: =HLOOKUP($C102,Prosjektdata!$H$5:$BF$23,17,0) -> 0 | G102: =(Finansiering!G30)*(1+Prisstigning)^(C_Referanseår-Sammendrag2!C102)*Finansiering!X30 -> 0 | H102: =Finansiering!F30 -> 0 | I102: =(Finansiering!F30-Finansiering!G30)*(1+Prisstigning)^(C_Referanseår-Sammendrag2!C102) -> 0 | J102: =Finansiering!P30 -> 0 | K102: =IF(Tabell35[[#This Row],[År]]=$C$24,Maksgjeld+100,0) -> 0 | L102: =IF(Tabell35[[#This Row],[Nedbetalt]]>0,"w",Finansiering!T30) -> 0 | M102: =Finansiering!X30*Tabell35[[#This Row],[Netto bominntekter]] -> 0 | N102: =(Tabell35[[#This Row],[Bominntekter]])*(1+Prisstigning)^(C_Referanseår-Sammendrag2!C102) -> 0 | O102: =Finansiering!X30*Tabell35[[#This Row],[Brutto bominntekter i perioden]] -> 0 | P102: =IF(Tabell35[[#This Row],[År]]=$C$16,-1*Maksgjeld,0) -> 0 | Q102: =IF(Scenarier!$Q$6=TRUE,Scenarier!Q31,0) -> 0 | R102: =IF(Scenarier!$R$6=TRUE,Scenarier!R31,0) -> 0 | S102: =IF(Scenarier!$S$6=TRUE,Scenarier!S31,0) -> 0
B103: 0 | C103: =Finansiering!B31 -> 2048 | D103: =HLOOKUP($C103,Prosjektdata!$H$5:$BF$23,7,0)*-1 -> 0 | E103: =HLOOKUP($C103,Prosjektdata!$H$5:$BF$23,11,0) -> 0 | F103: =HLOOKUP($C103,Prosjektdata!$H$5:$BF$23,17,0) -> 0 | G103: =(Finansiering!G31)*(1+Prisstigning)^(C_Referanseår-Sammendrag2!C103)*Finansiering!X31 -> 0 | H103: =Finansiering!F31 -> 0 | I103: =(Finansiering!F31-Finansiering!G31)*(1+Prisstigning)^(C_Referanseår-Sammendrag2!C103) -> 0 | J103: =Finansiering!P31 -> 0 | K103: =IF(Tabell35[[#This Row],[År]]=$C$24,Maksgjeld+100,0) -> 0 | L103: =IF(Tabell35[[#This Row],[Nedbetalt]]>0,"w",Finansiering!T31) -> 0 | M103: =Finansiering!X31*Tabell35[[#This Row],[Netto bominntekter]] -> 0 | N103: =(Tabell35[[#This Row],[Bominntekter]])*(1+Prisstigning)^(C_Referanseår-Sammendrag2!C103) -> 0 | O103: =Finansiering!X31*Tabell35[[#This Row],[Brutto bominntekter i perioden]] -> 0 | P103: =IF(Tabell35[[#This Row],[År]]=$C$16,-1*Maksgjeld,0) -> 0 | Q103: =IF(Scenarier!$Q$6=TRUE,Scenarier!Q32,0) -> 0 | R103: =IF(Scenarier!$R$6=TRUE,Scenarier!R32,0) -> 0 | S103: =IF(Scenarier!$S$6=TRUE,Scenarier!S32,0) -> 0 | U103: =IF(Scenarier!$R$6=TRUE,Scenarier!U32,0) -> 0
B104: 0 | C104: =Finansiering!B32 -> 2049 | D104: =HLOOKUP($C104,Prosjektdata!$H$5:$BF$23,7,0)*-1 -> 0 | E104: =HLOOKUP($C104,Prosjektdata!$H$5:$BF$23,11,0) -> 0 | F104: =HLOOKUP($C104,Prosjektdata!$H$5:$BF$23,17,0) -> 0 | G104: =(Finansiering!G32)*(1+Prisstigning)^(C_Referanseår-Sammendrag2!C104)*Finansiering!X32 -> 0 | H104: =Finansiering!F32 -> 0 | I104: =(Finansiering!F32-Finansiering!G32)*(1+Prisstigning)^(C_Referanseår-Sammendrag2!C104) -> 0 | J104: =Finansiering!P32 -> 0 | K104: =IF(Tabell35[[#This Row],[År]]=$C$24,Maksgjeld+100,0) -> 0 | L104: =IF(Tabell35[[#This Row],[Nedbetalt]]>0,"w",Finansiering!T32) -> 0 | M104: =Finansiering!X32*Tabell35[[#This Row],[Netto bominntekter]] -> 0 | N104: =(Tabell35[[#This Row],[Bominntekter]])*(1+Prisstigning)^(C_Referanseår-Sammendrag2!C104) -> 0 | O104: =Finansiering!X32*Tabell35[[#This Row],[Brutto bominntekter i perioden]] -> 0 | P104: =IF(Tabell35[[#This Row],[År]]=$C$16,-1*Maksgjeld,0) -> 0 | Q104: =IF(Scenarier!$Q$6=TRUE,Scenarier!Q33,0) -> 0 | R104: =IF(Scenarier!$R$6=TRUE,Scenarier!R33,0) -> 0 | S104: =IF(Scenarier!$S$6=TRUE,Scenarier!S33,0) -> 0
B105: 0 | C105: =Finansiering!B33 -> 2050 | D105: =HLOOKUP($C105,Prosjektdata!$H$5:$BF$23,7,0)*-1 -> 0 | E105: =HLOOKUP($C105,Prosjektdata!$H$5:$BF$23,11,0) -> 0 | F105: =HLOOKUP($C105,Prosjektdata!$H$5:$BF$23,17,0) -> 0 | G105: =(Finansiering!G33)*(1+Prisstigning)^(C_Referanseår-Sammendrag2!C105)*Finansiering!X33 -> 0 | H105: =Finansiering!F33 -> 0 | I105: =(Finansiering!F33-Finansiering!G33)*(1+Prisstigning)^(C_Referanseår-Sammendrag2!C105) -> 0 | J105: =Finansiering!P33 -> 0 | K105: =IF(Tabell35[[#This Row],[År]]=$C$24,Maksgjeld+100,0) -> 0 | L105: =IF(Tabell35[[#This Row],[Nedbetalt]]>0,"w",Finansiering!T33) -> 0 | M105: =Finansiering!X33*Tabell35[[#This Row],[Netto bominntekter]] -> 0 | N105: =(Tabell35[[#This Row],[Bominntekter]])*(1+Prisstigning)^(C_Referanseår-Sammendrag2!C105) -> 0 | O105: =Finansiering!X33*Tabell35[[#This Row],[Brutto bominntekter i perioden]] -> 0 | P105: =IF(Tabell35[[#This Row],[År]]=$C$16,-1*Maksgjeld,0) -> 0 | Q105: =IF(Scenarier!$Q$6=TRUE,Scenarier!Q34,0) -> 0 | R105: =IF(Scenarier!$R$6=TRUE,Scenarier!R34,0) -> 0 | S105: =IF(Scenarier!$S$6=TRUE,Scenarier!S34,0) -> 0
B106: 0 | C106: =Finansiering!B34 -> 2051 | D106: =HLOOKUP($C106,Prosjektdata!$H$5:$BF$23,7,0)*-1 -> 0 | E106: =HLOOKUP($C106,Prosjektdata!$H$5:$BF$23,11,0) -> 0 | F106: =HLOOKUP($C106,Prosjektdata!$H$5:$BF$23,17,0) -> 0 | G106: =(Finansiering!G34)*(1+Prisstigning)^(C_Referanseår-Sammendrag2!C106)*Finansiering!X34 -> 0 | H106: =Finansiering!F34 -> 0 | I106: =(Finansiering!F34-Finansiering!G34)*(1+Prisstigning)^(C_Referanseår-Sammendrag2!C106) -> 0 | J106: =Finansiering!P34 -> 0 | K106: =IF(Tabell35[[#This Row],[År]]=$C$24,Maksgjeld+100,0) -> 0 | L106: =IF(Tabell35[[#This Row],[Nedbetalt]]>0,"w",Finansiering!T34) -> 0 | M106: =Finansiering!X34*Tabell35[[#This Row],[Netto bominntekter]] -> 0 | N106: =(Tabell35[[#This Row],[Bominntekter]])*(1+Prisstigning)^(C_Referanseår-Sammendrag2!C106) -> 0 | O106: =Finansiering!X34*Tabell35[[#This Row],[Brutto bominntekter i perioden]] -> 0 | P106: =IF(Tabell35[[#This Row],[År]]=$C$16,-1*Maksgjeld,0) -> 0 | Q106: =IF(Scenarier!$Q$6=TRUE,Scenarier!Q35,0) -> 0 | R106: =IF(Scenarier!$R$6=TRUE,Scenarier!R35,0) -> 0 | S106: =IF(Scenarier!$S$6=TRUE,Scenarier!S35,0) -> 0
B107: 0 | C107: =Finansiering!B35 -> 2052 | D107: =HLOOKUP($C107,Prosjektdata!$H$5:$BF$23,7,0)*-1 -> 0 | E107: =HLOOKUP($C107,Prosjektdata!$H$5:$BF$23,11,0) -> 0 | F107: =HLOOKUP($C107,Prosjektdata!$H$5:$BF$23,17,0) -> 0 | G107: =(Finansiering!G35)*(1+Prisstigning)^(C_Referanseår-Sammendrag2!C107)*Finansiering!X35 -> 0 | H107: =Finansiering!F35 -> 0 | I107: =(Finansiering!F35-Finansiering!G35)*(1+Prisstigning)^(C_Referanseår-Sammendrag2!C107) -> 0 | J107: =Finansiering!P35 -> 0 | K107: =IF(Tabell35[[#This Row],[År]]=$C$24,Maksgjeld+100,0) -> 0 | L107: =IF(Tabell35[[#This Row],[Nedbetalt]]>0,"w",Finansiering!T35) -> 0 | M107: =Finansiering!X35*Tabell35[[#This Row],[Netto bominntekter]] -> 0 | N107: =(Tabell35[[#This Row],[Bominntekter]])*(1+Prisstigning)^(C_Referanseår-Sammendrag2!C107) -> 0 | O107: =Finansiering!X35*Tabell35[[#This Row],[Brutto bominntekter i perioden]] -> 0 | P107: =IF(Tabell35[[#This Row],[År]]=$C$16,-1*Maksgjeld,0) -> 0 | Q107: =IF(Scenarier!$Q$6=TRUE,Scenarier!Q36,0) -> 0 | R107: =IF(Scenarier!$R$6=TRUE,Scenarier!R36,0) -> 0 | S107: =IF(Scenarier!$S$6=TRUE,Scenarier!S36,0) -> 0
B108: 0 | C108: =Finansiering!B36 -> 2053 | D108: =HLOOKUP($C108,Prosjektdata!$H$5:$BF$23,7,0)*-1 -> 0 | E108: =HLOOKUP($C108,Prosjektdata!$H$5:$BF$23,11,0) -> 0 | F108: =HLOOKUP($C108,Prosjektdata!$H$5:$BF$23,17,0) -> 0 | G108: =(Finansiering!G36)*(1+Prisstigning)^(C_Referanseår-Sammendrag2!C108)*Finansiering!X36 -> 0 | H108: =Finansiering!F36 -> 0 | I108: =(Finansiering!F36-Finansiering!G36)*(1+Prisstigning)^(C_Referanseår-Sammendrag2!C108) -> 0 | J108: =Finansiering!P36 -> 0 | K108: =IF(Tabell35[[#This Row],[År]]=$C$24,Maksgjeld+100,0) -> 0 | L108: =IF(Tabell35[[#This Row],[Nedbetalt]]>0,"w",Finansiering!T36) -> 0 | M108: =Finansiering!X36*Tabell35[[#This Row],[Netto bominntekter]] -> 0 | N108: =(Tabell35[[#This Row],[Bominntekter]])*(1+Prisstigning)^(C_Referanseår-Sammendrag2!C108) -> 0 | O108: =Finansiering!X36*Tabell35[[#This Row],[Brutto bominntekter i perioden]] -> 0 | P108: =IF(Tabell35[[#This Row],[År]]=$C$16,-1*Maksgjeld,0) -> 0 | Q108: =IF(Scenarier!$Q$6=TRUE,Scenarier!Q37,0) -> 0 | R108: =IF(Scenarier!$R$6=TRUE,Scenarier!R37,0) -> 0 | S108: =IF(Scenarier!$S$6=TRUE,Scenarier!S37,0) -> 0
B109: 0 | C109: =Finansiering!B37 -> 2054 | D109: =HLOOKUP($C109,Prosjektdata!$H$5:$BF$23,7,0)*-1 -> 0 | E109: =HLOOKUP($C109,Prosjektdata!$H$5:$BF$23,11,0) -> 0 | F109: =HLOOKUP($C109,Prosjektdata!$H$5:$BF$23,17,0) -> 0 | G109: =(Finansiering!G37)*(1+Prisstigning)^(C_Referanseår-Sammendrag2!C109)*Finansiering!X37 -> 0 | H109: =Finansiering!F37 -> 0 | I109: =(Finansiering!F37-Finansiering!G37)*(1+Prisstigning)^(C_Referanseår-Sammendrag2!C109) -> 0 | J109: =Finansiering!P37 -> 0 | K109: =IF(Tabell35[[#This Row],[År]]=$C$24,Maksgjeld+100,0) -> 0 | L109: =IF(Tabell35[[#This Row],[Nedbetalt]]>0,"w",Finansiering!T37) -> 0 | M109: =Finansiering!X37*Tabell35[[#This Row],[Netto bominntekter]] -> 0 | N109: =(Tabell35[[#This Row],[Bominntekter]])*(1+Prisstigning)^(C_Referanseår-Sammendrag2!C109) -> 0 | O109: =Finansiering!X37*Tabell35[[#This Row],[Brutto bominntekter i perioden]] -> 0 | P109: =IF(Tabell35[[#This Row],[År]]=$C$16,-1*Maksgjeld,0) -> 0 | Q109: =IF(Scenarier!$Q$6=TRUE,Scenarier!Q38,0) -> 0 | R109: =IF(Scenarier!$R$6=TRUE,Scenarier!R38,0) -> 0 | S109: =IF(Scenarier!$S$6=TRUE,Scenarier!S38,0) -> 0
B110: 0 | C110: =Finansiering!B38 -> 2055 | D110: =HLOOKUP($C110,Prosjektdata!$H$5:$BF$23,7,0)*-1 -> 0 | E110: =HLOOKUP($C110,Prosjektdata!$H$5:$BF$23,11,0) -> 0 | F110: =HLOOKUP($C110,Prosjektdata!$H$5:$BF$23,17,0) -> 0 | G110: =(Finansiering!G38)*(1+Prisstigning)^(C_Referanseår-Sammendrag2!C110)*Finansiering!X38 -> 0 | H110: =Finansiering!F38 -> 0 | I110: =(Finansiering!F38-Finansiering!G38)*(1+Prisstigning)^(C_Referanseår-Sammendrag2!C110) -> 0 | J110: =Finansiering!P38 -> 0 | K110: =IF(Tabell35[[#This Row],[År]]=$C$24,Maksgjeld+100,0) -> 0 | L110: =IF(Tabell35[[#This Row],[Nedbetalt]]>0,"w",Finansiering!T38) -> 0 | M110: =Finansiering!X38*Tabell35[[#This Row],[Netto bominntekter]] -> 0 | N110: =(Tabell35[[#This Row],[Bominntekter]])*(1+Prisstigning)^(C_Referanseår-Sammendrag2!C110) -> 0 | O110: =Finansiering!X38*Tabell35[[#This Row],[Brutto bominntekter i perioden]] -> 0 | P110: =IF(Tabell35[[#This Row],[År]]=$C$16,-1*Maksgjeld,0) -> 0 | Q110: =IF(Scenarier!$Q$6=TRUE,Scenarier!Q39,0) -> 0 | R110: =IF(Scenarier!$R$6=TRUE,Scenarier!R39,0) -> 0 | S110: =IF(Scenarier!$S$6=TRUE,Scenarier!S39,0) -> 0
B111: 0 | C111: =Finansiering!B39 -> 2056 | D111: =HLOOKUP($C111,Prosjektdata!$H$5:$BF$23,7,0)*-1 -> 0 | E111: =HLOOKUP($C111,Prosjektdata!$H$5:$BF$23,11,0) -> 0 | F111: =HLOOKUP($C111,Prosjektdata!$H$5:$BF$23,17,0) -> 0 | G111: =(Finansiering!G39)*(1+Prisstigning)^(C_Referanseår-Sammendrag2!C111)*Finansiering!X39 -> 0 | H111: =Finansiering!F39 -> 0 | I111: =(Finansiering!F39-Finansiering!G39)*(1+Prisstigning)^(C_Referanseår-Sammendrag2!C111) -> 0 | J111: =Finansiering!P39 -> 0 | K111: =IF(Tabell35[[#This Row],[År]]=$C$24,Maksgjeld+100,0) -> 0 | L111: =IF(Tabell35[[#This Row],[Nedbetalt]]>0,"w",Finansiering!T39) -> 0 | M111: =Finansiering!X39*Tabell35[[#This Row],[Netto bominntekter]] -> 0 | N111: =(Tabell35[[#This Row],[Bominntekter]])*(1+Prisstigning)^(C_Referanseår-Sammendrag2!C111) -> 0 | O111: =Finansiering!X39*Tabell35[[#This Row],[Brutto bominntekter i perioden]] -> 0 | P111: =IF(Tabell35[[#This Row],[År]]=$C$16,-1*Maksgjeld,0) -> 0 | Q111: =IF(Scenarier!$Q$6=TRUE,Scenarier!Q40,0) -> 0 | R111: =IF(Scenarier!$R$6=TRUE,Scenarier!R40,0) -> 0 | S111: =IF(Scenarier!$S$6=TRUE,Scenarier!S40,0) -> 0
B112: 0 | C112: =Finansiering!B40 -> 2057 | D112: =HLOOKUP($C112,Prosjektdata!$H$5:$BF$23,7,0)*-1 -> 0 | E112: =HLOOKUP($C112,Prosjektdata!$H$5:$BF$23,11,0) -> 0 | F112: =HLOOKUP($C112,Prosjektdata!$H$5:$BF$23,17,0) -> 0 | G112: =(Finansiering!G40)*(1+Prisstigning)^(C_Referanseår-Sammendrag2!C112)*Finansiering!X40 -> 0 | H112: =Finansiering!F40 -> 0 | I112: =(Finansiering!F40-Finansiering!G40)*(1+Prisstigning)^(C_Referanseår-Sammendrag2!C112) -> 0 | J112: =Finansiering!P40 -> 0 | K112: =IF(Tabell35[[#This Row],[År]]=$C$24,Maksgjeld+100,0) -> 0 | L112: =IF(Tabell35[[#This Row],[Nedbetalt]]>0,"w",Finansiering!T40) -> 0 | M112: =Finansiering!X40*Tabell35[[#This Row],[Netto bominntekter]] -> 0 | N112: =(Tabell35[[#This Row],[Bominntekter]])*(1+Prisstigning)^(C_Referanseår-Sammendrag2!C112) -> 0 | O112: =Finansiering!X40*Tabell35[[#This Row],[Brutto bominntekter i perioden]] -> 0 | P112: =IF(Tabell35[[#This Row],[År]]=$C$16,-1*Maksgjeld,0) -> 0 | Q112: =IF(Scenarier!$Q$6=TRUE,Scenarier!Q41,0) -> 0 | R112: =IF(Scenarier!$R$6=TRUE,Scenarier!R41,0) -> 0 | S112: =IF(Scenarier!$S$6=TRUE,Scenarier!S41,0) -> 0
B113: 0 | C113: =Finansiering!B41 -> 2058 | D113: =HLOOKUP($C113,Prosjektdata!$H$5:$BF$23,7,0)*-1 -> 0 | E113: =HLOOKUP($C113,Prosjektdata!$H$5:$BF$23,11,0) -> 0 | F113: =HLOOKUP($C113,Prosjektdata!$H$5:$BF$23,17,0) -> 0 | G113: =(Finansiering!G41)*(1+Prisstigning)^(C_Referanseår-Sammendrag2!C113)*Finansiering!X41 -> 0 | H113: =Finansiering!F41 -> 0 | I113: =(Finansiering!F41-Finansiering!G41)*(1+Prisstigning)^(C_Referanseår-Sammendrag2!C113) -> 0 | J113: =Finansiering!P41 -> 0 | K113: =IF(Tabell35[[#This Row],[År]]=$C$24,Maksgjeld+100,0) -> 0 | L113: =IF(Tabell35[[#This Row],[Nedbetalt]]>0,"w",Finansiering!T41) -> 0 | M113: =Finansiering!X41*Tabell35[[#This Row],[Netto bominntekter]] -> 0 | N113: =(Tabell35[[#This Row],[Bominntekter]])*(1+Prisstigning)^(C_Referanseår-Sammendrag2!C113) -> 0 | O113: =Finansiering!X41*Tabell35[[#This Row],[Brutto bominntekter i perioden]] -> 0 | P113: =IF(Tabell35[[#This Row],[År]]=$C$16,-1*Maksgjeld,0) -> 0 | Q113: =IF(Scenarier!$Q$6=TRUE,Scenarier!Q42,0) -> 0 | R113: =IF(Scenarier!$R$6=TRUE,Scenarier!R42,0) -> 0 | S113: =IF(Scenarier!$S$6=TRUE,Scenarier!S42,0) -> 0
B114: 0 | C114: =Finansiering!B42 -> 2059 | D114: =HLOOKUP($C114,Prosjektdata!$H$5:$BF$23,7,0)*-1 -> 0 | E114: =HLOOKUP($C114,Prosjektdata!$H$5:$BF$23,11,0) -> 0 | F114: =HLOOKUP($C114,Prosjektdata!$H$5:$BF$23,17,0) -> 0 | G114: =(Finansiering!G42)*(1+Prisstigning)^(C_Referanseår-Sammendrag2!C114)*Finansiering!X42 -> 0 | H114: =Finansiering!F42 -> 0 | I114: =(Finansiering!F42-Finansiering!G42)*(1+Prisstigning)^(C_Referanseår-Sammendrag2!C114) -> 0 | J114: =Finansiering!P42 -> 0 | K114: =IF(Tabell35[[#This Row],[År]]=$C$24,Maksgjeld+100,0) -> 0 | L114: =IF(Tabell35[[#This Row],[Nedbetalt]]>0,"w",Finansiering!T42) -> 0 | M114: =Finansiering!X42*Tabell35[[#This Row],[Netto bominntekter]] -> 0 | N114: =(Tabell35[[#This Row],[Bominntekter]])*(1+Prisstigning)^(C_Referanseår-Sammendrag2!C114) -> 0 | O114: =Finansiering!X42*Tabell35[[#This Row],[Brutto bominntekter i perioden]] -> 0 | P114: =IF(Tabell35[[#This Row],[År]]=$C$16,-1*Maksgjeld,0) -> 0 | Q114: =IF(Scenarier!$Q$6=TRUE,Scenarier!Q43,0) -> 0 | R114: =IF(Scenarier!$R$6=TRUE,Scenarier!R43,0) -> 0 | S114: =IF(Scenarier!$S$6=TRUE,Scenarier!S43,0) -> 0
